Workbook

Sheet 楽起 設置判定ツール
AR1: =AU53 -> シングル | AS1: =IFERROR(INDEX($AR$1:$AR$6,SMALL(IF(AR$1:AR$6<>"",ROW(AR$1:AR$6),""),ROW(AS1)-ROW(AS$1)+1)),"") -> シングル | AT1: =BD45 ->  | AU1: =IFERROR(INDEX(AT$1:AT$5,SMALL(IF(AT$1:AT$5<>"",ROW(AT$1:AT$5),""),ROW(AU1)-ROW(AU$1)+1)),"") ->  | AV1: =AS63 -> シングル | AW1: =IFERROR(INDEX(AV$1:AV$5,SMALL(IF(AV$1:AV$5<>"",ROW(AV$1:AV$5),""),ROW(AW1)-ROW(AW$1)+1)),"") -> シングル | AX1: =BJ67 ->  | AY1: =IFERROR(INDEX(AX$1:AX$5,SMALL(IF(AX$1:AX$5<>"",ROW(AX$1:AX$5),""),ROW(AY1)-ROW(AY$1)+1)),"") ->  | AZ1: =BJ69 ->  | BA1: =IFERROR(INDEX(AZ$1:AZ$5,SMALL(IF(AZ$1:AZ$5<>"",ROW(AZ$1:AZ$5),""),ROW(BA1)-ROW(BA$1)+1)),"") ->  | BB1: =AS88 -> シングル | BC1: =IFERROR(INDEX(BB$1:BB$5,SMALL(IF(BB$1:BB$5<>"",ROW(BB$1:BB$5),""),ROW(BC1)-ROW(BC$1)+1)),"") -> シングル | BD1: =$BJ$89 ->  | BE1: =IFERROR(INDEX(BD$1:BD$5,SMALL(IF(BD$1:BD$5<>"",ROW(BD$1:BD$5),""),ROW(BE1)-ROW(BE$1)+1)),"") ->  | BF1: =$BJ$90 ->  | BG1: =IFERROR(INDEX(BF$1:BF$5,SMALL(IF(BF$1:BF$5<>"",ROW(BF$1:BF$5),""),ROW(BG1)-ROW(BG$1)+1)),"") ->  | BH1: =$BJ$91 ->  | BI1: =IFERROR(INDEX(BH$1:BH$5,SMALL(IF(BH$1:BH$5<>"",ROW(BH$1:BH$5),""),ROW(BI1)-ROW(BI$1)+1)),"") ->  | BJ1: =AS114 -> シングル | BK1: =IFERROR(INDEX(BJ$1:BJ$5,SMALL(IF(BJ$1:BJ$5<>"",ROW(BJ$1:BJ$5),""),ROW(BK1)-ROW(BK$1)+1)),"") -> シングル | BL1: =$BJ$114 ->  | BM1: =IFERROR(INDEX(BL$1:BL$5,SMALL(IF(BL$1:BL$5<>"",ROW(BL$1:BL$5),""),ROW(BM1)-ROW(BM$1)+1)),"") ->  | BN1: =$BJ$115 ->  | BO1: =IFERROR(INDEX(BN$1:BN$5,SMALL(IF(BN$1:BN$5<>"",ROW(BN$1:BN$5),""),ROW(BO1)-ROW(BO$1)+1)),"") ->  | BP1: =$BJ$116 ->  | BQ1: =IFERROR(INDEX(BP$1:BP$5,SMALL(IF(BP$1:BP$5<>"",ROW(BP$1:BP$5),""),ROW(BQ1)-ROW(BQ$1)+1)),"") ->  | BR1: =$BJ$117 ->  | BS1: =IFERROR(INDEX(BR$1:BR$5,SMALL(IF(BR$1:BR$5<>"",ROW(BR$1:BR$5),""),ROW(BS1)-ROW(BS$1)+1)),"") ->  | BV1: =$BK$144 ->  | BW1: =IFERROR(INDEX(BV$1:BV$5,SMALL(IF(BV$1:BV$5<>"",ROW(BV$1:BV$5),""),ROW(BW1)-ROW(BW$1)+1)),"") ->  | BX1: =BC141 ->  | BY1: =IFERROR(INDEX(BX$1:BX$13,SMALL(IF(BX$1:BX$13<>"",ROW(BX$1:BX$13),""),ROW(BY1)-ROW(BY$1)+1)),"") -> 
AR2: =AU54 ->  | AS2: =IFERROR(INDEX($AR$1:$AR$6,SMALL(IF(AR$1:AR$6<>"",ROW(AR$1:AR$6),""),ROW(AS2)-ROW(AS$1)+1)),"") -> ロング | AT2: =BE45 ->  | AU2: =IFERROR(INDEX(AT$1:AT$5,SMALL(IF(AT$1:AT$5<>"",ROW(AT$1:AT$5),""),ROW(AU2)-ROW(AU$1)+1)),"") ->  | AV2: =AS64 ->  | AW2: =IFERROR(INDEX(AV$1:AV$5,SMALL(IF(AV$1:AV$5<>"",ROW(AV$1:AV$5),""),ROW(AW2)-ROW(AW$1)+1)),"") -> ロング | AX2: =BK67 ->  | AY2: =IFERROR(INDEX(AX$1:AX$5,SMALL(IF(AX$1:AX$5<>"",ROW(AX$1:AX$5),""),ROW(AY2)-ROW(AY$1)+1)),"") ->  | AZ2: =BK69 ->  | BA2: =IFERROR(INDEX(AZ$1:AZ$5,SMALL(IF(AZ$1:AZ$5<>"",ROW(AZ$1:AZ$5),""),ROW(BA2)-ROW(BA$1)+1)),"") ->  | BB2: =AS89 ->  | BC2: =IFERROR(INDEX(BB$1:BB$5,SMALL(IF(BB$1:BB$5<>"",ROW(BB$1:BB$5),""),ROW(BC2)-ROW(BC$1)+1)),"") -> ロング | BD2: =$BK$89 ->  | BE2: =IFERROR(INDEX(BD$1:BD$5,SMALL(IF(BD$1:BD$5<>"",ROW(BD$1:BD$5),""),ROW(BE2)-ROW(BE$1)+1)),"") ->  | BF2: =$BK$90 ->  | BG2: =IFERROR(INDEX(BF$1:BF$5,SMALL(IF(BF$1:BF$5<>"",ROW(BF$1:BF$5),""),ROW(BG2)-ROW(BG$1)+1)),"") ->  | BH2: =$BK$91 ->  | BI2: =IFERROR(INDEX(BH$1:BH$5,SMALL(IF(BH$1:BH$5<>"",ROW(BH$1:BH$5),""),ROW(BI2)-ROW(BI$1)+1)),"") ->  | BJ2: =AS115 ->  | BK2: =IFERROR(INDEX(BJ$1:BJ$5,SMALL(IF(BJ$1:BJ$5<>"",ROW(BJ$1:BJ$5),""),ROW(BK2)-ROW(BK$1)+1)),"") -> ロング | BL2: =$BK$114 ->  | BM2: =IFERROR(INDEX(BL$1:BL$5,SMALL(IF(BL$1:BL$5<>"",ROW(BL$1:BL$5),""),ROW(BM2)-ROW(BM$1)+1)),"") ->  | BN2: =$BK$115 ->  | BO2: =IFERROR(INDEX(BN$1:BN$5,SMALL(IF(BN$1:BN$5<>"",ROW(BN$1:BN$5),""),ROW(BO2)-ROW(BO$1)+1)),"") ->  | BP2: =$BK$116 ->  | BQ2: =IFERROR(INDEX(BP$1:BP$5,SMALL(IF(BP$1:BP$5<>"",ROW(BP$1:BP$5),""),ROW(BQ2)-ROW(BQ$1)+1)),"") ->  | BR2: =$BK$117 ->  | BS2: =IFERROR(INDEX(BR$1:BR$5,SMALL(IF(BR$1:BR$5<>"",ROW(BR$1:BR$5),""),ROW(BS2)-ROW(BS$1)+1)),"") ->  | BV2: =$BL$144 ->  | BW2: =IFERROR(INDEX(BV$1:BV$5,SMALL(IF(BV$1:BV$5<>"",ROW(BV$1:BV$5),""),ROW(BW2)-ROW(BW$1)+1)),"") ->  | BX2: =BC142 ->  | BY2: =IFERROR(INDEX(BX$1:BX$13,SMALL(IF(BX$1:BX$13<>"",ROW(BX$1:BX$13),""),ROW(BY2)-ROW(BY$1)+1)),"") -> 
A3: ※設置判定はあくまでも計算上の結果で、実際の設置を保証するものではありませんのでご容赦ください。 | AR3: =AU55 -> ロング | AS3: =IFERROR(INDEX($AR$1:$AR$6,SMALL(IF(AR$1:AR$6<>"",ROW(AR$1:AR$6),""),ROW(AS3)-ROW(AS$1)+1)),"") -> スリム | AT3: =BF45 ->  | AU3: =IFERROR(INDEX(AT$1:AT$5,SMALL(IF(AT$1:AT$5<>"",ROW(AT$1:AT$5),""),ROW(AU3)-ROW(AU$1)+1)),"") ->  | AV3: ロング | AW3: =IFERROR(INDEX(AV$1:AV$5,SMALL(IF(AV$1:AV$5<>"",ROW(AV$1:AV$5),""),ROW(AW3)-ROW(AW$1)+1)),"") -> ショート | AX3: =BL67 ->  | AY3: =IFERROR(INDEX(AX$1:AX$5,SMALL(IF(AX$1:AX$5<>"",ROW(AX$1:AX$5),""),ROW(AY3)-ROW(AY$1)+1)),"") ->  | AZ3: =BL69 ->  | BA3: =IFERROR(INDEX(AZ$1:AZ$5,SMALL(IF(AZ$1:AZ$5<>"",ROW(AZ$1:AZ$5),""),ROW(BA3)-ROW(BA$1)+1)),"") ->  | BB3: =AS90 -> ロング | BC3: =IFERROR(INDEX(BB$1:BB$5,SMALL(IF(BB$1:BB$5<>"",ROW(BB$1:BB$5),""),ROW(BC3)-ROW(BC$1)+1)),"") -> ショート | BD3: =$BL$89 ->  | BE3: =IFERROR(INDEX(BD$1:BD$5,SMALL(IF(BD$1:BD$5<>"",ROW(BD$1:BD$5),""),ROW(BE3)-ROW(BE$1)+1)),"") ->  | BF3: =$BL$90 ->  | BG3: =IFERROR(INDEX(BF$1:BF$5,SMALL(IF(BF$1:BF$5<>"",ROW(BF$1:BF$5),""),ROW(BG3)-ROW(BG$1)+1)),"") ->  | BH3: =$BL$91 ->  | BI3: =IFERROR(INDEX(BH$1:BH$5,SMALL(IF(BH$1:BH$5<>"",ROW(BH$1:BH$5),""),ROW(BI3)-ROW(BI$1)+1)),"") ->  | BJ3: ロング | BK3: =IFERROR(INDEX(BJ$1:BJ$5,SMALL(IF(BJ$1:BJ$5<>"",ROW(BJ$1:BJ$5),""),ROW(BK3)-ROW(BK$1)+1)),"") -> ショート | BL3: =$BL$114 ->  | BM3: =IFERROR(INDEX(BL$1:BL$5,SMALL(IF(BL$1:BL$5<>"",ROW(BL$1:BL$5),""),ROW(BM3)-ROW(BM$1)+1)),"") ->  | BN3: =$BL$115 ->  | BO3: =IFERROR(INDEX(BN$1:BN$5,SMALL(IF(BN$1:BN$5<>"",ROW(BN$1:BN$5),""),ROW(BO3)-ROW(BO$1)+1)),"") ->  | BP3: =$BL$116 ->  | BQ3: =IFERROR(INDEX(BP$1:BP$5,SMALL(IF(BP$1:BP$5<>"",ROW(BP$1:BP$5),""),ROW(BQ3)-ROW(BQ$1)+1)),"") ->  | BR3: =$BL$117 ->  | BS3: =IFERROR(INDEX(BR$1:BR$5,SMALL(IF(BR$1:BR$5<>"",ROW(BR$1:BR$5),""),ROW(BS3)-ROW(BS$1)+1)),"") ->  | BV3: =$BM$144 ->  | BW3: =IFERROR(INDEX(BV$1:BV$5,SMALL(IF(BV$1:BV$5<>"",ROW(BV$1:BV$5),""),ROW(BW3)-ROW(BW$1)+1)),"") ->  | BY3: =IFERROR(INDEX(BX$1:BX$13,SMALL(IF(BX$1:BX$13<>"",ROW(BX$1:BX$13),""),ROW(BY3)-ROW(BY$1)+1)),"") -> 
AR4: =AU57 -> スリム | AS4: =IFERROR(INDEX($AR$1:$AR$6,SMALL(IF(AR$1:AR$6<>"",ROW(AR$1:AR$6),""),ROW(AS4)-ROW(AS$1)+1)),"") -> ショート | AT4: =BG45 ->  | AU4: =IFERROR(INDEX(AT$1:AT$5,SMALL(IF(AT$1:AT$5<>"",ROW(AT$1:AT$5),""),ROW(AU4)-ROW(AU$1)+1)),"") ->  | AV4: ショート | AW4: =IFERROR(INDEX(AV$1:AV$5,SMALL(IF(AV$1:AV$5<>"",ROW(AV$1:AV$5),""),ROW(AW4)-ROW(AW$1)+1)),"") ->  | AX4: =BM67 ->  | AY4: =IFERROR(INDEX(AX$1:AX$5,SMALL(IF(AX$1:AX$5<>"",ROW(AX$1:AX$5),""),ROW(AY4)-ROW(AY$1)+1)),"") ->  | AZ4: =BM69 ->  | BA4: =IFERROR(INDEX(AZ$1:AZ$5,SMALL(IF(AZ$1:AZ$5<>"",ROW(AZ$1:AZ$5),""),ROW(BA4)-ROW(BA$1)+1)),"") ->  | BB4: =AS91 -> ショート | BC4: =IFERROR(INDEX(BB$1:BB$5,SMALL(IF(BB$1:BB$5<>"",ROW(BB$1:BB$5),""),ROW(BC4)-ROW(BC$1)+1)),"") ->  | BD4: =$BM$89 ->  | BE4: =IFERROR(INDEX(BD$1:BD$5,SMALL(IF(BD$1:BD$5<>"",ROW(BD$1:BD$5),""),ROW(BE4)-ROW(BE$1)+1)),"") ->  | BF4: =$BM$90 ->  | BG4: =IFERROR(INDEX(BF$1:BF$5,SMALL(IF(BF$1:BF$5<>"",ROW(BF$1:BF$5),""),ROW(BG4)-ROW(BG$1)+1)),"") ->  | BH4: =$BM$91 ->  | BI4: =IFERROR(INDEX(BH$1:BH$5,SMALL(IF(BH$1:BH$5<>"",ROW(BH$1:BH$5),""),ROW(BI4)-ROW(BI$1)+1)),"") ->  | BJ4: ショート | BK4: =IFERROR(INDEX(BJ$1:BJ$5,SMALL(IF(BJ$1:BJ$5<>"",ROW(BJ$1:BJ$5),""),ROW(BK4)-ROW(BK$1)+1)),"") ->  | BL4: =$BM$114 ->  | BM4: =IFERROR(INDEX(BL$1:BL$5,SMALL(IF(BL$1:BL$5<>"",ROW(BL$1:BL$5),""),ROW(BM4)-ROW(BM$1)+1)),"") ->  | BN4: =$BM$115 ->  | BO4: =IFERROR(INDEX(BN$1:BN$5,SMALL(IF(BN$1:BN$5<>"",ROW(BN$1:BN$5),""),ROW(BO4)-ROW(BO$1)+1)),"") ->  | BP4: =$BM$116 ->  | BQ4: =IFERROR(INDEX(BP$1:BP$5,SMALL(IF(BP$1:BP$5<>"",ROW(BP$1:BP$5),""),ROW(BQ4)-ROW(BQ$1)+1)),"") ->  | BR4: =$BM$117 ->  | BS4: =IFERROR(INDEX(BR$1:BR$5,SMALL(IF(BR$1:BR$5<>"",ROW(BR$1:BR$5),""),ROW(BS4)-ROW(BS$1)+1)),"") ->  | BV4: =$BN$144 ->  | BW4: =IFERROR(INDEX(BV$1:BV$5,SMALL(IF(BV$1:BV$5<>"",ROW(BV$1:BV$5),""),ROW(BW4)-ROW(BW$1)+1)),"") ->  | BY4: =IFERROR(INDEX(BX$1:BX$13,SMALL(IF(BX$1:BX$13<>"",ROW(BX$1:BX$13),""),ROW(BY4)-ROW(BY$1)+1)),"") -> 
AR5: =AU60 -> ショート | AS5: =IFERROR(INDEX($AR$1:$AR$6,SMALL(IF(AR$1:AR$6<>"",ROW(AR$1:AR$6),""),ROW(AS5)-ROW(AS$1)+1)),"") ->  | AT5: =BH45 ->  | AU5: =IFERROR(INDEX(AT$1:AT$5,SMALL(IF(AT$1:AT$5<>"",ROW(AT$1:AT$5),""),ROW(AU5)-ROW(AU$1)+1)),"") ->  | AW5: =IFERROR(INDEX(AV$1:AV$5,SMALL(IF(AV$1:AV$5<>"",ROW(AV$1:AV$5),""),ROW(AW5)-ROW(AW$1)+1)),"") ->  | AX5: =BN67 ->  | AY5: =IFERROR(INDEX(AX$1:AX$5,SMALL(IF(AX$1:AX$5<>"",ROW(AX$1:AX$5),""),ROW(AY5)-ROW(AY$1)+1)),"") ->  | AZ5: =BN69 ->  | BA5: =IFERROR(INDEX(AZ$1:AZ$5,SMALL(IF(AZ$1:AZ$5<>"",ROW(AZ$1:AZ$5),""),ROW(BA5)-ROW(BA$1)+1)),"") ->  | BB5: =AS92 ->  | BC5: =IFERROR(INDEX(BB$1:BB$5,SMALL(IF(BB$1:BB$5<>"",ROW(BB$1:BB$5),""),ROW(BC5)-ROW(BC$1)+1)),"") ->  | BD5: =$BN$89 ->  | BE5: =IFERROR(INDEX(BD$1:BD$5,SMALL(IF(BD$1:BD$5<>"",ROW(BD$1:BD$5),""),ROW(BE5)-ROW(BE$1)+1)),"") ->  | BF5: =$BN$90 ->  | BG5: =IFERROR(INDEX(BF$1:BF$5,SMALL(IF(BF$1:BF$5<>"",ROW(BF$1:BF$5),""),ROW(BG5)-ROW(BG$1)+1)),"") ->  | BH5: =$BN$91 ->  | BI5: =IFERROR(INDEX(BH$1:BH$5,SMALL(IF(BH$1:BH$5<>"",ROW(BH$1:BH$5),""),ROW(BI5)-ROW(BI$1)+1)),"") ->  | BK5: =IFERROR(INDEX(BJ$1:BJ$5,SMALL(IF(BJ$1:BJ$5<>"",ROW(BJ$1:BJ$5),""),ROW(BK5)-ROW(BK$1)+1)),"") ->  | BL5: =$BN$114 ->  | BM5: =IFERROR(INDEX(BL$1:BL$5,SMALL(IF(BL$1:BL$5<>"",ROW(BL$1:BL$5),""),ROW(BM5)-ROW(BM$1)+1)),"") ->  | BN5: =$BN$115 ->  | BO5: =IFERROR(INDEX(BN$1:BN$5,SMALL(IF(BN$1:BN$5<>"",ROW(BN$1:BN$5),""),ROW(BO5)-ROW(BO$1)+1)),"") ->  | BP5: =$BN$116 ->  | BQ5: =IFERROR(INDEX(BP$1:BP$5,SMALL(IF(BP$1:BP$5<>"",ROW(BP$1:BP$5),""),ROW(BQ5)-ROW(BQ$1)+1)),"") ->  | BR5: =$BN$117 ->  | BS5: =IFERROR(INDEX(BR$1:BR$5,SMALL(IF(BR$1:BR$5<>"",ROW(BR$1:BR$5),""),ROW(BS5)-ROW(BS$1)+1)),"") ->  | BV5: =$BO$144 ->  | BW5: =IFERROR(INDEX(BV$1:BV$5,SMALL(IF(BV$1:BV$5<>"",ROW(BV$1:BV$5),""),ROW(BW5)-ROW(BW$1)+1)),"") ->  | BY5: =IFERROR(INDEX(BX$1:BX$13,SMALL(IF(BX$1:BX$13<>"",ROW(BX$1:BX$13),""),ROW(BY5)-ROW(BY$1)+1)),"") -> 
AG6: ☝ジャンプ | AR6: =AU61 ->  | AS6: =IFERROR(INDEX($AR$1:$AR$6,SMALL(IF(AR$1:AR$6<>"",ROW(AR$1:AR$6),""),ROW(AS6)-ROW(AS$1)+1)),"") ->  | BV6: 判定ツール② | BY6: =IFERROR(INDEX(BX$1:BX$13,SMALL(IF(BX$1:BX$13<>"",ROW(BX$1:BX$13),""),ROW(BY6)-ROW(BY$1)+1)),"") -> 
B7: STEP１ | E7: 設置環境を入力してください。その際、小数点の無い整数で入力してください。 | AR7: 下段 | AT7: 連結 | AV7: 下段 | AX7: 連結① | AZ7: 連結② | BB7: 下段 | BD7: 連結① | BF7: 連結② | BH7: 連結③ | BJ7: 下段 | BL7: 連結① | BN7: 連結② | BP7: 連結③ | BR7: 連結④ | BY7: =IFERROR(INDEX(BX$1:BX$13,SMALL(IF(BX$1:BX$13<>"",ROW(BX$1:BX$13),""),ROW(BY7)-ROW(BY$1)+1)),"") -> 
E8: 段数：２段以上 蹴上：１～３０㎝まで 踏面：２８～５０㎝まで ※左記条件外の場合は 判定ツール② をお使いください。 | AR8: (A)プルダウンリスト | AV8: (B)プルダウンリスト | BB8: (C)プルダウンリスト | BJ8: (D)プルダウンリスト | BY8: =IFERROR(INDEX(BX$1:BX$13,SMALL(IF(BX$1:BX$13<>"",ROW(BX$1:BX$13),""),ROW(BY8)-ROW(BY$1)+1)),"") -> 
B9: STEP２ | E9: (Ａ)～(Ｄ)４パターンより 設置判定 が 〇 と出たものをご確認ください。 | BY9: =IFERROR(INDEX(BX$1:BX$13,SMALL(IF(BX$1:BX$13<>"",ROW(BX$1:BX$13),""),ROW(BY9)-ROW(BY$1)+1)),"") -> 
B10: STEP３ | E10: 【組み合わせシミュレーション】は | Q10: 部分の製品を選択できます。 表示に沿って商品を選択してください。 | BY10: =IFERROR(INDEX(BX$1:BX$13,SMALL(IF(BX$1:BX$13<>"",ROW(BX$1:BX$13),""),ROW(BY10)-ROW(BY$1)+1)),"") -> 
BY11: =IFERROR(INDEX(BX$1:BX$13,SMALL(IF(BX$1:BX$13<>"",ROW(BX$1:BX$13),""),ROW(BY11)-ROW(BY$1)+1)),"") -> 
BY12: =IFERROR(INDEX(BX$1:BX$13,SMALL(IF(BX$1:BX$13<>"",ROW(BX$1:BX$13),""),ROW(BY12)-ROW(BY$1)+1)),"") -> 
E13: 《楽起本体の選択に関して》 | BY13: =IFERROR(INDEX(BX$1:BX$13,SMALL(IF(BX$1:BX$13<>"",ROW(BX$1:BX$13),""),ROW(BY13)-ROW(BY$1)+1)),"") -> 
E14: ・初期設定では上段・下段は「シングル」が選択されています。製品を変更する場合は 上段→下段 の順で変更してください。
E15: ・中段の手すりを何段目に設置するかは製品名の上に表示されます。
E16: 《連結バーの選択に関して》
E17: ・連結バーは対応可能な製品が 「候補」 として表示されます。そちらを参考に選択してください。
E18: ・複数本連結バーを組み合わせる場合は 連結バー角度 を参考に近いものを選択してください。
B19: STEP４ | E19: 上段必要スペース、下段必要スペース に出た数字に設置環境が対応しているかをご確認ください。
B20: STEP５ | E20: シミュレーション結果に基づいた該当品の TAISコード をご確認いただけます。
A22: ●設置環境を入力 ※小数点の無い整数で入力してください
B23: 段 数 | I23: 段 | K23: =IF(F23="","※２段以上","") -> ※２段以上
B26: 蹴 上 | I26: cm | K26: =IF(F26="","※１㎝～３０㎝以内","") -> ※１㎝～３０㎝以内
B29: 踏 面 | I29: cm | K29: =IF(F29="","※２８㎝～５０㎝以内","") -> ※２８㎝～５０㎝以内
B32: ※下記（Ａ）～（Ｄ）をクリックすると該当箇所にジャンプします。
F34: =F41 ->  | J34: =F61 ->  | N34: =F86 ->  | R34: =F112 -> 
AR37: 【Ａ 踏面に手すり設置ナシ】必要数値
F41: =IFERROR(IF(OR(F23="",F26="",F29=""),"",IF(AND(F48="×",G48="〇"),"△",IF(AND(L48="×",G48="〇"),"△",IF(N48="△","△",IF(COUNTIFS(AC42:AF45,"*×*")>0,"×","〇"))))),"") ->  | AS41: ⑤ﾍﾞｰｽ端から芯 | AT41: ①斜辺 | AU41: ④支柱間距離 | AV41: ベースサイズ | AW41: 連結バー角度
B42: =IF(OR($F$23="",$F$26="",$F$29=""),"","〇") ->  | F42: =IF(F41="△","※一部製品を変更すると設置可能です。対象品は緑で表示されております。","") ->  | AC42: =IF(B46="","○",IF(B46="手すりを選択","△","×")) -> ○ | AD42: =IF(L46="","○",IF(L46="手すりを選択","△","×")) -> ○ | AE42: =IF(D47="ナシ","×","〇") -> 〇 | AR42: リ① | AS42: =IF(ISBLANK(B45),"△",VLOOKUP(B45,固定数値!E:F,2,0)) -> 10 | AT42: ― | AU42: ― | AV42: =IF(ISBLANK(B45),"△",VLOOKUP(B45,固定数値!G:H,2,0)) -> 49.5 | AW42: ―
B43: 【組み合わせシミュレーション】 | R43: 上段 必要スペース | X43: =IFERROR(IF(OR(F23="",F26="",F29=""),"",IF(G45="","",IF(AV42="△","",IF(AE45="×","",ROUNDUP(AV42,0))))),"") ->  | Z43: cm以上 | AC43: =IF($F$23="","×",IF(OR($F$23=0,$F$23=1),"×","〇")) -> × | AD43: =IF($F$26="","×",IF(OR(F26<1,F26>30),"×","〇")) -> × | AE43: =IF($F$29="","×",IF(OR(F29<28,F29>50),"×",IF(F29=0,"×","〇"))) -> × | AR43: 連① | AS43: ― | AT43: =IF(ISBLANK(G45),"△",IF(G45="600","48.5",IF(G45="900","78.5",IF(G45="1200","108.5",IF(G45="ウェーブS","95.904",IF(G45="ウェーブ","123.084","")))))) -> △ | AU43: =((AT43^2-$F49^2)^0.5)+(7.99*2) ->  | AV43: ― | AW43: =ASIN(F49/AT43) -> 
B44: 上段 | G44: 連結バー | L44: 下段 | R44: 下段 必要スペース | X44: =IFERROR(IF(AV44="△","",IF(AE45="×","",IF(AS48-((AS51-1)*F29)+AV44>=AV44,ROUNDUP(AS48-((AS51-1)*F29)+AV44,0),"×"))),"") ->  | Z44: cm以上 | AC44: =IF(F26="","△",IF(F49<=72,"〇","×")) -> △ | AD44: =IFERROR(IF(AS47="△","△",IF(AS46<=AS47,"〇","×")),"E") -> △ | AE44: =IF(COUNTIFS(AV49:AV50,"*×*")>0,"×","〇") -> × | AR44: リ② | AS44: =IF(ISBLANK(L45),"△",VLOOKUP(L45,固定数値!E:F,2,0)) -> 10 | AT44: ― | AU44: ― | AV44: =IF(ISBLANK(L45),"△",VLOOKUP(L45,固定数値!G:H,2,0)) -> 49.5 | AW44: ― | BC44: 斜辺 | BD44: 48.5 | BE44: 78.5 | BF44: 108.5 | BG44: 95.904 | BH44: 123.084
B45: シングル | L45: シングル | AC45: =IF(AV42="△","△",IF(X43="×","×",IF(X43>=AV42,"〇","×"))) -> 〇 | AD45: =IF(AV44="△","△",IF(X44="×","×",IF(X44>=AV44,"〇","×"))) -> 〇 | AE45: =IFERROR(IF(AS48<=AS46,"×","〇"),"E") -> × | BC45: ﾌﾟﾙﾀﾞｳﾝﾘｽﾄ | BD45: =IF(AX48="","","600") ->  | BE45: =IF(AY48="","","900") ->  | BF45: =IF(AZ48="","","1200") ->  | BG45: =IF(BA48="","","ウェーブS") ->  | BH45: =IF(BB48="","","ウェーブ") -> 
B46: =IF(B45="","手すりを選択","") ->  | G46: =IF(B42="","",IF(G45="","連結①を選択",IF(AND(F48="×",G48="〇"),"製品を変更",""))) ->  | L46: =IF(L45="","手すりを選択",IF(N48="△","手すりを変更",IF(AND(B45="ショートダブル",BE55="S"),"ダブルに変更",IF(AND(B45="ダブル",BG55=""),"両手すりに変更",IF(AND(BD55="S",L45="ショートダブル"),"片手すり(大ベース)に変更",IF(AND(BF55="",BG55="D"),"片手すりに変更",IF(AND(BD55="S",BE55="S"),"大ベース製品に変更",IF(AND(B45="ショートダブル",BG55=""),"ダブルに変更","")))))))) ->  | AR46: 最低ベース間距離 | AS46: =IF(F29="","△",($F$23-1)*$F$29) -> △ | AU46: 水平角度チェック | AV46: =IF(F51="","△",COUNTIFS(F51,">="&-7.014,F51,"<="&7.014)) -> △ | AX46: ☆600 | AY46: ☆900 | AZ46: ☆1200 | BA46: ☆ウェーブS | BB46: ☆ウェーブ
D47: =IF(B42="","",IF(AND(AX48="",AY48="",AZ48="",BA48="",BB48=""),"ナシ",IF(COUNTIFS(AC43:AF44,"*×*")>0,"ナシ",AX48&AY48&AZ48&BA48&BB48))) ->  | U47: =IF(G45="","未選択",G45) -> 未選択 | AR47: 必要最大ﾍﾞｰｽ間 | AS47: =IF(F49="","△",(((123.084^2-$F49^2)^0.5)+(7.99*2))-(10+7.5)) -> △ | AU47: (F)40°以上× | AV47: =IF(F50="","△",IF(F50<=40.2,"〇","×")) -> △ | AX47: 30 | AY47: 50 | AZ47: 70 | BA47: 35~55 | BB47: 47~72
F48: =IF(G45="","〇",IF(COUNTIF(BD45:BH45,G45)=0,"×","〇")) -> 〇 | G48: =IF(D47="ナシ","×","〇") -> 〇 | K48: =IF($F$23="","×","") -> × | L48: =IF(OR(L46="",L46="手すりを選択"),"〇","×") -> 〇 | M48: =IF($F$29="","×","") -> × | N48: =IF(AND(COUNTIFS(AS53:AS62,"〇")>0,AR53="×"),"△","") ->  | AR48: ベース間距離 | AS48: =IFERROR($AU$43-($AS$42+$AS$44),"") ->  | AU48: (G)-7.01～7.01° | AV48: =IF(OR(AV46=1,AV46="△"),"〇","×") -> 〇 | AW48: 連結１ | AX48: =IFERROR(IF(AX49<=$AS$46,"",IF($F$49<=AX47,AX46,"")),"") ->  | AY48: =IFERROR(IF(AY49<=$AS$46,"",IF($F$49<=AY47,AY46,"")),"") ->  | AZ48: =IFERROR(IF(AZ49<=$AS$46,"",IF($F$49<=AZ47,AZ46,"")),"") ->  | BA48: =IFERROR(IF(BA49<=$AS$46,"",IF($F$49>=55,"",IF($F$49>=35,BA46,""))),"") ->  | BB48: =IFERROR(IF(BB49<=$AS$46,"",IF($F$49>=72,"",IF($F$49>=47,BB46,""))),"") ->  | BD48: 連結バー候補：下段スリムの場合
B49: 段 差 | F49: =IF(COUNTIFS(AC43:AE43,"*×*")>0,"",IF(F26="","",$F$23*$F$26)) ->  | I49: cm | AR49: 最小斜辺 | AS49: =( AS50^2 +F49^2)^0.5 ->  | AU49: 必要スペース | AV49: =AC45 -> 〇 | AW49: ｱ)ﾍﾞｰｽ間距離 | AX49: =IFERROR(IF(OR($AS$42="△",$AS$44="△"),((BD44^2-$F$49^2)^0.5)+(7.99*2)-(10+7.5),((BD44^2-$F$49^2)^0.5)+(7.99*2)-($AS$42+$AS$44)),"E") -> E | AY49: =IFERROR(IF(OR($AS$42="△",$AS$44="△"),((BE44^2-$F$49^2)^0.5)+(7.99*2)-(10+7.5),((BE44^2-$F$49^2)^0.5)+(7.99*2)-($AS$42+$AS$44)),"E") -> E | AZ49: =IFERROR(IF(OR($AS$42="△",$AS$44="△"),((BF44^2-$F$49^2)^0.5)+(7.99*2)-(10+7.5),((BF44^2-$F$49^2)^0.5)+(7.99*2)-($AS$42+$AS$44)),"E") -> E | BA49: =IFERROR(IF(OR($AS$42="△",$AS$44="△"),((BG44^2-$F$49^2)^0.5)+(7.99*2)-(10+7.5),((BG44^2-$F$49^2)^0.5)+(7.99*2)-($AS$42+$AS$44)),"E") -> E | BB49: =IFERROR(IF(OR($AS$42="△",$AS$44="△"),((BH44^2-$F$49^2)^0.5)+(7.99*2)-(10+7.5),((BH44^2-$F$49^2)^0.5)+(7.99*2)-($AS$42+$AS$44)),"E") -> E | BD49: =IFERROR(IF(BD50<=$AS$46,"",IF($F$49<=AX47,AX46,"")),"") ->  | BE49: =IFERROR(IF(BE50<=$AS$46,"",IF($F$49<=AY47,AY46,"")),"") ->  | BF49: =IFERROR(IF(BF50<=$AS$46,"",IF($F$49<=AZ47,AZ46,"")),"") ->  | BG49: =IFERROR(IF(BG50<=$AS$46,"",IF($F$49>=55,"",IF($F$49>=35,BA46,""))),"") ->  | BH49: =IFERROR(IF(BH50<=$AS$46,"",IF($F$49>=72,"",IF($F$49>=47,BB46,""))),"") -> 
B50: 連結バー角度 | F50: =IFERROR(IF(G45="","",AW43*180/PI()),"") ->  | I50: ° | AR50: 最小底辺 | AS50: =(AS46+AS42+AS44)-(7.99*2) ->  | AU50: (A)72cm以下 | AV50: =IF(F49<=72,"〇","×") -> × | BD50: =IFERROR(((BD44^2-$F$49^2)^0.5)+(7.99*2)-(10+7.5),"E") -> E | BE50: =IFERROR(((BE44^2-$F$49^2)^0.5)+(7.99*2)-(10+7.5),"E") -> E | BF50: =IFERROR(((BF44^2-$F$49^2)^0.5)+(7.99*2)-(10+7.5),"E") -> E | BG50: =IFERROR(((BG44^2-$F$49^2)^0.5)+(7.99*2)-(10+7.5),"E") -> E | BH50: =IFERROR(((BH44^2-$F$49^2)^0.5)+(7.99*2)-(10+7.5),"E") -> E
B51: 水平部分角度 | F51: =IFERROR(IF(G45="ウェーブ",F50-29.22,IF(G45="ウェーブS",F50-27.98,"")),"") ->  | I51: ° | Q51: 上段 | AR51: 段数 | AS51: =F23 -> 0 | AV51: =IF(G45="","△",IF(COUNTIFS(AV47:AV49,"*×*")>0,"×","〇")) -> △
K52: =IF($F$23="","×","") -> × | L52: =IF($F$26="","×","") -> × | M52: =IF($F$29="","×","") -> × | R52: =IF(B45="","未選択",B45) -> シングル | V52: 下段 | X52: =IF(L45="","未選択",IF(L46="ショート不可","不可",IF(L46="スリム不可","不可",L45))) -> シングル
B53: 【シミュレーション結果の各種TAISコード】 | AD53: 段 数 | AF53: =$F$23 -> 0 | AH53: 段 | AR53: =IF(L45="","",INDEX(AS53:AT61,MATCH(L45,AT53:AT61,0),1)) -> 0 | AT53: シングル | AU53: =IF(AS53="×","",IF(OR(B45=AT53,B45=AT55,B45=AT60),AT53,"")) -> シングル | AV53: =IF(AU53<>"",ROW(AU53),"") -> 53 | AW53: 1 | AX53: =INDEX($AU$53:$AU$61,SMALL(IF(AU$53:AU$61<>"",ROW(AU$53:AU$61),""),AW53)) ->  | BD53: ショート判定 | BF53: ダブル判定
B54: =IF(OR(F41="×",F41="",F41="△",G45=""),"",IF(L45="スリム",B45&"＋スリム＋連結バー"&G45&"セット",IF(OR(B45="",G45=""),"",IF(OR(B45="ダブル",B45="ショートダブル"),B45&"＋連結バー"&G45&" 2本セット",B45&"+連結バー"&G45&" セット")))) ->  | L54: =IF(OR(F41="×",F41="",F41="△",G45=""),"",IF(L45="スリム","",IF(L45="","",L45&" ※単体"))) ->  | AD54: 蹴 上 | AF54: =$F$26 -> 0 | AH54: ㎝ | AS54: =IFERROR(IF(($AU$43-($AS$42+10))<=AS46,"×","〇"),"E") -> E | AT54: ダブル | AU54: =IF(AS54="×","",IF(OR(B45=AT54,B45=AT61),AT54,"")) ->  | AV54: =IF(AU54<>"",ROW(AU54),"") ->  | AW54: 2 | AX54: =INDEX($AU$53:$AU$61,SMALL(IF(AU$53:AU$61<>"",ROW(AU$53:AU$61),""),AW54)) ->  | BD54: 上段 | BE54: 下段 | BF54: 上段 | BG54: 下段 | BH54: チェック
B55: =IFERROR(IF(OR(F41="×",F41="",F41="△",G45=""),"",IF(L45="スリム",INDEX(TAISﾘｽﾄ!H3:L19,MATCH(B45,TAISﾘｽﾄ!A3:A19,0),MATCH(G45,TAISﾘｽﾄ!H2:L2,0)),INDEX(TAISﾘｽﾄ!B3:L19,MATCH(B45,TAISﾘｽﾄ!A3:A19,0),MATCH(G45,TAISﾘｽﾄ!B2:L2,0)))),"E") ->  | L55: =IFERROR(IF(OR(F41="×",F41="",F41="△",G45=""),"",INDEX(TAISﾘｽﾄ!B3:B19,MATCH(L45,TAISﾘｽﾄ!A3:A19,0))),"") ->  | AD55: 踏 面 | AF55: =$F$29 -> 0 | AH55: ㎝ | AT55: ロング | AU55: =IF(AS55="×","",IF(OR(B45=AT53,B45=AT55,B45=AT60),AT55,"")) -> ロング | AV55: 55 | AW55: 3 | AX55: =INDEX($AU$53:$AU$61,SMALL(IF(AU$53:AU$61<>"",ROW(AU$53:AU$61),""),AW55)) ->  | BD55: =IF(B45="ショート","S",IF(B45="ショートダブル","S","")) ->  | BE55: =IF(L45="ショート","S",IF(L45="ショートダブル","S",IF(L45="スリム","S",""))) ->  | BF55: =IF(OR(B45="ダブル",B45="ショートダブル"),"D","") ->  | BG55: =IF(OR(L45="ダブル",L45="ショートダブル"),"D","") ->  | BH55: =COUNTIFS(BF55:BG55,"D") -> 0
AW56: 4 | AX56: =INDEX($AU$53:$AU$61,SMALL(IF(AU$53:AU$61<>"",ROW(AU$53:AU$61),""),AW56)) -> 
AS57: =IFERROR(IF(($AU$43-($AS$42+15.25))<=AS46,"×","〇"),"E") -> E | AT57: スリム | AU57: =IF(AS57="×","",IF(OR(B45=AT53,B45=AT55,),AT57,"")) -> スリム | AV57: 57 | AW57: 5 | AX57: =INDEX($AU$53:$AU$61,SMALL(IF(AU$53:AU$61<>"",ROW(AU$53:AU$61),""),AW57)) -> 
AW58: 6 | AX58: =INDEX($AU$53:$AU$61,SMALL(IF(AU$53:AU$61<>"",ROW(AU$53:AU$61),""),AW58)) -> 
AW59: 7 | AX59: =INDEX($AU$53:$AU$61,SMALL(IF(AU$53:AU$61<>"",ROW(AU$53:AU$61),""),AW59)) -> 
AT60: ショート | AU60: =IF(AS60="×","",IF(OR(B45=AT53,B45=AT55),AT60,"")) -> ショート | AV60: 60 | AW60: 8 | AX60: =INDEX($AU$53:$AU$61,SMALL(IF(AU$53:AU$61<>"",ROW(AU$53:AU$61),""),AW60)) -> 
F61: =IFERROR(IF(OR(F23="",F26="",F29=""),"",IF(AND(D62="×",E62="〇"),"△",IF(AND(C62="×",E62="〇"),"△",IF(COUNTIFS(AA62:AD66,"*×*")>0,"×","〇")))),"") ->  | AS61: =IFERROR(IF(($AU$43-($AS$42+7.5))<=AS46,"×","〇"),"E") -> E | AT61: ショートダブル | AU61: =IF(AS61="×","",IF(B45=AT54,AT61,"")) ->  | AW61: 9 | AX61: =INDEX($AU$53:$AU$61,SMALL(IF(AU$53:AU$61<>"",ROW(AU$53:AU$61),""),AW61)) -> 
B62: =IF(OR($F$23="",$F$26="",$F$29=""),"","〇") ->  | C62: =IF(OR(L68="×",V68="×"),"×","〇") -> 〇 | D62: =IF(OR(F68="×",P68="×"),"×","〇") -> 〇 | E62: =IF(AND(G68="〇",Q68="〇"),"〇","×") -> 〇 | F62: =IF(F61="△","※一部製品を変更すると設置可能です。対象品は緑で表示されております。","") ->  | AA62: =IF(E67="ナシ","×","〇") -> 〇 | AB62: =IF(O67="ナシ","×","〇") -> 〇 | AC62: =IF(COUNTIFS(B66:Z66,"*×*")>0,"×","〇") -> 〇 | AS62: =IF(COUNTIFS(BD49:BH49,"")=5,"×","〇") -> × | AT62: 連結バー候補
B63: 【組み合わせシミュレーション】 | AA63: =IF(B66="","〇",IF(B66="手すりを選択","△","×")) -> 〇 | AB63: =IF(L66="","〇",IF(L66="手すりを選択","△","×")) -> 〇 | AC63: =IF(V66="","〇",IF(V66="手すりを選択","△","×")) -> 〇 | AR63: シングル | AS63: =IF(OR(B65=AR63,B65=AR65,B65=AR66),AR63,"") -> シングル | AT63: =IFERROR(INDEX(AS63:AS67,SMALL(IF(AS$63:AS$67<>"",ROW(AS$63:AS$67),""),ROW(AT63)-ROW(AT$63)+63)),"") -> 
B64: 上段 | G64: 連結① | L64: =IFERROR(IF(B62="","",IF(COUNTIFS(AA64:AD65,"*×*")>0,"×",$F$23-AW80)),"―") ->  | Q64: 連結② | V64: 下段 | AA64: =IF($F$23="","×",IF(OR($F$23=0,$F$23=1),"×","〇")) -> × | AB64: =IF($F$26="","×",IF(OR(F26<1,F26>30),"×","〇")) -> × | AC64: =IF($F$29="","×",IF(OR(F29<28,F29>50),"×",IF(F29=0,"×","〇"))) -> × | AR64: ダブル | AS64: =IF(OR(B65=AR64,B65=AR67),AR64,"") ->  | BC64: 斜辺 | BD64: 48.5 | BE64: 78.5 | BF64: 95.904 | BG64: 108.5 | BH64: 123.084
B65: シングル | L65: =IF(OR(B65="ダブル",B65="ショートダブル"),"ショートダブル","ショート") -> ショート | V65: シングル | AA65: =IF(COUNTIFS(AW80:AX80,"*×*")>0,"×","〇") -> × | AB65: =IF(COUNTIFS(BA79:BB79,"*×*")>0,"×","〇") -> 〇 | AC65: =IFERROR(IF(AW76="△","△",IF(AW75<=AW76,"〇","×")),"E") -> △ | AD65: =IFERROR(IF(AX76="△","△",IF(AX75<=AX76,"〇","×")),"E") -> △ | AR65: ロング | AS65: =IF(OR(B65=AR63,B65=AR65,B65=AR66),AR65,"") -> ロング | AV65: 【Ｂ 踏面に手すり１台設置】必要数値 | BD65: ☆600 | BE65: ☆900 | BF65: ☆ウェーブS | BG65: ☆1200 | BH65: ☆ウェーブ
B66: =IF(B65="","手すりを選択","") ->  | G66: =IF(B62="","",IF(G65="","連結①を選択",IF(AND(D62="×",E62="〇",F68="×",G68="〇"),"製品を変更",""))) ->  | Q66: =IF(B62="","",IF(Q65="","連結②を選択",IF(AND(D62="×",E62="〇",P68="×",Q68="〇"),"製品を変更",""))) ->  | V66: =IF(V65="","手すりを選択",IF(AND(B65="ショートダブル",BJ76="S"),"ダブルに変更",IF(AND(B65="ダブル",BN76=""),"両手すりに変更",IF(AND(BI76="S",V65="ショートダブル"),"片手すり(大ベース)に変更",IF(AND(BL76="",BN76="D"),"片手すりに変更",IF(AND(BI76="S",BJ76="S"),"大ベース製品に変更",IF(AND(B45="ショートダブル",BG55=""),"ダブルに変更",""))))))) ->  | AA66: =IF(AZ67="△","△",IF(V69="×","×",IF(AZ67<=V69,"〇","×"))) -> 〇 | AB66: =IF(AZ71="△","△",IF(V70="×","×",IF(AZ71<=V70,"〇","×"))) -> 〇 | AC66: =IF(COUNTIFS(AZ80:BB80,"*×*")>0,"×","〇") -> 〇 | AR66: ショート | AS66: =IF(OR(B65=AR63,B65=AR65),AR66,"") -> ショート | AW66: ⑤ﾍﾞｰｽ端から芯 | AX66: ①斜辺 | AY66: ④支柱間距離 | AZ66: ベースサイズ | BA66: 連結バー角度 | BC66: 段差 | BD66: 30 | BE66: 50 | BF66: 35~55 | BG66: 70 | BH66: 47~72
E67: =IF(B62="","",IF(AND(BD67="",BE67="",BF67="",BG67="",BH67=""),"ナシ",IF(COUNTIFS(AA64:AD65,"×")>0,"ナシ",BD67&BE67&BG67&BF67&BH67))) ->  | O67: =IF(B62="","",IF(AND(BD69="",BE69="",BF69="",BG69="",BH69=""),"ナシ",IF(COUNTIFS(AA64:AD65,"×")>0,"ナシ",BD69&BE69&BG69&BF69&BH69))) ->  | AR67: ショートダブル | AS67: =IF(B65=AR64,AR67,"") ->  | AV67: リ① | AW67: =IF(ISBLANK(B65),"△",VLOOKUP(B65,固定数値!E:F,2,0)) -> 10 | AX67: ― | AY67: ― | AZ67: =IF(ISBLANK(B65),"△",VLOOKUP(B65,固定数値!G:H,2,0)) -> 49.5 | BA67: ― | BC67: 連結１ | BD67: =IFERROR(IF((BD68-(AR73+AS73))<0,"",IF($F$70<=BD66,BD65,"")),"") ->  | BE67: =IFERROR(IF((BE68-(AR73+AS73))<0,"",IF($F$70<=BE66,BE65,"")),"") ->  | BF67: =IFERROR(IF((BF68-(AR73+AS73))<0,"",IF($F$70>=55,"",IF($F$70>=35,BF65,""))),"") ->  | BG67: =IFERROR(IF((BG68-(AR73+AS73))<0,"",IF($F$70<=BG66,BG65,"")),"") ->  | BH67: =IFERROR(IF((BH68-(AR73+AS73))<0,"",IF($F$70>=72,"",IF($F$70>=47,BH65,""))),"") ->  | BI67: ﾌﾟﾙﾀﾞｳﾝﾘｽﾄ | BJ67: =IF(BD67="","","600") ->  | BK67: =IF(BE67="","","900") ->  | BL67: =IF(BG67="","","1200") ->  | BM67: =IF(BF67="","","ウェーブS") ->  | BN67: =IF(BH67="","","ウェーブ") -> 
F68: =IF(G65="","〇",IF(COUNTIF(BJ67:BN67,G65)=0,"×","〇")) -> 〇 | G68: =IF(E67="ナシ","×","〇") -> 〇 | L68: =IF(OR(L66="",L66="手すりを選択"),"〇","×") -> 〇 | P68: =IF(Q65="","〇",IF(COUNTIF(BJ69:BN69,Q65)=0,"×","〇")) -> 〇 | Q68: =IF(O67="ナシ","×","〇") -> 〇 | V68: =IF(OR(V66="",V66="手すりを選択"),"〇","×") -> 〇 | AV68: 連① | AW68: ― | AX68: =IF(ISBLANK(G65),"△",IF(G65="600","48.5",IF(G65="900","78.5",IF(G65="1200","108.5",IF(G65="ウェーブS","95.904",IF(G65="ウェーブ","123.084","")))))) -> △ | AY68: =IF(G65="","△",((AX68^2-F70^2)^0.5)+(7.99*2)) -> △ | AZ68: ― | BA68: =IF(G65="","△",ASIN(F70/AX68)) -> △ | BC68: ｱ)ﾍﾞｰｽ間距離 | BD68: =IFERROR(IF(OR($AW$67="△",$AW$69="△"),((BD64^2-$F$70^2)^0.5)+(7.99*2)-(10+7.5),((BD64^2-$F$70^2)^0.5)+(7.99*2)-($AW$67+$AW$69)),"E") -> E | BE68: =IFERROR(IF(OR($AW$67="△",$AW$69="△"),((BE64^2-$F$70^2)^0.5)+(7.99*2)-(10+7.5),((BE64^2-$F$70^2)^0.5)+(7.99*2)-($AW$67+$AW$69)),"E") -> E | BF68: E | BG68: E | BH68: =IFERROR(IF(OR($AW$67="△",$AW$69="△"),((BH64^2-$F$70^2)^0.5)+(7.99*2)-(10+7.5),((BH64^2-$F$70^2)^0.5)+(7.99*2)-($AW$67+$AW$69)),"E") -> E
F69: ア | J69: イ | P69: 上段 必要スペース | V69: =IFERROR(IF(AW77-(((F29-AZ69)/2)+((AW80-1)*F29))+AZ67>=AZ67,ROUNDUP((AW77-(((F29-AZ69)/2)+((AW80-1)*F29))+AZ67),0),"×"),"") ->  | X69: cm以上 | AV69: リ② | AW69: =IF(ISBLANK(L65),"△",VLOOKUP(L65,固定数値!E:F,2,0)) -> 7.5 | AX69: ― | AY69: ― | AZ69: =IF(ISBLANK(L65),"△",VLOOKUP(L65,固定数値!G:H,2,0)) -> 28 | BA69: ― | BC69: 連結２ | BD69: =IFERROR(IF((BD70-(AR74+AS74))<0,"",IF($J$70<=BD66,BD65,"")),"") ->  | BE69: =IFERROR(IF((BE70-(AR74+AS74))<0,"",IF($J$70<=BE66,BE65,"")),"") ->  | BF69: =IFERROR(IF((BF70-(AR74+AS74))<0,"",IF($J$70>=55,"",IF($J$70>=35,BF65,""))),"") ->  | BG69: =IFERROR(IF((BG70-(AR74+AS74))<0,"",IF($J$70<=BG66,BG65,"")),"") ->  | BH69: =IFERROR(IF((BH70-(AR74+AS74))<0,"",IF($J$70>=72,"",IF($J$70>=47,BH65,""))),"") ->  | BI69: ﾌﾟﾙﾀﾞｳﾝﾘｽﾄ | BJ69: =IF(BD69="","","600") ->  | BK69: =IF(BE69="","","900") ->  | BL69: =IF(BG69="","","1200") ->  | BM69: =IF(BF69="","","ウェーブS") ->  | BN69: =IF(BH69="","","ウェーブ") -> 
B70: 段 差 | F70: =IFERROR(IF(F29="","",AW80*$F$26),"") ->  | H70: cm | J70: =IFERROR(IF(F29="","",AX80*$F$26),"") ->  | L70: cm | P70: 下段 必要スペース | V70: =IFERROR(IF(AX77-(((F29-AZ69)/2)+((AX80-1)*F29))+AZ71>=AZ71,ROUNDUP((AX77-(((F29-AZ69)/2)+((AX80-1)*F29))+AZ71),0),"×"),"") ->  | X70: cm以上 | AV70: 連② | AW70: ― | AX70: =IF(ISBLANK(Q65),"△",IF(Q65="600","48.5",IF(Q65="900","78.5",IF(Q65="1200","108.5",IF(Q65="ウェーブS","95.904",IF(Q65="ウェーブ","123.084","")))))) -> △ | AY70: =IF(Q65="","△",((AX70^2-J70^2)^0.5)+(7.99*2)) -> △ | AZ70: ― | BA70: =IF(Q65="","△",ASIN(J70/AX70)) -> △ | BC70: ｲ)ﾍﾞｰｽ間距離 | BD70: =IFERROR(IF(OR($AW$69="△",$AW$71="△"),((BD64^2-$J$70^2)^0.5)+(7.99*2)-(10+7.5),((BD64^2-$J$70^2)^0.5)+(7.99*2)-($AW$69+$AW$71)),"E") -> E | BE70: =IFERROR(IF(OR($AW$69="△",$AW$71="△"),((BE64^2-$J$70^2)^0.5)+(7.99*2)-(10+7.5),((BE64^2-$J$70^2)^0.5)+(7.99*2)-($AW$69+$AW$71)),"E") -> E | BF70: =IFERROR(IF(OR($AW$69="△",$AW$71="△"),((BF64^2-$J$70^2)^0.5)+(7.99*2)-(10+7.5),((BF64^2-$J$70^2)^0.5)+(7.99*2)-($AW$69+$AW$71)),"E") -> E | BG70: =IFERROR(IF(OR($AW$69="△",$AW$71="△"),((BG64^2-$J$70^2)^0.5)+(7.99*2)-(10+7.5),((BG64^2-$J$70^2)^0.5)+(7.99*2)-($AW$69+$AW$71)),"E") -> E | BH70: =IFERROR(IF(OR($AW$69="△",$AW$71="△"),((BH64^2-$J$70^2)^0.5)+(7.99*2)-(10+7.5),((BH64^2-$J$70^2)^0.5)+(7.99*2)-($AW$69+$AW$71)),"E") -> E
B71: 連結バー角度 | F71: =IFERROR(BA68*180/PI(),"") ->  | H71: ° | J71: =IFERROR(BA70*180/PI(),"") ->  | L71: ° | AV71: リ③ | AW71: =IF(ISBLANK(V65),"△",VLOOKUP(V65,固定数値!E:F,2,0)) -> 10 | AX71: ― | AY71: ― | AZ71: =IF(ISBLANK(V65),"△",VLOOKUP(V65,固定数値!G:H,2,0)) -> 49.5 | BA71: ―
B72: 水平部分角度 | F72: =IFERROR(IF(G65="ウェーブ",F71-29.22,IF(G65="ウェーブS",F71-27.98,"")),"") ->  | H72: ° | J72: =IFERROR(IF(Q65="ウェーブ",J71-29.22,IF(Q65="ウェーブS",J71-27.98,"")),"") ->  | L72: ° | R72: =IF(G65="","未選択",G65) -> 未選択
W73: =IF(Q65="","未選択",Q65) -> 未選択 | AQ73: 上 | AR73: =(F29-AZ69)/2 -> -14 | AS73: =(AW80-1)*F29 -> 
B74: 段 数 | D74: =$F$23 -> 0 | F74: 段 | AQ74: 下 | AR74: =(F29-AZ69)/2 -> -14 | AS74: =(AX80-1)*F29 ->  | AW74: ア | AX74: イ | BA74: ア | BB74: イ | BI74: ショート判定 | BL74: ダブル判定
B75: 蹴 上 | D75: =$F$26 -> 0 | F75: ㎝ | O75: 上段 | AV75: 最低ベース間距離 | AW75: =IF(F29="","△",(AW80-1)*$F$29) -> △ | AX75: =IF(F29="","△",(AX80-1)*$F$29) -> △ | AZ75: 角度チェック | BA75: =IF(F72="","△",COUNTIFS(F72,">="&-7.014,F72,"<="&7.014)) -> △ | BB75: =IF(J72="","△",COUNTIFS(J72,">="&-7.014,J72,"<="&7.014)) -> △ | BI75: 上段 | BJ75: 下段 | BK75: チェック | BL75: 上段 | BM75: 中間１ | BN75: 下段 | BO75: チェック
B76: 踏 面 | D76: =$F$29 -> 0 | F76: ㎝ | N76: =IF(B65="","未選択",B65) -> シングル | S76: =L64 ->  | AV76: 必要最大ﾍﾞｰｽ間 | AW76: =IF(F70="","△",(((123.084^2-$F70^2)^0.5)+(7.99*2))-(10+7.5)) -> △ | AX76: =IF(J70="","△",(((123.084^2-J70^2)^0.5)+(7.99*2))-(7.5+10)) -> △ | AZ76: (F)40°以上× | BA76: =IF(F71="","△",IF(F71<=40.2,"〇","×")) -> △ | BB76: =IF(J71="","△",IF(J71<=40.2,"〇","×")) -> △ | BI76: =IF(B65="ショート","S",IF(B65="ショートダブル","S","")) ->  | BJ76: =IF(V65="ショート","S",IF(V65="ショートダブル","S","")) ->  | BK76: =COUNTIFS(BI76:BJ76,"S") -> 0 | BL76: =IF(OR(B65="ダブル",B65="ショートダブル"),"D","") ->  | BM76: =IF(OR(L65="ダブル",L65="ショートダブル"),"D","") ->  | BN76: =IF(OR(V65="ダブル",V65="ショートダブル"),"D","") ->  | BO76: =COUNTIFS(BL76:BN76,"D") -> 0
B77: 【シミュレーション結果の各種TAISコード】 | S77: =IF(L65="","未選択",L65) -> ショート | X77: 下段 | Z77: =IF(V65="","未選択",IF(V66="ショート不可","×",V65)) -> シングル | AV77: ベース間距離 | AW77: =IFERROR($AY$68-($AW$67+$AW$69),"") ->  | AX77: =IFERROR($AY$70-($AW$69+$AW$71),"") ->  | AZ77: (G)-7.01～7.01° | BA77: =IF(G65="","△",IF(OR(BA75=1,BA75="△"),"〇","×")) -> △ | BB77: =IF(Q65="","△",IF(OR(BB75=1,BB75="△"),"〇","×")) -> △
AV78: 最小斜辺 | AW78: =IFERROR(( AW79^2 +F70^2)^0.5,"") ->  | AX78: =IFERROR(( AX79^2 +J70^2)^0.5,"") ->  | AZ78: 必要スペース | BA78: =AA66 -> 〇 | BB78: =AB66 -> 〇
B79: =IF(OR(F61="×",F61="",F61="△"),"",IF(OR(B65="",G65=""),"",IF(OR(B65="ダブル",B65="ショートダブル"),B65&"＋連結バー"&G65&" 2本セット",B65&"+連結バー"&G65&" セット"))) ->  | L79: =IF(OR(F61="×",F61="",F61="△"),"",IF(OR(L65="",Q65=""),"",IF(OR(L65="ダブル",L65="ショートダブル"),L65&"＋連結バー"&Q65&" 2本セット",L65&"+連結バー"&Q65&" セット"))) ->  | V79: =IF(OR(F61="×",F61="",F61="△"),"",IF(V65="","",V65&" ※単体")) ->  | AV79: 最小底辺 | AW79: =(AW75+AW67+AW69)-(7.99*2) ->  | AX79: =(AX75+AW69+AW71)-(7.99*2) ->  | AZ79: (A)72cm以下 | BA79: =IF(F70="","△",IF(F70<=72,"〇","×")) -> △ | BB79: =IF(J70="","△",IF(J70<=72,"〇","×")) -> △
B80: =IFERROR(IF(OR(F61="×",F61="",F61="△"),"",INDEX(TAISﾘｽﾄ!$B$3:$L$19,MATCH(B65,TAISﾘｽﾄ!$A$3:$A$19,0),MATCH(G65,TAISﾘｽﾄ!$B$2:$L$2,0))),"") ->  | L80: =IFERROR(IF(OR(F61="×",F61="",F61="△"),"",INDEX(TAISﾘｽﾄ!$B$3:$L$19,MATCH(L65,TAISﾘｽﾄ!$A$3:$A$19,0),MATCH(Q65,TAISﾘｽﾄ!$B$2:$L$2,0))),"") ->  | V80: =IFERROR(IF(OR(F61="×",F61="",F61="△"),"",INDEX(TAISﾘｽﾄ!B3:B19,MATCH(V65,TAISﾘｽﾄ!A3:A19,0))),"") ->  | AV80: 段数 | AW80: =IF(ROUNDDOWN($F$23/2,0)<=0,"×",ROUNDDOWN($F$23/2,0)) -> × | AX80: =F23-AW80 ->  | AZ80: 連結判定 | BA80: =IF(G65="","△",IF(COUNTIFS(BA76:BA78,"*×*")>0,"×","〇")) -> △ | BB80: =IF(Q65="","△",IF(COUNTIFS(BB76:BB78,"*×*")>0,"×","〇")) -> △
F86: =IFERROR(IF(OR(F23="",F26="",F29=""),"",IF(AND(D87="×",E87="〇"),"△",IF(AND(C87="×",E87="〇"),"△",IF(X93="△","△",IF(COUNTIFS(AD87:AG91,"*×*")>0,"×","〇"))))),"") ->  | BC86: 斜辺 | BD86: 48.5 | BE86: 78.5 | BF86: 95.904 | BG86: 108.5 | BH86: 123.084 | BJ86: ショート判定 | BM86: ダブル判定
B87: =IF(OR($F$23="",$F$26="",$F$29=""),"","〇") ->  | C87: =IF(OR(J93="×",R93="×",Z93="×"),"×","〇") -> 〇 | D87: =IF(OR(F93="×",V93="×",N93="×"),"×","〇") -> 〇 | E87: =IF(AND(G93="〇",W93="〇",O93="〇"),"〇","×") -> 〇 | F87: =IF(F86="△","※一部製品を変更すると設置可能です。対象品は緑で表示されております。","") ->  | AD87: =IF(F92="ナシ","×","〇") -> 〇 | AE87: =IF(V92="ナシ","×","〇") -> 〇 | AF87: =IF(F23<4,"×","〇") -> × | AG87: =IF(N92="ナシ","×","〇") -> 〇 | BD87: ☆600 | BE87: ☆900 | BF87: ☆ウェーブS | BG87: ☆1200 | BH87: ☆ウェーブ | BJ87: 上段 | BK87: 下段 | BL87: チェック | BM87: 上段 | BN87: 中間１ | BO87: 中間２ | BP87: 下段 | BQ87: チェック
B88: 【組み合わせシミュレーション】 | AD88: =IF(B91="","〇",IF(B91="手すりを選択","△","×")) -> 〇 | AE88: =IF(J91="","〇",IF(J91="手すりを選択","△","×")) -> 〇 | AF88: =IF(R91="","〇",IF(R91="手すりを選択","△","×")) -> 〇 | AG88: =IF(Z91="","〇",IF(Z91="手すりを選択","△","×")) -> 〇 | AR88: シングル | AS88: =IF(OR(B90=AR88,B90=AR90,B90=AR91),AR88,"") -> シングル | AT88: =IF($BI$95="△","",AR88) -> シングル | AV88: 【Ｃ 踏面に手すり２台設置】必要数値 | BC88: 段差 | BD88: 30 | BE88: 50 | BF88: 35~55 | BG88: 70 | BH88: 47~72 | BJ88: =IF(B90="ショート","S",IF(B90="ショートダブル","S","")) ->  | BK88: =IF(Z90="ショート","S",IF(Z90="ショートダブル","S","")) ->  | BL88: =COUNTIFS(BJ88:BK88,"S") -> 0 | BM88: =IF(OR(B90="ダブル",B90="ショートダブル"),"D","") ->  | BN88: =IF(OR(J90="ダブル",J90="ショートダブル"),"D","") ->  | BO88: =IF(OR(R90="ダブル",R90="ショートダブル"),"D","") ->  | BP88: =IF(OR(Z90="ダブル",Z90="ショートダブル"),"D","") ->  | BQ88: =COUNTIFS(BM88:BP88,"D") -> 0
B89: 上段 | F89: 連結① | J89: =IFERROR(IF(B87="","",IF(COUNTIFS(AD89:AG90,"*×*")>0,"×",$F$23-AW99)),"―") ->  | N89: 連結② | R89: =IFERROR(IF(B87="","",IF(COUNTIFS(AD89:AG90,"*×*")>0,"×",IF($F$23-AX106-AW106<=0,"×",$F$23-AX106-AW106))),"―") ->  | V89: 連結③ | Z89: 下段 | AD89: =IF($F$23="","×",IF($F$23<=2,"×","〇")) -> × | AE89: =IF($F$26="","×",IF(OR(F26<1,F26>30),"×","〇")) -> × | AF89: =IF($F$29="","×",IF(OR(F29<28,F29>50),"×",IF(F29=0,"×","〇"))) -> × | AR89: ダブル | AS89: =IF(OR(B90=AR89,B90=AR92),AR89,"") ->  | AW89: ⑤ﾍﾞｰｽ端から芯 | AX89: ①斜辺 | AY89: ④支柱間距離 | AZ89: ベースサイズ | BA89: 連結バー角度 | BC89: 連結１ | BD89: =IFERROR(IF((BD90-(AU104+AU98))<0,"",IF($F$95<=BD88,BD87,"")),"") ->  | BE89: =IFERROR(IF((BE90-(AU104+AU98))<0,"",IF($F$95<=BE88,BE87,"")),"") ->  | BF89: =IFERROR(IF((BF90-(AU104+AU98))<0,"",IF($F$95>=55,"",IF($F$95>=35,BF87,""))),"") ->  | BG89: =IFERROR(IF((BG90-(AU104+AU98))<0,"",IF($F$95<=BG88,BG87,"")),"") ->  | BH89: =IFERROR(IF((BH90-(AU104+AU98))<0,"",IF($F$95>=72,"",IF($F$95>=47,BH87,""))),"") ->  | BI89: 連結① | BJ89: =IF(BD89="","","600") ->  | BK89: =IF(BE89="","","900") ->  | BL89: =IF(BG89="","","1200") ->  | BM89: =IF(BF89="","","ウェーブS") ->  | BN89: =IF(BH89="","","ウェーブ") -> 
B90: シングル | J90: =IF(OR(B90="ダブル",B90="ショートダブル"),"ショートダブル","ショート") -> ショート | R90: =IF(OR(B90="ダブル",B90="ショートダブル"),"ショートダブル","ショート") -> ショート | Z90: シングル | AE90: =IF(COUNTIFS(BD99:BF99,"*×*")>0,"×","〇") -> 〇 | AR90: ロング | AS90: =IF(OR(B90=AR88,B90=AR90,B90=AR91),AR90,"") -> ロング | AV90: リ① | AW90: =IF(ISBLANK(B90),"△",VLOOKUP(B90,固定数値!E:F,2,0)) -> 10 | AX90: ― | AY90: ― | AZ90: =IF(ISBLANK(B90),"△",VLOOKUP(B90,固定数値!G:H,2,0)) -> 49.5 | BA90: ― | BC90: ｱ)ﾍﾞｰｽ間距離 | BD90: =IFERROR(IF(OR($AW$90="△",$AW$92="△"),((BD86^2-$F$95^2)^0.5)+(7.99*2)-(10+7.5),((BD86^2-$F$95^2)^0.5)+(7.99*2)-($AW$90+$AW$92)),"E") -> E | BE90: =IFERROR(IF(OR($AW$90="△",$AW$92="△"),((BE86^2-$F$95^2)^0.5)+(7.99*2)-(10+7.5),((BE86^2-$F$95^2)^0.5)+(7.99*2)-($AW$90+$AW$92)),"E") -> E | BF90: =IFERROR(IF(OR($AW$90="△",$AW$92="△"),((BF86^2-$F$95^2)^0.5)+(7.99*2)-(10+7.5),((BF86^2-$F$95^2)^0.5)+(7.99*2)-($AW$90+$AW$92)),"E") -> E | BG90: =IFERROR(IF(OR($AW$90="△",$AW$92="△"),((BG86^2-$F$95^2)^0.5)+(7.99*2)-(10+7.5),((BG86^2-$F$95^2)^0.5)+(7.99*2)-($AW$90+$AW$92)),"E") -> E | BH90: =IFERROR(IF(OR($AW$90="△",$AW$92="△"),((BH86^2-$F$95^2)^0.5)+(7.99*2)-(10+7.5),((BH86^2-$F$95^2)^0.5)+(7.99*2)-($AW$90+$AW$92)),"E") -> E | BI90: 連結② | BJ90: =IFERROR(IF(BA105="※設置不可","","600"),"") ->  | BK90: =IFERROR(IF(BD105="設置可能","900",""),"") ->  | BL90: =IFERROR(IF(BB105="設置可能","1200",""),"") ->  | BM90: =IFERROR(IF(BC105="設置可能","ウェーブS",""),"") ->  | BN90: =IFERROR(IF(BE105="設置可能","ウェーブ",""),"") ->  | BO90: =IF(BJ90="","","☆"&BJ90) ->  | BP90: =IF(BK90="","","☆"&BK90) ->  | BQ90: =IF(BL90="","","☆"&BL90) ->  | BR90: =IF(BM90="","","☆"&BM90) ->  | BS90: =IF(BN90="","","☆"&BN90) -> 
B91: =IF(B90="","手すりを選択","") ->  | F91: =IF(N90="","",IF(F90="","連結①を選択",IF(AND(D87="×",E87="〇",F93="×",G93="〇"),"製品を変更",""))) ->  | N91: =IF(B87="","",IF(AND(N90="",N93="〇"),"連結②を選択",IF(AND(N93="×",O93="〇"),"製品を変更",""))) ->  | V91: =IF(N90="","",IF(V90="","連結③を選択",IF(AND(D87="×",E87="〇",V93="×",W93="〇"),"製品を変更",""))) ->  | Z91: =IF(Z90="","手すりを選択",IF(AND(B90="ショートダブル",BK88="S"),"ダブルに変更",IF(AND(B90="ダブル",BP88=""),"両手すりに変更",IF(AND(BJ88="S",Z90="ショートダブル"),"片手すり(大ベース)に変更",IF(AND(BM88="",BP88="D"),"片手すりに変更",IF(AND(BJ88="S",BK88="S"),"大ベース製品に変更",IF(AND(B45="ショートダブル",BG55=""),"ダブルに変更",""))))))) ->  | AD91: =IF(AZ90="△","△",IF(W94="×","×",IF(AZ90<=W94,"〇","×"))) -> 〇 | AE91: =IF(AZ96="△","△",IF(W95="×","×",IF(AZ96<=W95,"〇","×"))) -> 〇 | AF91: =IF(COUNTIFS(BD100:BF100,"*×*")>0,"×","〇") -> 〇 | AG91: =IF(COUNTIFS(AW106:AY106,"*×*")>0,"×","〇") -> 〇 | AR91: ショート | AS91: =IF(OR(B90=AR88,B90=AR90),AR91,"") -> ショート | AV91: 連① | AW91: ― | AX91: =IF(ISBLANK(F90),"△",IF(F90="600","48.5",IF(F90="900","78.5",IF(F90="1200","108.5",IF(F90="ウェーブS","95.904",IF(F90="ウェーブ","123.084","")))))) -> △ | AY91: =IF(F90="","△",((AX91^2-$F95^2)^0.5)+(7.99*2)) -> △ | AZ91: ― | BA91: =IF(F90="","△",ASIN(F95/AX91)) -> △ | BC91: 連結3 | BD91: =IFERROR(IF((BD92-(AU104+AT98))<0,"",IF(BD93<0,"",IF($L$95<=BD88,BD87,""))),"") ->  | BE91: =IFERROR(IF((BE92-(AU104+AT98))<0,"",IF(BE93<0,"",IF($L$95<=BE88,BE87,""))),"") ->  | BF91: =IFERROR(IF((BF92-(AU104+AT98))<0,"",IF(BF93<0,"",IF($L$95>=55,"",IF($L$95>=35,BF87,"")))),"") ->  | BG91: =IFERROR(IF((BG92-(AU104+AT98))<0,"",IF(BG93<0,"",IF($L$95<=BG88,BG87,""))),"") ->  | BH91: =IFERROR(IF((BH92-(AU104+AT98))<0,"",IF(BH93<0,"",IF($L$95>=72,"",IF($L$95>=47,BH87,"")))),"") ->  | BI91: 連結③ | BJ91: =IF(BD91="","","600") ->  | BK91: =IF(BE91="","","900") ->  | BL91: =IF(BG91="","","1200") ->  | BM91: =IF(BF91="","","ウェーブS") ->  | BN91: =IF(BH91="","","ウェーブ") -> 
F92: =IF(AND(N93="〇",N90=""),"",IF(B87="","",IF(AND(BD89="",BE89="",BF89="",BG89="",BH89=""),"ナシ",IF(COUNTIFS(AD89:AG90,"×")>0,"ナシ",BD89&BE89&BG89&BF89&BH89)))) ->  | N92: =IF(B87="","",IF(AND(BJ90="",BK90="",BL90="",BM90="",BN90=""),"ナシ",IF(COUNTIFS(AD89:AG90,"×")>0,"ナシ",BO90&BP90&BQ90&BR90&BS90))) ->  | V92: =IF(AND(N93="〇",N90=""),"",IF(B87="","",IF(AND(BD91="",BE91="",BF91="",BG91="",BH91=""),"ナシ",IF(COUNTIFS(AD89:AG90,"×")>0,"ナシ",BD91&BE91&BG91&BF91&BH91)))) ->  | AR92: ショートダブル | AS92: =IF(B90=AR89,AR92,"") ->  | AV92: リ② | AW92: =IF(ISBLANK(J90),"△",VLOOKUP(J90,固定数値!E:F,2,0)) -> 7.5 | AX92: ― | AY92: ― | AZ92: =IF(ISBLANK(J90),"△",VLOOKUP(J90,固定数値!G:H,2,0)) -> 28 | BA92: ― | BC92: ｳ)ﾍﾞｰｽ間距離 | BD92: =IFERROR(IF(OR($AW$94="△",$AW$96="△"),((BD86^2-$L$95^2)^0.5)+(7.99*2)-(10+7.5),((BD86^2-$L$95^2)^0.5)+(7.99*2)-($AW$94+$AW$96)),"E") -> E | BE92: =IFERROR(IF(OR($AW$94="△",$AW$96="△"),((BE86^2-$L$95^2)^0.5)+(7.99*2)-(10+7.5),((BE86^2-$L$95^2)^0.5)+(7.99*2)-($AW$94+$AW$96)),"E") -> E | BF92: =IFERROR(IF(OR($AW$94="△",$AW$96="△"),((BF86^2-$L$95^2)^0.5)+(7.99*2)-(10+7.5),((BF86^2-$L$95^2)^0.5)+(7.99*2)-($AW$94+$AW$96)),"E") -> E | BG92: =IFERROR(IF(OR($AW$94="△",$AW$96="△"),((BG86^2-$L$95^2)^0.5)+(7.99*2)-(10+7.5),((BG86^2-$L$95^2)^0.5)+(7.99*2)-($AW$94+$AW$96)),"E") -> E | BH92: =IFERROR(IF(OR($AW$94="△",$AW$96="△"),((BH86^2-$L$95^2)^0.5)+(7.99*2)-(10+7.5),((BH86^2-$L$95^2)^0.5)+(7.99*2)-($AW$94+$AW$96)),"E") -> E
F93: =IF(OR(F90="",N90=""),"〇",IF(COUNTIF(BJ89:BN89,F90)=0,"×","〇")) -> 〇 | G93: =IF(O93="〇","〇",IF(F92="ナシ","×","〇")) -> 〇 | J93: =IF(OR(J91="",J91="手すりを選択"),"〇","×") -> 〇 | N93: =IF(N90="","〇",IF(COUNTIF(BJ90:BN90,N90)=0,"×","〇")) -> 〇 | O93: =IF(N92="ナシ","×","〇") -> 〇 | R93: =IF(OR(R91="",R91="手すりを選択"),"〇","×") -> 〇 | V93: =IF(OR(N90="",V90=""),"〇",IF(COUNTIF(BJ91:BN91,V90)=0,"×","〇")) -> 〇 | W93: =IF(O93="〇","〇",IF(V92="ナシ","×","〇")) -> 〇 | X93: =IF(AND(BF98="×",V93="〇",W93="〇"),"△","") ->  | Z93: =IF(OR(Z91="",Z91="手すりを選択"),"〇","×") -> 〇 | AV93: 連② | AW93: ― | AX93: =IF(ISBLANK(N90),"△",IF(N90="600","48.5",IF(N90="900","78.5",IF(N90="1200","108.5",IF(N90="ウェーブS","95.904",IF(N90="ウェーブ","123.084","")))))) -> △ | AY93: =IF(I95="","△",((AX93^2-$I95^2)^0.5)+(7.99*2)) -> △ | AZ93: ― | BA93: =IF(I95="","△",ASIN(I95/AX93)) -> △ | BD93: =(BD92-($AU$101+(($AY$106-1)*$D$102))) ->  | BE93: =(BE92-($AU$101+(($AY$106-1)*$D$102))) ->  | BF93: =(BF92-($AU$101+(($AY$106-1)*$D$102))) ->  | BG93: =(BG92-($AU$101+(($AY$106-1)*$D$102))) ->  | BH93: =(BH92-($AU$101+(($AY$106-1)*$D$102))) -> 
F94: ア | I94: イ | L94: ウ | Q94: 上段 必要スペース | W94: =IFERROR(IF(AY98>=AZ90,ROUNDUP(AY98,0),"×"),"") ->  | Y94: cm以上 | AV94: リ③ | AW94: =IF(ISBLANK(R90),"△",VLOOKUP(R90,固定数値!E:F,2,0)) -> 7.5 | AX94: ― | AY94: ― | AZ94: =IF(ISBLANK(R90),"△",VLOOKUP(R90,固定数値!G:H,2,0)) -> 28 | BA94: ― | BD94: ア | BE94: イ | BF94: ウ | BG94: 上段 ショートなら | BI94: =AW103-AW101 -> 
B95: 段 差 | F95: =IF(F29="","",IFERROR((AW106*$F$26),"")) ->  | H95: cm | I95: =IFERROR(IF(AV99>0,"",AX106*$F$26),"") ->  | K95: cm | L95: =IFERROR(AY106*$F$26,"") ->  | N95: cm | Q95: 下段 必要スペース | W95: =IFERROR(IF(AW98>=AZ96,ROUNDUP(AW98,0),"×"),"") ->  | Y95: cm以上 | AR95: 実際上 | AV95: 連③ | AW95: ― | AX95: =IF(ISBLANK(V90),"△",IF(V90="600","48.5",IF(V90="900","78.5",IF(V90="1200","108.5",IF(V90="ウェーブS","95.904",IF(V90="ウェーブ","123.084","")))))) -> △ | AY95: =IF(V90="","△",((AX95^2-$L95^2)^0.5)+(7.99*2)) -> △ | AZ95: ― | BA95: =IF(V90="","△",ASIN(L95/AX95)) -> △ | BC95: 角度チェック | BD95: =IF(F97="","△",COUNTIFS(F97,">="&-7.014,F97,"<="&7.014)) -> △ | BE95: =IF(I97="","△",COUNTIFS(I97,">="&-7.014,I97,"<="&7.014)) -> △ | BF95: =IF(L97="","△",COUNTIFS(L97,">="&-7.014,L97,"<="&7.014)) -> △ | BI95: =IFERROR(IF(BI94<-2.5,"×",IF(BI94>=0,"〇","△")),"") ->  | CR95: D連結①シミュレーション
B96: 連結バー角度 | F96: =IFERROR(BA91*180/PI(),"") ->  | H96: ° | I96: =IFERROR(BA93*180/PI(),"") ->  | K96: ° | L96: =IFERROR(BA95*180/PI(),"") ->  | N96: ° | AR96: 実際下 | AV96: リ④ | AW96: =IF(ISBLANK(Z90),"△",VLOOKUP(Z90,固定数値!E:F,2,0)) -> 10 | AX96: ― | AY96: ― | AZ96: =IF(ISBLANK(Z90),"△",VLOOKUP(Z90,固定数値!G:H,2,0)) -> 49.5 | BA96: ― | BC96: (F)40°以上× | BD96: =IF(F96="","△",IF(F96<=40.2,"〇","×")) -> △ | BE96: =IF(I96="","△",IF(I96<=40.2,"〇","×")) -> △ | BF96: =IF(L96="","△",IF(L96<=40.2,"〇","×")) -> △ | BG96: 下段 ショートなら | BI96: =AY103-AY101 ->  | CT96: ア) 段数 | CU96: ア) 段差 | CV96: ア) 必要ベ距離 | CW96: ア)仮べ距離／判定／上段必要スペース 連結①各パターン
B97: 水平部分角度 | F97: =IFERROR(IF(F90="ウェーブ",F96-29.22,IF(F90="ウェーブS",F96-27.98,"")),"") ->  | H97: ° | I97: =IFERROR(IF(N90="ウェーブ",I96-29.22,IF(N90="ウェーブS",I96-27.98,"")),"") ->  | K97: ° | L97: =IFERROR(IF(V90="ウェーブ",L96-29.22,IF(V90="ウェーブS",L96-27.98,"")),"") ->  | N97: ° | S97: =IF(F90="","未選択",F90) -> 未選択 | AQ97: あ | AR97: い | AS97: う | AT97: え | AU97: お | AV97: か | AW97: 下段必スぺ | AY97: 上段必スぺ | BC97: (G)-7.05～7.05° | BD97: =IF(F90="","△",IF(OR(BD95=1,BD95="△"),"〇","×")) -> △ | BE97: =IF(N90="","△",IF(OR(BE95=1,BE95="△"),"〇","×")) -> △ | BF97: =IF(V90="","△",IF(OR(BF95=1,BF95="△"),"〇","×")) -> △ | BI97: =IFERROR(IF(BI96<-2.5,"×",IF(BI96>=0,"〇","△")),"") -> 
W98: =IF(N90="","未選択",N90) -> 未選択 | AQ98: =AX103+AZ92+AZ94 ->  | AR98: =(AX106+1)*F29 ->  | AS98: =MIN(AU101:AU102) ->  | AT98: =(AY106-1)*F29 ->  | AU98: =(AW106-1)*F29 ->  | AV98: =(AY103-(AS98+AT98)) ->  | AW98: =BA100+AZ96 ->  | AY98: =BA99+AZ90 ->  | BC98: 必要スペース | BD98: =AD91 -> 〇 | BE98: ― | BF98: =AE91 -> 〇 | CW98: 600 | CY98: 1200 | DA98: ウェーブS | DC98: 900 | DE98: ウェーブ | DO98: 48.5 | DP98: 108.5 | DQ98: 95.904 | DR98: 78.5 | DS98: 123.084
AA99: =IF(V90="","未選択",V90) -> 未選択 | AR99: 平均X | AS99: =(AW103-(AU101+((AW106-1)*D102))) ->  | AV99: =COUNTIFS(AW99:AY99,"×") -> 1 | AW99: =IFERROR(IF(AW106<=0,"×",AW106),"×") -> × | AY99: =IFERROR(IF(AY106<=0,"×",AY106),"×") ->  | AZ99: 採用X | BA99: =IF(AS99<=0,AS104,AS99) ->  | BC99: (A)72cm以下 | BD99: =IF(F95="","△",IF(F95<=72,"〇","×")) -> △ | BE99: =IF(I95="","△",IF(I95<=72,"〇","×")) -> △ | BF99: =IF(L95="","△",IF(L95<=72,"〇","×")) -> △ | BO99: ア) 段数 | BP99: ア) 段差 | BQ99: ア) 必要ベ 距離 | BR99: 連結①／ア)ベ距離 | CB99: ウ) 段数 | CC99: ウ) 段差 | CD99: ウ) 必要ベ 距離 | CE99: 連結③／ウ)ベ距離 | CR99: 連結② | CS99: 600 | CT99: =IFERROR(IF(ROUNDDOWN(($F$23-($CD$119+$BQ$130))/2,0)<=0,"×",$AS$123-$CD$119),"E") -> E | CU99: =IFERROR(CT99*$D$127,"E") -> E | CV99: =IFERROR(((CT99-1)*$D$128)+$CD$118,"E") -> E | CW99: =IFERROR(((DO$98^2-$CU99^2)^0.5)+(7.99*2)-($AW$114+$AW$116),"E") -> E | CX99: =IFERROR(IF(CW99<=$CV99,"E",IF(CW99<=CQ133,"E",IF(CU99>=30,"E",""))),"E") -> E | CY99: =IFERROR(((DP98^2-$CU$99^2)^0.5)+(7.99*2)-($AW$114+$AW$116),"E") -> E | CZ99: =IFERROR(IF(CY99<=$CV99,"E",IF(CY99<=CQ133,"E",IF(CU99>=70,"E",""))),"E") -> E | DA99: =IFERROR(((DQ98^2-$CU$99^2)^0.5)+(7.99*2)-($AW$114+$AW$116),"E") -> E | DB99: =IFERROR(IF(DA99<=$CV99,"E",IF(DA99<=CQ133,"E",IF(CU99<=35,"E",IF(CU99>=55,"E","")))),"E") -> E | DC99: =IFERROR(((DR98^2-$CU$99^2)^0.5)+(7.99*2)-($AW$114+$AW$116),"E") -> E | DD99: =IFERROR(IF(DC99<=$CV99,"E",IF(DC99<=CQ133,"E",IF(CU99>=50,"E",""))),"E") -> E | DE99: =IFERROR(((DS98^2-$CU$99^2)^0.5)+(7.99*2)-($AW$114+$AW$116),"E") -> E | DF99: =IFERROR(IF(DE99<=$CV99,"E",IF(DE99<=CQ133,"E",IF(CU99<=47,"E",IF(CU99>=72,"E","")))),"E") -> E | DN99: 48.5 | DO99: =CW99 -> E | DP99: =CY99 -> E | DQ99: =DA99 -> E | DR99: =DC99 -> E | DS99: =DE99 -> E
B100: 段 数 | D100: =$F$23 -> 0 | F100: 段 | O100: 上段 | AR100: 平均Y | AS100: =(AY103-(AU101+((AY106-1)*D102))) ->  | AT100: 最小Y | AU100: =AY103-(AU104+AT98) ->  | AW100: ア | AX100: イ | AY100: ウ | AZ100: 採用Y | BA100: =IF(BA99=AS99,AS100,IF(BA99=AS102,AS105,IF(BA99=AS103,AS106,""))) ->  | BC100: 連結判定 | BD100: =IF(F90="","△",IF(COUNTIFS(BD96:BD98,"*×*")>0,"×","〇")) -> △ | BF100: =IF(V90="","△",IF(COUNTIFS(BF96:BF98,"*×*")>0,"×","〇")) -> △ | BR100: 600 | BT100: 1200 | BV100: ウェーブS | BX100: 900 | BZ100: ウェーブ | CE100: 600 | CG100: 1200 | CI100: ウェーブS | CK100: 900 | CM100: ウェーブ | CS100: 1200 | CT100: =IFERROR(IF(ROUNDDOWN(($F$23-($CE$119+$BQ$130))/2,0)<=0,"×",$AS$123-$CE$119),"E") -> E | CU100: =IFERROR(CT100*$D$127,"E") -> E | CV100: =IFERROR(((CT100-1)*$D$128)+$CE$118,"E") -> E | CW100: =IFERROR(((DO$98^2-$CU100^2)^0.5)+(7.99*2)-($AW$114+$AW$116),"E") -> E | CX100: =IFERROR(IF(CW100<=$CV100,"E",IF(CW100<=CX133,"E",IF(CU100>=30,"E",""))),"E") -> E | CY100: =IFERROR(((DP$98^2-$CU100^2)^0.5)+(7.99*2)-($AW$114+$AW$116),"E") -> E | CZ100: =IFERROR(IF(CY100<=$CV100,"E",IF(CY100<=CX133,"E",IF(CU100>=70,"E",""))),"E") -> E | DA100: =IFERROR(((DQ$98^2-$CU100^2)^0.5)+(7.99*2)-($AW$114+$AW$116),"E") -> E | DB100: =IFERROR(IF(DA100<=$CV100,"E",IF(DA100<=CX133,"E",IF(CU100<=35,"E",IF(CU100>=55,"E","")))),"E") -> E | DC100: =IFERROR(((DR$98^2-$CU100^2)^0.5)+(7.99*2)-($AW$114+$AW$116),"E") -> E | DD100: =IFERROR(IF(DC100<=$CV100,"E",IF(DC100<=CX133,"E",IF(CU100>=50,"E",""))),"E") -> E | DE100: =IFERROR(((DS$98^2-$CU100^2)^0.5)+(7.99*2)-($AW$114+$AW$116),"E") -> E | DF100: =IFERROR(IF(DE100<=$CV100,"E",IF(DE100<=CX133,"E",IF(CU100<=47,"E",IF(CU100>=72,"E","")))),"E") -> E | DI100: 2 | DJ100: イ)ウ）総距離 | DN100: 108.5 | DO100: =CW100 -> E | DP100: =CY100 -> E | DQ100: =DA100 -> E | DR100: =DC100 -> E | DS100: =DE100 -> E
B101: 蹴 上 | D101: =$F$26 -> 0 | F101: ㎝ | O101: =IF(B90="","未選択",B90) -> シングル | T101: =J89 ->  | AT101: ③F A上・B下 | AU101: =(((AX106+1)*D102)-(AX103+56))/2 ->  | AV101: 最小ベース間距離 | AW101: =IF(F29="","△",AU104+((AW106-1)*F29)) -> △ | AX101: =IFERROR($AY$93-($AW$92+$AW$94),"") ->  | AY101: =IF(F29="","△",AU104+((AY106-1)*F29)) -> △ | BA101: =IFERROR(IF(AND(BS101="E",BU101="E",BW101="E",BY101="E",CA101="E"),"E",IF(AND(CF101="E",CH101="E",CJ101="E",CL101="E",CN101="E"),"E","")),"E") -> E | BB101: =IFERROR(IF(AND(BS102="E",BU102="E",BW102="E",BY102="E",CA102="E"),"E",IF(AND(CF102="E",CH102="E",CJ102="E",CL102="E",CN102="E"),"E","")),"E") -> E | BC101: =IFERROR(IF(AND(BS103="E",BU103="E",BW103="E",BY103="E",CA103="E"),"E",IF(AND(CF103="E",CH103="E",CJ103="E",CL103="E",CN103="E"),"E","")),"E") -> E | BD101: =IFERROR(IF(AND(BS104="E",BU104="E",BW104="E",BY104="E",CA104="E"),"E",IF(AND(CF104="E",CH104="E",CJ104="E",CL104="E",CN104="E"),"E","")),"E") -> E | BE101: =IFERROR(IF(AND(BS105="E",BU105="E",BW105="E",BY105="E",CA105="E"),"E",IF(AND(CF105="E",CH105="E",CJ105="E",CL105="E",CN105="E"),"E","")),"E") -> E | BG101: 連②シミュ | BH101: 600 | BI101: 1200 | BJ101: ウェーブS | BK101: 900 | BL101: ウェーブ | BM101: 連結② | BN101: 600 | BO101: =IFERROR(ROUNDDOWN(($D$100-BH102)/2,0),"") ->  | BP101: =IFERROR(BO101*$D$101,"") ->  | BQ101: =IFERROR(((BO101-1)*$D$102)+$BH$107,"E") -> E | BR101: =IFERROR(((DO$98^2-$BP101^2)^0.5)+(7.99*2)-($AW$90+$AW$92),"E") -> E | BS101: =IFERROR(IF(BR101<=$BQ101,"E",IF(BP101>=30,"E","")),"E") -> E | BT101: =IFERROR(((DP$98^2-$BP101^2)^0.5)+(7.99*2)-($AW$90+$AW$92),"E") -> E | BU101: =IFERROR(IF(BT101<=$BQ101,"E",IF(BP101>=70,"E","")),"E") -> E | BV101: =IFERROR(((DQ$98^2-$BP101^2)^0.5)+(7.99*2)-($AW$90+$AW$92),"E") -> E | BW101: =IFERROR(IF(BV101<=$BQ101,"E",IF(BP101<=35,"E",IF(BP101>=55,"E",""))),"E") -> E | BX101: =IFERROR(((DR$98^2-$BP101^2)^0.5)+(7.99*2)-($AW$90+$AW$92),"E") -> E | BY101: =IFERROR(IF(BX101<=$BQ101,"E",IF(BP101>=50,"E","")),"E") -> E | BZ101: =IFERROR(((DS$98^2-$BP101^2)^0.5)+(7.99*2)-($AW$90+$AW$92),"E") -> E | CA101: =IFERROR(IF(BZ101<=$BQ101,"E",IF(BP101<=47,"E",IF(BP101>=72,"E",""))),"E") -> E | CB101: =$D$100-(BH102+BO101) ->  | CC101: =IFERROR(CB101*$D$101,"") ->  | CD101: =IFERROR(((CB101-1)*$D$102)+$BH$105,"E") -> E | CE101: =IFERROR(((DO$98^2-$CC101^2)^0.5)+(7.99*2)-($AW$94+$AW$96),"E") -> E | CF101: =IFERROR(IF(CE101<=$CD101,"E",IF(CC101>=30,"E","")),"E") -> E | CG101: =IFERROR(((DP$98^2-$CC101^2)^0.5)+(7.99*2)-($AW$94+$AW$96),"E") -> E | CH101: =IFERROR(IF(CG101<=$CD101,"E",IF(CC101>=70,"E","")),"E") -> E | CI101: =IFERROR(((DQ$98^2-$CC101^2)^0.5)+(7.99*2)-($AW$94+$AW$96),"E") -> E | CJ101: =IFERROR(IF(CI101<=$CD101,"E",IF(CC101<=35,"E",IF(CC101>=55,"E",""))),"E") -> E | CK101: =IFERROR(((DR$98^2-$CC101^2)^0.5)+(7.99*2)-($AW$94+$AW$96),"E") -> E | CL101: =IFERROR(IF(CK101<=$CD101,"E",IF(CC101>=50,"E","")),"E") -> E | CM101: =IFERROR(((DS$98^2-$CC101^2)^0.5)+(7.99*2)-($AW$94+$AW$96),"E") -> E | CN101: =IFERROR(IF(CM101<=$CD101,"E",IF(CC101<=47,"E",IF(CC101>=72,"E",""))),"E") -> E | CS101: ウェーブS | CT101: =IFERROR(IF(ROUNDDOWN(($F$23-($CF$119+$BQ$130))/2,0)<=0,"×",$AS$123-$CF$119),"E") -> E | CU101: =IFERROR(CT101*$D$127,"E") -> E | CV101: =IFERROR(((CT101-1)*$D$128)+$CF$118,"E") -> E | CW101: =IFERROR(((DO$98^2-$CU101^2)^0.5)+(7.99*2)-($AW$114+$AW$116),"E") -> E | CX101: =IFERROR(IF(CW101<=$CV101,"E",IF(CW101<=DE133,"E",IF(CU101>=30,"E",""))),"E") -> E | CY101: =IFERROR(((DP$98^2-$CU101^2)^0.5)+(7.99*2)-($AW$114+$AW$116),"E") -> E | CZ101: =IFERROR(IF(CY101<=$CV101,"E",IF(CY101<=DE133,"E",IF(CU101>=70,"E",""))),"E") -> E | DA101: =IFERROR(((DQ$98^2-$CU101^2)^0.5)+(7.99*2)-($AW$114+$AW$116),"E") -> E | DB101: =IFERROR(IF(DA101<=$CV101,"E",IF(DA101<=DE133,"E",IF(CU101<=35,"E",IF(CU101>=55,"E","")))),"E") -> E | DC101: =IFERROR(((DR$98^2-$CU101^2)^0.5)+(7.99*2)-($AW$114+$AW$116),"E") -> E | DD101: =IFERROR(IF(DC101<=$CV101,"E",IF(DC101<=DE133,"E",IF(CU101>=50,"E",""))),"E") -> E | DE101: =IFERROR(((DS$98^2-$CU101^2)^0.5)+(7.99*2)-($AW$114+$AW$116),"E") -> E | DF101: =IFERROR(IF(DE101<=$CV101,"E",IF(DE101<=DE133,"E",IF(CU101<=47,"E",IF(CU101>=72,"E","")))),"E") -> E | DI101: ③ | DJ101: イ)ウ）段数 | DN101: 95.904 | DO101: =CW101 -> E | DP101: =CY101 -> E | DQ101: =DA101 -> E | DR101: =DC101 -> E | DS101: =DE101 -> E
B102: 踏 面 | D102: =$F$29 -> 0 | F102: ㎝ | T102: =J90 -> ショート | X102: =R89 ->  | AR102: 上寄X | AS102: =IF(AW103-(AU104+AU98)<0,"",AW103-(AU104+AU98)) ->  | AT102: ⑪F A下・B上 | AU102: =(AX103-((AX106-1)*D102))/2 ->  | AV102: 必要最大ﾍﾞｰｽ間 | AW102: =IF(F95="","△",(((123.084^2-F95^2)^0.5)+(7.99*2))-(10+7.5)) -> △ | AX102: =IF(I95="","△",(((123.084^2-I95^2)^0.5)+(7.99*2))-(10+7.5)) -> △ | AY102: =IF(L95="","△",(((123.084^2-L95^2)^0.5)+(7.99*2))-(10+7.5)) -> △ | BA102: 600 | BB102: 1200 | BC102: ウェーブS | BD102: 900 | BE102: ウェーブ | BG102: イ)段数 | BH102: =BA104+1 ->  | BI102: =BB104+1 ->  | BJ102: =BC104+1 ->  | BN102: 1200 | BO102: =IFERROR(ROUNDDOWN(($D$100-BI102)/2,0),"") ->  | BP102: =IFERROR(BO102*$D$101,"") ->  | BQ102: =IFERROR(((BO102-1)*$D$102)+$BI$107,"E") -> E | BR102: =IFERROR(((DO$98^2-$BP102^2)^0.5)+(7.99*2)-($AW$90+$AW$92),"E") -> E | BS102: =IFERROR(IF(BR102<=$BQ102,"E",IF(BP102>=30,"E","")),"E") -> E | BT102: =IFERROR(((DP$98^2-$BP102^2)^0.5)+(7.99*2)-($AW$90+$AW$92),"E") -> E | BU102: =IFERROR(IF(BT102<=$BQ102,"E",IF(BP102>=70,"E","")),"E") -> E | BV102: =IFERROR(((DQ$98^2-$BP102^2)^0.5)+(7.99*2)-($AW$90+$AW$92),"E") -> E | BW102: =IFERROR(IF(BV102<=$BQ102,"E",IF(BP102<=35,"E",IF(BP102>=55,"E",""))),"E") -> E | BX102: =IFERROR(((DR$98^2-$BP102^2)^0.5)+(7.99*2)-($AW$90+$AW$92),"E") -> E | BY102: =IFERROR(IF(BX102<=$BQ102,"E",IF(BP102>=50,"E","")),"E") -> E | BZ102: =IFERROR(((DS$98^2-$BP102^2)^0.5)+(7.99*2)-($AW$90+$AW$92),"E") -> E | CA102: =IFERROR(IF(BZ102<=$BQ102,"E",IF(BP102<=47,"E",IF(BP102>=72,"E",""))),"E") -> E | CB102: =$D$100-(BI102+BO102) ->  | CC102: =IFERROR(CB102*$D$101,"") ->  | CD102: =IFERROR(((CB102-1)*$D$102)+$BI$105,"E") -> E | CE102: =IFERROR(((DO$98^2-$CC102^2)^0.5)+(7.99*2)-($AW$94+$AW$96),"E") -> E | CF102: =IFERROR(IF(CE102<=$CD102,"E",IF(CC102>=30,"E","")),"E") -> E | CG102: =IFERROR(((DP$98^2-$CC102^2)^0.5)+(7.99*2)-($AW$94+$AW$96),"E") -> E | CH102: =IFERROR(IF(CG102<=$CD102,"E",IF(CC102>=70,"E","")),"E") -> E | CI102: =IFERROR(((DQ$98^2-$CC102^2)^0.5)+(7.99*2)-($AW$94+$AW$96),"E") -> E | CJ102: =IFERROR(IF(CI102<=$CD102,"E",IF(CC102<=35,"E",IF(CC102>=55,"E",""))),"E") -> E | CK102: =IFERROR(((DR$98^2-$CC102^2)^0.5)+(7.99*2)-($AW$94+$AW$96),"E") -> E | CL102: =IFERROR(IF(CK102<=$CD102,"E",IF(CC102>=50,"E","")),"E") -> E | CM102: =IFERROR(((DS$98^2-$CC102^2)^0.5)+(7.99*2)-($AW$94+$AW$96),"E") -> E | CN102: =IFERROR(IF(CM102<=$CD102,"E",IF(CC102<=47,"E",IF(CC102>=72,"E",""))),"E") -> E | CS102: 900 | CT102: =IFERROR(IF(ROUNDDOWN(($F$23-($CG$119+$BQ$130))/2,0)<=0,"×",$AS$123-$CG$119),"E") -> E | CU102: =IFERROR(CT102*$D$127,"E") -> E | CV102: =IFERROR(((CT102-1)*$D$128)+$CG$118,"E") -> E | CW102: =IFERROR(((DO$98^2-$CU102^2)^0.5)+(7.99*2)-($AW$114+$AW$116),"E") -> E | CX102: =IFERROR(IF(CW102<=$CV102,"E",IF(CW102<=DL133,"E",IF(CU102>=30,"E",""))),"E") -> E | CY102: =IFERROR(((DP$98^2-$CU102^2)^0.5)+(7.99*2)-($AW$114+$AW$116),"E") -> E | CZ102: =IFERROR(IF(CY102<=$CV102,"E",IF(CY102<=DL133,"E",IF(CU102>=70,"E",""))),"E") -> E | DA102: =IFERROR(((DQ$98^2-$CU102^2)^0.5)+(7.99*2)-($AW$114+$AW$116),"E") -> E | DB102: =IFERROR(IF(DA102<=$CV102,"E",IF(DA102<=DL133,"E",IF(CU102<=35,"E",IF(CU102>=55,"E","")))),"E") -> E | DC102: =IFERROR(((DR$98^2-$CU102^2)^0.5)+(7.99*2)-($AW$114+$AW$116),"E") -> E | DD102: =IFERROR(IF(DC102<=$CV102,"E",IF(DC102<=DL133,"E",IF(CU102>=50,"E",""))),"E") -> E | DE102: =IFERROR(((DS$98^2-$CU102^2)^0.5)+(7.99*2)-($AW$114+$AW$116),"E") -> E | DF102: =IFERROR(IF(DE102<=$CV102,"E",IF(DE102<=DL133,"E",IF(CU102<=47,"E",IF(CU102>=72,"E","")))),"E") -> E | DI102: ④ | DJ102: イ)ウ）総踏面 | DN102: 78.5 | DO102: =CW102 -> E | DP102: =CY102 -> E | DQ102: =DA102 -> E | DR102: =DC102 -> E | DS102: =DE102 -> E
B103: 【シミュレーション結果の各種TAISコード】 | X103: =R90 -> ショート | AC103: 下段 | AE103: =IF(Z90="","未選択",IF(Z91="ショート不可","不可",Z90)) -> シングル | AR103: 下寄X | AS103: =IF(AU105-(AU106+AS106)<0,"",AU105-(AU106+AS106)) ->  | AT103: ③F-⑪F | AU103: =IF(AU101-AU102<0,0,AU101-AU102) ->  | AV103: ベース間距離 | AW103: =IFERROR($AY$91-($AW$90+$AW$92),"") ->  | AX103: =IFERROR($AY$93-($AW$92+$AW$94),"") ->  | AY103: =IFERROR($AY$95-($AW$94+$AW$96),"") ->  | BA103: 48.5 | BB103: 108.5 | BC103: 95.904 | BD103: 78.5 | BE103: 123.084 | BG103: イ)段差 | BH103: =BH102*$D$101 ->  | BI103: =BI102*$D$101 ->  | BN103: ウェーブS | BO103: =IFERROR(ROUNDDOWN(($D$100-BJ102)/2,0),"") ->  | BQ103: =IFERROR(((BO103-1)*$D$102)+$BJ$107,"E") -> E | BR103: =IFERROR(((DO$98^2-$BP103^2)^0.5)+(7.99*2)-($AW$90+$AW$92),"E") -> E | BS103: E | BT103: =IFERROR(((DP$98^2-$BP103^2)^0.5)+(7.99*2)-($AW$90+$AW$92),"E") -> E | BU103: E | BV103: =IFERROR(((DQ$98^2-$BP103^2)^0.5)+(7.99*2)-($AW$90+$AW$92),"E") -> E | BW103: E | BX103: =IFERROR(((DR$98^2-$BP103^2)^0.5)+(7.99*2)-($AW$90+$AW$92),"E") -> E | BY103: E | BZ103: =IFERROR(((DS$98^2-$BP103^2)^0.5)+(7.99*2)-($AW$90+$AW$92),"E") -> E | CA103: E | CB103: =$D$100-(BJ102+BO103) ->  | CD103: =IFERROR(((CB103-1)*$D$102)+$BJ$105,"E") -> E | CE103: =IFERROR(((DO$98^2-$CC103^2)^0.5)+(7.99*2)-($AW$94+$AW$96),"E") -> E | CF103: E | CG103: =IFERROR(((DP$98^2-$CC103^2)^0.5)+(7.99*2)-($AW$94+$AW$96),"E") -> E | CH103: E | CI103: =IFERROR(((DQ$98^2-$CC103^2)^0.5)+(7.99*2)-($AW$94+$AW$96),"E") -> E | CJ103: E | CK103: =IFERROR(((DR$98^2-$CC103^2)^0.5)+(7.99*2)-($AW$94+$AW$96),"E") -> E | CL103: E | CM103: =IFERROR(((DS$98^2-$CC103^2)^0.5)+(7.99*2)-($AW$94+$AW$96),"E") -> E | CN103: E | CS103: ウェーブ | CT103: =IFERROR(IF(ROUNDDOWN(($F$23-($CH$119+$BQ$130))/2,0)<=0,"×",$AS$123-$CH$119),"E") -> E | CU103: =IFERROR(CT103*$D$127,"E") -> E | CV103: =IFERROR(((CT103-1)*$D$128)+$CH$118,"E") -> E | CW103: =IFERROR(((DO$98^2-$CU103^2)^0.5)+(7.99*2)-($AW$114+$AW$116),"E") -> E | CX103: =IFERROR(IF(CW103<=$CV103,"E",IF(CW103<=DS133,"E",IF(CU103>=30,"E",""))),"E") -> E | CY103: =IFERROR(((DP$98^2-$CU103^2)^0.5)+(7.99*2)-($AW$114+$AW$116),"E") -> E | CZ103: =IFERROR(IF(CY103<=$CV103,"E",IF(CY103<=DS133,"E",IF(CU103>=70,"E",""))),"E") -> E | DA103: =IFERROR(((DQ$98^2-$CU103^2)^0.5)+(7.99*2)-($AW$114+$AW$116),"E") -> E | DB103: =IFERROR(IF(DA103<=$CV103,"E",IF(DA103<=DS133,"E",IF(CU103<=35,"E",IF(CU103>=55,"E","")))),"E") -> E | DC103: =IFERROR(((DR$98^2-$CU103^2)^0.5)+(7.99*2)-($AW$114+$AW$116),"E") -> E | DD103: =IFERROR(IF(DC103<=$CV103,"E",IF(DC103<=DS133,"E",IF(CU103>=50,"E",""))),"E") -> E | DE103: =IFERROR(((DS$98^2-$CU103^2)^0.5)+(7.99*2)-($AW$114+$AW$116),"E") -> E | DF103: =IFERROR(IF(DE103<=$CV103,"E",IF(DE103<=DS133,"E",IF(CU103<=47,"E",IF(CU103>=72,"E","")))),"E") -> E | DN103: 123.084 | DO103: =CW103 -> E | DP103: =CY103 -> E | DQ103: =DA103 -> E | DR103: =DC103 -> E | DS103: =DE103 -> E
AR104: MIN | AS104: =MIN(AS102:AS103) ->  | AT104: MIN | AU104: =MIN(AU101:AU103) ->  | AV104: 最小斜辺 | AW104: =IFERROR(( AW105^2 +F95^2)^0.5,"") ->  | AX104: =IFERROR(( AX105^2 +I95^2)^0.5,"") ->  | AY104: =IFERROR(( AY105^2 +L95^2)^0.5,"") ->  | BA104: =INDEX('S+Sﾁｪｯｸ表'!$D$6:$AG$28, MATCH($F$29,'S+Sﾁｪｯｸ表'!$C$6:$C$28,0), MATCH($F$26,'S+Sﾁｪｯｸ表'!$D$5:$AG$5,0)) ->  | BB104: =INDEX('S+Sﾁｪｯｸ表'!$D$60:$AG$82, MATCH($F$29,'S+Sﾁｪｯｸ表'!$C$60:$C$82,0), MATCH($F$26,'S+Sﾁｪｯｸ表'!$D$59:$AG$59,0)) ->  | BC104: =INDEX('S+Sﾁｪｯｸ表'!$D$87:$AG$109, MATCH($F$29,'S+Sﾁｪｯｸ表'!$C$87:$C$109,0), MATCH($F$26,'S+Sﾁｪｯｸ表'!$D$86:$AG$86,0)) ->  | BD104: =INDEX('S+Sﾁｪｯｸ表'!$D$33:$AG$55, MATCH($F$29,'S+Sﾁｪｯｸ表'!$C$33:$C$55,0), MATCH($F$26,'S+Sﾁｪｯｸ表'!$D$32:$AG$32,0)) ->  | BE104: =INDEX('S+Sﾁｪｯｸ表'!$D$114:$AG$136, MATCH($F$29,'S+Sﾁｪｯｸ表'!$C$114:$C$136,0), MATCH($F$26,'S+Sﾁｪｯｸ表'!$D$113:$AG$113,0)) ->  | BG104: イ)ベ距離 | BH104: =IFERROR((((BA103^2-BH103^2)^0.5)+(7.99*2))-($AW$92+$AW$94),"") ->  | BI104: =IFERROR((((BB103^2-BI103^2)^0.5)+(7.99*2))-($AW$92+$AW$94),"") ->  | BK104: =IFERROR((((BD103^2-BK103^2)^0.5)+(7.99*2))-($AW$92+$AW$94),"") ->  | BL104: =IFERROR((((BE103^2-BL103^2)^0.5)+(7.99*2))-($AW$92+$AW$94),"") ->  | BN104: 900 | BO104: =IFERROR(ROUNDDOWN(($D$100-BK102)/2,0),"") ->  | BP104: =IFERROR(BO104*$D$101,"") ->  | BQ104: =IFERROR(((BO104-1)*$D$102)+$BK$107,"E") -> E | BR104: =IFERROR(((DO$98^2-$BP104^2)^0.5)+(7.99*2)-($AW$90+$AW$92),"E") -> E | BS104: E | BT104: =IFERROR(((DP$98^2-$BP104^2)^0.5)+(7.99*2)-($AW$90+$AW$92),"E") -> E | BU104: =IFERROR(IF(BT104<=$BQ104,"E",IF(BP104>=70,"E","")),"E") -> E | BV104: =IFERROR(((DQ$98^2-$BP104^2)^0.5)+(7.99*2)-($AW$90+$AW$92),"E") -> E | BW104: E | BX104: =IFERROR(((DR$98^2-$BP104^2)^0.5)+(7.99*2)-($AW$90+$AW$92),"E") -> E | BY104: E | BZ104: =IFERROR(((DS$98^2-$BP104^2)^0.5)+(7.99*2)-($AW$90+$AW$92),"E") -> E | CA104: E | CB104: =$D$100-(BK102+BO104) ->  | CC104: =IFERROR(CB104*$D$101,"") ->  | CD104: =IFERROR(((CB104-1)*$D$102)+$BK$105,"E") -> E | CE104: =IFERROR(((DO$98^2-$CC104^2)^0.5)+(7.99*2)-($AW$94+$AW$96),"E") -> E | CF104: =IFERROR(IF(CE104<=$CD104,"E",IF(CC104>=30,"E","")),"E") -> E | CG104: =IFERROR(((DP$98^2-$CC104^2)^0.5)+(7.99*2)-($AW$94+$AW$96),"E") -> E | CH104: E | CI104: =IFERROR(((DQ$98^2-$CC104^2)^0.5)+(7.99*2)-($AW$94+$AW$96),"E") -> E | CJ104: E | CK104: =IFERROR(((DR$98^2-$CC104^2)^0.5)+(7.99*2)-($AW$94+$AW$96),"E") -> E | CL104: E | CM104: =IFERROR(((DS$98^2-$CC104^2)^0.5)+(7.99*2)-($AW$94+$AW$96),"E") -> E | CN104: E | CU104: 可能な連結① | CX104: =IF(COUNTIFS(CX99:CX103,"")>0,"600","×") -> × | CZ104: =IF(COUNTIFS(CZ99:CZ103,"")>0,"1200","×") -> × | DB104: =IF(COUNTIFS(DB99:DB103,"")>0,"ウェーブS","×") -> × | DD104: =IF(COUNTIFS(DD99:DD103,"")>0,"900","×") -> × | DF104: =IF(COUNTIFS(DF99:DF103,"")>0,"ウェーブ","×") -> ×
B105: =IF(OR(F86="×",F86="",F86="△"),"",IF(OR(B90="",F90=""),"",IF(OR(B90="ダブル",B90="ショートダブル"),B90&"＋連結バー"&F90&" 2本セット",B90&"+連結バー"&F90&" セット"))) ->  | J105: =IF(OR(F86="×",F86="",F86="△"),"",IF(OR(J90="",N90=""),"",IF(OR(J90="ダブル",J90="ショートダブル"),J90&"＋連結バー"&N90&" 2本セット",J90&"+連結バー"&N90&" セット"))) ->  | R105: =IF(OR(F86="×",F86="",F86="△"),"",IF(OR(R90="",V90=""),"",IF(OR(R90="ダブル",R90="ショートダブル"),R90&"＋連結バー"&V90&" 2本セット",R90&"+連結バー"&V90&" セット"))) ->  | Z105: =IF(OR(F86="×",F86="",F86="△"),"",IF(Z90="","",Z90&" ※単体")) ->  | AR105: 上寄Y | AS105: =AU105-(AU106+AS102) ->  | AT105: ｱｲｳ 総ﾍﾞ距離 | AU105: =AW103+AX103+AY103+AZ92+AZ94 ->  | AV105: 最小底辺 | AW105: =(AW101+AW90+AW92)-(7.99*2) ->  | AX105: =(AX101+AW92+AW94)-(7.99*2) ->  | AY105: =(AY101+AW94+AW96)-(7.99*2) ->  | BA105: =IF(OR(BA104="×",BA101="E",BA106="×"),"※設置不可","設置可能") ->  | BB105: =IF(OR(BB104="×",BB101="E",BB106="×"),"※設置不可","設置可能") ->  | BF105: =IFERROR(INDEX($BA$104:$BE$104, MATCH(N90,$BA$102:$BE$102,0)),"×") -> × | BG105: ③F幅 | BH105: =IFERROR((((BH102+1)*$D$102)-(BH104+56))/2,"") ->  | BI105: =IFERROR((((BI102+1)*$D$102)-(BI104+56))/2,"") ->  | BL105: =IFERROR((((BL102+1)*$D$102)-(BL104+56))/2,"") ->  | BN105: ウェーブ | BO105: =IFERROR(ROUNDDOWN(($D$100-BL102)/2,0),"") ->  | BQ105: =IFERROR(((BO105-1)*$D$102)+$BL$107,"E") -> E | BR105: =IFERROR(((DO$98^2-$BP105^2)^0.5)+(7.99*2)-($AW$90+$AW$92),"E") -> E | BS105: E | BT105: =IFERROR(((DP$98^2-$BP105^2)^0.5)+(7.99*2)-($AW$90+$AW$92),"E") -> E | BU105: E | BV105: =IFERROR(((DQ$98^2-$BP105^2)^0.5)+(7.99*2)-($AW$90+$AW$92),"E") -> E | BW105: E | BX105: =IFERROR(((DR$98^2-$BP105^2)^0.5)+(7.99*2)-($AW$90+$AW$92),"E") -> E | BY105: =IFERROR(IF(BX105<=$BQ105,"E",IF(BP105>=50,"E","")),"E") -> E | BZ105: =IFERROR(((DS$98^2-$BP105^2)^0.5)+(7.99*2)-($AW$90+$AW$92),"E") -> E | CA105: E | CB105: =$D$100-(BL102+BO105) ->  | CD105: =IFERROR(((CB105-1)*$D$102)+$BL$105,"E") -> E | CE105: =IFERROR(((DO$98^2-$CC105^2)^0.5)+(7.99*2)-($AW$94+$AW$96),"E") -> E | CF105: E | CG105: =IFERROR(((DP$98^2-$CC105^2)^0.5)+(7.99*2)-($AW$94+$AW$96),"E") -> E | CH105: E | CI105: =IFERROR(((DQ$98^2-$CC105^2)^0.5)+(7.99*2)-($AW$94+$AW$96),"E") -> E | CJ105: E | CK105: =IFERROR(((DR$98^2-$CC105^2)^0.5)+(7.99*2)-($AW$94+$AW$96),"E") -> E | CL105: E | CM105: =IFERROR(((DS$98^2-$CC105^2)^0.5)+(7.99*2)-($AW$94+$AW$96),"E") -> E | CN105: =IFERROR(IF(CM105<=$CD105,"E",IF(CC105<=47,"E",IF(CC105>=72,"E",""))),"E") -> E | CX105: =IF(CX104="×","",DO98) ->  | CZ105: =IF(CZ104="×","",DP98) ->  | DB105: =IF(DB104="×","",DQ98) ->  | DD105: =IF(DD104="×","",DR98) ->  | DF105: =IF(DF104="×","",DS98) -> 
B106: =IFERROR(IF(OR(F86="×",F86="",F86="△"),"",INDEX(TAISﾘｽﾄ!$B$3:$L$19,MATCH(B90,TAISﾘｽﾄ!$A$3:$A$19,0),MATCH(F90,TAISﾘｽﾄ!$B$2:$L$2,0))),"") ->  | J106: =IFERROR(IF(OR(F86="×",F86="",F86="△"),"",INDEX(TAISﾘｽﾄ!$B$3:$L$19,MATCH(J90,TAISﾘｽﾄ!$A$3:$A$19,0),MATCH(N90,TAISﾘｽﾄ!$B$2:$L$2,0))),"") ->  | R106: =IFERROR(IF(OR(F86="×",F86="",F86="△"),"",INDEX(TAISﾘｽﾄ!$B$3:$L$19,MATCH(R90,TAISﾘｽﾄ!$A$3:$A$19,0),MATCH(V90,TAISﾘｽﾄ!$B$2:$L$2,0))),"") ->  | Z106: =IFERROR(IF(OR(F86="×",F86="",F86="△"),"",INDEX(TAISﾘｽﾄ!B3:B19,MATCH(Z90,TAISﾘｽﾄ!A3:A19,0))),"") ->  | AR106: 下寄Y | AS106: =AY103-(AU104+AT98) ->  | AT106: ｱｲｳ 総踏面 | AU106: =(D100-1)*D102 -> 0 | AV106: 段 数 | AW106: =IF(ROUNDDOWN(($F$23-AX106)/2,0)<=0,"×",ROUNDDOWN(($F$23-AX106)/2,0)) ->  | AX106: =IFERROR(LEFT(BF105,1)+1,"") ->  | AY106: =IFERROR(F23-AX106-AW106,"") ->  | BA106: =IF(BA104="×","×",IF(ROUNDDOWN(($F$23-(BA104+1))/2,0)<=0,"×","○")) ->  | BB106: =IF(BB104="×","×",IF(ROUNDDOWN(($F$23-(BB104+1))/2,0)<=0,"×","○")) ->  | BC106: =IF(BC104="×","×",IF(ROUNDDOWN(($F$23-(BC104+1))/2,0)<=0,"×","○")) ->  | BD106: =IF(BD104="×","×",IF(ROUNDDOWN(($F$23-(BD104+1))/2,0)<=0,"×","○")) ->  | BE106: =IF(BE104="×","×",IF(ROUNDDOWN(($F$23-(BE104+1))/2,0)<=0,"×","○")) ->  | BG106: ⑪F幅 | BH106: =$D$102-28-BH105 ->  | BI106: =$D$102-28-BI105 ->  | BJ106: =$D$102-28-BJ105 ->  | BL106: =$D$102-28-BL105 ->  | BP106: 可能な連結① | BS106: =IF(COUNTIFS(BS101:BS105,"")>0,"600","×") -> × | BU106: =IF(COUNTIFS(BU101:BU105,"")>0,"1200","×") -> × | BW106: =IF(COUNTIFS(BW101:BW105,"")>0,"ウェーブS","×") -> × | BY106: =IF(COUNTIFS(BY101:BY105,"")>0,"900","×") -> × | CA106: =IF(COUNTIFS(CA101:CA105,"")>0,"ウェーブ","×") -> × | CC106: 可能な連結① | CF106: =IF(COUNTIFS(CF101:CF105,"")>0,"600","×") -> × | CH106: =IF(COUNTIFS(CH101:CH105,"")>0,"1200","×") -> × | CJ106: =IF(COUNTIFS(CJ101:CJ105,"")>0,"ウェーブS","×") -> × | CL106: =IF(COUNTIFS(CL101:CL105,"")>0,"900","×") -> × | CN106: =IF(COUNTIFS(CN101:CN105,"")>0,"ウェーブ","×") -> ×
BG107: F | BH107: =MIN(BH105:BH106) ->  | BI107: =IFERROR(MIN(BI105:BI106),"") ->  | BJ107: =IFERROR(MIN(BJ105:BJ106),"") ->  | BK107: =IFERROR(MIN(BK105:BK106),"") ->  | BL107: =IFERROR(MIN(BL105:BL106),"") ->  | CD107: D連結③シミュレーション | CJ107: 連結② | CL107: 600 | CO107: の場合 | CQ107: 連結② | CS107: 1200 | CV107: の場合 | CX107: 連結② | CZ107: ウェーブS | DC107: の場合 | DE107: 連結② | DG107: 900 | DJ107: の場合 | DL107: 連結② | DN107: ウェーブ | DQ107: の場合
BC111: 斜辺 | BD111: 48.5 | BE111: 78.5 | BF111: 95.904 | BG111: 108.5 | BH111: 123.084
F112: =IF(OR(F23="",F26="",F29=""),"",IF(AND(D113="×",E113="〇"),"△",IF(AND(C113="×",E113="〇"),"△",IF(OR(P119="△",X119="△"),"△",IF(COUNTIFS(AL113:AP118,"*×*")>0,"×","〇"))))) ->  | AV112: 【中継ショート３台】必要数値 | BD112: ☆600 | BE112: ☆900 | BF112: ☆ウェーブS | BG112: ☆1200 | BH112: ☆ウェーブ | CL112: 600 | CM112: 1200 | CN112: ウェーブS | CO112: 900 | CP112: ウェーブ | CS112: 600 | CT112: 1200 | CU112: ウェーブS | CV112: 900 | CW112: ウェーブ | CZ112: 600 | DA112: 1200 | DB112: ウェーブS | DC112: 900 | DD112: ウェーブ | DG112: 600 | DH112: 1200 | DI112: ウェーブS | DJ112: 900 | DK112: ウェーブ | DN112: 600 | DO112: 1200 | DP112: ウェーブS | DQ112: 900 | DR112: ウェーブ
B113: =IF(OR($F$23="",$F$26="",$F$29=""),"","〇") ->  | C113: =IF(OR(AH119="×",B119="×"),"×","〇") -> 〇 | D113: =IF(OR(N119="×",V119="×",F119="×",AD119="×"),"×","〇") -> 〇 | E113: =IF(AND(O119="〇",W119="〇",G119="〇",AE119="〇"),"〇","×") -> 〇 | F113: =IF(F112="△","※一部製品を変更すると設置可能です。対象品は緑で表示されております。","") ->  | AL113: =IF(N116="","",IF(O119="〇","〇",IF(F118="ナシ","×","〇"))) ->  | AM113: =IF(N118="ナシ","×","〇") -> 〇 | AN113: =IF(O119="〇","〇",IF(V118="ナシ","×","〇")) -> 〇 | AO113: =IF(OR(N116="",V116=""),"",IF(O119="〇","〇",IF(AD118="ナシ","×","〇"))) ->  | AW113: ⑤ | AX113: ① | AY113: 取付け支柱間距離 | AZ113: ベースサイズ | BA113: 連結バー角度 | BC113: 段差 | BD113: 30 | BE113: 50 | BF113: 35~55 | BG113: 70 | BH113: 47~72 | BV113: エ)段数 | BW113: =BQ131 ->  | CJ113: ウ)段数 | CL113: =$AS$122-$BQ$131 ->  | CM113: =$AS$122-$BQ$131 ->  | CQ113: ウ)段数 | CS113: =CL113 ->  | CT113: =CM113 ->  | CX113: ウ)段数 | CZ113: =CS113 ->  | DE113: ウ)段数 | DG113: =CZ113 ->  | DK113: =DD113 ->  | DL113: ウ)段数 | DN113: =DG113 -> 
B114: 【組み合わせシミュレーション】 | AL114: =IF(B117="","〇",IF(OR(B117="手すりを選択",B117="製品を変更"),"△","×")) -> 〇 | AM114: =IF(J117="","〇",IF(J117="手すりを選択","△","×")) -> 〇 | AN114: =IF(R117="","〇",IF(R117="手すりを選択","△","×")) -> 〇 | AO114: =IF(Z117="","〇",IF(Z117="手すりを選択","△","×")) -> 〇 | AP114: =IF(AH117="","〇",IF(AH117="手すりを選択","△","×")) -> 〇 | AR114: シングル | AS114: =IF(AU121="△","",IF(OR(B116=AR114,B116=AR116,B116=AR117),AR114,"")) -> シングル | AT114: =IF($AS$121="△","",AR114) -> シングル | AU114: 上段 | AV114: リ① | AW114: =IF(ISBLANK(B116),"△",VLOOKUP(B116,固定数値!E:F,2,0)) -> 10 | AX114: ― | AY114: ― | AZ114: =IF(ISBLANK(B116),"△",VLOOKUP(B116,固定数値!G:H,2,0)) -> 49.5 | BA114: ― | BC114: 連結１ | BD114: =IFERROR(IF(BD115<=$AW$128,"",IF($F$121<=BD113,BD112,"")),"") ->  | BE114: =IFERROR(IF(BE115<=$AW$128,"",IF($F$121<=BE113,BE112,"")),"") ->  | BF114: =IFERROR(IF(BF115<=$AW$128,"",IF($F$121>=55,"",IF($F$121>=35,BF112,""))),"") ->  | BG114: =IFERROR(IF(BG115<=$AW$128,"",IF($F$121<=BG113,BG112,"")),"") ->  | BH114: =IFERROR(IF(BH115<=$AW$128,"",IF($F$121>=72,"",IF($F$121>=47,BH112,""))),"") ->  | BI114: 連結① | BJ114: =IF(BD114="","","600") ->  | BK114: =IF(BE114="","","900") ->  | BL114: =IF(BG114="","","1200") ->  | BM114: =IF(BF114="","","ウェーブS") ->  | BN114: =IF(BH114="","","ウェーブ") ->  | BV114: エ)段差 | BW114: =D127*BW113 ->  | CJ114: ウ)段差 | CL114: =IFERROR(IF(CL113*$D$127<=30,CL113*$D$127,"×"),"E") -> E | CM114: =IFERROR(IF(CM113*$D$127<=70,CM113*$D$127,"×"),"E") -> E | CN114: =IFERROR(IF(CN113*$D$127>=55,"×",IF(CN113*$D$127>=35,CN113*$D$127,"×")),"E") -> E | CO114: =IFERROR(IF(CO113*$D$127<=50,CO113*$D$127,"×"),"E") -> E | CP114: =IFERROR(IF(CP113*$D$127>=72,"×",IF(CP113*$D$127>=47,CP113*$D$127,"×")),"E") -> E | CQ114: ウ)段差 | CS114: E | CT114: E | CU114: E | CV114: E | CW114: E | CX114: ウ)段差 | CZ114: E | DA114: E | DB114: E | DC114: E | DD114: E | DE114: ウ)段差 | DG114: E | DH114: E | DI114: E | DJ114: E | DK114: E | DL114: ウ)段差 | DN114: E | DO114: E | DP114: E | DQ114: E | DR114: E
B115: 上段 | F115: 連結① | J115: =IFERROR(IF(B113="","",IF(COUNTIFS(AL115:AO116,"×")>0,"×",$F$23-AW126)),"―") ->  | N115: 連結② | R115: =IFERROR(IF(B113="","",IF(COUNTIFS(AL115:AO116,"×")>0,"×",IF($F$23-AX133-AW126<=0,"×",$F$23-AX133-AW126))),"―") ->  | V115: 連結③ | Z115: =IFERROR(IF(B113="","",IF(COUNTIFS(AL115:AO116,"×")>0,"×",IF(($F$23-AX133-AW126-AY133)<=0,"×",$F$23-AX133-AW126-AY133))),"―") ->  | AD115: 連結④ | AH115: 下段 | AL115: =IF($F$23="","×",IF($F$23<=3,"×","〇")) -> × | AM115: =IF($F$26="","×",IF(OR(F26<1,F26>30),"×","〇")) -> × | AN115: =IF($F$29="","×",IF(OR(F29<28,F29>50),"×",IF(F29=0,"×","〇"))) -> × | AP115: =IFERROR(IF(CR146<CH148,"×","〇"),"E") -> E | AR115: ダブル | AS115: =IF(AU121="△","",IF(OR(B116=AR115,B116=AR118),AR115,"")) ->  | AT115: =IF($AS$121="△","",AR115) -> ダブル | AV115: 連① | AW115: ― | AX115: =IF(ISBLANK(F116),"△",IF(F116="600","48.5",IF(F116="900","78.5",IF(F116="1200","108.5",IF(F116="ウェーブS","95.904",IF(F116="ウェーブ","123.084","")))))) -> △ | AY115: =IF(F116="","△",((AX115^2-$F121^2)^0.5)+(7.99*2)) -> △ | AZ115: ― | BA115: =IF(F116="","△",ASIN(F121/AX115)) -> △ | BC115: ｱ)ﾍﾞｰｽ間距離 | BD115: =IFERROR(IF(OR($AW$114="△",$AW$116="△"),((BD111^2-$F$121^2)^0.5)+(7.99*2)-(10+7.5),((BD111^2-$F$121^2)^0.5)+(7.99*2)-($AW$114+$AW$116)),"E") -> E | BE115: =IFERROR(IF(OR($AW$114="△",$AW$116="△"),((BE111^2-$F$121^2)^0.5)+(7.99*2)-(10+7.5),((BE111^2-$F$121^2)^0.5)+(7.99*2)-($AW$114+$AW$116)),"E") -> E | BF115: =IFERROR(IF(OR($AW$114="△",$AW$116="△"),((BF111^2-$F$121^2)^0.5)+(7.99*2)-(10+7.5),((BF111^2-$F$121^2)^0.5)+(7.99*2)-($AW$114+$AW$116)),"E") -> E | BG115: =IFERROR(IF(OR($AW$114="△",$AW$116="△"),((BG111^2-$F$121^2)^0.5)+(7.99*2)-(10+7.5),((BG111^2-$F$121^2)^0.5)+(7.99*2)-($AW$114+$AW$116)),"E") -> E | BH115: =IFERROR(IF(OR($AW$114="△",$AW$116="△"),((BH111^2-$F$121^2)^0.5)+(7.99*2)-(10+7.5),((BH111^2-$F$121^2)^0.5)+(7.99*2)-($AW$114+$AW$116)),"E") -> E | BI115: 連結② | BJ115: =IFERROR(IF(BI123="※設置不可","","600"),"") ->  | BK115: =IFERROR(IF(BL123="※設置不可","","900"),"") ->  | BL115: =IFERROR(IF(BJ123="※設置不可","","1200"),"") ->  | BM115: =IFERROR(IF(BK123="※設置不可","","ウェーブS"),"") ->  | BN115: =IFERROR(IF(BM123="※設置不可","","ウェーブ"),"") ->  | BO115: =IF(BJ115="","","☆"&BJ115) ->  | BP115: =IF(BK115="","","☆"&BK115) ->  | BQ115: =IF(BL115="","","☆"&BL115) ->  | BS115: =IF(BN115="","","☆"&BN115) ->  | BV115: ウェ判定 | BW115: =IF(BW114<47,"×",IF(BW114>72,"×","〇")) ->  | CD115: 48.5 | CE115: 108.5 | CF115: 95.904 | CG115: 78.5 | CH115: 123.084 | CJ115: ウ)ベ距離 | CL115: =IFERROR(IF(CL116-(7.5+7.5)>=$BQ$128,"×",CL116-(7.5+7.5)),"E") -> E | CM115: =IFERROR(IF(CM116-(7.5+7.5)>=$BQ$128,"×",CM116-(7.5+7.5)),"E") -> E | CN115: =IFERROR(IF(CN116-(7.5+7.5)>=$BQ$128,"×",CN116-(7.5+7.5)),"E") -> E | CO115: =IFERROR(IF(CO116-(7.5+7.5)>=$BQ$128,"×",CO116-(7.5+7.5)),"E") -> E | CP115: =IFERROR(IF(CP116-(7.5+7.5)>=$BQ$128,"×",CP116-(7.5+7.5)),"E") -> E | CQ115: ウ)ベ距離 | CS115: =CL115 -> E | CT115: =CM115 -> E | CU115: =CN115 -> E | CV115: E | CW115: E | CX115: ウ)ベ距離 | CZ115: =CS115 -> E | DA115: =CT115 -> E | DB115: =CU115 -> E | DC115: =CV115 -> E | DD115: =CW115 -> E | DE115: ウ)ベ距離 | DG115: =CZ115 -> E | DH115: =DA115 -> E | DI115: =DB115 -> E | DJ115: =DC115 -> E | DK115: =DD115 -> E | DL115: ウ)ベ距離 | DN115: =DG115 -> E | DO115: =DH115 -> E | DP115: =DI115 -> E | DQ115: =DJ115 -> E | DR115: =DK115 -> E
B116: シングル | J116: =IF(OR(B116="ダブル",B116="ショートダブル"),"ショートダブル","ショート") -> ショート | R116: =IF(OR(B116="ダブル",B116="ショートダブル"),"ショートダブル","ショート") -> ショート | Z116: =IF(OR(B116="ダブル",B116="ショートダブル"),"ショートダブル","ショート") -> ショート | AH116: シングル | AM116: =IF(COUNTIFS(BD125:BG125,"*×*")>0,"×","〇") -> 〇 | AN116: =IFERROR(IF(AW129="△","△",""),"E") -> △ | AO116: =IFERROR(IF(AZ129="△","△",""),"E") -> △ | AP116: =IF(OR(BX117="〇",BX118="〇"),"〇","×") ->  | AR116: ロング | AS116: =IF(AU121="△","",IF(OR(B116=AR114,B116=AR116,B116=AR117),AR116,"")) -> ロング | AT116: =IF($AS$121="△","",AR116) -> ロング | AU116: =D126-(AS123-AX133) ->  | AV116: リ② | AW116: 7.5 | AX116: ― | AY116: ― | AZ116: =IF(ISBLANK(J116),"△",VLOOKUP(J116,固定数値!G:H,2,0)) -> 28 | BA116: ― | BC116: 連結4 | BD116: =IFERROR(IF(BD117<=$AZ$128,"",IF($O$121<=BD113,BD112,"")),"") ->  | BE116: =IFERROR(IF(BE117<=$AZ$128,"",IF($O$121<=BE113,BE112,"")),"") ->  | BF116: =IFERROR(IF(BF117<=$AZ$128,"",IF($O$121>=55,"",IF($O$121>=35,BF112,""))),"") ->  | BG116: =IFERROR(IF(BG117<=$AZ$128,"",IF($O$121<=BG113,BG112,"")),"") ->  | BH116: =IFERROR(IF(BH117<=$AZ$128,"",IF($O$121>=72,"",IF($O$121>=47,BH112,""))),"") ->  | BI116: 連結③ | BJ116: =IF(BU131="","","600") ->  | BK116: =IF(BV131="","","900") ->  | BL116: =IF(BW131="","","1200") ->  | BM116: =IF(BX131="","","ウェーブS") ->  | BN116: =IF(BY131="","","ウェーブ") ->  | BO116: =IF(BJ116="","","☆"&BJ116) ->  | BR116: =IF(BM116="","","☆"&BM116) ->  | BV116: 最小ベ距離 | BW116: =((D128-28)/2)+(BW113-1)*D128 ->  | CB116: 連結②シミュ | CD116: 600 | CE116: 1200 | CF116: ウェーブS | CG116: 900 | CH116: ウェーブ | CJ116: ウ)支柱間 | CL116: =IFERROR(((BI121^2-CL$114^2)^0.5)+(7.99*2),"E") -> E | CM116: =IFERROR(((BJ121^2-CM$114^2)^0.5)+(7.99*2),"E") -> E | CN116: =IFERROR(((BK121^2-CN$114^2)^0.5)+(7.99*2),"E") -> E | CO116: =IFERROR(((BL121^2-CO$114^2)^0.5)+(7.99*2),"E") -> E | CP116: =IFERROR(((BM121^2-CP$114^2)^0.5)+(7.99*2),"E") -> E | CQ116: ウ)支柱間 | CS116: =CL116 -> E | CT116: =CM116 -> E | CU116: =CN116 -> E | CV116: =CO116 -> E | CW116: =CP116 -> E | CX116: ウ)支柱間 | CZ116: =CS116 -> E | DA116: =CT116 -> E | DB116: =CU116 -> E | DC116: =CV116 -> E | DD116: =CW116 -> E | DE116: ウ)支柱間 | DG116: =CZ116 -> E | DH116: =DA116 -> E | DI116: =DB116 -> E | DJ116: =DC116 -> E | DK116: =DD116 -> E | DL116: ウ)支柱間 | DN116: =DG116 -> E | DO116: =DH116 -> E | DP116: =DI116 -> E | DQ116: =DJ116 -> E | DR116: =DK116 -> E
B117: =IF(B116="","手すりを選択",IF(AS121="△","製品を変更","")) ->  | F117: =IF(OR(N116="",V116=""),"",IF(F116="","連結①を選択",IF(AND(D113="×",E113="〇",F119="×",G119="〇"),"製品を変更",""))) ->  | N117: =IF(B113="","",IF(AND(N116="",N119="〇"),"連結②を選択",IF(AND(N119="×",O119="〇"),"製品を変更",""))) ->  | V117: =IF(N116="","",IF(V116="","連結③を選択",IF(AND(D113="×",E113="〇",V119="×",W119="〇"),"製品を変更",""))) ->  | AD117: =IF(OR(V116="",N116=""),"",IF(AD116="","連結④を選択",IF(AND(D113="×",E113="〇",AD119="×",AE119="〇"),"製品を変更",""))) ->  | AH117: =IF(B116="","",IF(AH116="","手すりを選択",IF(AU121="△","製品を変更",IF(AND(B116="ダブル",BW125=""),"両手すりに変更",IF(AND(BP125="S",AH116="ショートダブル"),"片手すり(大ベース)に変更",IF(AND(BS125="",BW125="D"),"片手すりに変更",IF(AND(BP125="S",BQ125="S"),"大ベース製品に変更",IF(AND(B116="ショートダブル",BW125=""),"ダブルに変更","")))))))) ->  | AL117: =IF(AZ114="△","△",IF(Y120="×","×",IF(AZ114<=Y120,"〇","×"))) -> 〇 | AM117: =IF(AZ122="△","△",IF(AND(C113="×",E113="〇"),"△",IF(AK120="×","×",IF(AZ122<=AK120,"〇","×")))) -> 〇 | AN117: =IF(COUNTIFS(BD126:BG126,"*×*")>0,"×","〇") -> 〇 | AO117: =IFERROR(IF(AZ128<=AZ129,"〇","×"),"E") -> 〇 | AP117: =IFERROR(IF(AW128<=AW129,"〇","×"),"E") -> 〇 | AR117: ショート | AS117: =IF(OR(B116=AR114,B116=AR116),AR117,"") -> ショート | AT117: =AR117 -> ショート | AV117: 連② | AW117: ― | AX117: =IF(ISBLANK(N116),"△",IF(N116="600","48.5",IF(N116="900","78.5",IF(N116="1200","108.5",IF(N116="ウェーブS","95.904",IF(N116="ウェーブ","123.084","")))))) -> △ | AY117: =IF(I121="","△",((AX117^2-$I121^2)^0.5)+(7.99*2)) -> △ | AZ117: ― | BA117: =IF(I121="","△",ASIN(I121/AX117)) -> △ | BC117: ｳ)ﾍﾞｰｽ間距離 | BD117: =IFERROR(IF(OR($AW$120="△",$AW$122="△"),((BD111^2-$O$121^2)^0.5)+(7.99*2)-(10+7.5),((BD111^2-$O$121^2)^0.5)+(7.99*2)-($AW$120+$AW$122)),"E") -> E | BE117: =IFERROR(IF(OR($AW$120="△",$AW$122="△"),((BE111^2-$O$121^2)^0.5)+(7.99*2)-(10+7.5),((BE111^2-$O$121^2)^0.5)+(7.99*2)-($AW$120+$AW$122)),"E") -> E | BF117: =IFERROR(IF(OR($AW$120="△",$AW$122="△"),((BF111^2-$O$121^2)^0.5)+(7.99*2)-(10+7.5),((BF111^2-$O$121^2)^0.5)+(7.99*2)-($AW$120+$AW$122)),"E") -> E | BG117: =IFERROR(IF(OR($AW$120="△",$AW$122="△"),((BG111^2-$O$121^2)^0.5)+(7.99*2)-(10+7.5),((BG111^2-$O$121^2)^0.5)+(7.99*2)-($AW$120+$AW$122)),"E") -> E | BH117: =IFERROR(IF(OR($AW$120="△",$AW$122="△"),((BH111^2-$O$121^2)^0.5)+(7.99*2)-(10+7.5),((BH111^2-$O$121^2)^0.5)+(7.99*2)-($AW$120+$AW$122)),"E") -> E | BI117: 連結④ | BJ117: =IF(BD116="","","600") ->  | BK117: =IF(BE116="","","900") ->  | BL117: =IF(BG116="","","1200") ->  | BM117: =IF(BF116="","","ウェーブS") ->  | BN117: =IF(BH116="","","ウェーブ") ->  | BV117: 1200ベ距離 | BW117: =(((108.5^2-$BW$114^2)^0.5)+(7.99*2))-(10+7.5) ->  | BX117: =IF(BW117-BW116>0,"〇","×") ->  | CB117: イ)ベ距離 | CD117: =IFERROR(CD121-(7.5+7.5),"E") -> E | CE117: =IFERROR(CE121-(7.5+7.5),"E") -> E | CF117: E | CG117: E | CH117: E | CJ117: 連結③シミュ | CL117: =IFERROR(IF(CL127="×","",IF(CL115<CD126,"",IF(CL115>CD127,"","〇"))),"") ->  | CM117: =IFERROR(IF(CM127="×","",IF(CM115<CD126,"",IF(CM115>CD127,"","〇"))),"") ->  | CN117: =IFERROR(IF(CN127="×","",IF(CN115<CD126,"",IF(CN115>CD127,"","〇"))),"") ->  | CO117: =IFERROR(IF(CO127="×","",IF(CO115<CD126,"",IF(CO115>CD127,"","〇"))),"") ->  | CP117: =IFERROR(IF(CP127="×","",IF(CP115<CD126,"",IF(CP115>CD127,"","〇"))),"") ->  | CQ117: 連結③シミュ | CS117: =IFERROR(IF(CS127="×","",IF(CS115<$CE$126,"",IF(CS115>$CE$127,"","〇"))),"") ->  | CT117: =IFERROR(IF(CT127="×","",IF(CT115<$CE$126,"",IF(CT115>$CE$127,"","〇"))),"") ->  | CU117: =IFERROR(IF(CU127="×","",IF(CU115<$CE$126,"",IF(CU115>$CE$127,"","〇"))),"") ->  | CV117: =IFERROR(IF(CV127="×","",IF(CV115<$CE$126,"",IF(CV115>$CE$127,"","〇"))),"") ->  | CW117: =IFERROR(IF(CW127="×","",IF(CW115<$CE$126,"",IF(CW115>$CE$127,"","〇"))),"") ->  | CX117: 連結③シミュ | CZ117: =IFERROR(IF(CZ127="×","",IF(CZ115<$CF$126,"",IF(CZ115>$CF$127,"","〇"))),"") ->  | DA117: =IFERROR(IF(DA127="×","",IF(DA115<$CF$126,"",IF(DA115>$CF$127,"","〇"))),"") ->  | DB117: =IFERROR(IF(DB127="×","",IF(DB115<$CF$126,"",IF(DB115>$CF$127,"","〇"))),"") ->  | DC117: =IFERROR(IF(DC127="×","",IF(DC115<$CF$126,"",IF(DC115>$CF$127,"","〇"))),"") ->  | DD117: =IFERROR(IF(DD127="×","",IF(DD115<$CF$126,"",IF(DD115>$CF$127,"","〇"))),"") ->  | DE117: 連結③シミュ | DG117: =IFERROR(IF(DG127="×","",IF(DG115<$CG$126,"",IF(DG115>$CG$127,"","〇"))),"") ->  | DH117: =IFERROR(IF(DH127="×","",IF(DH115<$CG$126,"",IF(DH115>$CG$127,"","〇"))),"") ->  | DI117: =IFERROR(IF(DI127="×","",IF(DI115<$CG$126,"",IF(DI115>$CG$127,"","〇"))),"") ->  | DJ117: =IFERROR(IF(DJ127="×","",IF(DJ115<$CG$126,"",IF(DJ115>$CG$127,"","〇"))),"") ->  | DK117: =IFERROR(IF(DK127="×","",IF(DK115<$CG$126,"",IF(DK115>$CG$127,"","〇"))),"") ->  | DL117: 連結③シミュ | DN117: =IFERROR(IF(DN127="×","",IF(DN115<$CH$126,"",IF(DN115>$CH$127,"","〇"))),"") ->  | DO117: =IFERROR(IF(DO127="×","",IF(DO115<$CH$126,"",IF(DO115>$CH$127,"","〇"))),"") ->  | DP117: =IFERROR(IF(DP127="×","",IF(DP115<$CH$126,"",IF(DP115>$CH$127,"","〇"))),"") ->  | DQ117: =IFERROR(IF(DQ127="×","",IF(DQ115<$CH$126,"",IF(DQ115>$CH$127,"","〇"))),"") ->  | DR117: =IFERROR(IF(DR127="×","",IF(DR115<$CH$126,"",IF(DR115>$CH$127,"","〇"))),"") -> 
F118: =IF(AND(N119="〇",V116=""),"",IF(AND(BD114="",BE114="",BF114="",BG114="",BH114=""),"ナシ",IF(COUNTIFS(AL115:AO116,"×")>0,"ナシ",BD114&BE114&BG114&BF114&BH114))) ->  | N118: =IF(B113="","",IF(AND(BO115="",BP115="",BQ115="",BR115="",BS115=""),"ナシ",IF(COUNTIFS(AL115:AO116,"×")>0,"ナシ",BO115&BP115&BQ115&BR115&BS115))) ->  | V118: =IF(AND(N119="〇",N116=""),"",IF(AND(BO116="",BP116="",BQ116="",BR116="",BS116=""),"ナシ",IF(COUNTIFS(AL115:AO116,"×")>0,"ナシ",BO116&BP116&BQ116&BR116&BS116))) ->  | AD118: =IF(AND(V119="〇",V116=""),"",IF(AND(BD116="",BE116="",BF116="",BG116="",BH116=""),"ナシ",IF(COUNTIFS(AL115:AO116,"×")>0,"ナシ",BD116&BE116&BG116&BF116&BH116))) ->  | AM118: =IF(COUNTIFS(AW133:AZ133,"*×*")>0,"×","〇") -> 〇 | AR118: ショートダブル | AS118: =IF(B116=AR115,AR118,"") ->  | AT118: =AR118 -> ショートダブル | AU118: =IF((D126-1)/3<=0,"×",ROUNDDOWN(D126/2,0)) -> × | AV118: リ③ | AW118: 7.5 | AX118: ― | AY118: ― | AZ118: =IF(ISBLANK(R116),"△",VLOOKUP(R116,固定数値!G:H,2,0)) -> 28 | BA118: ― | BI118: =IFERROR(IF(OR(CX99="",CZ99="",DB99="",DD99="",DF99=""),"","E"),"E") -> E | BJ118: =IFERROR(IF(OR(CX100="",CZ100="",DB100="",DD100="",DF100=""),"","E"),"E") -> E | BK118: =IFERROR(IF(OR(CX101="",CZ101="",DB101="",DD101="",DF101=""),"","E"),"E") -> E | BL118: =IFERROR(IF(OR(CX102="",CZ102="",DB102="",DD102="",DF102=""),"","E"),"E") -> E | BM118: =IFERROR(IF(OR(CX103="",CZ103="",DB103="",DD103="",DF103=""),"","E"),"E") -> E | BP118: 600 | BQ118: 1200 | BR118: ウェーブS | BS118: 900 | BT118: ウェーブ | BV118: ウェベ距離 | BW118: =(((123.1^2-$BW$114^2)^0.5)+(7.99*2))-(10+7.5) ->  | BX118: =IF(BW115="×","×",IF(BW118-BW116>0,"〇","×")) ->  | BY118: 最小F値 | CA118: =MIN(CD118:CH118) -> 0 | CB118: イ)F位置 | CD118: =IFERROR(IF(CD122/2<0,"E",CD122/2),"E") -> E | CE118: =IFERROR(IF(CE122/2<0,"E",CE122/2),"E") -> E | CF118: =IFERROR(IF(CF122/2<0,"E",CF122/2),"E") -> E | CG118: E | CH118: E | CK118: ③ | CL118: =CD128 -> E | CM118: =CE128 -> E | CN118: E | CO118: E | CP118: E | CR118: ③ | CS118: =CL118 -> E | CT118: =CM118 -> E | CU118: E | CV118: E | CW118: E | CY118: ③ | CZ118: =CS118 -> E | DA118: =CT118 -> E | DB118: =CU118 -> E | DC118: =CV118 -> E | DD118: =CW118 -> E | DF118: ③ | DG118: =CZ118 -> E | DH118: =DA118 -> E | DI118: =DB118 -> E | DJ118: =DC118 -> E | DK118: =DD118 -> E | DM118: ③ | DN118: =DG118 -> E | DO118: =DH118 -> E | DP118: =DI118 -> E | DQ118: =DJ118 -> E | DR118: =DK118 -> E
B119: =IF(OR(B117="",B117="手すりを選択"),"〇","×") -> 〇 | F119: =IF(OR(F116="",N116="",V116=""),"〇",IF(COUNTIF(BJ114:BN114,F116)=0,"×","〇")) -> 〇 | G119: =IF(O119="〇","〇",IF(F118="ナシ","×","〇")) -> 〇 | N119: =IF(N116="","〇",IF(COUNTIF(BJ115:BN115,N116)=0,"×","〇")) -> 〇 | O119: =IF(N118="ナシ","×","〇") -> 〇 | P119: =IF(AND(N119="×",O119="〇"),"△","") ->  | V119: =IF(OR(N116="",V116=""),"〇",IF(COUNTIF(BJ116:BN116,V116)=0,"×","〇")) -> 〇 | W119: =IF(V118="ナシ","×","〇") -> 〇 | X119: =IF(AND(V119="×",W119="〇"),"△","") ->  | AD119: =IF(OR(N116="",V116="",AD116=""),"〇",IF(COUNTIF(BJ117:BN117,AD116)=0,"×","〇")) -> 〇 | AE119: =IF(O119="〇","〇",IF(AD118="ナシ","×","〇")) -> 〇 | AH119: =IF(OR(AH117="",AH117="手すりを選択"),"〇","×") -> 〇 | AV119: 連③ | AW119: ― | AX119: =IF(ISBLANK(V116),"△",IF(V116="600","48.5",IF(V116="900","78.5",IF(V116="1200","108.5",IF(V116="ウェーブS","95.904",IF(V116="ウェーブ","123.084","")))))) -> △ | AY119: =IF(L121="","△",((AX119^2-$L121^2)^0.5)+(7.99*2)) -> △ | AZ119: ― | BA119: =IF(L121="","△",ASIN(L121/AX119)) -> △ | BI119: =IF(COUNTIFS(CL117:CP117,"〇")>0,"","E") -> E | BJ119: =IF(COUNTIFS(CS117:CW117,"〇")>0,"","E") -> E | BK119: =IF(COUNTIFS(CZ117:DD117,"〇")>0,"","E") -> E | BL119: =IF(COUNTIFS(DG117:DK117,"〇")>0,"","E") -> E | BM119: =IF(COUNTIFS(DN117:DR117,"〇")>0,"","E") -> E | BO119: ア段数 | BP119: =IFERROR(IF(ROUNDDOWN(($F$23-(BP120+$BQ$130))/2,0)<=0,"×",$AS$123-BP120),"") ->  | BQ119: =IFERROR(IF(ROUNDDOWN(($F$23-(BQ120+$BQ$130))/2,0)<=0,"×",$AS$123-BQ120),"") ->  | BR119: =IFERROR(IF(ROUNDDOWN(($F$23-(BR120+$BQ$130))/2,0)<=0,"×",$AS$123-BR120),"") ->  | BS119: =IFERROR(IF(ROUNDDOWN(($F$23-(BS120+$BQ$130))/2,0)<=0,"×",$AS$123-BS120),"") ->  | BT119: =IFERROR(IF(ROUNDDOWN(($F$23-(BT120+$BQ$130))/2,0)<=0,"×",$AS$123-BT120),"") ->  | CB119: イ)段数 | CD119: =IFERROR(BI122+1,"×") -> × | CE119: =IFERROR(BJ122+1,"×") -> × | CF119: =IFERROR(BK122+1,"×") -> × | CG119: =IFERROR(BL122+1,"×") -> × | CH119: =IFERROR(BM122+1,"×") -> × | CK119: ⑪ | CL119: E | CM119: E | CN119: E | CO119: E | CP119: E | CR119: ⑪ | CS119: =CL119 -> E | CT119: E | CU119: E | CV119: E | CW119: E | CY119: ⑪ | CZ119: =CS119 -> E | DA119: E | DB119: E | DC119: E | DD119: E | DF119: ⑪ | DG119: =CZ119 -> E | DH119: E | DI119: E | DJ119: E | DK119: E | DM119: ⑪ | DN119: =DG119 -> E | DO119: E | DP119: E | DQ119: E | DR119: E
F120: ア | I120: イ | L120: ウ | O120: エ | S120: 上段 必要スペース | Y120: =IFERROR(IF(AS121="×","×",IF(BR126>=0,ROUNDUP(BM132,0),IF(OR(BF129="E",BH129="E"),ROUNDUP(BM132,0),IF(BR126<0,ROUNDUP(BF129,0),ROUNDUP(BM132,0))))),"") ->  | AA120: cm以上 | AE120: 下段 必要スペース | AK120: =IFERROR(IF(BR126>=0,ROUNDUP(BN132,0),IF(OR(BH129="E",BF129="E"),ROUNDUP(BN132,0),IF(BR126<0,ROUNDUP(BH129,0),IF(BN132>=AZ122,ROUNDUP(BN132,0),"×")))),"") ->  | AM120: cm以上 | AR120: 上段必スぺ | AS120: =IF(BR126<0,BF129-AZ114,BM132-AZ114) ->  | AT120: 下段必スぺ | AU120: =IF(BR126<0,BH129-AZ122,BN132-AZ122) ->  | AV120: リ④ | AW120: 7.5 | AX120: ― | AY120: ― | AZ120: =IF(ISBLANK(Z116),"△",VLOOKUP(Z116,固定数値!G:H,2,0)) -> 28 | BA120: ― | BD120: ア | BE120: イ | BF120: ウ | BG120: エ | BI120: 600 | BJ120: 1200 | BK120: ウェーブS | BL120: 900 | BM120: ウェーブ | BO120: イ段数 | BP120: =IFERROR(BI122+1,"") ->  | BQ120: =IFERROR(BJ122+1,"") ->  | BR120: =IFERROR(BK122+1,"") ->  | BS120: =IFERROR(BL122+1,"") ->  | BT120: =IFERROR(BM122+1,"") ->  | CB120: イ)段差 | CD120: =IFERROR(CD119*$D$127,"E") -> E | CE120: =IFERROR(CE119*$D$127,"E") -> E | CF120: =IFERROR(CF119*$D$127,"E") -> E | CG120: =IFERROR(CG119*$D$127,"E") -> E | CH120: =IFERROR(CH119*$D$127,"E") -> E | CK120: ⑫ | CL120: =IFERROR(($CD$117+CL115+28)-(($CD$119+CL113-1)*$D$128),"E") -> E | CM120: =IFERROR(($CD$117+CM115+28)-(($CD$119+CM113-1)*$D$128),"E") -> E | CN120: =IFERROR(($CD$117+CN115+28)-(($CD$119+CN113-1)*$D$128),"E") -> E | CO120: =IFERROR(($CD$117+CO115+28)-(($CD$119+CO113-1)*$D$128),"E") -> E | CP120: =IFERROR(($CD$117+CP115+28)-(($CD$119+CP113-1)*$D$128),"E") -> E | CR120: ⑫ | CS120: =IFERROR(($CE$117+CS115+28)-(($CE$119+CS113-1)*$D$128),"E") -> E | CT120: =IFERROR(($CE$117+CT115+28)-(($CE$119+CT113-1)*$D$128),"E") -> E | CU120: =IFERROR(($CE$117+CU115+28)-(($CE$119+CU113-1)*$D$128),"E") -> E | CV120: =IFERROR(($CE$117+CV115+28)-(($CE$119+CV113-1)*$D$128),"E") -> E | CW120: =IFERROR(($CE$117+CW115+28)-(($CE$119+CW113-1)*$D$128),"E") -> E | CY120: ⑫ | CZ120: =IFERROR(($CF$117+CZ115+28)-(($CF$119+CZ113-1)*$D$128),"E") -> E | DA120: =IFERROR(($CF$117+DA115+28)-(($CF$119+DA113-1)*$D$128),"E") -> E | DB120: =IFERROR(($CF$117+DB115+28)-(($CF$119+DB113-1)*$D$128),"E") -> E | DC120: =IFERROR(($CF$117+DC115+28)-(($CF$119+DC113-1)*$D$128),"E") -> E | DD120: =IFERROR(($CF$117+DD115+28)-(($CF$119+DD113-1)*$D$128),"E") -> E | DF120: ⑫ | DG120: =IFERROR(($CG$117+DG115+28)-(($CG$119+DG113-1)*$D$128),"E") -> E | DH120: =IFERROR(($CG$117+DH115+28)-(($CG$119+DH113-1)*$D$128),"E") -> E | DI120: =IFERROR(($CG$117+DI115+28)-(($CG$119+DI113-1)*$D$128),"E") -> E | DJ120: =IFERROR(($CG$117+DJ115+28)-(($CG$119+DJ113-1)*$D$128),"E") -> E | DK120: =IFERROR(($CG$117+DK115+28)-(($CG$119+DK113-1)*$D$128),"E") -> E | DM120: ⑫ | DN120: =IFERROR(($CH$117+DN115+28)-(($CH$119+DN113-1)*$D$128),"E") -> E | DO120: =IFERROR(($CH$117+DO115+28)-(($CH$119+DO113-1)*$D$128),"E") -> E | DP120: =IFERROR(($CH$117+DP115+28)-(($CH$119+DP113-1)*$D$128),"E") -> E | DQ120: =IFERROR(($CH$117+DQ115+28)-(($CH$119+DQ113-1)*$D$128),"E") -> E | DR120: =IFERROR(($CH$117+DR115+28)-(($CH$119+DR113-1)*$D$128),"E") -> E
B121: 段 差 | F121: =IFERROR((AW126*$F$26),"") ->  | H121: cm | I121: =IFERROR(IF(AV126>0,"",AX133*$F$26),"") ->  | K121: cm | L121: =IFERROR(IF(AV126>0,"",AY133*$F$26),"") ->  | N121: cm | O121: =IFERROR(AZ126*$F$26,"") ->  | Q121: cm | AS121: =IFERROR(IF(AS120<-2.5,"×",IF(AS120>=0,"〇","△")),"") ->  | AU121: =IFERROR(IF(AU120<-2.5,"×",IF(AU120>=0,"〇","△")),"") ->  | AV121: 連④ | AW121: ― | AX121: =IF(ISBLANK(AD116),"△",IF(AD116="600","48.5",IF(AD116="900","78.5",IF(AD116="1200","108.5",IF(AD116="ウェーブS","95.904",IF(AD116="ウェーブ","123.084","")))))) -> △ | AY121: =IF(AD116="","△",((AX121^2-$O121^2)^0.5)+(7.99*2)) -> △ | AZ121: ― | BA121: =IF(AD116="","△",ASIN(O121/AX121)) -> △ | BC121: 角度チェック | BD121: =IF(F123="","△",COUNTIFS(F123,">="&-7.014,F123,"<="&7.014)) -> △ | BE121: =IF(I123="","△",COUNTIFS(I123,">="&-7.014,I123,"<="&7.014)) -> △ | BF121: =IF(L123="","△",COUNTIFS(L123,">="&-7.014,L123,"<="&7.014)) -> △ | BG121: =IF(O123="","△",COUNTIFS(O123,">="&-7.014,O123,"<="&7.014)) -> △ | BI121: 48.5 | BJ121: 108.5 | BK121: 95.9 | BL121: 78.5 | BM121: 123.1 | BO121: 段差 | BP121: =IFERROR(BP119*$D$127,"") ->  | BQ121: =IFERROR(BQ119*$D$127,"") ->  | BR121: =IFERROR(BR119*$D$127,"") ->  | BS121: =IFERROR(BS119*$D$127,"") ->  | BT121: =IFERROR(BT119*$D$127,"") ->  | CB121: イ)支柱間 | CD121: =IFERROR(((BI121^2-CD$120^2)^0.5)+(7.99*2),"E") -> E | CE121: =IFERROR(((BJ121^2-CE$120^2)^0.5)+(7.99*2),"E") -> E | CF121: =IFERROR(((BK121^2-CF$120^2)^0.5)+(7.99*2),"E") -> E | CG121: =IFERROR(((BL121^2-CG$120^2)^0.5)+(7.99*2),"E") -> E | CH121: =IFERROR(((BM121^2-CH$120^2)^0.5)+(7.99*2),"E") -> E | CK121: ⑬ | CL121: =IFERROR((($CD$119+CL113+1)*$D$128)-($CD$117+CL115+28+56),"E") -> E | CM121: =IFERROR((($CD$119+CM113+1)*$D$128)-($CD$117+CM115+28+56),"E") -> E | CN121: =IFERROR((($CD$119+CN113+1)*$D$128)-($CD$117+CN115+28+56),"E") -> E | CO121: =IFERROR((($CD$119+CO113+1)*$D$128)-($CD$117+CO115+28+56),"E") -> E | CP121: =IFERROR((($CD$119+CP113+1)*$D$128)-($CD$117+CP115+28+56),"E") -> E | CR121: ⑬ | CS121: =IFERROR((($CE$119+CS113+1)*$D$128)-($CE$117+CS115+28+56),"E") -> E | CT121: =IFERROR((($CE$119+CT113+1)*$D$128)-($CE$117+CT115+28+56),"E") -> E | CU121: =IFERROR((($CE$119+CU113+1)*$D$128)-($CE$117+CU115+28+56),"E") -> E | CV121: =IFERROR((($CE$119+CV113+1)*$D$128)-($CE$117+CV115+28+56),"E") -> E | CW121: =IFERROR((($CE$119+CW113+1)*$D$128)-($CE$117+CW115+28+56),"E") -> E | CY121: ⑬ | CZ121: =IFERROR((($CF$119+CZ113+1)*$D$128)-($CF$117+CZ115+28+56),"E") -> E | DA121: =IFERROR((($CF$119+DA113+1)*$D$128)-($CF$117+DA115+28+56),"E") -> E | DB121: =IFERROR((($CF$119+DB113+1)*$D$128)-($CF$117+DB115+28+56),"E") -> E | DC121: =IFERROR((($CF$119+DC113+1)*$D$128)-($CF$117+DC115+28+56),"E") -> E | DD121: =IFERROR((($CF$119+DD113+1)*$D$128)-($CF$117+DD115+28+56),"E") -> E | DF121: ⑬ | DG121: =IFERROR((($CG$119+DG113+1)*$D$128)-($CG$117+DG115+28+56),"E") -> E | DH121: =IFERROR((($CG$119+DH113+1)*$D$128)-($CG$117+DH115+28+56),"E") -> E | DI121: =IFERROR((($CG$119+DI113+1)*$D$128)-($CG$117+DI115+28+56),"E") -> E | DJ121: =IFERROR((($CG$119+DJ113+1)*$D$128)-($CG$117+DJ115+28+56),"E") -> E | DK121: =IFERROR((($CG$119+DK113+1)*$D$128)-($CG$117+DK115+28+56),"E") -> E | DM121: ⑬ | DN121: =IFERROR((($CH$119+DN113+1)*$D$128)-($CH$117+DN115+28+56),"E") -> E | DO121: =IFERROR((($CH$119+DO113+1)*$D$128)-($CH$117+DO115+28+56),"E") -> E | DP121: =IFERROR((($CH$119+DP113+1)*$D$128)-($CH$117+DP115+28+56),"E") -> E | DQ121: =IFERROR((($CH$119+DQ113+1)*$D$128)-($CH$117+DQ115+28+56),"E") -> E | DR121: =IFERROR((($CH$119+DR113+1)*$D$128)-($CH$117+DR115+28+56),"E") -> E
B122: 連結バー角度 | F122: =IFERROR(BA115*180/PI(),"") ->  | H122: ° | I122: =IFERROR(BA117*180/PI(),"") ->  | K122: ° | L122: =IFERROR(BA119*180/PI(),"") ->  | N122: ° | O122: =IFERROR(BA121*180/PI(),"") ->  | Q122: ° | V122: =IF(F116="","未選択",F116) -> 未選択 | AR122: 真ん中段数 | AS122: =IF((D126-1)/3<=0,"×",ROUNDDOWN(D126/2,0)) -> × | AT122: 段 | AV122: リ⑤ | AW122: =IF(ISBLANK(AH116),"△",VLOOKUP(AH116,固定数値!E:F,2,0)) -> 10 | AX122: ― | AY122: ― | AZ122: =IF(ISBLANK(AH116),"△",VLOOKUP(AH116,固定数値!G:H,2,0)) -> 49.5 | BA122: ― | BC122: (F)40°以上× | BD122: =IF(F122="","△",IF(F122<=40.2,"〇","×")) -> △ | BE122: =IF(I122="","△",IF(I122<=40.2,"〇","×")) -> △ | BF122: =IF(L122="","△",IF(L122<=40.2,"〇","×")) -> △ | BG122: =IF(O122="","△",IF(O122<=40.2,"〇","×")) -> △ | BI122: =INDEX('S+Sﾁｪｯｸ表'!$D$6:$AG$28, MATCH($F$29,'S+Sﾁｪｯｸ表'!$C$6:$C$28,0), MATCH($F$26,'S+Sﾁｪｯｸ表'!$D$5:$AG$5,0)) ->  | BJ122: =INDEX('S+Sﾁｪｯｸ表'!$D$60:$AG$82, MATCH($F$29,'S+Sﾁｪｯｸ表'!$C$60:$C$82,0), MATCH($F$26,'S+Sﾁｪｯｸ表'!$D$59:$AG$59,0)) ->  | BK122: =INDEX('S+Sﾁｪｯｸ表'!$D$87:$AG$109, MATCH($F$29,'S+Sﾁｪｯｸ表'!$C$87:$C$109,0), MATCH($F$26,'S+Sﾁｪｯｸ表'!$D$86:$AG$86,0)) ->  | BL122: =INDEX('S+Sﾁｪｯｸ表'!$D$33:$AG$55, MATCH($F$29,'S+Sﾁｪｯｸ表'!$C$33:$C$55,0), MATCH($F$26,'S+Sﾁｪｯｸ表'!$D$32:$AG$32,0)) ->  | BM122: =INDEX('S+Sﾁｪｯｸ表'!$D$114:$AG$136, MATCH($F$29,'S+Sﾁｪｯｸ表'!$C$114:$C$136,0), MATCH($F$26,'S+Sﾁｪｯｸ表'!$D$113:$AG$113,0)) ->  | BN122: 連結② | CB122: 仮最小振り幅 | CD122: =IF(AND(CL124="E",CM124="E",CN124="E",CO124="E",CP124="E"),"E",MIN(CL124:CP124)) -> E | CE122: =IF(AND(CS124="E",CT124="E",CU124="E",CV124="E",CW124="E"),"E",MIN(CS124:CW124)) -> E | CF122: =IF(AND(CZ124="E",DA124="E",DB124="E",DC124="E",DD124="E"),"E",MIN(CZ124:DD124)) -> E | CG122: =IF(AND(DG124="E",DH124="E",DI124="E",DJ124="E",DK124="E"),"E",MIN(DG124:DK124)) -> E | CH122: =IF(AND(DN124="E",DO124="E",DP124="E",DQ124="E",DR124="E"),"E",MIN(DN124:DR124)) -> E | CK122: ⑩ | CL122: =IFERROR(((CL113+1)*$D$128)-(CL115+56),"E") -> E | CM122: =IFERROR(((CM113+1)*$D$128)-(CM115+56),"E") -> E | CN122: =IFERROR(((CN113+1)*$D$128)-(CN115+56),"E") -> E | CO122: =IFERROR(((CO113+1)*$D$128)-(CO115+56),"E") -> E | CP122: =IFERROR(((CP113+1)*$D$128)-(CP115+56),"E") -> E | CR122: ⑩ | CS122: =IFERROR(((CS113+1)*$D$128)-(CS115+56),"E") -> E | CT122: =IFERROR(((CT113+1)*$D$128)-(CT115+56),"E") -> E | CU122: =IFERROR(((CU113+1)*$D$128)-(CU115+56),"E") -> E | CV122: =IFERROR(((CV113+1)*$D$128)-(CV115+56),"E") -> E | CW122: =IFERROR(((CW113+1)*$D$128)-(CW115+56),"E") -> E | CY122: ⑩ | CZ122: =IFERROR(((CZ113+1)*$D$128)-(CZ115+56),"E") -> E | DA122: =IFERROR(((DA113+1)*$D$128)-(DA115+56),"E") -> E | DB122: =IFERROR(((DB113+1)*$D$128)-(DB115+56),"E") -> E | DC122: =IFERROR(((DC113+1)*$D$128)-(DC115+56),"E") -> E | DD122: =IFERROR(((DD113+1)*$D$128)-(DD115+56),"E") -> E | DF122: ⑩ | DG122: =IFERROR(((DG113+1)*$D$128)-(DG115+56),"E") -> E | DH122: =IFERROR(((DH113+1)*$D$128)-(DH115+56),"E") -> E | DI122: =IFERROR(((DI113+1)*$D$128)-(DI115+56),"E") -> E | DJ122: =IFERROR(((DJ113+1)*$D$128)-(DJ115+56),"E") -> E | DK122: =IFERROR(((DK113+1)*$D$128)-(DK115+56),"E") -> E | DM122: ⑩ | DN122: =IFERROR(((DN113+1)*$D$128)-(DN115+56),"E") -> E | DO122: =IFERROR(((DO113+1)*$D$128)-(DO115+56),"E") -> E | DP122: =IFERROR(((DP113+1)*$D$128)-(DP115+56),"E") -> E | DQ122: =IFERROR(((DQ113+1)*$D$128)-(DQ115+56),"E") -> E | DR122: =IFERROR(((DR113+1)*$D$128)-(DR115+56),"E") -> E
B123: 水平部分角度 | F123: =IFERROR(IF(F116="ウェーブ",F122-29.22,IF(F116="ウェーブS",F122-27.98,"")),"") ->  | H123: ° | I123: =IFERROR(IF(N116="ウェーブ",I122-29.22,IF(N116="ウェーブS",I122-27.98,"")),"") ->  | K123: ° | L123: =IFERROR(IF(V116="ウェーブ",L122-29.22,IF(V116="ウェーブS",L122-27.98,"")),"") ->  | N123: ° | O123: =IFERROR(IF(AD116="ウェーブ",O122-29.22,IF(AD116="ウェーブS",O122-27.98,"")),"") ->  | Q123: ° | Z123: =IF(N116="","未選択",N116) -> 未選択 | AR123: 上段まで | AS123: =D126-AS122 ->  | AT123: 段 | BC123: (G)-7.05～7.05° | BD123: =IF(F116="","△",IF(OR(BD121=1,BD121="△"),"〇","×")) -> △ | BE123: =IF(N116="","△",IF(OR(BE121=1,BE121="△"),"〇","×")) -> △ | BF123: =IF(V116="","△",IF(OR(BF121=1,BF121="△"),"〇","×")) -> △ | BG123: =IF(AD116="","△",IF(OR(BG121=1,BG121="△"),"〇","×")) -> △ | BI123: =IF(OR(BI122="×",BI118="E",BI119="E"),"※設置不可","設置可能") ->  | BJ123: =IF(OR(BJ122="×",BJ118="E",BJ119="E"),"※設置不可","設置可能") ->  | BK123: =IF(OR(BK122="×",BK118="E",BK119="E"),"※設置不可","設置可能") ->  | BL123: =IF(OR(BL122="×",BL118="E",BL119="E"),"※設置不可","設置可能") ->  | BM123: =IF(OR(BM122="×",BM118="E",BM119="E"),"※設置不可","設置可能") ->  | BN123: =IFERROR(INDEX($BI$122:$BM$122, MATCH(N116,$BI$120:$BM$120,0)),"×") -> × | BP123: ショート判定 | BS123: ダブル判定 | CC123: ① | CD123: =IFERROR(CD117+(28*2),"E") -> E | CE123: =IFERROR(CE117+(28*2),"E") -> E | CF123: =IFERROR(CF117+(28*2),"E") -> E | CG123: =IFERROR(CG117+(28*2),"E") -> E | CH123: =IFERROR(CH117+(28*2),"E") -> E | CK123: ⑦ | CL123: =IFERROR(CL115-((CL113-1)*$D$128),"E") -> E | CM123: =IFERROR(CM115-((CM113-1)*$D$128),"E") -> E | CN123: =IFERROR(CN115-((CN113-1)*$D$128),"E") -> E | CO123: =IFERROR(CO115-((CO113-1)*$D$128),"E") -> E | CP123: =IFERROR(CP115-((CP113-1)*$D$128),"E") -> E | CR123: ⑦ | CS123: =IFERROR(CS115-((CS113-1)*$D$128),"E") -> E | CT123: =IFERROR(CT115-((CT113-1)*$D$128),"E") -> E | CU123: =IFERROR(CU115-((CU113-1)*$D$128),"E") -> E | CV123: =IFERROR(CV115-((CV113-1)*$D$128),"E") -> E | CW123: =IFERROR(CW115-((CW113-1)*$D$128),"E") -> E | CY123: ⑦ | CZ123: =IFERROR(CZ115-((CZ113-1)*$D$128),"E") -> E | DA123: =IFERROR(DA115-((DA113-1)*$D$128),"E") -> E | DB123: =IFERROR(DB115-((DB113-1)*$D$128),"E") -> E | DC123: =IFERROR(DC115-((DC113-1)*$D$128),"E") -> E | DD123: =IFERROR(DD115-((DD113-1)*$D$128),"E") -> E | DF123: ⑦ | DG123: =IFERROR(DG115-((DG113-1)*$D$128),"E") -> E | DH123: =IFERROR(DH115-((DH113-1)*$D$128),"E") -> E | DI123: =IFERROR(DI115-((DI113-1)*$D$128),"E") -> E | DJ123: =IFERROR(DJ115-((DJ113-1)*$D$128),"E") -> E | DK123: =IFERROR(DK115-((DK113-1)*$D$128),"E") -> E | DM123: ⑦ | DN123: =IFERROR(DN115-((DN113-1)*$D$128),"E") -> E | DO123: =IFERROR(DO115-((DO113-1)*$D$128),"E") -> E | DP123: =IFERROR(DP115-((DP113-1)*$D$128),"E") -> E | DQ123: =IFERROR(DQ115-((DQ113-1)*$D$128),"E") -> E | DR123: =IFERROR(DR115-((DR113-1)*$D$128),"E") -> E
AD124: =IF(V116="","未選択",V116) -> 未選択 | AR124: 蹴上 | AS124: =AS123*D127 ->  | AT124: ㎝ | BC124: 必要スペース | BD124: =AL117 -> 〇 | BE124: ― | BF124: ― | BG124: =AM117 -> 〇 | BL124: =BN124 ->  | BM124: ⑫ | BN124: =(AX130+AY130+28)-((AX133+AY133-1)*D128) ->  | BP124: 上段 | BQ124: 下段 | BR124: チェック | BS124: 上段 | BT124: 中間１ | BU124: 中間２ | BV124: 中間３ | BW124: 下段 | BX124: チェック | CC124: ② | CD124: =IFERROR(((CD119+1)*$D$128),"E") -> E | CE124: =IFERROR(((CE119+1)*$D$128),"E") -> E | CF124: =IFERROR(((CF119+1)*$D$128),"E") -> E | CG124: =IFERROR(((CG119+1)*$D$128),"E") -> E | CH124: =IFERROR(((CH119+1)*$D$128),"E") -> E | CJ124: 最小振り幅 | CL124: =IF(CL117="〇",CL126,"E") -> E | CM124: E | CN124: E | CO124: =IF(CO117="〇",CO126,"E") -> E | CP124: =IF(CP117="〇",CP126,"E") -> E | CQ124: 最小振り幅 | CS124: =IF(CS117="〇",CS126,"E") -> E | CT124: E | CU124: E | CV124: =IF(CV117="〇",CV126,"E") -> E | CW124: =IF(CW117="〇",CW126,"E") -> E | CX124: 最小振り幅 | CZ124: =IF(CZ117="〇",CZ126,"E") -> E | DA124: E | DB124: E | DC124: =IF(DC117="〇",DC126,"E") -> E | DD124: =IF(DD117="〇",DD126,"E") -> E | DE124: 最小振り幅 | DG124: =IF(DG117="〇",DG126,"E") -> E | DH124: E | DI124: E | DJ124: =IF(DJ117="〇",DJ126,"E") -> E | DK124: =IF(DK117="〇",DK126,"E") -> E | DL124: 最小振り幅 | DN124: =IF(DN117="〇",DN126,"E") -> E | DO124: E | DP124: E | DQ124: =IF(DQ117="〇",DQ126,"E") -> E | DR124: =IF(DR117="〇",DR126,"E") -> E
S125: 上段 | AH125: =IF(AD116="","未選択",AD116) -> 未選択 | AR125: 踏面 | AS125: =(AS123-1)*D128 ->  | AT125: ㎝ | BC125: (A)72cm以下 | BD125: =IF(F121="","△",IF(F121<=72,"〇","×")) -> △ | BE125: =IF(I121="","△",IF(I121<=72,"〇","×")) -> △ | BF125: =IF(L121="","△",IF(L121<=72,"〇","×")) -> △ | BG125: =IF(O121="","△",IF(O121<=72,"〇","×")) -> △ | BL125: =BN125 ->  | BM125: ③ | BN125: =BP127-BP126 ->  | BP125: =IF(OR(B116="ショート",B116="ショートダブル"),"S","") ->  | BQ125: =IF(OR(AH116="ショート",AH116="ショートダブル"),"S","") ->  | BR125: =COUNTIFS(BP125:BQ125,"S") -> 0 | BS125: =IF(OR(B116="ダブル",B116="ショートダブル"),"D","") ->  | BT125: =IF(OR(J116="ダブル",J116="ショートダブル"),"D","") ->  | BU125: =IF(OR(R116="ダブル",R116="ショートダブル"),"D","") ->  | BV125: =IF(OR(Z116="ダブル",Z116="ショートダブル"),"D","") ->  | BW125: =IF(OR(AH116="ダブル",AH116="ショートダブル"),"D","") ->  | BX125: =COUNTIFS(BS125:BW125,"D") -> 0 | CC125: ①" | CD125: =IFERROR((CD119*$D$128)-(CD117+28),"E") -> E | CE125: =IFERROR((CE119*$D$128)-(CE117+28),"E") -> E | CF125: =IFERROR((CF119*$D$128)-(CF117+28),"E") -> E | CG125: =IFERROR((CG119*$D$128)-(CG117+28),"E") -> E | CH125: =IFERROR((CH119*$D$128)-(CH117+28),"E") -> E | CJ125: F | CL125: =IFERROR(CL124/2,"") ->  | CM125: =IFERROR(CM124/2,"") ->  | CN125: =IFERROR(CN124/2,"") ->  | CO125: =IFERROR(CO124/2,"") ->  | CP125: =IFERROR(CP124/2,"") ->  | CQ125: F | CS125: =IFERROR(CS124/2,"") ->  | CT125: =IFERROR(CT124/2,"") ->  | CU125: =IFERROR(CU124/2,"") ->  | CV125: =IFERROR(CV124/2,"") ->  | CW125: =IFERROR(CW124/2,"") ->  | CX125: F | CZ125: =IFERROR(CZ124/2,"") ->  | DA125: =IFERROR(DA124/2,"") ->  | DB125: =IFERROR(DB124/2,"") ->  | DC125: =IFERROR(DC124/2,"") ->  | DD125: =IFERROR(DD124/2,"") ->  | DE125: F | DG125: =IFERROR(DG124/2,"") ->  | DH125: =IFERROR(DH124/2,"") ->  | DI125: =IFERROR(DI124/2,"") ->  | DJ125: =IFERROR(DJ124/2,"") ->  | DK125: =IFERROR(DK124/2,"") ->  | DL125: F | DN125: =IFERROR(DN124/2,"") ->  | DO125: =IFERROR(DO124/2,"") ->  | DP125: =IFERROR(DP124/2,"") ->  | DQ125: =IFERROR(DQ124/2,"") ->  | DR125: =IFERROR(DR124/2,"") -> 
B126: 段 数 | D126: =$F$23 -> 0 | F126: 段 | R126: =IF(B116="","未選択",B116) -> シングル | W126: =J115 ->  | AR126: リ③F | AS126: =CA118 -> 0 | AV126: =COUNTIFS(AW133:AZ133,"×") -> 0 | AW126: =IFERROR(IF(AW133<=0,"×",AW133),"×") -> × | AZ126: =IFERROR(IF(AZ133<=0,"×",AZ133),"×") -> × | BC126: 連結判定 | BD126: =IF(F116="","△",IF(COUNTIFS(BD122:BD124,"*×*")>0,"×","〇")) -> △ | BE126: ― | BF126: ― | BG126: =IF(AD116="","△",IF(COUNTIFS(BG122:BG124,"*×*")>0,"×","〇")) -> △ | BK126: =IF(BN125<(D128-28),BN125,(D128-28)-BR126) ->  | BL126: =BN126 ->  | BM126: ⑪ | BN126: =AX130-((AX133-1)*D128) ->  | BO126: ① | BP126: =AX130+(28*2) ->  | BQ126: ①" | BR126: =(AX133*D128)-(AX130+28) ->  | BS126: ④ | BT126: =IF(BN125<(D128-28),D128,((AY133-1)*D128)+BR126) ->  | BU126: 600 | BV126: 900 | BW126: 1200 | BX126: ウェーブS | BY126: ウェーブ | CC126: ④ | CD126: =IFERROR(IF(CD128<($D$128-28),$D$128,((CL113-1)*$D$128)+CD125),"E") -> E | CE126: =IFERROR(IF(CE128<($D$128-28),$D$128,((CM113-1)*$D$128)+CE125),"E") -> E | CF126: =IFERROR(IF(CF128<($D$128-28),$D$128,((CN113-1)*$D$128)+CF125),"E") -> E | CG126: =IFERROR(IF(CG128<($D$128-28),$D$128,((CO113-1)*$D$128)+CG125),"E") -> E | CH126: =IFERROR(IF(CH128<($D$128-28),$D$128,((CP113-1)*$D$128)+CH125),"E") -> E | CL126: =MIN(IF(CL118:CL123>0,CL118:CL123)) -> 0 | CM126: =MIN(IF(CM118:CM123>0,CM118:CM123)) -> 0 | CN126: =MIN(IF(CN118:CN123>0,CN118:CN123)) -> 0 | CO126: =MIN(IF(CO118:CO123>0,CO118:CO123)) -> 0 | CP126: =MIN(IF(CP118:CP123>0,CP118:CP123)) -> 0 | CS126: =MIN(IF(CS118:CS123>0,CS118:CS123)) -> 0 | CT126: =MIN(IF(CT118:CT123>0,CT118:CT123)) -> 0 | CU126: =MIN(IF(CU118:CU123>0,CU118:CU123)) -> 0 | CV126: =MIN(IF(CV118:CV123>0,CV118:CV123)) -> 0 | CW126: =MIN(IF(CW118:CW123>0,CW118:CW123)) -> 0 | CZ126: =MIN(IF(CZ118:CZ123>0,CZ118:CZ123)) -> 0 | DA126: =MIN(IF(DA118:DA123>0,DA118:DA123)) -> 0 | DB126: =MIN(IF(DB118:DB123>0,DB118:DB123)) -> 0 | DC126: =MIN(IF(DC118:DC123>0,DC118:DC123)) -> 0 | DD126: =MIN(IF(DD118:DD123>0,DD118:DD123)) -> 0 | DG126: =MIN(IF(DG118:DG123>0,DG118:DG123)) -> 0 | DH126: =MIN(IF(DH118:DH123>0,DH118:DH123)) -> 0 | DI126: =MIN(IF(DI118:DI123>0,DI118:DI123)) -> 0 | DJ126: =MIN(IF(DJ118:DJ123>0,DJ118:DJ123)) -> 0 | DK126: =MIN(IF(DK118:DK123>0,DK118:DK123)) -> 0 | DN126: =MIN(IF(DN118:DN123>0,DN118:DN123)) -> 0 | DO126: =MIN(IF(DO118:DO123>0,DO118:DO123)) -> 0 | DP126: =MIN(IF(DP118:DP123>0,DP118:DP123)) -> 0 | DQ126: =MIN(IF(DQ118:DQ123>0,DQ118:DQ123)) -> 0 | DR126: =MIN(IF(DR118:DR123>0,DR118:DR123)) -> 0
B127: 蹴 上 | D127: =$F$26 -> 0 | F127: ㎝ | W127: =J116 -> ショート | AA127: =R115 ->  | AR127: A下 | AS127: =AX130-(AS126+((AX133-1)*D128)) ->  | AW127: ア | AX127: イ | AY127: ウ | AZ127: エ | BK127: =IF(BN125<(D128-28),((AY133*D128)+BK126)-(AY130+28),((AY133*D128)+BK126+BR126)-(AY130+28)) ->  | BL127: =BN127 ->  | BM127: ⑩ | BN127: =((AY133+1)*D128)-(AY130+56) ->  | BO127: ② | BP127: =((AX133+1)*D128) ->  | BS127: ⑤ | BT127: =IF(BN125<(D128-28),((AY133*D128)-28)+BN125,((AY133+1)*D128)-(28*2)) ->  | BU127: 48.5 | BV127: 78.5 | BW127: 108.5 | BX127: 95.904 | BY127: 123.084 | CC127: ⑤ | CD127: =IF(CD128<($D$128-28),((CL113*$D$128)-28)+CD128,((CL113+1)*$D$128)-(28*2)) ->  | CE127: =IF(CE128<($D$128-28),((CM113*$D$128)-28)+CE128,((CM113+1)*$D$128)-(28*2)) ->  | CF127: =IF(CF128<($D$128-28),((CN113*$D$128)-28)+CF128,((CN113+1)*$D$128)-(28*2)) ->  | CG127: =IF(CG128<($D$128-28),((CO113*$D$128)-28)+CG128,((CO113+1)*$D$128)-(28*2)) ->  | CH127: =IF(CH125<0,(((CP113+1)*$D$128)-(28*2))-(D128-28+CH125),IF(CH128<($D$128-28),((CP113*$D$128)-28)+CH128,((CP113+1)*$D$128)-(28*2))) ->  | CL127: =IF(COUNTIF(CL118:CL123,"<0")>0,"×",IF(COUNTIF(CL118:CL123,"E")>0,"×","")) -> × | CM127: =IF(COUNTIF(CM118:CM123,"<0")>0,"×",IF(COUNTIF(CM118:CM123,"E")>0,"×","")) -> × | CN127: =IF(COUNTIF(CN118:CN123,"<0")>0,"×",IF(COUNTIF(CN118:CN123,"E")>0,"×","")) -> × | CO127: =IF(COUNTIF(CO118:CO123,"<0")>0,"×",IF(COUNTIF(CO118:CO123,"E")>0,"×","")) -> × | CP127: =IF(COUNTIF(CP118:CP123,"<0")>0,"×",IF(COUNTIF(CP118:CP123,"E")>0,"×","")) -> × | CS127: =IF(COUNTIF(CS118:CS123,"<0")>0,"×",IF(COUNTIF(CS118:CS123,"E")>0,"×","")) -> × | CT127: × | CU127: × | CV127: × | CW127: × | CZ127: =IF(COUNTIF(CZ118:CZ123,"<0")>0,"×",IF(COUNTIF(CZ118:CZ123,"E")>0,"×","")) -> × | DA127: × | DB127: × | DC127: × | DD127: × | DG127: =IF(COUNTIF(DG118:DG123,"<0")>0,"×",IF(COUNTIF(DG118:DG123,"E")>0,"×","")) -> × | DH127: × | DI127: × | DJ127: =IF(COUNTIF(DJ118:DJ123,"<0")>0,"×",IF(COUNTIF(DJ118:DJ123,"E")>0,"×","")) -> × | DK127: =IF(COUNTIF(DK118:DK123,"<0")>0,"×",IF(COUNTIF(DK118:DK123,"E")>0,"×","")) -> × | DN127: =IF(COUNTIF(DN118:DN123,"<0")>0,"×",IF(COUNTIF(DN118:DN123,"E")>0,"×","")) -> × | DO127: × | DP127: × | DQ127: × | DR127: ×
B128: 踏 面 | D128: =$F$29 -> 0 | F128: ㎝ | AA128: =R116 -> ショート | AE128: =Z115 ->  | AR128: A上 | AS128: =D128-(28+AS127) ->  | AV128: 最小ベース間距離 | AW128: =IF(F29="","△",IF(AW133="×","×",AS139+((AW133-1)*D128))) -> △ | AX128: =IFERROR($AY$117-($AW$116+$AW$118),"") ->  | AY128: =IFERROR($AY$119-($AW$118+$AW$120),"") ->  | AZ128: =IF(F29="","△",IF(AZ133="×","×",AS139+((AZ133-1)*D128))) -> △ | BC128: ①”＜０の場合 | BF128: =IFERROR(IF(AS121="×","×",IF(BR126>=0,ROUNDUP(BM132,0),IF(OR(BF129="E",BH129="E"),ROUNDUP(BM132,0),IF(BR126<0,ROUNDUP(BF129,0),ROUNDUP(BM132,0))))),"") ->  | BH128: =IFERROR(IF(BR126>=0,ROUNDUP(BN132,0),IF(OR(BH129="E",BF129="E"),ROUNDUP(BN132,0),IF(BR126<0,ROUNDUP(BH129,0),IF(BN132>=AZ122,ROUNDUP(BN132,0),"×")))),"") ->  | BL128: =BN128 ->  | BM128: ⑦ | BN128: =AY130-((AY133-1)*D128) ->  | BO128: ウ)最大べ距離 | BQ128: =((CL113+1)*D128)-56 ->  | BS128: 支柱間距離 | BU128: =((BU127^2-$BQ$129^2)^0.5)+(7.99*2) ->  | BV128: =((BV127^2-$BQ$129^2)^0.5)+(7.99*2) ->  | BW128: =((BW127^2-$BQ$129^2)^0.5)+(7.99*2) ->  | BX128: =((BX127^2-$BQ$129^2)^0.5)+(7.99*2) ->  | BY128: =((BY127^2-$BQ$129^2)^0.5)+(7.99*2) ->  | CC128: ③ | CD128: =IFERROR(CD124-CD123,"E") -> E | CE128: =IFERROR(CE124-CE123,"E") -> E | CF128: =IFERROR(CF124-CF123,"E") -> E | CG128: =IFERROR(CG124-CG123,"E") -> E | CH128: =IFERROR(CH124-CH123,"E") -> E | CJ128: ①イウベ距離 | CL128: =$CD$117+CL115+28 ->  | CM128: =$CD$117+CM115+28 ->  | CP128: =$CD$117+CP115+28 ->  | CS128: =$CE$117+CS115+28 ->  | CT128: =$CE$117+CT115+28 ->  | CW128: =$CE$117+CW115+28 ->  | CZ128: =$CF$117+CZ115+28 ->  | DA128: =$CF$117+DA115+28 ->  | DD128: =$CF$117+DD115+28 ->  | DG128: =$CG$117+DG115+28 ->  | DH128: =$CG$117+DH115+28 ->  | DN128: =$CH$117+DN115+28 ->  | DO128: =$CH$117+DO115+28 ->  | DR128: =$CH$117+DR115+28 -> 
B129: 【シミュレーション結果の各種TAISコード】 | AE129: =Z116 -> ショート | AJ129: 下段 | AL129: =IF(AH116="","未選択",IF(AH116="ショート不可","不可",AH116)) -> シングル | AR129: 最小ア）ベ距離 | AS129: =AS128+((AW133-1)*D128) ->  | AV129: 必要最大ﾍﾞｰｽ間 | AW129: =IF(F121="","△",(((123.084^2-F121^2)^0.5)+(7.99*2))-(10+7.5)) -> △ | AZ129: =IF(O121="","△",(((123.084^2-O121^2)^0.5)+(7.99*2))-(10+7.5)) -> △ | BE129: 上段必スぺ | BF129: =IF(OR(BF130<0,BF131<0),"E",AZ114+BF132) ->  | BG129: 下段必スぺ | BH129: =IF(OR(BH130<0,BH131<0),"E",AZ122+BH132) ->  | BM129: ⑬ | BN129: =((AX133+AY133+1)*D128)-(AX130+AY130+28+56) ->  | BO129: ウ)段差 | BQ129: =(AS122-BQ131)*D127 ->  | BS129: ベース間距離 | BU129: =IFERROR(BU128-(7.5+7.5),"") ->  | BV129: =IFERROR(BV128-(7.5+7.5),"") ->  | CC129: ⑪ | CD129: =IFERROR(CD117-((CD119-1)*$D$128),"E") -> E | CE129: =IFERROR(CE117-((CE119-1)*$D$128),"E") -> E | CF129: =IFERROR(CF117-((CF119-1)*$D$128),"E") -> E | CG129: =IFERROR(CG117-((CG119-1)*$D$128),"E") -> E | CH129: =IFERROR(CH117-((CH119-1)*$D$128),"E") -> E | CJ129: ②イウ総距離 | CL129: =CL128+56 ->  | CM129: =CM128+56 ->  | CS129: =CS128+56 ->  | CZ129: =CZ128+56 ->  | DG129: =DG128+56 ->  | DN129: =DN128+56 -> 
AV130: ベース間距離 | AW130: =IFERROR($AY$115-($AW$114+$AW$116),"") ->  | AX130: =IFERROR($AY$117-($AW$116+$AW$118),"") ->  | AY130: =IFERROR($AY$119-($AW$118+$AW$120),"") ->  | AZ130: =IFERROR($AY$121-($AW$120+$AW$122),"") ->  | BC130: Ａ上 | BD130: 0 | BE130: Ｂ上 | BF130: =AX130-(((AX133-1)*D128)+BD131) ->  | BG130: Ｃ上 | BH130: =AY130-(((AY133-1)*D128)+BF131 ) ->  | BL130: 最小振幅 | BM130: =VLOOKUP(BN130,BL124:BM129,2,0) ->  | BN130: =MIN(BN124:BN129) ->  | BO130: ウ)段数 | BQ130: =AS122-BQ131 ->  | CJ130: ③イウ段数 | CL130: =$CD$119+CL113 ->  | CM130: =$CD$119+CM113 ->  | CP130: =$CD$119+CP113 ->  | CS130: =$CE$119+CS113 ->  | CT130: =$CE$119+CT113 ->  | CW130: =$CE$119+CW113 ->  | CZ130: =$CF$119+CZ113 ->  | DA130: =$CF$119+DA113 ->  | DG130: =$CG$119+DG113 ->  | DH130: =$CG$119+DH113 ->  | DN130: =$CH$119+DN113 ->  | DO130: =$CH$119+DO113 ->  | DR130: =$CH$119+DR113 -> 
B131: =IF(OR(F112="×",F112="",F112="△"),"",IF(OR(B116="",F116=""),"",IF(OR(B116="ダブル",B116="ショートダブル"),B116&"＋連結バー"&F116&" 2本セット",B116&"+連結バー"&F116&" セット"))) ->  | J131: =IF(OR(F112="×",F112="",F112="△"),"",IF(OR(J116="",N116=""),"",IF(OR(J116="ダブル",J116="ショートダブル"),J116&"＋連結バー"&N116&" 2本セット",J116&"+連結バー"&N116&" セット"))) ->  | R131: =IF(OR(F112="×",F112="",F112="△"),"",IF(OR(R116="",V116=""),"",IF(OR(R116="ダブル",R116="ショートダブル"),R116&"＋連結バー"&V116&" 2本セット",R116&"+連結バー"&V116&" セット"))) ->  | Z131: =IF(OR(F112="×",F112="",F112="△"),"",IF(OR(Z116="",AD116=""),"",IF(OR(Z116="ダブル",Z116="ショートダブル"),Z116&"＋連結バー"&AD116&" 2本セット",Z116&"+連結バー"&AD116&" セット"))) ->  | AH131: =IF(OR(F112="×",F112="",F112="△"),"",IF(AH116="","",AH116&" ※単体")) ->  | AQ131: 1 | AR131: イ)ウ）ベ距離 | AS131: =AX130+AY130+28 ->  | AV131: 最小斜辺 | AW131: =IFERROR(( AW132^2 +F121^2)^0.5,"") ->  | AX131: =IFERROR(( AX132^2 +I121^2)^0.5,"") ->  | AY131: =IFERROR(( AY132^2 +L121^2)^0.5,"") ->  | AZ131: =IFERROR(( AZ132^2 +O121^2)^0.5,"") ->  | BC131: Ａ下 | BD131: =$D$128-28-BD130 -> -28 | BE131: Ｂ下 | BF131: =$D$128-28-BF130 ->  | BG131: Ｃ下 | BH131: =$D$128-28-BH130 ->  | BL131: 必要S | BM131: 上段 | BN131: 下段 | BO131: リ④設置段 | BQ131: =ROUNDDOWN(AS122/2,0) ->  | BT131: 連結可 | BU131: =IFERROR(IF(OR(BU132="",BU133=""),"",IF(BU129<$BT$126,"",IF(BU129>$BT$127,"","〇"))),"") ->  | BV131: =IFERROR(IF(OR(BV132="",BV133=""),"",IF(BV129<$BT$126,"",IF(BV129>$BT$127,"","〇"))),"") ->  | BW131: =IFERROR(IF(OR(BW132="",BW133=""),"",IF(BW129<$BT$126,"",IF(BW129>$BT$127,"","〇"))),"") ->  | BX131: =IFERROR(IF(OR(BX132="",BX133=""),"",IF(BX129<$BT$126,"",IF(BX129>$BT$127,"",IF(L121<35,"",IF(L121>55,"","〇"))))),"") ->  | BY131: =IFERROR(IF(OR(BY132="",BY133=""),"",IF(BY129<$BT$126,"",IF(BY129>$BT$127,"",IF(L121<47,"",IF(L121>72,"","〇"))))),"") ->  | CJ131: ④イウ総踏面 | CL131: =(CL130+1)*$D$128 ->  | CM131: =(CM130+1)*$D$128 ->  | CS131: =(CS130+1)*$D$128 ->  | CZ131: =(CZ130+1)*$D$128 ->  | DG131: =(DG130+1)*$D$128 ->  | DN131: =(DN130+1)*$D$128 -> 
B132: =IFERROR(IF(OR(F112="×",F112="",F112="△"),"",INDEX(TAISﾘｽﾄ!$B$3:$L$19,MATCH(B116,TAISﾘｽﾄ!$A$3:$A$19,0),MATCH(F116,TAISﾘｽﾄ!$B$2:$L$2,0))),"E") ->  | J132: =IFERROR(IF(OR(F112="×",F112="",F112="△"),"",INDEX(TAISﾘｽﾄ!$B$3:$L$19,MATCH(J116,TAISﾘｽﾄ!$A$3:$A$19,0),MATCH(N116,TAISﾘｽﾄ!$B$2:$L$2,0))),"E") ->  | R132: =IFERROR(IF(OR(F112="×",F112="",F112="△"),"",INDEX(TAISﾘｽﾄ!$B$3:$L$19,MATCH(R116,TAISﾘｽﾄ!$A$3:$A$19,0),MATCH(V116,TAISﾘｽﾄ!$B$2:$L$2,0))),"E") ->  | Z132: =IFERROR(IF(OR(F112="×",F112="",F112="△"),"",INDEX(TAISﾘｽﾄ!$B$3:$L$19,MATCH(Z116,TAISﾘｽﾄ!$A$3:$A$19,0),MATCH(AD116,TAISﾘｽﾄ!$B$2:$L$2,0))),"E") ->  | AH132: =IFERROR(IF(OR(F112="×",F112="",F112="△"),"",INDEX(TAISﾘｽﾄ!B3:B19,MATCH(AH116,TAISﾘｽﾄ!A3:A19,0))),"E") ->  | AQ132: 2 | AR132: イ)ウ）総距離 | AS132: =AS131+56 ->  | AV132: 最小底辺 | AW132: =IF(AW128="×","×",(AW128+AW114+AW116)-(7.99*2)) ->  | AX132: =(AX128+AW116+AW118)-(7.99*2) ->  | AY132: =(AY128+AW118+AW120)-(7.99*2) ->  | AZ132: =IF(AZ128="×","×",(AZ128+AW120+AW122)-(7.99*2)) ->  | BE132: Ｘ | BF132: =$AW$130-((($AW$133-1)*$D$128)+BD130) ->  | BG132: Ｙ | BH132: =$AZ$130-((($AZ$133-1)*$D$128)+BH131) ->  | BM132: =VLOOKUP(BM130,BK137:BL142,2,0) ->  | BN132: =VLOOKUP(BM130,BM137:BN142,2,0) ->  | BO132: 採用振幅 | BP132: F | BQ132: =BN130/2 ->  | BT132: =IF(COUNTIF(BI123:BM123,"設置可能")>0,"〇","×") -> × | BU132: =IF($BT$132="×","",IF(AND(CL137="",CS137="",CZ137="",DG137="",DN137=""),"","〇")) ->  | BV132: =IF($BT$132="×","",IF(AND(CO137="",CV137="",DC137="",DJ137="",DQ137=""),"","〇")) ->  | BW132: =IF($BT$132="×","",IF(AND(CM137="",CT137="",DA137="",DH137="",DO137=""),"","〇")) ->  | BX132: =IF($BT$132="×","",IF(AND(CN137="",CU137="",DB137="",DI137="",DP137=""),"","〇")) ->  | BY132: =IF($BT$132="×","",IF(AND(CP137="",CW137="",DD137="",DK137="",DR137=""),"","〇")) ->  | CJ132: ⑦ | CL132: =(((CL131-CL129)/2)-$CD$118)+$CD$118 ->  | CM132: =(((CM131-CM129)/2)-$CD$118)+$CD$118 ->  | CP132: =(((CP131-CP129)/2)-$CD$118)+$CD$118 ->  | CS132: =(((CS131-CS129)/2)-$CE$118)+$CE$118 ->  | CW132: =(((CW131-CW129)/2)-$CE$118)+$CE$118 ->  | CZ132: =(((CZ131-CZ129)/2)-$CF$118)+$CF$118 ->  | DA132: =(((DA131-DA129)/2)-$CF$118)+$CF$118 ->  | DD132: =(((DD131-DD129)/2)-$CF$118)+$CF$118 ->  | DG132: =(((DG131-DG129)/2)-$CG$118)+$CG$118 ->  | DH132: =(((DH131-DH129)/2)-$CG$118)+$CG$118 ->  | DI132: =(((DI131-DI129)/2)-$CG$118)+$CG$118 ->  | DJ132: =(((DJ131-DJ129)/2)-$CG$118)+$CG$118 ->  | DK132: =(((DK131-DK129)/2)-$CG$118)+$CG$118 ->  | DN132: =(((DN131-DN129)/2)-$CH$118)+$CH$118 ->  | DO132: =(((DO131-DO129)/2)-$CH$118)+$CH$118 ->  | DR132: =(((DR131-DR129)/2)-$CH$118)+$CH$118 -> 
AQ133: ③ | AR133: イ)ウ）段数 | AS133: =AX133+AY133 ->  | AV133: 段 数 | AW133: =IF(ROUNDDOWN(($F$23-(AX133+AY133))/2,0)<=0,"×",AS123-AX133) ->  | AX133: =IFERROR($BN$123+1,"") ->  | AY133: =AS122-BQ131 ->  | AZ133: =IF(AW133="×","×",F23-AY133-AX133-AW133) ->  | BU133: =IF(N116="600",CL137,IF(N116="900",DG137,IF(N116="1200",CS137,IF(N116="ウェーブS",CZ137,IF(N116="ウェーブ",DN137,""))))) ->  | BV133: =IF(N116="600",CO137,IF(N116="900",DJ137,IF(N116="1200",CV137,IF(N116="ウェーブS",DC137,IF(N116="ウェーブ",DQ137,""))))) ->  | BW133: =IF(N116="600",CM137,IF(N116="900",DH137,IF(N116="1200",CT137,IF(N116="ウェーブS",DA137,IF(N116="ウェーブ",DO137,""))))) ->  | BX133: =IF(N116="600",CN137,IF(N116="900",DI137,IF(N116="1200",CU137,IF(N116="ウェーブS",DB137,IF(N116="ウェーブ",DP137,""))))) ->  | BY133: =IF(N116="600",CP137,IF(N116="900",DK137,IF(N116="1200",CW137,IF(N116="ウェーブS",DD137,IF(N116="ウェーブ",DR137,""))))) ->  | CJ133: ア最小ベ距離 | CL133: =IFERROR(IF($F$29="","△",IF(CT99="×","×",IF(CL132<0,"E",CL132+((CT99-1)*$D$128)))),"E") -> △ | CM133: =IFERROR(IF($F$29="","△",IF(CT99="×","×",IF(CM132<0,"E",CM132+((CT99-1)*$D$128)))),"E") -> △ | CN133: =IFERROR(IF($F$29="","△",IF(CT99="×","×",IF(CN132<0,"E",CN132+((CT99-1)*$D$128)))),"E") -> △ | CO133: =IFERROR(IF($F$29="","△",IF(CT99="×","×",IF(CO132<0,"E",CO132+((CT99-1)*$D$128)))),"E") -> △ | CP133: =IFERROR(IF($F$29="","△",IF(CT99="×","×",IF(CP132<0,"E",CP132+((CT99-1)*$D$128)))),"E") -> △ | CQ133: =IF(MIN(CL133:CP135)=0,"",MIN(CL133:CP135)) ->  | CS133: =IFERROR(IF($F$29="","△",IF(CT100="×","×",IF(CS132<0,"E",CS132+((CT100-1)*$D$128)))),"E") -> △ | CT133: =IFERROR(IF($F$29="","△",IF(CT100="×","×",IF(CT132<0,"E",CT132+((CT100-1)*$D$128)))),"E") -> △ | CU133: =IFERROR(IF($F$29="","△",IF(CT100="×","×",IF(CU132<0,"E",CU132+((CT100-1)*$D$128)))),"E") -> △ | CV133: =IFERROR(IF($F$29="","△",IF(CT100="×","×",IF(CV132<0,"E",CV132+((CT100-1)*$D$128)))),"E") -> △ | CW133: =IFERROR(IF($F$29="","△",IF(CT100="×","×",IF(CW132<0,"E",CW132+((CT100-1)*$D$128)))),"E") -> △ | CX133: =IF(MIN(CS133:CW135)=0,"",MIN(CS133:CW135)) ->  | CZ133: =IFERROR(IF($F$29="","△",IF(CT101="×","×",IF(CZ132<0,"E",CZ132+((CT101-1)*$D$128)))),"E") -> △ | DA133: =IFERROR(IF($F$29="","△",IF(CT101="×","×",IF(DA132<0,"E",DA132+((CT101-1)*$D$128)))),"E") -> △ | DB133: =IFERROR(IF($F$29="","△",IF(CT101="×","×",IF(DB132<0,"E",DB132+((CT101-1)*$D$128)))),"E") -> △ | DC133: =IFERROR(IF($F$29="","△",IF(CT101="×","×",IF(DC132<0,"E",DC132+((CT101-1)*$D$128)))),"E") -> △ | DD133: =IFERROR(IF($F$29="","△",IF(CT101="×","×",IF(DD132<0,"E",DD132+((CT101-1)*$D$128)))),"E") -> △ | DE133: =IF(MIN(CZ133:DD135)=0,"",MIN(CZ133:DD135)) ->  | DG133: =IFERROR(IF($F$29="","△",IF(CT102="×","×",IF(DG132<0,"E",DG132+((CT102-1)*$D$128)))),"E") -> △ | DH133: =IFERROR(IF($F$29="","△",IF(CT102="×","×",IF(DH132<0,"E",DH132+((CT102-1)*$D$128)))),"E") -> △ | DI133: =IFERROR(IF($F$29="","△",IF(CT102="×","×",IF(DI132<0,"E",DI132+((CT102-1)*$D$128)))),"E") -> △ | DJ133: =IFERROR(IF($F$29="","△",IF(CT102="×","×",IF(DJ132<0,"E",DJ132+((CT102-1)*$D$128)))),"E") -> △ | DK133: =IFERROR(IF($F$29="","△",IF(CT102="×","×",IF(DK132<0,"E",DK132+((CT102-1)*$D$128)))),"E") -> △ | DL133: =IF(MIN(DG133:DK135)=0,"",MIN(DG133:DK135)) ->  | DN133: =IFERROR(IF($F$29="","△",IF(CT103="×","×",IF(DN132<0,"E",DN132+((CT103-1)*$D$128)))),"E") -> △ | DO133: =IFERROR(IF($F$29="","△",IF(CT103="×","×",IF(DO132<0,"E",DO132+((CT103-1)*$D$128)))),"E") -> △ | DP133: =IFERROR(IF($F$29="","△",IF(CT103="×","×",IF(DP132<0,"E",DP132+((CT103-1)*$D$128)))),"E") -> △ | DQ133: =IFERROR(IF($F$29="","△",IF(CT103="×","×",IF(DQ132<0,"E",DQ132+((CT103-1)*$D$128)))),"E") -> △ | DR133: =IFERROR(IF($F$29="","△",IF(CT103="×","×",IF(DR132<0,"E",DR132+((CT103-1)*$D$128)))),"E") -> △ | DS133: =IF(MIN(DN133:DR135)=0,"",MIN(DN133:DR135)) -> 
AQ136: ④ | AR136: イ)ウ）総踏面 | AS136: =(AS133+1)*D128 ->  | AV136: シングル | BK136: 上段必Ｓ | BM136: 下段必Ｓ | BQ136: ③ | BR136: ⑪ | BS136: ⑩ | BT136: ⑦ | BU136: ⑫ | BV136: ⑬ | CL136: =IFERROR(IF(CL133<=$AW$129,"〇",""),"E") -> 〇 | CM136: =IFERROR(IF(CM133<=$AW$129,"〇",""),"E") -> 〇 | CN136: 〇 | CO136: 〇 | CP136: 〇 | CS136: =IFERROR(IF(CS133<=$AW$129,"〇",""),"E") -> 〇 | CT136: 〇 | CU136: 〇 | CV136: 〇 | CW136: 〇 | CZ136: =IFERROR(IF(CZ133<=$AW$129,"〇",""),"E") -> 〇 | DA136: 〇 | DB136: 〇 | DC136: 〇 | DD136: 〇 | DG136: =IFERROR(IF(DG133<=$AW$129,"〇",""),"E") -> 〇 | DH136: 〇 | DI136: 〇 | DJ136: 〇 | DK136: 〇 | DN136: =IFERROR(IF(DN133<=$AW$129,"〇",""),"E") -> 〇 | DO136: 〇 | DP136: 〇 | DQ136: 〇 | DR136: 〇
AQ137: ⑤ | AR137: ④-② | AS137: =AS136-AS132 ->  | AV137: ショート | BK137: ③ | BL137: =BQ143+AZ114 ->  | BM137: ③ | BN137: =BQ144+$AZ$122 ->  | BP137: Ａ上 | BQ137: =$D$128-(BQ138+28) ->  | BS137: =$D$128-(BS138+28) ->  | BU137: =$D$128-(BU138+28) ->  | BV137: =BN129/2 ->  | CL137: =IF(OR(CL117="",CL136=""),"","〇") ->  | CM137: =IF(OR(CM117="",CM136=""),"","〇") ->  | CS137: =IF(OR(CS117="",CS136=""),"","〇") ->  | CZ137: =IF(OR(CZ117="",CZ136=""),"","〇") ->  | DG137: =IF(OR(DG117="",DG136=""),"","〇") ->  | DN137: =IF(OR(DN117="",DN136=""),"","〇") -> 
B138: STEP１ 設置場所の段差を入力してください | AQ138: 6 | AR138: (⑤÷２)-F | AS138: =AS137/2-BQ132 ->  | AV138: 【階段設置無し】必要数値 | BK138: ⑪ | BL138: =BR143+AZ114 ->  | BM138: ⑪ | BN138: =BR144+$AZ$122 ->  | BP138: Ａ下 | BQ138: =$AX$130-((($AX$133-1)*$D$128)+BQ139) ->  | BR138: =$AX$130-((($AX$133-1)*$D$128)+BR139) ->  | BS138: =$AX$130-((($AX$133-1)*$D$128)+BS139) ->  | BT138: =$AX$130-((($AX$133-1)*$D$128)+BT139) ->  | BU138: =BN124/2 ->  | BV138: =$D$128-(BV137+28) -> 
B139: (A) | D139: 段差 | L139: cm | N139: =IF(H139="","0～72㎝まで",IF(H139>72,"設置不可です","")) -> 0～72㎝まで | AQ139: ⑦ | AR139: ⑥＋採用F | AS139: =AS138+BQ132 ->  | AW139: ⑤ | AX139: ① | AY139: 支柱間距離 | AZ139: ベースサイズ | BA139: 連結バー角度 | BK139: ⑩ | BL139: =BS143+AZ114 ->  | BM139: ⑩ | BN139: =BS144+$AZ$122 ->  | BP139: Ｂ上 | BQ139: =$D$128-(BQ140+28) ->  | BR139: =BN126/2 ->  | BS139: =$D$128-(BS140+28) ->  | BT139: =$D$128-(BT140+28) ->  | BU139: =$AX$130-((($AX$133-1)*$D$128)+BU138) ->  | BV139: =$AX$130-((($AX$133-1)*$D$128)+BV138) -> 
AV140: （A) | AW140: =IF(ISBLANK(H143),"",VLOOKUP(H143,固定数値!E:F,2,0)) ->  | AX140: ― | AY140: ― | BA140: ― | BK140: ⑦ | BL140: =BT143+AZ114 ->  | BM140: ⑦ | BN140: =BT144+$AZ$122 ->  | BP140: Ｂ下 | BQ140: =BN125/2 ->  | BR140: =$D$128-(BR139+28) ->  | BS140: =$AY$130-((($AY$133-1)*$D$128)+BS141) ->  | BT140: =$AY$130-((($AY$133-1)*$D$128)+BT141) ->  | BU140: =$D$128-(BU139+28) ->  | BV140: =$D$128-(BV139+28) -> 
B141: STEP２ 設置したい製品を選択してください | AR141: シングル | AV141: （B) | AX141: =IF(ISBLANK(H144),"△",IF(H144="600","48.5",IF(H144="900","78.5",IF(H144="1200","108.5",IF(H144="ウェーブS","95.904",IF(H144="ウェーブ","123.084","")))))) -> △ | AY141: =((AX141^2-$H139^2)^0.5)+(7.99*2) ->  | AZ141: ― | BA141: =ASIN(H139/AX141) ->  | BC141: =IF(OR(H143=AR141,H143=AR143,H143=AR144,H143=AR146,H143=AR147,H143=AR148),AR141,"") ->  | BK141: ⑫ | BL141: =BU143+AZ114 ->  | BM141: ⑫ | BN141: =BU144+$AZ$122 ->  | BP141: Ｃ上 | BQ141: =$AY$130-((($AY$133-1)*$D$128)+BQ140) ->  | BR141: =$AY$130-((($AY$133-1)*$D$128)+BR140) ->  | BS141: =$D$128-(BS142+28) ->  | BT141: =BN128/2 ->  | BU141: =$AY$130-((($AY$133-1)*$D$128)+BU140) ->  | BV141: =$AY$130-((($AY$133-1)*$D$128)+BV140) -> 
AR142: ダブル | AV142: （C) | AW142: =IF(ISBLANK(H145),"",VLOOKUP(H145,固定数値!E:F,2,0)) ->  | AX142: ― | AY142: ― | BA142: ― | BC142: =IF(OR(H143=AR142,H143=AR145),AR142,"") ->  | BE142: ☆600 | BF142: ☆900 | BG142: ☆1200 | BH142: ☆ウェーブS | BI142: ☆ウェーブ | BK142: ⑬ | BL142: =BV143+AZ114 ->  | BM142: ⑬ | BN142: =BV144+$AZ$122 ->  | BP142: Ｃ下 | BQ142: =$D$128-(BQ141+28) ->  | BR142: =$D$128-(BR141+28) ->  | BS142: =BN127/2 ->  | BT142: =$D$128-(BT141+28) ->  | BU142: =$D$128-(BU141+28) ->  | BV142: =$D$128-(BV141+28) -> 
B143: (B) | D143: 上段楽起 | N143: =IF(H143="","手すりを選択","") -> 手すりを選択 | AR143: ロング | AY143: 1200 | AZ143: =$I$150 -> E | BC143: =IF(OR(H143=AR141,H143=AR143,H143=AR144,H143=AR146,H143=AR147,H143=AR148),AR143,"") ->  | BD143: 段差 | BE143: 30 | BF143: 50 | BG143: 70 | BH143: 35~55 | BI143: 47~72 | BP143: Ｘ | BQ143: =$AW$130-((($AW$133-1)*$D$128)+BQ137) ->  | BR143: =$AW$130-((($AW$133-1)*$D$128)+BR137) ->  | BS143: =$AW$130-((($AW$133-1)*$D$128)+BS137) ->  | BT143: =$AW$130-((($AW$133-1)*$D$128)+BT137) ->  | BU143: =$AW$130-((($AW$133-1)*$D$128)+BU137) -> 
B144: (C) | D144: 連結バー | N144: =IF(H139="","ナシ",BE144&BF144&BG144&BH144&BI144) -> ナシ | AR144: ショート | AY144: 900 | AZ144: =$I$150 -> E | BC144: =IF(OR(H143=AR141,H143=AR143,H143=AR146,H143=AR147,H143=AR148),AR144,"") ->  | BD144: 連結１ | BE144: =IF($H$139="","",IF($H$139<=BE143,BE142,"")) ->  | BF144: =IF($H$139="","",IF($H$139<=BF143,BF142,"")) ->  | BG144: =IF($H$139="","",IF($H$139<=BG143,BG142,"")) ->  | BH144: =IF($H$139="","",IF(AND($H$139<=55,$H$139>=35),BH142,"")) ->  | BI144: =IF($H$139="","",IF(AND($H$139<=72,$H$139>=47),BI142,"")) ->  | BJ144: ﾌﾟﾙﾀﾞｳﾝﾘｽﾄ | BK144: =IF(BE144="","","600") ->  | BL144: =IF(BF144="","","900") ->  | BM144: =IF(BG144="","","1200") ->  | BN144: =IF(BH144="","","ウェーブS") ->  | BO144: =IF(BI144="","","ウェーブ") ->  | BP144: Ｙ | BQ144: =$AZ$130-((($AZ$133-1)*$D$128)+BQ142) ->  | BR144: =$AZ$130-((($AZ$133-1)*$D$128)+BR142) ->  | BS144: =$AZ$130-((($AZ$133-1)*$D$128)+BS142) ->  | BU144: =$AZ$130-((($AZ$133-1)*$D$128)+BU142) -> 
B145: (D) | D145: 下段楽起 | N145: =IF(H145="","手すりを選択",IF(AND(H143="ショートダブル",AW150="S"),"ダブルに変更",IF(AND(H143="ショートダブル",AZ150=""),"ダブルに変更",IF(AND(H143="ショート",H145="ショートダブル"),"片手すり(大ベース)に変更",IF(AX150=2,"大ベースの手すりに変更",IF(AND(AY150="D",BA150=1),"両手すりに変更","")))))) -> 手すりを選択 | AR145: ショートダブル | AV145: 角度チェック | AW145: =IF(I151="","△",COUNTIFS(I151,">="&-7.014,I151,"<="&7.014)) -> △ | AY145: 600 | AZ145: =$I$150 -> E | BC145: =IF(H143=AR142,AR145,"") ->  | BX145: 仮連② | BZ145: =BJ115 ->  | CA145: =BK115 ->  | CB145: =BL115 ->  | CC145: =BM115 ->  | CD145: =BN115 ->  | CG145: ①イウベ距離 | CH145: ②イウ総距離 | CI145: ③イウ段数 | CJ145: ④イウ総踏面 | CK145: ⑤ ④-② | CL145: ⑥ (⑤/２)-F | CM145: イ） 段数 | CN145: イ） ベ距離 | CO145: ウ） ベ距離 | CP145: ア） 段数 | CQ145: エ） 段数 | CR145: ア） ベ距離 | CS145: 仮連①
N146: =IF(H144="","〇",IF(COUNTIF(BK144:BO144,H144)=0,"×","〇")) -> 〇 | O146: =IF(N144="ナシ","×","〇") -> × | P146: =IF(OR(N145="",N145="手すりを選択"),"〇","×") -> 〇 | AR146: 横型 | AV146: F40°以上× | AW146: =IF(I150<=40.2,"〇","×") -> × | AY146: ウェーブ | AZ146: 29.22 | BC146: =IF(OR(H143=AR143,H143=AR141,H143=AR146,H143=AR148,H143=AR147),AR149,"") ->  | BX146: =LOOKUP(BY146,BZ146:CD146,BZ145:CD145) ->  | BY146: =MAX(BZ146:CD146) -> 0 | BZ146: =IF(BZ145="","",BI121) ->  | CA146: =IF(CA145="","",BL121) ->  | CB146: =IF(CB145="","",BJ121) ->  | CC146: =IF(CC145="","",BK121) ->  | CD146: =IF(CD145="","",BM121) ->  | CG146: =CN146+CO146+28 ->  | CH146: =CG146+56 ->  | CI146: =CM146+BQ130 ->  | CJ146: =(CI146+1)*D128 ->  | CK146: =CJ146-CH146 ->  | CL146: =(CK146/2)-CA118 ->  | CM146: =IF(BY146=CD115,CD119,IF(BY146=CE115,CE119,IF(BY146=CF115,CF119,IF(BY146=CG115,CG119,IF(BY146=CH115,CH119,""))))) ->  | CN146: =IF(BY146=CD115,CD117,IF(BY146=CE115,CE117,IF(BY146=CF115,CF117,IF(BY146=CG115,CG117,IF(BY146=CH115,CH117,""))))) ->  | CO146: =IF(BY149=CD115,CL115,IF(BY149=CE115,CM115,IF(BY149=CF115,CN115,IF(BY149=CG115,CO115,IF(BY149=CH115,CP115,""))))) ->  | CP146: =IF(BY146=CD115,CT99,IF(BY146=CE115,CT100,IF(BY146=CF115,CT101,IF(BY146=CG115,CT102,IF(BY146=CH115,CT103,""))))) ->  | CQ146: =D126-(CP146+CM146+BQ130) ->  | CR146: =INDEX(DO99:DS103, MATCH(BY146,DN99:DN103,0), MATCH(CS146,DO98:DS98,0)) ->  | CS146: =MAX(CW105:DF105) -> 0
B147: 完了です。設置判定をご確認ください | AR147: 縦型 | AV147: G-6～6° | AW147: =IFERROR(IF(OR(AW145=1,AW145="△"),"〇","×"),"") -> 〇 | AY147: ウェーブS | AZ147: 27.98 | BC147: =IF(OR(H143=AR141,H143=AR143,H143=AR144,H143=AR146,H143=AR147,H143=AR148),AR146,"") ->  | CL147: ⑦
B148: 設置判定 | I148: =IF(OR(H139="",H143="",H144="",H145=""),"",IF(AND(N146="×",O146="〇"),"△",IF(AND(P146="×",O146="〇"),"△",IF(COUNTIFS(AW146:AW147,"*×*")>0,"×",IF(AX150=2,"×",IF(AND(AY150="D",AZ150=""),"×","〇")))))) ->  | AR148: ワイド縦型 | BC148: =IF(OR(H143=AR141,H143=AR143,H143=AR144,H143=AR146,H143=AR147,H143=AR148),AR147,"") ->  | BX148: 仮連③ | BZ148: 600 | CA148: 900 | CB148: 1200 | CC148: ウェーブS | CD148: ウェーブ | CF148: ア）最低 べ距離 | CH148: =CL148+((CP146-1)*$D$128) ->  | CL148: =CL146+CA118 -> 
B149: (E) | D149: ベース間の距離 | I149: =IFERROR(AY141-(AW140+AW142),"E") -> E | L149: cm | AR149: スリム | AV149: ショート判定 | AY149: ダブル判定 | BC149: =IF(OR(H143=AR141,H143=AR143,H143=AR144,H143=AR146,H143=AR147,H143=AR148),AR150,"") ->  | BX149: =LOOKUP(BY149,BZ150:CD152,BZ148:CD148) ->  | BY149: =MAX(BZ150:CD152) -> 0 | BZ149: =IF($BY$146=108.5,CS117,IF($BY$146=48.5,CL117,IF($BY$146=95.9,CZ117,IF($BY$146=78.5,DG117,IF($BY$146=123.1,DN117,""))))) ->  | CA149: =IF($BY$146=108.5,CV117,IF($BY$146=48.5,CO117,IF($BY$146=95.9,DC117,IF($BY$146=78.5,DJ117,IF($BY$146=123.1,DQ117,""))))) ->  | CB149: =IF($BY$146=108.5,CT117,IF($BY$146=48.5,CM117,IF($BY$146=95.9,DA117,IF($BY$146=78.5,DH117,IF($BY$146=123.1,DO117,""))))) ->  | CC149: =IF($BY$146=108.5,CU117,IF($BY$146=48.5,CN117,IF($BY$146=95.9,DB117,IF($BY$146=78.5,DI117,IF($BY$146=123.1,DP117,""))))) ->  | CD149: =IF($BY$146=108.5,CW117,IF($BY$146=48.5,CP117,IF($BY$146=95.9,DD117,IF($BY$146=78.5,DK117,IF($BY$146=123.1,DR117,""))))) ->  | CF149: エ）最低 ベ距離 | CH149: =CL148+((CQ146-1)*$D$128) -> 
B150: (F) | D150: 連結バーの角度 | I150: =IFERROR(BA141*180/PI(),"E") -> E | L150: ° | AR150: 介助バー型 | AV150: =IF(OR(H143="ショート",H143="ショートダブル"),"S","") ->  | AW150: =IF(OR(H145="ショート",H145="ショートダブル",H145="スリム",H145="狭所用波型"),"S","") ->  | AX150: =COUNTIFS(AV150:AW150,"S") -> 0 | AY150: =IF(OR(H143="ダブル",H143="ショートダブル"),"D","") ->  | AZ150: =IF(OR(H145="ダブル",H145="ショートダブル"),"D","") ->  | BA150: =COUNTIFS(AY150:AZ150,"D") -> 0 | BC150: =IF(OR(H143=AR141,H143=AR143,H143=AR144,H143=AR146,H143=AR147,H143=AR148),AR148,"") ->  | BZ150: =IF(BZ149="","",BI121) ->  | CA150: =IF(CA149="","",BL121) ->  | CB150: =IF(CB149="","",BJ121) ->  | CC150: =IF(CC149="","",BK121) ->  | CD150: =IF(CD149="","",BM121) -> 
B151: (G) | D151: 水平部分の角度 | I151: =IFERROR(IF(H144="ウェーブ",I150-29.22,IF(H144="ウェーブS",I150-27.98,"")),"E") ->  | L151: ° | AR151: ワイド介助バー型 | BC151: =IF(OR(H143=AR141,H143=AR143,H143=AR144,H143=AR146,H143=AR147,H143=AR148),AR151,"") -> 
AR152: 波型 | BC152: =IF(OR(H143=AR141,H143=AR143,H143=AR144,H143=AR146,H143=AR147,H143=AR148),AR152,"") -> 
B153: 【組合わせに必要なTAISコード】 | AR153: 狭所用波型 | BC153: =IF(OR(H143=AR141,H143=AR143,H143=AR146,H143=AR147,H143=AR148),AR153,"") -> 
B154: =IFERROR(IF(OR(I148="×",I148="",I148="△"),"",IF(H145="スリム",INDEX(TAISﾘｽﾄ!H3:L19,MATCH(H143,TAISﾘｽﾄ!A3:A19,0),MATCH(H144,TAISﾘｽﾄ!H2:L2,0)),INDEX(TAISﾘｽﾄ!B3:L19,MATCH(H143,TAISﾘｽﾄ!A3:A19,0),MATCH(H144,TAISﾘｽﾄ!B2:L2,0)))),"") ->  | I154: =IF(OR(I148="",I148="×",I148="△"),"",IF(H145="スリム",H143&"+スリム+連結バー"&H144&"セット",IF(H143="ダブル",H143&"＋連結バー"&H144&" 2本セット",IF(H143="ショートダブル",H143&"＋連結バー"&H144&" 2本セット",H143&"+連結バー"&H144&" セット")))) -> 
B155: =IFERROR(IF(OR(I148="×",I148="",I148="△"),"",IF(H145="スリム","",INDEX(TAISﾘｽﾄ!B3:B19,MATCH(H145,TAISﾘｽﾄ!A3:A19,0)))),"") ->  | I155: =IF(OR(I148="",I148="×",I148="△"),"",IF(H145="スリム","",H145)) -> 

Sheet TAISﾘｽﾄ (hidden)
C1: 連結バーセット | H1: スリムセット
B2: 単体 | C2: 600 | D2: 900 | E2: 1200 | F2: ウェーブS | G2: ウェーブ | H2: 600 | I2: 900 | J2: 1200 | K2: ウェーブS | L2: ウェーブ
A3: シングル | B3: 01339-000034 | C3: 01339-000042 | D3: 01339-000043 | E3: 01339-000044 | F3: 01339-000125 | G3: 01339-000045 | H3: 01339-000046 | I3: 01339-000047 | J3: 01339-000048 | K3: 01339-000126 | L3: 01339-000049
A4: ダブル | B4: 01339-000035 | C4: 01339-000050 | D4: 01339-000051 | E4: 01339-000052 | F4: 01339-000127 | G4: 01339-000053 | H4: × | I4: × | J4: × | K4: × | L4: ×
A5: ロング | B5: 01339-000036 | C5: 01339-000054 | D5: 01339-000055 | E5: 01339-000056 | F5: 01339-000128 | G5: 01339-000057 | H5: 01339-000058 | I5: 01339-000059 | J5: 01339-000060 | K5: 01339-000129 | L5: 01339-000061
A6: ショート | B6: 01339-000119 | C6: 01339-000120 | D6: 01339-000121 | E6: 01339-000122 | F6: 01339-000142 | G6: 01339-000123 | H6: × | I6: × | J6: × | K6: × | L6: ×
A7: ショートダブル | B7: 01339-000143 | C7: 01339-000144 | D7: 01339-000145 | E7: 01339-000146 | F7: 01339-000147 | G7: 01339-000148 | H7: × | I7: × | J7: × | K7: × | L7: ×
A8: 横型 | B8: 01339-000006 | C8: 01339-000062 | D8: 01339-000063 | E8: 01339-000064 | F8: 01339-000130 | G8: 01339-000065 | H8: 01339-000066 | I8: 01339-000067 | J8: 01339-000068 | K8: 01339-000131 | L8: 01339-000069
A9: 縦型 | B9: 01339-000007 | C9: 01339-000081 | D9: 01339-000082 | E9: 01339-000083 | F9: 01339-000134 | G9: 01339-000084 | H9: 01339-000085 | I9: 01339-000086 | J9: 01339-000087 | K9: 01339-000135 | L9: 01339-000088
A10: 介助バー型 | B10: 01339-000005 | C10: × | D10: × | E10: × | F10: × | G10: × | H10: × | I10: × | J10: × | K10: × | L10: ×
A11: ワイド縦型 | B11: 01339-000013 | C11: 01339-000100 | D11: 01339-000101 | E11: 01339-000102 | F11: 01339-000138 | G11: 01339-000103 | H11: 01339-000104 | I11: 01339-000105 | J11: 01339-000106 | K11: 01339-000139 | L11: 01339-000107
A12: ワイド介助バー型 | B12: 01339-000011 | C12: × | D12: × | E12: × | F12: × | G12: × | H12: × | I12: × | J12: × | K12: × | L12: ×
A13: 波型 | B13: 01339-000029 | C13: × | D13: × | E13: × | F13: × | G13: × | H13: × | I13: × | J13: × | K13: × | L13: ×
A14: 狭所用波型 | B14: 01339-000020 | C14: × | D14: × | E14: × | F14: × | G14: × | H14: × | I14: × | J14: × | K14: × | L14: ×
A15: 600 | B15: 01339-000038 | C15: × | D15: × | E15: × | F15: × | G15: × | H15: × | I15: × | J15: × | K15: × | L15: ×
A16: 900 | B16: 01339-000039 | C16: × | D16: × | E16: × | F16: × | G16: × | H16: × | I16: × | J16: × | K16: × | L16: ×
A17: 1200 | B17: 01339-000040 | C17: × | D17: × | E17: × | F17: × | G17: × | H17: × | I17: × | J17: × | K17: × | L17: ×
A18: ウェーブS | B18: 01339-000124 | C18: × | D18: × | E18: × | F18: × | G18: × | H18: × | I18: × | J18: × | K18: × | L18: ×
A19: ウェーブ | B19: 01339-000041 | C19: × | D19: × | E19: × | F19: × | G19: × | H19: × | I19: × | J19: × | K19: × | L19: ×

Sheet S+Sﾁｪｯｸ表 (hidden)
B1: 【階上でのショート同士の連結チェック表】
B3: 製品 | C3: 連結バー６００
D4: 蹴上
D5: 1 | E5: 2 | F5: 3 | G5: 4 | H5: 5 | I5: 6 | J5: 7 | K5: 8 | L5: 9 | M5: 10 | N5: 11 | O5: 12 | P5: 13 | Q5: 14 | R5: 15 | S5: 16 | T5: 17 | U5: 18 | V5: 19 | W5: 20 | X5: 21 | Y5: 22 | Z5: 23 | AA5: 24 | AB5: 25 | AC5: 26 | AD5: 27 | AE5: 28 | AF5: 29 | AG5: 30
B6: 踏面 | C6: 28 | D6: × | E6: × | F6: × | G6: × | H6: × | I6: × | J6: × | K6: × | L6: × | M6: × | N6: × | O6: × | P6: × | Q6: × | R6: × | S6: × | T6: × | U6: × | V6: × | W6: × | X6: × | Y6: × | Z6: × | AA6: × | AB6: × | AC6: × | AD6: × | AE6: × | AF6: × | AG6: ×
C7: 29 | D7: × | E7: × | F7: × | G7: × | H7: × | I7: × | J7: × | K7: × | L7: × | M7: × | N7: × | O7: × | P7: × | Q7: × | R7: × | S7: × | T7: × | U7: × | V7: × | W7: × | X7: × | Y7: × | Z7: × | AA7: × | AB7: × | AC7: × | AD7: × | AE7: × | AF7: × | AG7: ×
C8: 30 | D8: × | E8: × | F8: × | G8: × | H8: × | I8: × | J8: × | K8: × | L8: × | M8: × | N8: × | O8: × | P8: × | Q8: × | R8: × | S8: × | T8: × | U8: × | V8: × | W8: × | X8: × | Y8: × | Z8: × | AA8: × | AB8: × | AC8: × | AD8: × | AE8: × | AF8: × | AG8: ×
C9: 31 | D9: × | E9: × | F9: × | G9: × | H9: × | I9: × | J9: × | K9: × | L9: × | M9: × | N9: × | O9: × | P9: × | Q9: × | R9: × | S9: × | T9: × | U9: × | V9: × | W9: × | X9: × | Y9: × | Z9: × | AA9: × | AB9: × | AC9: × | AD9: × | AE9: × | AF9: × | AG9: ×
C10: 32 | D10: × | E10: × | F10: × | G10: × | H10: × | I10: × | J10: × | K10: × | L10: × | M10: × | N10: × | O10: × | P10: × | Q10: × | R10: 1 | S10: × | T10: × | U10: × | V10: × | W10: × | X10: × | Y10: × | Z10: × | AA10: × | AB10: × | AC10: × | AD10: × | AE10: × | AF10: × | AG10: ×
C11: 33 | D11: × | E11: × | F11: × | G11: × | H11: × | I11: × | J11: × | K11: × | L11: × | M11: × | N11: × | O11: × | P11: 1 | Q11: 1 | R11: 1 | S11: × | T11: × | U11: × | V11: × | W11: × | X11: × | Y11: × | Z11: × | AA11: × | AB11: × | AC11: × | AD11: × | AE11: × | AF11: × | AG11: ×
C12: 34 | D12: × | E12: × | F12: × | G12: × | H12: × | I12: × | J12: × | K12: × | L12: 1 | M12: 1 | N12: 1 | O12: 1 | P12: 1 | Q12: 1 | R12: 1 | S12: × | T12: × | U12: × | V12: × | W12: × | X12: × | Y12: × | Z12: × | AA12: × | AB12: × | AC12: × | AD12: × | AE12: × | AF12: × | AG12: ×
C13: 35 | D13: × | E13: × | F13: × | G13: 1 | H13: 1 | I13: 1 | J13: 1 | K13: 1 | L13: 1 | M13: 1 | N13: 1 | O13: 1 | P13: 1 | Q13: 1 | R13: 1 | S13: × | T13: × | U13: × | V13: × | W13: × | X13: × | Y13: × | Z13: × | AA13: × | AB13: × | AC13: × | AD13: × | AE13: × | AF13: × | AG13: ×
C14: 36 | D14: 1 | E14: 1 | F14: 1 | G14: 1 | H14: 1 | I14: 1 | J14: 1 | K14: 1 | L14: 1 | M14: 1 | N14: 1 | O14: 1 | P14: 1 | Q14: 1 | R14: 1 | S14: × | T14: × | U14: × | V14: × | W14: × | X14: × | Y14: × | Z14: × | AA14: × | AB14: × | AC14: × | AD14: × | AE14: × | AF14: × | AG14: ×
C15: 37 | D15: 1 | E15: 1 | F15: 1 | G15: 1 | H15: 1 | I15: 1 | J15: 1 | K15: 1 | L15: 1 | M15: 1 | N15: 1 | O15: 1 | P15: 1 | Q15: 1 | R15: 1 | S15: × | T15: × | U15: × | V15: × | W15: × | X15: × | Y15: × | Z15: × | AA15: × | AB15: × | AC15: × | AD15: × | AE15: × | AF15: × | AG15: ×
C16: 38 | D16: 1 | E16: 1 | F16: 1 | G16: 1 | H16: 1 | I16: 1 | J16: 1 | K16: 1 | L16: 1 | M16: 1 | N16: 1 | O16: 1 | P16: 1 | Q16: 1 | R16: 1 | S16: × | T16: × | U16: × | V16: × | W16: × | X16: × | Y16: × | Z16: × | AA16: × | AB16: × | AC16: × | AD16: × | AE16: × | AF16: × | AG16: ×
C17: 39 | D17: 1 | E17: 1 | F17: 1 | G17: 1 | H17: 1 | I17: 1 | J17: 1 | K17: 1 | L17: 1 | M17: 1 | N17: 1 | O17: 1 | P17: 1 | Q17: 1 | R17: 1 | S17: × | T17: × | U17: × | V17: × | W17: × | X17: × | Y17: × | Z17: × | AA17: × | AB17: × | AC17: × | AD17: × | AE17: × | AF17: × | AG17: ×
C18: 40 | D18: 1 | E18: 1 | F18: 1 | G18: 1 | H18: 1 | I18: 1 | J18: 1 | K18: 1 | L18: 1 | M18: 1 | N18: 1 | O18: 1 | P18: 1 | Q18: 1 | R18: × | S18: × | T18: × | U18: × | V18: × | W18: × | X18: × | Y18: × | Z18: × | AA18: × | AB18: × | AC18: × | AD18: × | AE18: × | AF18: × | AG18: ×
C19: 41 | D19: 1 | E19: 1 | F19: 1 | G19: 1 | H19: 1 | I19: 1 | J19: 1 | K19: 1 | L19: 1 | M19: 1 | N19: 1 | O19: 1 | P19: 1 | Q19: × | R19: × | S19: × | T19: × | U19: × | V19: × | W19: × | X19: × | Y19: × | Z19: × | AA19: × | AB19: × | AC19: × | AD19: × | AE19: × | AF19: × | AG19: ×
C20: 42 | D20: 1 | E20: 1 | F20: 1 | G20: 1 | H20: 1 | I20: 1 | J20: 1 | K20: 1 | L20: 1 | M20: 1 | N20: 1 | O20: 1 | P20: × | Q20: × | R20: × | S20: × | T20: × | U20: × | V20: × | W20: × | X20: × | Y20: × | Z20: × | AA20: × | AB20: × | AC20: × | AD20: × | AE20: × | AF20: × | AG20: ×
C21: 43 | D21: 1 | E21: 1 | F21: 1 | G21: 1 | H21: 1 | I21: 1 | J21: 1 | K21: 1 | L21: 1 | M21: 1 | N21: 1 | O21: 1 | P21: × | Q21: × | R21: × | S21: × | T21: × | U21: × | V21: × | W21: × | X21: × | Y21: × | Z21: × | AA21: × | AB21: × | AC21: × | AD21: × | AE21: × | AF21: × | AG21: ×
C22: 44 | D22: 1 | E22: 1 | F22: 1 | G22: 1 | H22: 1 | I22: 1 | J22: 1 | K22: 1 | L22: 1 | M22: 1 | N22: 1 | O22: × | P22: × | Q22: × | R22: × | S22: × | T22: × | U22: × | V22: × | W22: × | X22: × | Y22: × | Z22: × | AA22: × | AB22: × | AC22: × | AD22: × | AE22: × | AF22: × | AG22: ×
C23: 45 | D23: 1 | E23: 1 | F23: 1 | G23: 1 | H23: 1 | I23: 1 | J23: 1 | K23: 1 | L23: 1 | M23: 1 | N23: × | O23: × | P23: × | Q23: × | R23: × | S23: × | T23: × | U23: × | V23: × | W23: × | X23: × | Y23: × | Z23: × | AA23: × | AB23: × | AC23: × | AD23: × | AE23: × | AF23: × | AG23: ×
C24: 46 | D24: 1 | E24: 1 | F24: 1 | G24: 1 | H24: 1 | I24: 1 | J24: 1 | K24: 1 | L24: 1 | M24: × | N24: × | O24: × | P24: × | Q24: × | R24: × | S24: × | T24: × | U24: × | V24: × | W24: × | X24: × | Y24: × | Z24: × | AA24: × | AB24: × | AC24: × | AD24: × | AE24: × | AF24: × | AG24: ×
C25: 47 | D25: 1 | E25: 1 | F25: 1 | G25: 1 | H25: 1 | I25: 1 | J25: 1 | K25: × | L25: × | M25: × | N25: × | O25: × | P25: × | Q25: × | R25: × | S25: × | T25: × | U25: × | V25: × | W25: × | X25: × | Y25: × | Z25: × | AA25: × | AB25: × | AC25: × | AD25: × | AE25: × | AF25: × | AG25: ×
C26: 48 | D26: 1 | E26: 1 | F26: 1 | G26: 1 | H26: 1 | I26: 1 | J26: × | K26: × | L26: × | M26: × | N26: × | O26: × | P26: × | Q26: × | R26: × | S26: × | T26: × | U26: × | V26: × | W26: × | X26: × | Y26: × | Z26: × | AA26: × | AB26: × | AC26: × | AD26: × | AE26: × | AF26: × | AG26: ×
C27: 49 | D27: 1 | E27: 1 | F27: 1 | G27: × | H27: × | I27: × | J27: × | K27: × | L27: × | M27: × | N27: × | O27: × | P27: × | Q27: × | R27: × | S27: × | T27: × | U27: × | V27: × | W27: × | X27: × | Y27: × | Z27: × | AA27: × | AB27: × | AC27: × | AD27: × | AE27: × | AF27: × | AG27: ×
C28: 50 | D28: × | E28: × | F28: × | G28: × | H28: × | I28: × | J28: × | K28: × | L28: × | M28: × | N28: × | O28: × | P28: × | Q28: × | R28: × | S28: × | T28: × | U28: × | V28: × | W28: × | X28: × | Y28: × | Z28: × | AA28: × | AB28: × | AC28: × | AD28: × | AE28: × | AF28: × | AG28: ×
B30: 製品 | C30: 連結バー９００
D31: 蹴上
D32: 1 | E32: 2 | F32: 3 | G32: 4 | H32: 5 | I32: 6 | J32: 7 | K32: 8 | L32: 9 | M32: 10 | N32: 11 | O32: 12 | P32: 13 | Q32: 14 | R32: 15 | S32: 16 | T32: 17 | U32: 18 | V32: 19 | W32: 20 | X32: 21 | Y32: 22 | Z32: 23 | AA32: 24 | AB32: 25 | AC32: 26 | AD32: 27 | AE32: 28 | AF32: 29 | AG32: 30
B33: 踏面 | C33: 28 | D33: × | E33: × | F33: × | G33: × | H33: × | I33: × | J33: × | K33: × | L33: × | M33: × | N33: × | O33: × | P33: × | Q33: × | R33: × | S33: × | T33: × | U33: × | V33: × | W33: × | X33: × | Y33: × | Z33: × | AA33: × | AB33: × | AC33: × | AD33: × | AE33: × | AF33: × | AG33: ×
C34: 29 | D34: × | E34: × | F34: × | G34: × | H34: × | I34: × | J34: × | K34: × | L34: × | M34: × | N34: × | O34: × | P34: × | Q34: × | R34: × | S34: × | T34: × | U34: × | V34: × | W34: × | X34: × | Y34: × | Z34: × | AA34: × | AB34: × | AC34: × | AD34: × | AE34: × | AF34: × | AG34: ×
C35: 30 | D35: × | E35: × | F35: × | G35: × | H35: × | I35: × | J35: × | K35: × | L35: × | M35: × | N35: × | O35: × | P35: × | Q35: × | R35: × | S35: 2 | T35: × | U35: × | V35: × | W35: × | X35: × | Y35: × | Z35: × | AA35: × | AB35: × | AC35: × | AD35: × | AE35: × | AF35: × | AG35: ×
C36: 31 | D36: × | E36: × | F36: × | G36: × | H36: × | I36: × | J36: × | K36: × | L36: × | M36: × | N36: × | O36: × | P36: × | Q36: 2 | R36: 2 | S36: 2 | T36: × | U36: × | V36: × | W36: × | X36: × | Y36: × | Z36: × | AA36: × | AB36: × | AC36: × | AD36: × | AE36: × | AF36: × | AG36: ×
C37: 32 | D37: × | E37: × | F37: × | G37: × | H37: × | I37: × | J37: × | K37: × | L37: × | M37: × | N37: × | O37: 2 | P37: 2 | Q37: 2 | R37: 2 | S37: × | T37: × | U37: × | V37: × | W37: × | X37: × | Y37: × | Z37: × | AA37: × | AB37: × | AC37: × | AD37: × | AE37: × | AF37: × | AG37: ×
C38: 33 | D38: × | E38: × | F38: × | G38: × | H38: × | I38: × | J38: × | K38: 2 | L38: 2 | M38: 2 | N38: 2 | O38: 2 | P38: 2 | Q38: 2 | R38: × | S38: × | T38: × | U38: × | V38: × | W38: × | X38: × | Y38: × | Z38: × | AA38: × | AB38: × | AC38: × | AD38: × | AE38: × | AF38: × | AG38: ×
C39: 34 | D39: 2 | E39: 2 | F39: 2 | G39: 2 | H39: 2 | I39: 2 | J39: 2 | K39: 2 | L39: 2 | M39: 2 | N39: 2 | O39: 2 | P39: 2 | Q39: × | R39: × | S39: × | T39: × | U39: × | V39: × | W39: × | X39: × | Y39: × | Z39: × | AA39: × | AB39: × | AC39: × | AD39: × | AE39: × | AF39: × | AG39: ×
C40: 35 | D40: 2 | E40: 2 | F40: 2 | G40: 2 | H40: 2 | I40: 2 | J40: 2 | K40: 2 | L40: 2 | M40: 2 | N40: 2 | O40: 2 | P40: × | Q40: × | R40: × | S40: × | T40: × | U40: × | V40: × | W40: × | X40: × | Y40: × | Z40: × | AA40: × | AB40: × | AC40: × | AD40: × | AE40: × | AF40: × | AG40: ×
C41: 36 | D41: 2 | E41: 2 | F41: 2 | G41: 2 | H41: 2 | I41: 2 | J41: 2 | K41: 2 | L41: 2 | M41: 2 | N41: 2 | O41: × | P41: × | Q41: × | R41: × | S41: × | T41: × | U41: × | V41: × | W41: × | X41: × | Y41: × | Z41: × | AA41: × | AB41: × | AC41: × | AD41: × | AE41: × | AF41: × | AG41: ×
C42: 37 | D42: 2 | E42: 2 | F42: 2 | G42: 2 | H42: 2 | I42: 2 | J42: 2 | K42: 2 | L42: 2 | M42: × | N42: × | O42: × | P42: × | Q42: × | R42: × | S42: × | T42: × | U42: × | V42: × | W42: × | X42: × | Y42: × | Z42: × | AA42: × | AB42: × | AC42: × | AD42: × | AE42: × | AF42: × | AG42: ×
C43: 38 | D43: 2 | E43: 2 | F43: 2 | G43: 2 | H43: 2 | I43: 2 | J43: 2 | K43: × | L43: × | M43: × | N43: × | O43: × | P43: × | Q43: × | R43: × | S43: × | T43: × | U43: × | V43: × | W43: × | X43: × | Y43: × | Z43: × | AA43: × | AB43: × | AC43: × | AD43: × | AE43: × | AF43: × | AG43: ×
C44: 39 | D44: 2 | E44: 2 | F44: 2 | G44: 2 | H44: 2 | I44: × | J44: × | K44: × | L44: × | M44: × | N44: × | O44: × | P44: × | Q44: × | R44: × | S44: × | T44: × | U44: × | V44: × | W44: × | X44: × | Y44: × | Z44: × | AA44: × | AB44: × | AC44: × | AD44: × | AE44: × | AF44: × | AG44: ×
C45: 40 | D45: × | E45: × | F45: × | G45: × | H45: × | I45: × | J45: × | K45: × | L45: × | M45: × | N45: × | O45: × | P45: × | Q45: × | R45: × | S45: × | T45: × | U45: × | V45: × | W45: × | X45: × | Y45: × | Z45: × | AA45: 1 | AB45: 1 | AC45: × | AD45: × | AE45: × | AF45: × | AG45: ×
C46: 41 | D46: × | E46: × | F46: × | G46: × | H46: × | I46: × | J46: × | K46: × | L46: × | M46: × | N46: × | O46: × | P46: × | Q46: × | R46: × | S46: × | T46: × | U46: × | V46: × | W46: × | X46: × | Y46: 1 | Z46: 1 | AA46: 1 | AB46: 1 | AC46: × | AD46: × | AE46: × | AF46: × | AG46: ×
C47: 42 | D47: × | E47: × | F47: × | G47: × | H47: × | I47: × | J47: × | K47: × | L47: × | M47: × | N47: × | O47: × | P47: × | Q47: × | R47: × | S47: × | T47: × | U47: × | V47: 1 | W47: 1 | X47: 1 | Y47: 1 | Z47: 1 | AA47: 1 | AB47: 1 | AC47: × | AD47: × | AE47: × | AF47: × | AG47: ×
C48: 43 | D48: × | E48: × | F48: × | G48: × | H48: × | I48: × | J48: × | K48: × | L48: × | M48: × | N48: × | O48: × | P48: × | Q48: × | R48: × | S48: 1 | T48: 1 | U48: 1 | V48: 1 | W48: 1 | X48: 1 | Y48: 1 | Z48: 1 | AA48: 1 | AB48: 1 | AC48: × | AD48: × | AE48: × | AF48: × | AG48: ×
C49: 44 | D49: × | E49: × | F49: × | G49: × | H49: × | I49: × | J49: × | K49: × | L49: × | M49: × | N49: × | O49: 1 | P49: 1 | Q49: 1 | R49: 1 | S49: 1 | T49: 1 | U49: 1 | V49: 1 | W49: 1 | X49: 1 | Y49: 1 | Z49: 1 | AA49: 1 | AB49: 1 | AC49: × | AD49: × | AE49: × | AF49: × | AG49: ×
C50: 45 | D50: × | E50: × | F50: × | G50: × | H50: 1 | I50: 1 | J50: 1 | K50: 1 | L50: 1 | M50: 1 | N50: 1 | O50: 1 | P50: 1 | Q50: 1 | R50: 1 | S50: 1 | T50: 1 | U50: 1 | V50: 1 | W50: 1 | X50: 1 | Y50: 1 | Z50: 1 | AA50: 1 | AB50: 1 | AC50: × | AD50: × | AE50: × | AF50: × | AG50: ×
C51: 46 | D51: 1 | E51: 1 | F51: 1 | G51: 1 | H51: 1 | I51: 1 | J51: 1 | K51: 1 | L51: 1 | M51: 1 | N51: 1 | O51: 1 | P51: 1 | Q51: 1 | R51: 1 | S51: 1 | T51: 1 | U51: 1 | V51: 1 | W51: 1 | X51: 1 | Y51: 1 | Z51: 1 | AA51: 1 | AB51: 1 | AC51: × | AD51: × | AE51: × | AF51: × | AG51: ×
C52: 47 | D52: 1 | E52: 1 | F52: 1 | G52: 1 | H52: 1 | I52: 1 | J52: 1 | K52: 1 | L52: 1 | M52: 1 | N52: 1 | O52: 1 | P52: 1 | Q52: 1 | R52: 1 | S52: 1 | T52: 1 | U52: 1 | V52: 1 | W52: 1 | X52: 1 | Y52: 1 | Z52: 1 | AA52: 1 | AB52: 1 | AC52: × | AD52: × | AE52: × | AF52: × | AG52: ×
C53: 48 | D53: 1 | E53: 1 | F53: 1 | G53: 1 | H53: 1 | I53: 1 | J53: 1 | K53: 1 | L53: 1 | M53: 1 | N53: 1 | O53: 1 | P53: 1 | Q53: 1 | R53: 1 | S53: 1 | T53: 1 | U53: 1 | V53: 1 | W53: 1 | X53: 1 | Y53: 1 | Z53: 1 | AA53: 1 | AB53: 1 | AC53: × | AD53: × | AE53: × | AF53: × | AG53: ×
C54: 49 | D54: 1 | E54: 1 | F54: 1 | G54: 1 | H54: 1 | I54: 1 | J54: 1 | K54: 1 | L54: 1 | M54: 1 | N54: 1 | O54: 1 | P54: 1 | Q54: 1 | R54: 1 | S54: 1 | T54: 1 | U54: 1 | V54: 1 | W54: 1 | X54: 1 | Y54: 1 | Z54: 1 | AA54: 1 | AB54: 1 | AC54: × | AD54: × | AE54: × | AF54: × | AG54: ×
C55: 50 | D55: 1 | E55: 1 | F55: 1 | G55: 1 | H55: 1 | I55: 1 | J55: 1 | K55: 1 | L55: 1 | M55: 1 | N55: 1 | O55: 1 | P55: 1 | Q55: 1 | R55: 1 | S55: 1 | T55: 1 | U55: 1 | V55: 1 | W55: 1 | X55: 1 | Y55: 1 | Z55: 1 | AA55: 1 | AB55: 1 | AC55: × | AD55: × | AE55: × | AF55: × | AG55: ×
B57: 製品 | C57: 連結バー１２００
D58: 蹴上
D59: 1 | E59: 2 | F59: 3 | G59: 4 | H59: 5 | I59: 6 | J59: 7 | K59: 8 | L59: 9 | M59: 10 | N59: 11 | O59: 12 | P59: 13 | Q59: 14 | R59: 15 | S59: 16 | T59: 17 | U59: 18 | V59: 19 | W59: 20 | X59: 21 | Y59: 22 | Z59: 23 | AA59: 24 | AB59: 25 | AC59: 26 | AD59: 27 | AE59: 28 | AF59: 29 | AG59: 30
B60: 踏面 | C60: 28 | D60: × | E60: × | F60: × | G60: × | H60: × | I60: × | J60: × | K60: × | L60: × | M60: × | N60: × | O60: × | P60: × | Q60: × | R60: × | S60: × | T60: × | U60: × | V60: × | W60: × | X60: × | Y60: × | Z60: × | AA60: × | AB60: × | AC60: × | AD60: × | AE60: × | AF60: × | AG60: ×
C61: 29 | D61: × | E61: × | F61: × | G61: × | H61: × | I61: × | J61: × | K61: × | L61: × | M61: × | N61: × | O61: × | P61: × | Q61: × | R61: × | S61: 3 | T61: × | U61: × | V61: × | W61: × | X61: × | Y61: × | Z61: × | AA61: × | AB61: × | AC61: × | AD61: × | AE61: × | AF61: × | AG61: ×
C62: 30 | D62: × | E62: × | F62: × | G62: × | H62: × | I62: × | J62: × | K62: × | L62: × | M62: × | N62: × | O62: × | P62: × | Q62: 3 | R62: 3 | S62: × | T62: × | U62: × | V62: × | W62: × | X62: × | Y62: × | Z62: × | AA62: × | AB62: × | AC62: × | AD62: × | AE62: × | AF62: × | AG62: ×
C63: 31 | D63: × | E63: × | F63: × | G63: × | H63: × | I63: × | J63: × | K63: × | L63: × | M63: × | N63: × | O63: 3 | P63: 3 | Q63: 3 | R63: × | S63: × | T63: × | U63: × | V63: × | W63: × | X63: × | Y63: × | Z63: × | AA63: × | AB63: × | AC63: × | AD63: × | AE63: × | AF63: × | AG63: ×
C64: 32 | D64: × | E64: × | F64: × | G64: × | H64: × | I64: × | J64: × | K64: × | L64: 3 | M64: 3 | N64: 3 | O64: 3 | P64: 3 | Q64: × | R64: × | S64: × | T64: × | U64: × | V64: × | W64: × | X64: × | Y64: × | Z64: × | AA64: × | AB64: × | AC64: × | AD64: × | AE64: × | AF64: × | AG64: ×
C65: 33 | D65: × | E65: × | F65: 3 | G65: 3 | H65: 3 | I65: 3 | J65: 3 | K65: 3 | L65: 3 | M65: 3 | N65: 3 | O65: 3 | P65: × | Q65: × | R65: × | S65: × | T65: × | U65: × | V65: × | W65: × | X65: × | Y65: × | Z65: × | AA65: × | AB65: × | AC65: × | AD65: × | AE65: × | AF65: × | AG65: ×
C66: 34 | D66: 3 | E66: 3 | F66: 3 | G66: 3 | H66: 3 | I66: 3 | J66: 3 | K66: 3 | L66: 3 | M66: × | N66: × | O66: × | P66: × | Q66: × | R66: × | S66: × | T66: × | U66: × | V66: × | W66: × | X66: × | Y66: × | Z66: × | AA66: × | AB66: × | AC66: × | AD66: × | AE66: × | AF66: × | AG66: ×
C67: 35 | D67: 3 | E67: 3 | F67: 3 | G67: 3 | H67: 3 | I67: 3 | J67: 3 | K67: × | L67: × | M67: × | N67: × | O67: × | P67: × | Q67: × | R67: × | S67: × | T67: × | U67: × | V67: × | W67: × | X67: × | Y67: × | Z67: × | AA67: × | AB67: × | AC67: × | AD67: × | AE67: × | AF67: × | AG67: ×
C68: 36 | D68: 3 | E68: 3 | F68: 3 | G68: 3 | H68: × | I68: × | J68: × | K68: × | L68: × | M68: × | N68: × | O68: × | P68: × | Q68: × | R68: × | S68: × | T68: × | U68: × | V68: × | W68: × | X68: × | Y68: 2 | Z68: 2 | AA68: × | AB68: × | AC68: × | AD68: × | AE68: × | AF68: × | AG68: ×
C69: 37 | D69: × | E69: × | F69: × | G69: × | H69: × | I69: × | J69: × | K69: × | L69: × | M69: × | N69: × | O69: × | P69: × | Q69: × | R69: × | S69: × | T69: × | U69: × | V69: × | W69: 2 | X69: 2 | Y69: 2 | Z69: 2 | AA69: × | AB69: × | AC69: × | AD69: × | AE69: × | AF69: × | AG69: ×
C70: 38 | D70: × | E70: × | F70: × | G70: × | H70: × | I70: × | J70: × | K70: × | L70: × | M70: × | N70: × | O70: × | P70: × | Q70: × | R70: × | S70: × | T70: × | U70: 2 | V70: 2 | W70: 2 | X70: 2 | Y70: 2 | Z70: 2 | AA70: × | AB70: × | AC70: × | AD70: × | AE70: × | AF70: × | AG70: ×
C71: 39 | D71: × | E71: × | F71: × | G71: × | H71: × | I71: × | J71: × | K71: × | L71: × | M71: × | N71: × | O71: × | P71: × | Q71: × | R71: 2 | S71: 2 | T71: 2 | U71: 2 | V71: 2 | W71: 2 | X71: 2 | Y71: 2 | Z71: 2 | AA71: × | AB71: × | AC71: × | AD71: × | AE71: × | AF71: × | AG71: ×
C72: 40 | D72: × | E72: × | F72: × | G72: × | H72: × | I72: × | J72: × | K72: × | L72: × | M72: × | N72: × | O72: 2 | P72: 2 | Q72: 2 | R72: 2 | S72: 2 | T72: 2 | U72: 2 | V72: 2 | W72: 2 | X72: 2 | Y72: 2 | Z72: 2 | AA72: × | AB72: × | AC72: × | AD72: × | AE72: × | AF72: × | AG72: ×
C73: 41 | D73: × | E73: × | F73: × | G73: × | H73: × | I73: 2 | J73: 2 | K73: 2 | L73: 2 | M73: 2 | N73: 2 | O73: 2 | P73: 2 | Q73: 2 | R73: 2 | S73: 2 | T73: 2 | U73: 2 | V73: 2 | W73: 2 | X73: 2 | Y73: 2 | Z73: 2 | AA73: × | AB73: × | AC73: × | AD73: × | AE73: × | AF73: × | AG73: ×
C74: 42 | D74: 2 | E74: 2 | F74: 2 | G74: 2 | H74: 2 | I74: 2 | J74: 2 | K74: 2 | L74: 2 | M74: 2 | N74: 2 | O74: 2 | P74: 2 | Q74: 2 | R74: 2 | S74: 2 | T74: 2 | U74: 2 | V74: 2 | W74: 2 | X74: 2 | Y74: 2 | Z74: 2 | AA74: × | AB74: × | AC74: × | AD74: × | AE74: × | AF74: × | AG74: ×
C75: 43 | D75: 2 | E75: 2 | F75: 2 | G75: 2 | H75: 2 | I75: 2 | J75: 2 | K75: 2 | L75: 2 | M75: 2 | N75: 2 | O75: 2 | P75: 2 | Q75: 2 | R75: 2 | S75: 2 | T75: 2 | U75: 2 | V75: 2 | W75: 2 | X75: 2 | Y75: 2 | Z75: × | AA75: × | AB75: × | AC75: × | AD75: × | AE75: × | AF75: × | AG75: ×
C76: 44 | D76: 2 | E76: 2 | F76: 2 | G76: 2 | H76: 2 | I76: 2 | J76: 2 | K76: 2 | L76: 2 | M76: 2 | N76: 2 | O76: 2 | P76: 2 | Q76: 2 | R76: 2 | S76: 2 | T76: 2 | U76: 2 | V76: 2 | W76: 2 | X76: 2 | Y76: × | Z76: × | AA76: × | AB76: × | AC76: × | AD76: × | AE76: × | AF76: × | AG76: ×
C77: 45 | D77: 2 | E77: 2 | F77: 2 | G77: 2 | H77: 2 | I77: 2 | J77: 2 | K77: 2 | L77: 2 | M77: 2 | N77: 2 | O77: 2 | P77: 2 | Q77: 2 | R77: 2 | S77: 2 | T77: 2 | U77: 2 | V77: 2 | W77: 2 | X77: × | Y77: × | Z77: × | AA77: × | AB77: × | AC77: × | AD77: × | AE77: × | AF77: × | AG77: ×
C78: 46 | D78: 2 | E78: 2 | F78: 2 | G78: 2 | H78: 2 | I78: 2 | J78: 2 | K78: 2 | L78: 2 | M78: 2 | N78: 2 | O78: 2 | P78: 2 | Q78: 2 | R78: 2 | S78: 2 | T78: 2 | U78: 2 | V78: 2 | W78: × | X78: × | Y78: × | Z78: × | AA78: × | AB78: × | AC78: × | AD78: × | AE78: × | AF78: × | AG78: ×
C79: 47 | D79: 2 | E79: 2 | F79: 2 | G79: 2 | H79: 2 | I79: 2 | J79: 2 | K79: 2 | L79: 2 | M79: 2 | N79: 2 | O79: 2 | P79: 2 | Q79: 2 | R79: 2 | S79: 2 | T79: 2 | U79: 2 | V79: × | W79: × | X79: × | Y79: × | Z79: × | AA79: × | AB79: × | AC79: × | AD79: × | AE79: × | AF79: × | AG79: ×
C80: 48 | D80: 2 | E80: 2 | F80: 2 | G80: 2 | H80: 2 | I80: 2 | J80: 2 | K80: 2 | L80: 2 | M80: 2 | N80: 2 | O80: 2 | P80: 2 | Q80: 2 | R80: 2 | S80: 2 | T80: 2 | U80: × | V80: × | W80: × | X80: × | Y80: × | Z80: × | AA80: × | AB80: × | AC80: × | AD80: × | AE80: × | AF80: × | AG80: ×
C81: 49 | D81: 2 | E81: 2 | F81: 2 | G81: 2 | H81: 2 | I81: 2 | J81: 2 | K81: 2 | L81: 2 | M81: 2 | N81: 2 | O81: 2 | P81: 2 | Q81: 2 | R81: 2 | S81: 2 | T81: × | U81: × | V81: × | W81: × | X81: × | Y81: × | Z81: × | AA81: × | AB81: × | AC81: × | AD81: × | AE81: × | AF81: × | AG81: ×
C82: 50 | D82: 2 | E82: 2 | F82: 2 | G82: 2 | H82: 2 | I82: 2 | J82: 2 | K82: 2 | L82: 2 | M82: 2 | N82: 2 | O82: 2 | P82: 2 | Q82: 2 | R82: × | S82: × | T82: × | U82: × | V82: × | W82: × | X82: × | Y82: × | Z82: × | AA82: × | AB82: × | AC82: × | AD82: × | AE82: 1 | AF82: 1 | AG82: 1
B84: 製品 | C84: 連結バーウェーブS | P84: 対応段差：35～55（水平角度7.05°）
D85: 蹴上
D86: 1 | E86: 2 | F86: 3 | G86: 4 | H86: 5 | I86: 6 | J86: 7 | K86: 8 | L86: 9 | M86: 10 | N86: 11 | O86: 12 | P86: 13 | Q86: 14 | R86: 15 | S86: 16 | T86: 17 | U86: 18 | V86: 19 | W86: 20 | X86: 21 | Y86: 22 | Z86: 23 | AA86: 24 | AB86: 25 | AC86: 26 | AD86: 27 | AE86: 28 | AF86: 29 | AG86: 30
B87: 踏面 | C87: 28 | D87: × | E87: × | F87: × | G87: × | H87: × | I87: × | J87: × | K87: × | L87: × | M87: × | N87: × | O87: 3 | P87: × | Q87: × | R87: × | S87: × | T87: × | U87: × | V87: × | W87: × | X87: × | Y87: × | Z87: × | AA87: × | AB87: × | AC87: × | AD87: × | AE87: × | AF87: × | AG87: ×
C88: 29 | D88: × | E88: × | F88: × | G88: × | H88: × | I88: × | J88: × | K88: × | L88: × | M88: 3 | N88: × | O88: × | P88: × | Q88: × | R88: × | S88: × | T88: × | U88: × | V88: × | W88: × | X88: × | Y88: × | Z88: × | AA88: × | AB88: × | AC88: × | AD88: × | AE88: × | AF88: × | AG88: ×
C89: 30 | D89: × | E89: × | F89: × | G89: × | H89: × | I89: × | J89: × | K89: × | L89: × | M89: × | N89: × | O89: × | P89: × | Q89: × | R89: × | S89: × | T89: × | U89: × | V89: × | W89: × | X89: × | Y89: × | Z89: × | AA89: × | AB89: × | AC89: × | AD89: × | AE89: × | AF89: × | AG89: ×
C90: 31 | D90: × | E90: × | F90: × | G90: × | H90: × | I90: × | J90: × | K90: × | L90: × | M90: × | N90: × | O90: × | P90: × | Q90: × | R90: × | S90: × | T90: × | U90: × | V90: × | W90: × | X90: × | Y90: × | Z90: × | AA90: × | AB90: × | AC90: × | AD90: × | AE90: × | AF90: × | AG90: ×
C91: 32 | D91: × | E91: × | F91: × | G91: × | H91: × | I91: × | J91: × | K91: × | L91: × | M91: × | N91: × | O91: × | P91: × | Q91: × | R91: × | S91: × | T91: × | U91: × | V91: × | W91: × | X91: × | Y91: × | Z91: × | AA91: × | AB91: × | AC91: × | AD91: × | AE91: × | AF91: × | AG91: ×
C92: 33 | D92: × | E92: × | F92: × | G92: × | H92: × | I92: × | J92: × | K92: × | L92: × | M92: × | N92: × | O92: × | P92: × | Q92: × | R92: × | S92: × | T92: × | U92: × | V92: × | W92: × | X92: × | Y92: × | Z92: × | AA92: × | AB92: × | AC92: × | AD92: × | AE92: × | AF92: × | AG92: ×
C93: 34 | D93: × | E93: × | F93: × | G93: × | H93: × | I93: × | J93: × | K93: × | L93: × | M93: × | N93: × | O93: × | P93: × | Q93: × | R93: × | S93: × | T93: × | U93: × | V93: × | W93: × | X93: × | Y93: × | Z93: × | AA93: × | AB93: × | AC93: × | AD93: × | AE93: × | AF93: × | AG93: ×
C94: 35 | D94: × | E94: × | F94: × | G94: × | H94: × | I94: × | J94: × | K94: × | L94: × | M94: × | N94: × | O94: × | P94: × | Q94: × | R94: × | S94: 2 | T94: 2 | U94: 2 | V94: × | W94: × | X94: × | Y94: × | Z94: × | AA94: × | AB94: × | AC94: × | AD94: × | AE94: × | AF94: × | AG94: ×
C95: 36 | D95: × | E95: × | F95: × | G95: × | H95: × | I95: × | J95: × | K95: × | L95: × | M95: × | N95: × | O95: × | P95: × | Q95: 2 | R95: 2 | S95: 2 | T95: 2 | U95: 2 | V95: × | W95: × | X95: × | Y95: × | Z95: × | AA95: × | AB95: × | AC95: × | AD95: × | AE95: × | AF95: × | AG95: ×
C96: 37 | D96: × | E96: × | F96: × | G96: × | H96: × | I96: × | J96: × | K96: × | L96: × | M96: × | N96: × | O96: 2 | P96: 2 | Q96: 2 | R96: 2 | S96: 2 | T96: 2 | U96: 2 | V96: × | W96: × | X96: × | Y96: × | Z96: × | AA96: × | AB96: × | AC96: × | AD96: × | AE96: × | AF96: × | AG96: ×
C97: 38 | D97: × | E97: × | F97: × | G97: × | H97: × | I97: × | J97: × | K97: × | L97: × | M97: × | N97: × | O97: 2 | P97: 2 | Q97: 2 | R97: 2 | S97: 2 | T97: 2 | U97: 2 | V97: × | W97: × | X97: × | Y97: × | Z97: × | AA97: × | AB97: × | AC97: × | AD97: × | AE97: × | AF97: × | AG97: ×
C98: 39 | D98: × | E98: × | F98: × | G98: × | H98: × | I98: × | J98: × | K98: × | L98: × | M98: × | N98: × | O98: 2 | P98: 2 | Q98: 2 | R98: 2 | S98: 2 | T98: 2 | U98: 2 | V98: × | W98: × | X98: × | Y98: × | Z98: × | AA98: × | AB98: × | AC98: × | AD98: × | AE98: × | AF98: × | AG98: ×
C99: 40 | D99: × | E99: × | F99: × | G99: × | H99: × | I99: × | J99: × | K99: × | L99: × | M99: × | N99: × | O99: 2 | P99: 2 | Q99: 2 | R99: 2 | S99: 2 | T99: 2 | U99: 2 | V99: × | W99: × | X99: × | Y99: × | Z99: × | AA99: × | AB99: × | AC99: × | AD99: × | AE99: × | AF99: × | AG99: ×
C100: 41 | D100: × | E100: × | F100: × | G100: × | H100: × | I100: × | J100: × | K100: × | L100: × | M100: × | N100: × | O100: 2 | P100: 2 | Q100: 2 | R100: 2 | S100: 2 | T100: 2 | U100: × | V100: × | W100: × | X100: × | Y100: × | Z100: × | AA100: × | AB100: × | AC100: × | AD100: × | AE100: × | AF100: × | AG100: ×
C101: 42 | D101: × | E101: × | F101: × | G101: × | H101: × | I101: × | J101: × | K101: × | L101: × | M101: × | N101: × | O101: 2 | P101: 2 | Q101: 2 | R101: 2 | S101: 2 | T101: × | U101: × | V101: × | W101: × | X101: × | Y101: × | Z101: × | AA101: × | AB101: × | AC101: × | AD101: × | AE101: × | AF101: × | AG101: ×
C102: 43 | D102: × | E102: × | F102: × | G102: × | H102: × | I102: × | J102: × | K102: × | L102: × | M102: × | N102: × | O102: 2 | P102: 2 | Q102: 2 | R102: × | S102: × | T102: × | U102: × | V102: × | W102: × | X102: × | Y102: × | Z102: × | AA102: × | AB102: × | AC102: × | AD102: × | AE102: × | AF102: × | AG102: ×
C103: 44 | D103: × | E103: × | F103: × | G103: × | H103: × | I103: × | J103: × | K103: × | L103: × | M103: × | N103: × | O103: 2 | P103: 2 | Q103: × | R103: × | S103: × | T103: × | U103: × | V103: × | W103: × | X103: × | Y103: × | Z103: × | AA103: × | AB103: × | AC103: × | AD103: × | AE103: × | AF103: × | AG103: ×
C104: 45 | D104: × | E104: × | F104: × | G104: × | H104: × | I104: × | J104: × | K104: × | L104: × | M104: × | N104: × | O104: × | P104: × | Q104: × | R104: × | S104: × | T104: × | U104: × | V104: × | W104: × | X104: × | Y104: × | Z104: × | AA104: × | AB104: × | AC104: × | AD104: × | AE104: × | AF104: × | AG104: ×
C105: 46 | D105: × | E105: × | F105: × | G105: × | H105: × | I105: × | J105: × | K105: × | L105: × | M105: × | N105: × | O105: × | P105: × | Q105: × | R105: × | S105: × | T105: × | U105: × | V105: × | W105: × | X105: × | Y105: × | Z105: × | AA105: × | AB105: × | AC105: 1 | AD105: 1 | AE105: × | AF105: × | AG105: ×
C106: 47 | D106: × | E106: × | F106: × | G106: × | H106: × | I106: × | J106: × | K106: × | L106: × | M106: × | N106: × | O106: × | P106: × | Q106: × | R106: × | S106: × | T106: × | U106: × | V106: × | W106: × | X106: × | Y106: × | Z106: × | AA106: 1 | AB106: 1 | AC106: 1 | AD106: 1 | AE106: × | AF106: × | AG106: ×
C107: 48 | D107: × | E107: × | F107: × | G107: × | H107: × | I107: × | J107: × | K107: × | L107: × | M107: × | N107: × | O107: × | P107: × | Q107: × | R107: × | S107: × | T107: × | U107: × | V107: × | W107: × | X107: 1 | Y107: 1 | Z107: 1 | AA107: 1 | AB107: 1 | AC107: 1 | AD107: 1 | AE107: × | AF107: × | AG107: ×
C108: 49 | D108: × | E108: × | F108: × | G108: × | H108: × | I108: × | J108: × | K108: × | L108: × | M108: × | N108: × | O108: × | P108: × | Q108: × | R108: × | S108: × | T108: × | U108: 1 | V108: 1 | W108: 1 | X108: 1 | Y108: 1 | Z108: 1 | AA108: 1 | AB108: 1 | AC108: 1 | AD108: 1 | AE108: × | AF108: × | AG108: ×
C109: 50 | D109: × | E109: × | F109: × | G109: × | H109: × | I109: × | J109: × | K109: × | L109: × | M109: × | N109: × | O109: × | P109: × | Q109: × | R109: × | S109: × | T109: × | U109: 1 | V109: 1 | W109: 1 | X109: 1 | Y109: 1 | Z109: 1 | AA109: 1 | AB109: 1 | AC109: 1 | AD109: 1 | AE109: × | AF109: × | AG109: ×
B111: 製品 | C111: 連結バーウェーブ | P111: 対応段差：47～72（水平角度7.05°）
D112: 蹴上
D113: 1 | E113: 2 | F113: 3 | G113: 4 | H113: 5 | I113: 6 | J113: 7 | K113: 8 | L113: 9 | M113: 10 | N113: 11 | O113: 12 | P113: 13 | Q113: 14 | R113: 15 | S113: 16 | T113: 17 | U113: 18 | V113: 19 | W113: 20 | X113: 21 | Y113: 22 | Z113: 23 | AA113: 24 | AB113: 25 | AC113: 26 | AD113: 27 | AE113: 28 | AF113: 29 | AG113: 30
B114: 踏面 | C114: 28 | D114: × | E114: × | F114: × | G114: × | H114: × | I114: × | J114: × | K114: × | L114: × | M114: × | N114: × | O114: × | P114: × | Q114: × | R114: × | S114: × | T114: × | U114: × | V114: × | W114: × | X114: × | Y114: × | Z114: × | AA114: × | AB114: × | AC114: × | AD114: × | AE114: × | AF114: × | AG114: ×
C115: 29 | D115: × | E115: × | F115: × | G115: × | H115: × | I115: × | J115: × | K115: × | L115: × | M115: × | N115: × | O115: × | P115: × | Q115: × | R115: × | S115: × | T115: × | U115: × | V115: × | W115: × | X115: × | Y115: × | Z115: × | AA115: × | AB115: × | AC115: × | AD115: × | AE115: × | AF115: × | AG115: ×
C116: 30 | D116: × | E116: × | F116: × | G116: × | H116: × | I116: × | J116: × | K116: × | L116: × | M116: × | N116: × | O116: × | P116: × | Q116: × | R116: × | S116: × | T116: × | U116: × | V116: × | W116: × | X116: × | Y116: × | Z116: × | AA116: × | AB116: × | AC116: × | AD116: × | AE116: × | AF116: × | AG116: ×
C117: 31 | D117: × | E117: × | F117: × | G117: × | H117: × | I117: × | J117: × | K117: × | L117: × | M117: × | N117: × | O117: × | P117: × | Q117: × | R117: × | S117: × | T117: × | U117: × | V117: × | W117: × | X117: × | Y117: × | Z117: × | AA117: × | AB117: × | AC117: × | AD117: × | AE117: × | AF117: × | AG117: ×
C118: 32 | D118: × | E118: × | F118: × | G118: × | H118: × | I118: × | J118: × | K118: × | L118: × | M118: × | N118: × | O118: × | P118: × | Q118: × | R118: × | S118: × | T118: 3 | U118: × | V118: × | W118: × | X118: × | Y118: × | Z118: × | AA118: × | AB118: × | AC118: × | AD118: × | AE118: × | AF118: × | AG118: ×
C119: 33 | D119: × | E119: × | F119: × | G119: × | H119: × | I119: × | J119: × | K119: × | L119: × | M119: × | N119: × | O119: × | P119: × | Q119: × | R119: 3 | S119: 3 | T119: 3 | U119: × | V119: × | W119: × | X119: × | Y119: × | Z119: × | AA119: × | AB119: × | AC119: × | AD119: × | AE119: × | AF119: × | AG119: ×
C120: 34 | D120: × | E120: × | F120: × | G120: × | H120: × | I120: × | J120: × | K120: × | L120: × | M120: × | N120: × | O120: × | P120: 3 | Q120: 3 | R120: 3 | S120: 3 | T120: 3 | U120: × | V120: × | W120: × | X120: × | Y120: × | Z120: × | AA120: × | AB120: × | AC120: × | AD120: × | AE120: × | AF120: × | AG120: ×
C121: 35 | D121: × | E121: × | F121: × | G121: × | H121: × | I121: × | J121: × | K121: × | L121: × | M121: × | N121: × | O121: 3 | P121: 3 | Q121: 3 | R121: 3 | S121: 3 | T121: × | U121: × | V121: × | W121: × | X121: × | Y121: × | Z121: × | AA121: × | AB121: × | AC121: × | AD121: × | AE121: × | AF121: × | AG121: ×
C122: 36 | D122: × | E122: × | F122: × | G122: × | H122: × | I122: × | J122: × | K122: × | L122: × | M122: × | N122: × | O122: 3 | P122: 3 | Q122: 3 | R122: 3 | S122: × | T122: × | U122: × | V122: × | W122: × | X122: × | Y122: × | Z122: × | AA122: × | AB122: × | AC122: × | AD122: × | AE122: × | AF122: × | AG122: ×
C123: 37 | D123: × | E123: × | F123: × | G123: × | H123: × | I123: × | J123: × | K123: × | L123: × | M123: × | N123: × | O123: 3 | P123: 3 | Q123: × | R123: × | S123: × | T123: × | U123: × | V123: × | W123: × | X123: × | Y123: × | Z123: × | AA123: × | AB123: × | AC123: × | AD123: × | AE123: × | AF123: × | AG123: ×
C124: 38 | D124: × | E124: × | F124: × | G124: × | H124: × | I124: × | J124: × | K124: × | L124: × | M124: × | N124: × | O124: 3 | P124: × | Q124: × | R124: × | S124: × | T124: × | U124: × | V124: × | W124: × | X124: × | Y124: × | Z124: × | AA124: × | AB124: × | AC124: × | AD124: × | AE124: × | AF124: × | AG124: ×
C125: 39 | D125: × | E125: × | F125: × | G125: × | H125: × | I125: × | J125: × | K125: × | L125: × | M125: × | N125: × | O125: × | P125: × | Q125: × | R125: × | S125: × | T125: × | U125: × | V125: × | W125: × | X125: × | Y125: × | Z125: × | AA125: × | AB125: × | AC125: × | AD125: × | AE125: × | AF125: × | AG125: ×
C126: 40 | D126: × | E126: × | F126: × | G126: × | H126: × | I126: × | J126: × | K126: × | L126: × | M126: × | N126: × | O126: × | P126: × | Q126: × | R126: × | S126: × | T126: × | U126: × | V126: × | W126: × | X126: × | Y126: × | Z126: 2 | AA126: 2 | AB126: × | AC126: × | AD126: × | AE126: × | AF126: × | AG126: ×
C127: 41 | D127: × | E127: × | F127: × | G127: × | H127: × | I127: × | J127: × | K127: × | L127: × | M127: × | N127: × | O127: × | P127: × | Q127: × | R127: × | S127: × | T127: × | U127: × | V127: × | W127: × | X127: 2 | Y127: 2 | Z127: 2 | AA127: 2 | AB127: × | AC127: × | AD127: × | AE127: × | AF127: × | AG127: ×
C128: 42 | D128: × | E128: × | F128: × | G128: × | H128: × | I128: × | J128: × | K128: × | L128: × | M128: × | N128: × | O128: × | P128: × | Q128: × | R128: × | S128: × | T128: × | U128: 2 | V128: 2 | W128: 2 | X128: 2 | Y128: 2 | Z128: 2 | AA128: 2 | AB128: × | AC128: × | AD128: × | AE128: × | AF128: × | AG128: ×
C129: 43 | D129: × | E129: × | F129: × | G129: × | H129: × | I129: × | J129: × | K129: × | L129: × | M129: × | N129: × | O129: × | P129: × | Q129: × | R129: × | S129: 2 | T129: 2 | U129: 2 | V129: 2 | W129: 2 | X129: 2 | Y129: 2 | Z129: 2 | AA129: 2 | AB129: × | AC129: × | AD129: × | AE129: × | AF129: × | AG129: ×
C130: 44 | D130: × | E130: × | F130: × | G130: × | H130: × | I130: × | J130: × | K130: × | L130: × | M130: × | N130: × | O130: × | P130: × | Q130: × | R130: × | S130: 2 | T130: 2 | U130: 2 | V130: 2 | W130: 2 | X130: 2 | Y130: 2 | Z130: 2 | AA130: 2 | AB130: × | AC130: × | AD130: × | AE130: × | AF130: × | AG130: ×
C131: 45 | D131: × | E131: × | F131: × | G131: × | H131: × | I131: × | J131: × | K131: × | L131: × | M131: × | N131: × | O131: × | P131: × | Q131: × | R131: × | S131: 2 | T131: 2 | U131: 2 | V131: 2 | W131: 2 | X131: 2 | Y131: 2 | Z131: 2 | AA131: 2 | AB131: × | AC131: × | AD131: × | AE131: × | AF131: × | AG131: ×
C132: 46 | D132: × | E132: × | F132: × | G132: × | H132: × | I132: × | J132: × | K132: × | L132: × | M132: × | N132: × | O132: × | P132: × | Q132: × | R132: × | S132: 2 | T132: 2 | U132: 2 | V132: 2 | W132: 2 | X132: 2 | Y132: 2 | Z132: 2 | AA132: 2 | AB132: × | AC132: × | AD132: × | AE132: × | AF132: × | AG132: ×
C133: 47 | D133: × | E133: × | F133: × | G133: × | H133: × | I133: × | J133: × | K133: × | L133: × | M133: × | N133: × | O133: × | P133: × | Q133: × | R133: × | S133: 2 | T133: 2 | U133: 2 | V133: 2 | W133: 2 | X133: 2 | Y133: 2 | Z133: 2 | AA133: 2 | AB133: × | AC133: × | AD133: × | AE133: × | AF133: × | AG133: ×
C134: 48 | D134: × | E134: × | F134: × | G134: × | H134: × | I134: × | J134: × | K134: × | L134: × | M134: × | N134: × | O134: × | P134: × | Q134: × | R134: × | S134: 2 | T134: 2 | U134: 2 | V134: 2 | W134: 2 | X134: 2 | Y134: 2 | Z134: 2 | AA134: 2 | AB134: × | AC134: × | AD134: × | AE134: × | AF134: × | AG134: ×
C135: 49 | D135: × | E135: × | F135: × | G135: × | H135: × | I135: × | J135: × | K135: × | L135: × | M135: × | N135: × | O135: × | P135: × | Q135: × | R135: × | S135: 2 | T135: 2 | U135: 2 | V135: 2 | W135: 2 | X135: 2 | Y135: 2 | Z135: 2 | AA135: 2 | AB135: × | AC135: × | AD135: × | AE135: × | AF135: × | AG135: ×
C136: 50 | D136: × | E136: × | F136: × | G136: × | H136: × | I136: × | J136: × | K136: × | L136: × | M136: × | N136: × | O136: × | P136: × | Q136: × | R136: × | S136: 2 | T136: 2 | U136: 2 | V136: 2 | W136: 2 | X136: 2 | Y136: 2 | Z136: 2 | AA136: 2 | AB136: × | AC136: × | AD136: × | AE136: × | AF136: × | AG136: ×

Sheet S+Sﾁｪｯｸ関数 (hidden)
B1: 【ショート同士の連結】
B17: 【１段飛ばして連結】
AI28: 蹴上
D29: 最小 | F29: 最大 | H29: 10 | K29: 20 | N29: 30 | Q29: 40 | T29: 50 | W29: 60 | Z29: 70 | AC29: 80 | AF29: 90 | AI29: 100 | AL29: 110 | AO29: 120 | AR29: 130 | AU29: 140 | AX29: 150 | BA29: 160 | BD29: 170 | BG29: 180 | BJ29: 190 | BM29: 200 | BP29: 210 | BS29: 220 | BV29: 230 | BY29: 240 | CB29: 250 | CE29: 260 | CH29: 270 | CK29: 280 | CN29: 290 | CQ29: 300
D30: ⑥ | E30: ③ | F30: ⑥ | G30: ③ | H30: =H29*2 -> 20 | J30: =H29*2 -> 20 | K30: =K29*2 -> 40 | M30: =K29*2 -> 40 | N30: =N29*2 -> 60 | P30: =N29*2 -> 60 | Q30: =Q29*2 -> 80 | S30: =Q29*2 -> 80 | T30: =T29*2 -> 100 | V30: =T29*2 -> 100 | W30: =W29*2 -> 120 | Y30: =W29*2 -> 120 | Z30: =Z29*2 -> 140 | AB30: =Z29*2 -> 140 | AC30: =AC29*2 -> 160 | AE30: =AC29*2 -> 160 | AF30: =AF29*2 -> 180 | AH30: =AF29*2 -> 180 | AI30: 200 | AK30: 200 | AL30: 220 | AN30: 220 | AO30: 240 | AQ30: 240 | AR30: 260 | AT30: 260 | AU30: 280 | AW30: 280 | AX30: 300 | AZ30: 300 | BA30: 320 | BC30: 320 | BD30: 340 | BF30: 340 | BG30: 360 | BI30: 360 | BJ30: 380 | BL30: 380 | BM30: 400 | BO30: 400 | BP30: 420 | BR30: 420 | BS30: 440 | BU30: 440 | BV30: 460 | BX30: 460 | BY30: 480 | CA30: 480 | CB30: 500 | CD30: 500 | CE30: 520 | CG30: 520 | CH30: 540 | CJ30: 540 | CK30: 560 | CM30: 560 | CN30: 580 | CP30: 580 | CQ30: 600 | CS30: 600
B31: 踏面 | C31: 280 | D31: 280 | E31: =D31+75*2-79.9*2 -> 270.2 | F31: =(D31-280)*2+D31 -> 280 | G31: =F31+75*2-79.9*2 -> 270.2 | H31: =(($E31^2+H$30^2)^0.5) -> 270.9391814 | I31: ～ | J31: =(($G31^2+J$30^2)^0.5) -> 270.9391814 | K31: =(($E31^2+K$30^2)^0.5) -> 273.1447235 | L31: ～ | M31: =(($G31^2+M$30^2)^0.5) -> 273.1447235 | N31: =(($E31^2+N$30^2)^0.5) -> 276.7815745 | O31: ～ | P31: =(($G31^2+P$30^2)^0.5) -> 276.7815745 | Q31: =(($E31^2+Q$30^2)^0.5) -> 281.7943222 | R31: ～ | S31: =(($G31^2+S$30^2)^0.5) -> 281.7943222 | T31: =(($E31^2+T$30^2)^0.5) -> 288.1111591 | U31: ～ | V31: =(($G31^2+V$30^2)^0.5) -> 288.1111591 | W31: =(($E31^2+W$30^2)^0.5) -> 295.6485075 | X31: ～ | Y31: =(($G31^2+Y$30^2)^0.5) -> 295.6485075 | Z31: =(($E31^2+Z$30^2)^0.5) -> 304.3156913 | AA31: ～ | AB31: =(($G31^2+AB$30^2)^0.5) -> 304.3156913 | AC31: =(($E31^2+AC$30^2)^0.5) -> 314.0191714 | AD31: ～ | AE31: =(($G31^2+AE$30^2)^0.5) -> 314.0191714 | AF31: =(($E31^2+AF$30^2)^0.5) -> 324.6660438 | AG31: ～ | AH31: =(($G31^2+AH$30^2)^0.5) -> 324.6660438 | AI31: =(($E31^2+AI$30^2)^0.5) -> 336.1666848 | AJ31: ～ | AK31: =(($G31^2+AK$30^2)^0.5) -> 336.1666848 | AL31: =(($E31^2+AL$30^2)^0.5) -> 348.4365652 | AM31: ～ | AN31: =(($G31^2+AN$30^2)^0.5) -> 348.4365652 | AO31: =(($E31^2+AO$30^2)^0.5) -> 361.3973437 | AP31: ～ | AQ31: =(($G31^2+AQ$30^2)^0.5) -> 361.3973437 | AR31: =(($E31^2+AR$30^2)^0.5) -> 374.977386 | AS31: ～ | AT31: =(($G31^2+AT$30^2)^0.5) -> 374.977386 | AU31: =(($E31^2+AU$30^2)^0.5) -> 389.1118605 | AV31: ～ | AW31: =(($G31^2+AW$30^2)^0.5) -> 389.1118605 | AX31: =(($E31^2+AX$30^2)^0.5) -> 403.7425417 | AY31: ～ | AZ31: =(($G31^2+AZ$30^2)^0.5) -> 403.7425417 | BA31: =(($E31^2+BA$30^2)^0.5) -> 418.8174304 | BB31: ～ | BC31: =(($G31^2+BC$30^2)^0.5) -> 418.8174304 | BD31: =(($E31^2+BD$30^2)^0.5) -> 434.2902716 | BE31: ～ | BF31: =(($G31^2+BF$30^2)^0.5) -> 434.2902716 | BG31: =(($E31^2+BG$30^2)^0.5) -> 450.1200284 | BH31: ～ | BI31: =(($G31^2+BI$30^2)^0.5) -> 450.1200284 | BJ31: =(($E31^2+BJ$30^2)^0.5) -> 466.2703508 | BK31: ～ | BL31: =(($G31^2+BL$30^2)^0.5) -> 466.2703508 | BM31: =(($E31^2+BM$30^2)^0.5) -> 482.7090635 | BN31: ～ | BO31: =(($G31^2+BO$30^2)^0.5) -> 482.7090635 | BP31: =(($E31^2+BP$30^2)^0.5) -> 499.4076892 | BQ31: ～ | BR31: =(($G31^2+BR$30^2)^0.5) -> 499.4076892 | BS31: =(($E31^2+BS$30^2)^0.5) -> 516.3410113 | BT31: ～ | BU31: =(($G31^2+BU$30^2)^0.5) -> 516.3410113 | BV31: =(($E31^2+BV$30^2)^0.5) -> 533.4866821 | BW31: ～ | BX31: =(($G31^2+BX$30^2)^0.5) -> 533.4866821 | BY31: =(($E31^2+BY$30^2)^0.5) -> 550.8248724 | BZ31: ～ | CA31: =(($G31^2+CA$30^2)^0.5) -> 550.8248724 | CB31: =(($E31^2+CB$30^2)^0.5) -> 568.3379628 | CC31: ～ | CD31: =(($G31^2+CD$30^2)^0.5) -> 568.3379628 | CE31: =(($E31^2+CE$30^2)^0.5) -> 586.0102729 | CF31: ～ | CG31: =(($G31^2+CG$30^2)^0.5) -> 586.0102729 | CH31: =(($E31^2+CH$30^2)^0.5) -> 603.8278231 | CI31: ～ | CJ31: =(($G31^2+CJ$30^2)^0.5) -> 603.8278231 | CK31: =(($E31^2+CK$30^2)^0.5) -> 621.7781276 | CL31: ～ | CM31: =(($G31^2+CM$30^2)^0.5) -> 621.7781276 | CN31: =(($E31^2+CN$30^2)^0.5) -> 639.8500137 | CO31: ～ | CP31: =(($G31^2+CP$30^2)^0.5) -> 639.8500137 | CQ31: =(($E31^2+CQ$30^2)^0.5) -> 658.0334642 | CR31: ～ | CS31: =(($G31^2+CS$30^2)^0.5) -> 658.0334642
C32: 290 | D32: 290 | E32: =D32+75*2-79.9*2 -> 280.2 | F32: =(D32-280)*2+D32 -> 310 | G32: =F32+75*2-79.9*2 -> 300.2 | H32: =(($E32^2+H$30^2)^0.5) -> 280.9128691 | I32: ～ | J32: =(($G32^2+J$30^2)^0.5) -> 300.8654849 | K32: 283.0407038 | L32: ～ | M32: 302.8531657 | N32: 286.5519848 | O32: ～ | P32: 306.1372895 | Q32: 291.3967055 | R32: ～ | S32: 310.6767452 | T32: 297.5097309 | U32: ～ | V32: 316.417509 | W32: 304.8147634 | X32: ～ | Y32: 323.2955923 | Z32: 313.2284151 | AA32: ～ | AB32: 331.2401546 | AC32: 322.6639738 | AD32: ～ | AE32: 340.1764836 | AF32: 333.0345928 | AG32: ～ | AH32: 350.0286274 | AI32: =(($E32^2+AI$30^2)^0.5) -> 344.255777 | AJ32: ～ | AK32: =(($G32^2+AK$30^2)^0.5) -> 360.7215547 | AL32: 356.2471614 | AM32: ～ | AN32: 372.1828045 | AO32: 368.9336526 | AP32: ～ | AQ32: 384.3436483 | AR32: 382.2460464 | AS32: ～ | AT32: 397.1398242 | AU32: 396.1212441 | AV32: ～ | AW32: 410.5119243 | AX32: 410.5021803 | AY32: ～ | AZ32: 424.4055136 | BA32: 425.3375601 | BB32: ～ | BC32: 438.7710565 | BD32: 440.5814794 | BE32: ～ | BF32: 453.5637111 | BG32: 456.1929855 | BH32: ～ | BI32: 468.7430426 | BJ32: 472.1356161 | BK32: ～ | BL32: 484.2726918 | BM32: 488.3769446 | BN32: ～ | BO32: 500.1200256 | BP32: 504.888146 | BQ32: ～ | BR32: 516.2557893 | BS32: 521.6435948 | BT32: ～ | BU32: 532.6537712 | BV32: 538.6204972 | BW32: ～ | BX32: 549.2904878 | BY32: 555.7985606 | BZ32: ～ | CA32: 566.1448931 | CB32: 573.1596985 | CC32: ～ | CD32: 583.1981139 | CE32: 590.6877686 | CF32: ～ | CG32: 600.4332103 | CH32: 608.3683424 | CI32: ～ | CJ32: 617.8349618 | CK32: 626.188502 | CL32: ～ | CM32: 635.3896757 | CN32: 644.1366625 | CO32: ～ | CP32: 653.0850174 | CQ32: 662.2024162 | CR32: ～ | CS32: 670.9098598
C33: 300 | D33: 300 | E33: 290.2 | F33: =(D33-280)*2+D33 -> 340 | G33: =F33+75*2-79.9*2 -> 330.2 | H33: 290.8883635 | I33: ～ | J33: 330.805139 | K33: 292.9437489 | L33: ～ | M33: 332.6139504 | N33: 296.3377128 | O33: ～ | P33: 335.6069725 | Q33: 301.0249824 | R33: ～ | S33: 339.7529102 | T33: 306.9463145 | U33: ～ | V33: 345.0102027 | W33: 314.0319092 | X33: ～ | Y33: 351.3289627 | Z33: 322.2049658 | AA33: ～ | AB33: 358.6530914 | AC33: 331.3850329 | AD33: ～ | AE33: 366.9223896 | AF33: 341.4909076 | AG33: ～ | AH33: 376.0745139 | AI33: =(($E33^2+AI$30^2)^0.5) -> 352.4429599 | AJ33: ～ | AK33: =(($G33^2+AK$30^2)^0.5) -> 386.0466811 | AL33: 364.1648528 | AM33: ～ | AN33: 396.7770659 | AO33: 376.5847049 | AP33: ～ | AQ33: 408.2058794 | AR33: 389.6357786 | AS33: ～ | AT33: 420.2761473 | AU33: 403.2567916 | AV33: ～ | AW33: 432.9342213 | AX33: 417.3919501 | AY33: ～ | AZ33: 446.1300707 | BA33: 431.9907869 | BB33: ～ | BC33: 459.8173985 | BD33: 447.0078747 | BE33: ～ | BF33: 473.9536264 | BG33: 462.4024654 | BH33: ～ | BI33: 488.4997851 | BJ33: 478.1380972 | BK33: ～ | BL33: 503.4203413 | BM33: 494.1821931 | BN33: ～ | BO33: 518.682986 | BP33: 510.5056709 | BQ33: ～ | BR33: 534.2584019 | BS33: 527.0825742 | BT33: ～ | BU33: 550.1200233 | BV33: 543.8897315 | BW33: ～ | BX33: 566.2437991 | BY33: 560.906445 | BZ33: ～ | CA33: 582.6079642 | CB33: 578.1142102 | CC33: ～ | CD33: 599.1928237 | CE33: 595.4964651 | CF33: ～ | CG33: 615.9805516 | CH33: 613.0383675 | CI33: ～ | CJ33: 632.9550063 | CK33: 630.7265969 | CL33: ～ | CM33: 650.1015613 | CN33: 648.5491809 | CO33: ～ | CP33: 667.4069523 | CQ33: 666.4953413 | CR33: ～ | CS33: 684.8591388
C34: 310 | D34: 310 | E34: 300.2 | F34: =(D34-280)*2+D34 -> 370 | G34: 360.2 | H34: 300.8654849 | I34: ～ | J34: 360.7548198 | K34: 302.8531657 | L34: ～ | M34: 362.4141829 | N34: 306.1372895 | O34: ～ | P34: 365.1630321 | Q34: 310.6767452 | R34: ～ | S34: 368.9770183 | T34: 316.417509 | U34: ～ | V34: 373.8235413 | W34: 323.2955923 | X34: ～ | Y34: 379.6630611 | Z34: 331.2401546 | AA34: ～ | AB34: 386.450566 | AC34: 340.1764836 | AD34: ～ | AE34: 394.1370828 | AF34: 350.0286274 | AG34: ～ | AH34: 402.6711313 | AI34: 360.7215547 | AJ34: ～ | AK34: 412.0000485 | AL34: 372.1828045 | AM34: ～ | AN34: 422.0711314 | AO34: 384.3436483 | AP34: ～ | AQ34: 432.8325773 | AR34: 397.1398242 | AS34: ～ | AT34: 444.2342175 | AU34: 410.5119243 | AV34: ～ | AW34: 456.228057 | AX34: 424.4055136 | AY34: ～ | AZ34: 468.7686423 | BA34: 438.7710565 | BB34: ～ | BC34: 481.8132833 | BD34: 453.5637111 | BE34: ～ | BF34: 495.3221578 | BG34: 468.7430426 | BH34: ～ | BI34: 509.2583234 | BJ34: 484.2726918 | BK34: ～ | BL34: 523.5876622 | BM34: 500.1200256 | BN34: ～ | BO34: 538.2787754 | BP34: 516.2557893 | BQ34: ～ | BR34: 553.3028465 | BS34: 532.6537712 | BT34: ～ | BU34: 568.6334848 | BV34: 549.2904878 | BW34: ～ | BX34: 584.2465575 | BY34: 566.1448931 | BZ34: ～ | CA34: 600.1200213 | CB34: 583.1981139 | CC34: ～ | CD34: 616.2337543 | CE34: 600.4332103 | CF34: ～ | CG34: 632.5693954 | CH34: 617.8349618 | CI34: ～ | CJ34: 649.110191 | CK34: 635.3896757 | CL34: ～ | CM34: 665.8408519 | CN34: 653.0850174 | CO34: ～ | CP34: 682.7474204 | CQ34: 670.9098598 | CR34: ～ | CS34: 699.8171475
C35: 320 | D35: 320 | E35: 310.2 | F35: =(D35-280)*2+D35 -> 400 | G35: 390.2 | H35: 310.8440767 | I35: ～ | J35: 390.7122215 | K35: 312.7683488 | L35: ～ | M35: 392.2448725 | N35: 315.9494263 | O35: ～ | P35: 394.7860686 | Q35: 320.3498712 | R35: ～ | S35: 398.3165073 | T35: 325.920297 | U35: ～ | V35: 402.8101786 | W35: 332.6019242 | X35: ～ | Y35: 408.2352753 | Z35: 340.3293111 | AA35: ～ | AB35: 414.5552315 | AC35: 349.033007 | AD35: ～ | AE35: 421.7298187 | AF35: 358.6419384 | AG35: ～ | AH35: 429.7162319 | AI35: 369.0854102 | AJ35: ～ | AK35: 438.470113 | AL35: 380.2946752 | AM35: ～ | AN35: 447.94647 | AO35: 392.2040795 | AP35: ～ | AQ35: 458.1004693 | AR35: 404.7518252 | AS35: ～ | AT35: 468.888089 | AU35: 417.8804135 | AV35: ～ | AW35: 480.2666343 | AX35: 431.536835 | AY35: ～ | AZ35: 492.1951239 | BA35: 445.6725704 | BB35: ～ | BC35: 504.6345608 | BD35: 460.2434573 | BE35: ～ | BF35: 517.548104 | BG35: 475.2094696 | BH35: ～ | BI35: 530.9011584 | BJ35: 490.5344432 | BK35: ～ | BL35: 544.6613994 | BM35: 506.1857762 | BN35: ～ | BO35: 558.7987473 | BP35: 522.1341207 | BQ35: ～ | BR35: 573.2853042 | BS35: 538.3530812 | BT35: ～ | BU35: 588.0952644 | BV35: 554.8189254 | BW35: ～ | BX35: 603.2048077 | BY35: 571.5103149 | BZ35: ～ | CA35: 618.5919818 | CB35: 588.4080557 | CC35: ～ | CD35: 634.2365805 | CE35: 605.494872 | CF35: ～ | CG35: 650.1200197 | CH35: 622.7552007 | CI35: ～ | CJ35: 666.2252172 | CK35: 640.1750073 | CL35: ～ | CM35: 682.5364752 | CN35: 657.741621 | CO35: ～ | CP35: 699.0393694 | CQ35: 675.4435876 | CR35: ～ | CS35: 715.7206438
C36: 330 | D36: 330 | E36: 320.2 | F36: 430 | G36: 420.2 | H36: 320.8240016 | I36: ～ | J36: 420.6756946 | K36: 322.6887665 | L36: ～ | M36: 422.0995617 | N36: 325.7729884 | O36: ～ | P36: 424.4620596 | Q36: 330.0424821 | R36: ～ | S36: 427.7476359 | T36: 335.4519936 | U36: ～ | V36: 431.9352266 | W36: 341.9474229 | X36: ～ | Y36: 436.9989016 | Z36: 349.4682246 | AA36: ～ | AB36: 442.9086136 | AC36: 357.949773 | AD36: ～ | AE36: 449.6310043 | AF36: 367.3255232 | AG36: ～ | AH36: 457.1302221 | AI36: 377.5288598 | AJ36: ～ | AK36: 465.368714 | AL36: 388.4945817 | AM36: ～ | AN36: 474.307959 | AO36: 400.160018 | AP36: ～ | AQ36: 483.9091237 | AR36: 412.4658046 | AS36: ～ | AT36: 494.1336257 | AU36: 425.3563682 | AV36: ～ | AW36: 504.9436008 | AX36: 438.7801728 | AY36: ～ | AZ36: 516.3022758 | BA36: 452.6897834 | BB36: ～ | BC36: 528.1742515 | BD36: 467.0417968 | BE36: ～ | BF36: 540.5257071 | BG36: 481.7966791 | BH36: ～ | BI36: 553.3245341 | BJ36: 496.9185446 | BK36: ～ | BL36: 566.5404134 | BM36: 512.3749018 | BN36: ～ | BO36: 580.144844 | BP36: 528.1363839 | BQ36: ～ | BR36: 594.1111344 | BS36: 544.1764787 | BT36: ～ | BU36: 608.4143654 | BV36: 560.471266 | BW36: ～ | BX36: 623.0313315 | BY36: 576.9991681 | BZ36: ～ | CA36: 637.9404674 | CB36: 593.7407178 | CC36: ～ | CD36: 653.1217651 | CE36: 610.6783441 | CF36: ～ | CG36: 668.5566842 | CH36: 627.7961771 | CI36: ～ | CJ36: 684.2280614 | CK36: 645.079871 | CL36: ～ | CM36: 700.1200183 | CN36: 662.5164451 | CO36: ～ | CP36: 716.2178719 | CQ36: 680.0941405 | CR36: ～ | CS36: 732.5080477
C37: 340 | D37: 340 | E37: 330.2 | F37: 460 | G37: 450.2 | H37: 330.805139 | I37: ～ | J37: 450.644028 | K37: 332.6139504 | L37: ～ | M37: 451.9734948 | N37: 335.6069725 | O37: ～ | P37: 454.1806249 | Q37: 339.7529102 | R37: ～ | S37: 457.2527091 | T37: 345.0102027 | U37: ～ | V37: 461.1724623 | W37: 351.3289627 | X37: ～ | Y37: 465.9184907 | Z37: 358.6530914 | AA37: ～ | AB37: 471.4658418 | AC37: 366.9223896 | AD37: ～ | AE37: 477.7866051 | AF37: 376.0745139 | AG37: ～ | AH37: 484.8505337 | AI37: 386.0466811 | AJ37: ～ | AK37: =(($G37^2+AK$30^2)^0.5) -> 492.6256591 | AL37: 396.7770659 | AM37: ～ | AN37: 501.078876 | AO37: 408.2058794 | AP37: ～ | AQ37: 510.1764793 | AR37: 420.2761473 | AS37: ～ | AT37: 519.8846411 | AU37: 432.9342213 | AV37: ～ | AW37: 530.1698218 | AX37: 446.1300707 | AY37: ～ | AZ37: 540.9991128 | BA37: 459.8173985 | BB37: ～ | BC37: 552.3405109 | BD37: 473.9536264 | BE37: ～ | BF37: 564.1631324 | BG37: 488.4997851 | BH37: ～ | BI37: 576.4373687 | BJ37: 503.4203413 | BK37: ～ | BL37: 589.134993 | BM37: 518.682986 | BN37: ～ | BO37: 602.2292255 | BP37: 534.2584019 | BQ37: ～ | BR37: 615.694762 | BS37: 550.1200233 | BT37: ～ | BU37: 629.507776 | BV37: 566.2437991 | BW37: ～ | BX37: 643.6458964 | BY37: 582.6079642 | BZ37: ～ | CA37: 658.0881704 | CB37: 599.1928237 | CC37: ～ | CD37: 672.8150117 | CE37: 615.9805516 | CF37: ～ | CG37: 687.8081419 | CH37: 632.9550063 | CI37: ～ | CJ37: 703.0505245 | CK37: 650.1015613 | CL37: ～ | CM37: 718.5262974 | CN37: 667.4069523 | CO37: ～ | CP37: 734.2207025 | CQ37: 684.8591388 | CR37: ～ | CS37: 750.1200171
C38: 350 | D38: 350 | E38: 340.2 | F38: 490 | G38: 480.2 | H38: 340.7873824 | I38: ～ | J38: 480.6163127 | K38: 342.5434863 | L38: ～ | M38: 481.8630926 | N38: 345.4504885 | O38: ～ | P38: 483.9339211 | Q38: 349.4796704 | R38: ～ | S38: 486.8182823 | T38: 354.5927805 | U38: ～ | V38: 490.5018247 | W38: 360.7437318 | X38: ～ | Y38: 494.966706 | Z38: 367.8804697 | AA38: ～ | AB38: 500.1920031 | AC38: 375.9468579 | AD38: ～ | AE38: 506.1541662 | AF38: 384.8844502 | AG38: ～ | AH38: 512.8274954 | AI38: 394.6340583 | AJ38: ～ | AK38: 520.1846211 | AL38: 405.1370632 | AM38: ～ | AN38: 528.1969708 | AO38: 416.3364505 | AP38: ～ | AQ38: 536.8352075 | AR38: 428.17758 | AS38: ～ | AT38: 546.0696293 | AU38: 440.6087153 | AV38: ～ | AW38: 555.8705245 | AX38: 453.5813488 | AY38: ～ | AZ38: 566.2084775 | BA38: 467.0503613 | BB38: ～ | BC38: 577.0546248 | BD38: 480.9740534 | BE38: ～ | BF38: 588.380863 | BG38: 495.3140822 | BH38: ～ | BI38: 600.160012 | BJ38: 510.0353321 | BK38: ～ | BL38: 612.3659363 | BM38: 525.1057417 | BN38: ～ | BO38: 624.9736314 | BP38: 540.4961054 | BQ38: ～ | BR38: 637.9592777 | BS38: 556.179863 | BT38: ～ | BU38: 651.3002687 | BV38: 572.1328867 | BW38: ～ | BX38: 664.9752176 | BY38: 588.3332729 | BZ38: ～ | CA38: 678.963946 | CB38: 604.7611429 | CC38: ～ | CD38: 693.2474594 | CE38: 621.3984551 | CF38: ～ | CG38: 707.8079118 | CH38: 638.2288304 | CI38: ～ | CJ38: 722.628563 | CK38: 655.2373921 | CL38: ～ | CM38: 737.6937305 | CN38: 672.4106186 | CO38: ～ | CP38: 752.9887383 | CQ38: 689.7362104 | CR38: ～ | CS38: 768.4998634
C39: 360 | D39: 360 | E39: 350.2 | F39: 520 | G39: 510.2 | H39: 350.7706373 | I39: ～ | J39: 510.5918527 | K39: 352.4770063 | L39: ～ | M39: 511.7656104 | N39: 355.3027441 | O39: ～ | P39: 513.7159137 | Q39: 359.2214359 | R39: ～ | S39: 516.4339648 | T39: 364.1978034 | U39: ～ | V39: 519.9077226 | W39: 370.1891949 | X39: ～ | Y39: 524.1221613 | Z39: 377.1472392 | AA39: ～ | AB39: 529.0595808 | AC39: 385.019532 | AD39: ～ | AE39: 534.6999532 | AF39: 393.7512413 | AG39: ～ | AH39: 541.0212935 | AI39: 403.2865483 | AJ39: ～ | AK39: 548.0000365 | AL39: 413.5698732 | AM39: ～ | AN39: 555.611411 | AO39: 424.5468643 | AP39: ～ | AQ39: 563.829797 | AR39: 436.1651522 | AS39: ～ | AT39: 572.6290597 | AU39: 448.3748878 | AV39: ～ | AW39: 581.982852 | AX39: 461.1290926 | AY39: ～ | AZ39: 591.8648832 | BA39: 474.383853 | BB39: ～ | BC39: 602.2491511 | BD39: 488.0983917 | BE39: ～ | BF39: 613.1101369 | BG39: 502.2350446 | BH39: ～ | BI39: 624.4229656 | BJ39: 516.7591702 | BK39: ～ | BL39: 636.1635324 | BM39: 531.6390129 | BN39: ～ | BO39: 648.3085994 | BP39: 546.8455358 | BQ39: ～ | BR39: 660.8358646 | BS39: 562.3522384 | BT39: ～ | BU39: 673.7240088 | BV39: 578.1349669 | BW39: ～ | BX39: 686.9527204 | BY39: 594.171726 | BZ39: ～ | CA39: 700.5027052 | CB39: 610.4424952 | CC39: ～ | CD39: 714.3556817 | CE39: 626.929055 | CF39: ～ | CG39: 728.4943651 | CH39: 643.6148227 | CI39: ～ | CJ39: 742.9024431 | CK39: 660.4847008 | CL39: ～ | CM39: 757.5645451 | CN39: 677.5249368 | CO39: ～ | CP39: 772.4662064 | CQ39: 694.7229952 | CR39: ～ | CS39: 787.5938293
C40: 370 | D40: 370 | E40: 360.2 | F40: 550 | G40: 540.2 | H40: 360.7548198 | I40: ～ | J40: 540.5701065 | K40: 362.4141829 | L40: ～ | M40: 541.6789086 | N40: 365.1630321 | O40: ～ | P40: 543.5218855 | Q40: 368.9770183 | R40: ～ | S40: 546.091604 | T40: 373.8235413 | U40: ～ | V40: 549.3778663 | W40: 379.6630611 | X40: ～ | Y40: 553.3679066 | Z40: 386.450566 | AA40: ～ | AB40: 558.0466289 | AC40: 394.1370828 | AD40: ～ | AE40: 563.3968761 | AF40: 402.6711313 | AG40: ～ | AH40: 569.399719 | AI40: 412.0000485 | AJ40: ～ | AK40: 576.0347559 | AL40: 422.0711314 | AM40: ～ | AN40: 583.2804128 | AO40: 432.8325773 | AP40: ～ | AQ40: 591.114236 | AR40: 444.2342175 | AS40: ～ | AT40: 599.5131692 | AU40: 456.228057 | AV40: ～ | AW40: 608.4538109 | AX40: 468.7686423 | AY40: ～ | AZ40: 617.9126475 | BA40: 481.8132833 | BB40: ～ | BC40: 627.8662596 | BD40: 495.3221578 | BE40: ～ | BF40: 638.2915008 | BG40: 509.2583234 | BH40: ～ | BI40: 649.1656491 | BJ40: 523.5876622 | BK40: ～ | BL40: 660.4665321 | BM40: 538.2787754 | BN40: ～ | BO40: 672.1726266 | BP40: 553.3028465 | BQ40: ～ | BR40: 684.2631365 | BS40: 568.6334848 | BT40: ～ | BU40: 696.7180491 | BV40: 584.2465575 | BW40: ～ | BX40: 709.5181745 | BY40: 600.1200213 | BZ40: ～ | CA40: 722.6451688 | CB40: 616.2337543 | CC40: ～ | CD40: 736.0815444 | CE40: 632.5693954 | CF40: ～ | CG40: 749.8106694 | CH40: 649.110191 | CI40: ～ | CJ40: 763.8167581 | CK40: 665.8408519 | CL40: ～ | CM40: 778.084854 | CN40: 682.7474204 | CO40: ～ | CP40: 792.6008075 | CQ40: 699.8171475 | CR40: ～ | CS40: 807.3512495
C41: 380 | D41: 380 | E41: 370.2 | F41: 580 | G41: 570.2 | H41: 370.7398549 | I41: ～ | J41: 570.5506463 | K41: 372.3547233 | L41: ～ | M41: 571.6012946 | N41: 375.0307187 | O41: ～ | P41: 573.3480967 | Q41: 378.7453498 | R41: ～ | S41: 575.7847167 | T41: 383.4684342 | U41: ～ | V41: 578.9024443 | W41: 389.1632562 | X41: ～ | Y41: 582.6903466 | Z41: 395.7878725 | AA41: ～ | AB41: 587.1354529 | AC41: 403.2964666 | AD41: ～ | AE41: 592.2229648 | AF41: 411.6406685 | AG41: ～ | AH41: 597.9364849 | AI41: 420.7707689 | AJ41: ～ | AK41: 604.258256 | AL41: 430.6367843 | AM41: ～ | AN41: 611.1694037 | AO41: 441.1893471 | AP41: ～ | AQ41: 618.6501758 | AR41: 452.3804151 | AS41: ～ | AT41: 626.6801736 | AU41: 464.1638073 | AV41: ～ | AW41: 635.2385694 | AX41: 476.4955824 | AY41: ～ | AZ41: 644.304307 | BA41: 489.3342825 | BB41: ～ | BC41: 653.8562839 | BD41: 502.6410648 | BE41: ～ | BF41: 663.873512 | BG41: 516.379744 | BH41: ～ | BI41: 674.3352579 | BJ41: 530.5167669 | BK41: ～ | BL41: 685.2211614 | BM41: 545.0211372 | BN41: ～ | BO41: 696.5113352 | BP41: 559.864305 | BQ41: ～ | BR41: 708.1864444 | BS41: 575.0200344 | BT41: ～ | BU41: 720.2277695 | BV41: 590.464258 | BW41: ～ | BX41: 732.6172534 | BY41: 606.1749252 | BZ41: ～ | CA41: 745.3375343 | CB41: 622.131851 | CC41: ～ | CD41: 758.3719668 | CE41: 638.3165672 | CF41: ～ | CG41: 771.7046326 | CH41: 654.712181 | CI41: ～ | CJ41: 785.3203423 | CK41: 671.30324 | CL41: ～ | CM41: 799.2046296 | CN41: 688.0756063 | CO41: ～ | CP41: 813.3437404 | CQ41: 705.0163402 | CR41: ～ | CS41: 827.724616
C42: 390 | D42: 390 | E42: 380.2 | F42: 610 | G42: 600.2 | H42: 380.7256755 | I42: ～ | J42: 600.5331298 | K42: 382.2983652 | L42: ～ | M42: 601.5314123 | N42: 384.9052351 | O42: ～ | P42: 603.191545 | Q42: 388.5254689 | R42: ～ | S42: 605.5080842 | T42: 393.1310723 | U42: ～ | V42: 608.4735327 | W42: 398.687898 | X42: ～ | Y42: 612.078459 | Z42: 405.1568091 | AA42: ～ | AB42: 616.3116419 | AC42: 412.4948969 | AD42: ～ | AE42: 621.160237 | AF42: 420.6566771 | AG42: ～ | AH42: 626.6099584 | AI42: 429.5952048 | AJ42: ～ | AK42: 632.6452719 | AL42: 439.2630647 | AM42: ～ | AN42: 639.2495913 | AO42: 449.6132115 | AP42: ～ | AQ42: 646.4054765 | AR42: 460.5996526 | AS42: ～ | AT42: 654.0948249 | AU42: 472.1779749 | AV42: ～ | AW42: 662.2990563 | AX42: 484.3057299 | AY42: ～ | AZ42: 670.9992846 | BA42: 496.9426929 | BB42: ～ | BC42: 680.1764771 | BD42: 510.0510171 | BE42: ～ | BF42: 689.8115975 | BG42: 523.5953017 | BH42: ～ | BI42: 699.8857335 | BJ42: 537.5425937 | BK42: ～ | BL42: 710.3802081 | BM42: 551.8623379 | BN42: ～ | BO42: 721.2766737 | BP42: 566.5262924 | BQ42: ～ | BR42: 732.5571923 | BS42: 581.5084178 | BT42: ～ | BU42: 744.2042999 | BV42: 596.7847518 | BW42: ～ | BX42: 756.2010579 | BY42: 612.3332753 | BZ42: ～ | CA42: 768.5310924 | CB42: 628.1337756 | CC42: ～ | CD42: 781.1786223 | CE42: 644.1677111 | CF42: ～ | CG42: 794.1284783 | CH42: 660.4180797 | CI42: ～ | CJ42: 807.3661127 | CK42: 676.8692931 | CL42: ～ | CM42: 820.8776035 | CN42: 693.5070584 | CO42: ～ | CP42: 834.6496511 | CQ42: 710.3182667 | CR42: ～ | CS42: 848.6695706
C43: 400 | D43: 400 | E43: 390.2 | F43: =(D43-280)*2+D43 -> 640 | G43: 630.2 | H43: 390.7122215 | I43: ～ | J43: 630.5172797 | K43: 392.2448725 | L43: ～ | M43: 631.4681623 | N43: 394.7860686 | O43: ～ | P43: 633.0497927 | Q43: 398.3165073 | R43: ～ | S43: 635.2574596 | T43: 402.8101786 | U43: ～ | V43: 638.0846652 | W43: 408.2352753 | X43: ～ | Y43: 641.5232186 | Z43: 414.5552315 | AA43: ～ | AB43: 645.5633509 | AC43: 421.7298187 | AD43: ～ | AE43: 650.193848 | AF43: 429.7162319 | AG43: ～ | AH43: 655.4021971 | AI43: 438.470113 | AJ43: ～ | AK43: 661.1747424 | AL43: 447.94647 | AM43: ～ | AN43: 667.4968464 | AO43: 458.1004693 | AP43: ～ | AQ43: 674.3530529 | AR43: 468.888089 | AS43: ～ | AT43: 681.7272475 | AU43: 480.2666343 | AV43: ～ | AW43: 689.6028132 | AX43: 492.1951239 | AY43: ～ | AZ43: 697.9627784 | BA43: 504.6345608 | BB43: ～ | BC43: 706.7899547 | BD43: 517.548104 | BE43: ～ | BF43: 716.0670639 | BG43: 530.9011584 | BH43: ～ | BI43: 725.7768528 | BJ43: 544.6613994 | BK43: ～ | BL43: 735.9021946 | BM43: 558.7987473 | BN43: ～ | BO43: 746.4261785 | BP43: 573.2853042 | BQ43: ～ | BR43: 757.332186 | BS43: 588.0952644 | BT43: ～ | BU43: 768.6039552 | BV43: 603.2048077 | BW43: ～ | BX43: 780.225634 | BY43: 618.5919818 | BZ43: ～ | CA43: 792.1818226 | CB43: 634.2365805 | CC43: ～ | CD43: 804.4576061 | CE43: 650.1200197 | CF43: ～ | CG43: 817.0385793 | CH43: 666.2252172 | CI43: ～ | CJ43: 829.9108627 | CK43: 682.5364752 | CL43: ～ | CM43: 843.0611129 | CN43: 699.0393694 | CO43: ～ | CP43: 856.4765262 | CQ43: 715.7206438 | CR43: ～ | CS43: 870.1448385
C44: 410 | D44: 410 | E44: =D44+75*2-79.9*2 -> 400.2 | F44: =(D44-280)*2+D44 -> 670 | G44: =F44+75*2-79.9*2 -> 660.2 | H44: 400.6994385 | I44: ～ | J44: 660.502869 | K44: 402.1940328 | L44: ～ | M44: 661.410644 | N44: 404.6727567 | O44: ～ | P44: 662.9208399 | Q44: 408.1176791 | R44: ～ | S44: 665.0293527 | T44: 412.5045939 | U44: ～ | V44: 667.7305145 | W44: 417.8038296 | X44: ～ | Y44: 671.0171682 | Z44: 423.9811788 | AA44: ～ | AB44: 674.8807598 | AC44: 430.9988863 | AD44: ～ | AE44: 679.3114455 | AF44: 438.816636 | AG44: ～ | AH44: 684.2982098 | AI44: 447.3924899 | AJ44: ～ | AK44: 689.8289933 | AL44: 456.6837418 | AM44: ～ | AN44: 695.8908248 | AO44: 466.6476615 | AP44: ～ | AQ44: 702.4699567 | AR44: 477.2421188 | AS44: ～ | AT44: 709.5519995 | AU44: 488.4260845 | AV44: ～ | AW44: 717.1220538 | AX44: 500.1600144 | AY44: ～ | AZ44: 725.1648364 | BA44: 512.406128 | BB44: ～ | BC44: 733.6648008 | BD44: 525.1285938 | BE44: ～ | BF44: 742.6062483 | BG44: 538.2936373 | BH44: ～ | BI44: 751.9734304 | BJ44: 551.869586 | BK44: ～ | BL44: 761.7506416 | BM44: 565.826864 | BN44: ～ | BO44: 771.9223018 | BP44: 580.1379491 | BQ44: ～ | BR44: 782.4730283 | BS44: 594.7773029 | BT44: ～ | BU44: 793.3876984 | BV44: 609.7212806 | BW44: ～ | BX44: 804.6515022 | BY44: 624.9480298 | BZ44: ～ | CA44: 816.2499862 | CB44: 640.4373818 | CC44: ～ | CD44: 828.169089 | CE44: 656.17074 | CF44: ～ | CG44: 840.395169 | CH44: 672.1309694 | CI44: ～ | CJ44: 852.9150251 | CK44: 688.3022882 | CL44: ～ | CM44: 865.7159118 | CN44: 704.670164 | CO44: ～ | CP44: 878.7855484 | CQ44: 721.2212143 | CR44: ～ | CS44: 892.112123
C45: 420 | D45: 420 | E45: =D45+75*2-79.9*2 -> 410.2 | F45: =(D45-280)*2+D45 -> 700 | G45: 690.2 | H45: 410.6872776 | I45: ～ | J45: 690.4897103 | K45: 412.1456539 | L45: ～ | M45: 691.3581127 | N45: 414.5648803 | O45: ～ | P45: 692.8030312 | Q45: 417.9282714 | R45: ～ | S45: 694.820869 | T45: 422.2132636 | U45: ～ | V45: 697.4066533 | W45: 427.3921384 | X45: ～ | Y45: 700.554095 | Z45: 433.4328552 | AA45: ～ | AB45: 704.2556638 | AC45: 440.2999432 | AD45: ～ | AE45: 708.5026747 | AF45: 447.9553996 | AG45: ～ | AH45: 713.2853847 | AI45: 456.3595512 | AJ45: ～ | AK45: 718.5930977 | AL45: 465.4718466 | AM45: ～ | AN45: 724.4142737 | AO45: 475.2515544 | AP45: ～ | AQ45: 730.736642 | AR45: 485.6583573 | AS45: ～ | AT45: 737.5473137 | AU45: 496.6528365 | AV45: ～ | AW45: 744.832894 | AX45: 508.1968516 | AY45: ～ | AZ45: 752.5795905 | BA45: 520.2538227 | BB45: ～ | BC45: 760.7733171 | BD45: 532.7889263 | BE45: ～ | BF45: 769.399792 | BG45: 545.7692186 | BH45: ～ | BI45: 778.4446287 | BJ45: 559.163697 | BK45: ～ | BL45: 787.8934192 | BM45: 572.9433131 | BN45: ～ | BO45: 797.7318096 | BP45: 587.0809484 | BQ45: ～ | BR45: 807.9455675 | BS45: 601.5513611 | BT45: ～ | BU45: 818.5206412 | BV45: 616.3311123 | BW45: ～ | BX45: 829.4432108 | BY45: 631.3984796 | BZ45: ～ | CA45: 840.6997324 | CB45: 646.7333608 | CC45: ～ | CD45: 852.2769738 | CE45: 662.3171748 | CF45: ～ | CG45: 864.162045 | CH45: 678.1327599 | CI45: ～ | CJ45: 876.3424217 | CK45: 694.1642745 | CL45: ～ | CM45: 888.8059631 | CN45: 710.3971002 | CO45: ～ | CP45: 901.5409253 | CQ45: 726.8177488 | CR45: ～ | CS45: 914.5359698
C46: 430 | D46: 430 | E46: 420.2 | F46: 730 | G46: 720.2 | H46: 420.6756946 | I46: ～ | J46: 720.4776471 | K46: 422.0995617 | L46: ～ | M46: 721.3099472 | N46: 424.4620596 | O46: ～ | P46: 722.6949841 | Q46: 427.7476359 | R46: ～ | S46: 724.6295881 | T46: 431.9352266 | U46: ～ | V46: 727.1093728 | W46: 436.9989016 | X46: ～ | Y46: 730.1287832 | Z46: 442.9086136 | AA46: ～ | AB46: 733.6811569 | AC46: 449.6310043 | AD46: ～ | AE46: 737.7587953 | AF46: 457.1302221 | AG46: ～ | AH46: 742.3530427 | AI46: 465.368714 | AJ46: ～ | AK46: 747.4543732 | AL46: 474.307959 | AM46: ～ | AN46: 753.0524816 | AO46: 483.9091237 | AP46: ～ | AQ46: 759.1363777 | AR46: 494.1336257 | AS46: ～ | AT46: 765.6944822 | AU46: 504.9436008 | AV46: ～ | AW46: 772.714721 | AX46: 516.3022758 | AY46: ～ | AZ46: 780.1846192 | BA46: 528.1742515 | BB46: ～ | BC46: 788.0913906 | BD46: 540.5257071 | BE46: ～ | BF46: 796.4220238 | BG46: 553.3245341 | BH46: ～ | BI46: 805.1633623 | BJ46: 566.5404134 | BK46: ～ | BL46: 814.3021798 | BM46: 580.144844 | BN46: ～ | BO46: 823.8252485 | BP46: 594.1111344 | BQ46: ～ | BR46: 833.7194012 | BS46: 608.4143654 | BT46: ～ | BU46: 843.9715872 | BV46: 623.0313315 | BW46: ～ | BX46: 854.5689206 | BY46: 637.9404674 | BZ46: ～ | CA46: 865.4987233 | CB46: 653.1217651 | CC46: ～ | CD46: 876.7485614 | CE46: 668.5566842 | CF46: ～ | CG46: 888.306276 | CH46: 684.2280614 | CI46: ～ | CJ46: 900.160008 | CK46: 700.1200183 | CL46: ～ | CM46: 912.2982188 | CN46: 716.2178719 | CO46: ～ | CP46: 924.7097058 | CQ46: 732.5080477 | CR46: ～ | CS46: 937.3836141
C47: 440 | D47: 440 | E47: 430.2 | F47: 760 | G47: 750.2 | H47: 430.6646491 | I47: ～ | J47: 750.4665482 | K47: 432.0555983 | L47: ～ | M47: 751.2656255 | N47: 434.3639488 | O47: ～ | P47: 752.5955355 | Q47: 437.5751821 | R47: ～ | S47: 754.4534711 | T47: 441.669605 | U47: ～ | V47: 756.8355436 | W47: 446.6229282 | X47: ～ | Y47: 759.7368229 | Z47: 452.4069407 | AA47: ～ | AB47: 763.1513873 | AC47: 458.9902395 | AD47: ～ | AE47: 767.0723825 | AF47: 466.3389754 | AG47: ～ | AH47: 771.4920868 | AI47: 474.4175798 | AJ47: ～ | AK47: =(($G47^2+AK$30^2)^0.5) -> 776.4019835 | AL47: 483.1894452 | AM47: ～ | AN47: 781.792837 | AO47: 492.6175393 | AP47: ～ | AQ47: 787.6547721 | AR47: 502.6649381 | AS47: ～ | AT47: 793.9773548 | AU47: 513.2952756 | AV47: ～ | AW47: 800.7496737 | AX47: 524.473107 | AY47: ～ | AZ47: 807.9604198 | BA47: 536.1641913 | BB47: ～ | BC47: 815.5979647 | BD47: 548.3357001 | BE47: ～ | BF47: 823.6504356 | BG47: 560.9563619 | BH47: ～ | BI47: 832.1057865 | BJ47: 573.9965505 | BK47: ～ | BL47: 840.9518654 | BM47: 587.4283275 | BN47: ～ | BO47: 850.1764758 | BP47: 601.2254486 | BQ47: ～ | BR47: 859.7674337 | BS47: 615.3633398 | BT47: ～ | BU47: 869.7126192 | BV47: 629.8190534 | BW47: ～ | BX47: 880.0000227 | BY47: 644.5712063 | BZ47: ～ | CA47: 890.6177856 | CB47: 659.599909 | CC47: ～ | CD47: 901.5542358 | CE47: 674.8866868 | CF47: ～ | CG47: 912.7979185 | CH47: 690.4143973 | CI47: ～ | CJ47: 924.3376223 | CK47: 706.1671474 | CL47: ～ | CM47: 936.1624004 | CN47: 722.1302099 | CO47: ～ | CP47: 948.2615884 | CQ47: 738.289943 | CR47: ～ | CS47: 960.6248175
C48: 450 | D48: 450 | E48: 440.2 | F48: 790 | G48: 780.2 | H48: 440.6541047 | I48: ～ | J48: 780.4563024 | K48: 442.0136197 | L48: ～ | M48: 781.2247052 | N48: 444.2702331 | O48: ～ | P48: 782.5036997 | Q48: 447.4103709 | R48: ～ | S48: 784.2907879 | T48: 451.4155957 | U48: ～ | V48: 786.5825068 | W48: 456.2631258 | X48: ～ | Y48: 789.3744612 | Z48: 461.9264444 | AA48: ～ | AB48: 792.6613653 | AC48: 468.3759601 | AD48: ～ | AE48: 796.437091 | AF48: 475.5796884 | AG48: ～ | AH48: 800.6947233 | AI48: 483.5039193 | AJ48: ～ | AK48: 805.4266199 | AL48: 492.1138486 | AM48: ～ | AN48: 810.6244753 | AO48: 501.3741517 | AP48: ～ | AQ48: 816.2793884 | AR48: 511.249489 | AS48: ～ | AT48: 822.3819307 | AU48: 521.7049358 | AV48: ～ | AW48: 828.9222159 | AX48: 532.7063356 | AY48: ～ | AZ48: 835.8899688 | BA48: 544.2205803 | BB48: ～ | BC48: 843.2745935 | BD48: 556.2158214 | BE48: ～ | BF48: 851.0652384 | BG48: 568.6616217 | BH48: ～ | BI48: 859.2508598 | BJ48: 581.5290534 | BK48: ～ | BL48: 867.8202809 | BM48: 594.7907531 | BN48: ～ | BO48: 876.7622483 | BP48: 608.4209398 | BQ48: ～ | BR48: 886.0654829 | BS48: 622.3954049 | BT48: ～ | BU48: 895.7187282 | BV48: 636.6914794 | BW48: ～ | BX48: 905.7107927 | BY48: 651.2879855 | BZ48: ～ | CA48: 916.030589 | CB48: 666.1651747 | CC48: ～ | CD48: 926.6671679 | CE48: 681.3046602 | CF48: ～ | CG48: 937.6097482 | CH48: 696.6893425 | CI48: ～ | CJ48: 948.8477433 | CK48: 712.3033343 | CL48: ～ | CM48: 960.3707826 | CN48: 728.1318837 | CO48: ～ | CP48: 972.1687302 | CQ48: 744.1612997 | CR48: ～ | CS48: 984.2317004
C49: 460 | D49: 460 | E49: 450.2 | F49: 820 | G49: 810.2 | H49: 450.644028 | I49: ～ | J49: 810.446815 | K49: 451.9734948 | L49: ～ | M49: 811.1868096 | N49: 454.1806249 | O49: ～ | P49: 812.4186359 | Q49: 457.2527091 | R49: ～ | S49: 814.1400617 | T49: 461.1724623 | U49: ～ | V49: 816.3479895 | W49: 465.9184907 | X49: ～ | Y49: 819.0384851 | Z49: 471.4658418 | AA49: ～ | AB49: 822.206811 | AC49: 477.7866051 | AD49: ～ | AE49: 825.8474678 | AF49: 484.8505337 | AG49: ～ | AH49: 829.9542397 | AI49: 492.6256591 | AJ49: ～ | AK49: 834.5202454 | AL49: 501.078876 | AM49: ～ | AN49: 839.537992 | AO49: 510.1764793 | AP49: ～ | AQ49: 844.999432 | AR49: 519.8846411 | AS49: ～ | AT49: 850.8960218 | AU49: 530.1698218 | AV49: ～ | AW49: 857.2187819 | AX49: 540.9991128 | AY49: ～ | AZ49: 863.9583555 | BA49: 552.3405109 | BB49: ～ | BC49: 871.1050683 | BD49: 564.1631324 | BE49: ～ | BF49: 878.6489857 | BG49: 576.4373687 | BH49: ～ | BI49: 886.5799682 | BJ49: 589.134993 | BK49: ～ | BL49: 894.8877248 | BM49: 602.2292255 | BN49: ～ | BO49: 903.5618629 | BP49: 615.694762 | BQ49: ～ | BR49: 912.5919351 | BS49: 629.507776 | BT49: ～ | BU49: 921.9674832 | BV49: 643.6458964 | BW49: ～ | BX49: 931.6780774 | BY49: 658.0881704 | BZ49: ～ | CA49: 941.7133534 | CB49: 672.8150117 | CC49: ～ | CD49: 952.0630441 | CE49: 687.8081419 | CF49: ～ | CG49: 962.7170093 | CH49: 703.0505245 | CI49: ～ | CJ49: 973.6652608 | CK49: 718.5262974 | CL49: ～ | CM49: 984.8979846 | CN49: 734.2207025 | CO49: ～ | CP49: 996.40556 | CQ49: 750.1200171 | CR49: ～ | CS49: 1008.178575
C50: 470 | D50: 470 | E50: 460.2 | F50: =(D50-280)*2+D50 -> 850 | G50: 840.2 | H50: 460.6343886 | I50: ～ | J50: 840.4380049 | K50: 461.9351037 | L50: ～ | M50: 841.1516153 | N50: 464.094861 | O50: ～ | P50: 842.3396227 | Q50: 467.1017448 | R50: ～ | S50: 844.0000237 | T50: 470.939529 | U50: ～ | V50: 846.1300373 | W50: 475.5880991 | X50: ～ | Y50: 848.7261278 | Z50: 481.0239495 | AA50: ～ | AB50: 851.7840337 | AC50: 487.2207303 | AD50: ～ | AE50: 855.2988016 | AF50: 494.1498153 | AG50: ～ | AH50: 859.2648253 | AI50: 501.7808685 | AJ50: ～ | AK50: 863.6758883 | AL50: 510.0823855 | AM50: ～ | AN50: 868.5252098 | AO50: 519.0221961 | AP50: ～ | AQ50: 873.8054932 | AR50: 528.5679143 | AS50: ～ | AT50: 879.5089766 | AU50: 538.6873305 | AV50: ～ | AW50: 885.6274838 | AX50: 549.3487417 | AY50: ～ | AZ50: 892.1524758 | BA50: 560.5212217 | BB50: ～ | BC50: 899.0751025 | BD50: 572.1748334 | BE50: ～ | BF50: 906.3862532 | BG50: 584.2807887 | BH50: ～ | BI50: 914.0766051 | BJ50: 596.8115616 | BK50: ～ | BL50: 922.136671 | BM50: 609.7409614 | BN50: ～ | BO50: 930.556844 | BP50: 623.0441718 | BQ50: ～ | BR50: 939.3274402 | BS50: 636.6977619 | BT50: ～ | BU50: 948.4387381 | BV50: 650.6796754 | BW50: ～ | BX50: 957.8810156 | BY50: 664.9692023 | BZ50: ～ | CA50: 967.6445835 | CB50: 679.5469373 | CC50: ～ | CD50: 977.7198167 | CE50: 694.3947292 | CF50: ～ | CG50: 988.0971815 | CH50: 709.4956237 | CI50: ～ | CJ50: 998.7672602 | CK50: 724.8338016 | CL50: ～ | CM50: 1009.720773 | CN50: 740.3945165 | CO50: ～ | CP50: 1020.948598 | CQ50: 756.1640298 | CR50: ～ | CS50: 1032.441785
C51: 480 | D51: 480 | E51: 470.2 | F51: 880 | G51: 870.2 | H51: 470.6251587 | I51: ～ | J51: 870.4298019 | K51: 471.8983365 | L51: ～ | M51: 871.1188438 | N51: 474.0127003 | O51: ～ | P51: 872.2660374 | Q51: 476.9570631 | R51: ～ | S51: 873.8695784 | T51: 480.7161741 | U51: ～ | V51: 875.9269604 | W51: 485.2710995 | X51: ～ | Y51: 878.4349947 | Z51: 490.5996739 | AA51: ～ | AB51: 881.3898343 | AC51: 496.6769977 | AD51: ～ | AE51: 884.7870026 | AF51: 503.4759577 | AG51: ～ | AH51: 888.6214267 | AI51: 510.9677485 | AJ51: ～ | AK51: 892.8874733 | AL51: 519.1223748 | AM51: ～ | AN51: 897.5789882 | AO51: 527.909121 | AP51: ～ | AQ51: 902.6893375 | AR51: 537.2969756 | AS51: ～ | AT51: 908.2114512 | AU51: 547.2550045 | AV51: ～ | AW51: 914.1378671 | AX51: 557.7526692 | AY51: ～ | AZ51: 920.4607759 | BA51: 568.76009 | BB51: ～ | BC51: 927.172066 | BD51: 580.2482572 | BE51: ～ | BF51: 934.2633676 | BG51: 592.1891927 | BH51: ～ | BI51: 941.7260961 | BJ51: 604.5560685 | BK51: ～ | BL51: 949.5514941 | BM51: 617.3232865 | BN51: ～ | BO51: 957.730672 | BP51: 630.4665257 | BQ51: ～ | BR51: 966.2546455 | BS51: 643.9627629 | BT51: ～ | BU51: 975.1143728 | BV51: 657.7902705 | BW51: ～ | BX51: 984.3007874 | BY51: 671.9285974 | BZ51: ～ | CA51: 993.8048299 | CB51: 686.358536 | CC51: ～ | CD51: 1003.617477 | CE51: 701.06208 | CF51: ～ | CG51: 1013.729767 | CH51: 716.022374 | CI51: ～ | CJ51: 1024.132823 | CK51: 731.2236594 | CL51: ～ | CM51: 1034.817878 | CN51: 746.6512171 | CO51: ～ | CP51: 1045.776286 | CQ51: 762.2913091 | CR51: ～ | CS51: 1056.999546
C52: 490 | D52: 490 | E52: 480.2 | F52: 910 | G52: 900.2 | H52: 480.6163127 | I52: ～ | J52: 900.4221454 | K52: 481.8630926 | L52: ～ | M52: 901.0882532 | N52: 483.9339211 | O52: ～ | P52: 902.1973398 | Q52: 486.8182823 | R52: ～ | S52: 903.7477745 | T52: 490.5018247 | U52: ～ | V52: 905.7372908 | W52: 494.966706 | X52: ～ | Y52: 908.163003 | Z52: 500.1920031 | AA52: ～ | AB52: 911.0214268 | AC52: 506.1541662 | AD52: ～ | AE52: 914.3085037 | AF52: 512.8274954 | AG52: ～ | AH52: 918.0196294 | AI52: 520.1846211 | AJ52: ～ | AK52: 922.1496842 | AL52: 528.1969708 | AM52: ～ | AN52: 926.6930668 | AO52: 536.8352075 | AP52: ～ | AQ52: 931.6437302 | AR52: 546.0696293 | AS52: ～ | AT52: 936.9952188 | AU52: 555.8705245 | AV52: ～ | AW52: 942.7407067 | AX52: 566.2084775 | AY52: ～ | AZ52: 948.8730368 | BA52: 577.0546248 | BB52: ～ | BC52: 955.3847602 | BD52: 588.380863 | BE52: ～ | BF52: 962.2681747 | BG52: 600.160012 | BH52: ～ | BI52: 969.5153635 | BJ52: 612.3659363 | BK52: ～ | BL52: 977.1182324 | BM52: 624.9736314 | BN52: ～ | BO52: 985.0685458 | BP52: 637.9592777 | BQ52: ～ | BR52: 993.3579617 | BS52: 651.3002687 | BT52: ～ | BU52: 1001.978064 | BV52: 664.9752176 | BW52: ～ | BX52: 1010.920393 | BY52: 678.963946 | BZ52: ～ | CA52: 1020.176475 | CB52: 693.2474594 | CC52: ～ | CD52: 1029.73785 | CE52: 707.8079118 | CF52: ～ | CG52: 1039.596095 | CH52: 722.628563 | CI52: ～ | CJ52: 1049.742845 | CK52: 737.6937305 | CL52: ～ | CM52: 1060.169817 | CN52: 752.9887383 | CO52: ～ | CP52: 1070.868825 | CQ52: 768.4998634 | CR52: ～ | CS52: 1081.831798
C53: 500 | D53: 500 | E53: 490.2 | F53: =(D53-280)*2+D53 -> 940 | G53: 930.2 | H53: 490.6078271 | I53: ～ | J53: 930.4149827 | K53: 491.8292793 | L53: ～ | M53: 931.0596329 | N53: 493.8583198 | O53: ～ | P53: 932.1330592 | Q53: 496.6850511 | R53: ～ | S53: 933.6337826 | T53: 500.2959524 | U53: ～ | V53: 935.5597469 | W53: 504.6741919 | X53: ～ | Y53: 937.9083324 | Z53: 509.8 | AA53: ～ | AB53: 940.6763737 | AC53: 515.6510836 | AD53: ～ | AE53: 943.8601803 | AF53: 522.203064 | AG53: ～ | AH53: 947.455561 | AI53: 529.4299198 | AJ53: ～ | AK53: 951.4578498 | AL53: 537.3044202 | AM53: ～ | AN53: 955.8619356 | AO53: 545.7985343 | AP53: ～ | AQ53: 960.6622924 | AR53: 554.8838077 | AS53: ～ | AT53: 965.8530116 | AU53: 564.5316997 | AV53: ～ | AW53: 971.4278357 | AX53: 574.7138766 | AY53: ～ | AZ53: 977.3801921 | BA53: 585.4024599 | BB53: ～ | BC53: 983.7032276 | BD53: 596.5702306 | BE53: ～ | BF53: 990.3898424 | BG53: 608.1907924 | BH53: ～ | BI53: 997.4327245 | BJ53: 620.238696 | BK53: ～ | BL53: 1004.824383 | BM53: 632.6895289 | BN53: ～ | BO53: 1012.557179 | BP53: 645.5199765 | BQ53: ～ | BR53: 1020.623359 | BS53: 658.7078563 | BT53: ～ | BU53: 1029.015082 | BV53: 672.2321325 | BW53: ～ | BX53: 1037.724453 | BY53: 686.0729116 | BZ53: ～ | CA53: 1046.743541 | CB53: 700.2114252 | CC53: ～ | CD53: 1056.064411 | CE53: 714.6300022 | CF53: ～ | CG53: 1065.679145 | CH53: 729.312032 | CI53: ～ | CJ53: 1075.579862 | CK53: 744.241923 | CL53: ～ | CM53: 1085.758739 | CN53: 759.4050566 | CO53: ～ | CP53: 1096.208028 | CQ53: 774.7877387 | CR53: ～ | CS53: 1106.920069
B55: 【２段飛ばして連結】
AI66: 蹴上
D67: 最小 | F67: 最大 | H67: 10 | K67: 20 | N67: 30 | Q67: 40 | T67: 50 | W67: 60 | Z67: 70 | AC67: 80 | AF67: 90 | AI67: 100 | AL67: 110 | AO67: 120 | AR67: 130 | AU67: 140 | AX67: 150 | BA67: 160 | BD67: 170 | BG67: 180 | BJ67: 190 | BM67: 200 | BP67: 210 | BS67: 220 | BV67: 230 | BY67: 240 | CB67: 250 | CE67: 260 | CH67: 270 | CK67: 280 | CN67: 290 | CQ67: 300
D68: ⑥ | E68: ③ | F68: ⑥ | G68: ③ | H68: =H67*3 -> 30 | J68: =H67*3 -> 30 | K68: =K67*3 -> 60 | M68: =K67*3 -> 60 | N68: =N67*3 -> 90 | P68: =N67*3 -> 90 | Q68: =Q67*3 -> 120 | S68: =Q67*3 -> 120 | T68: =T67*3 -> 150 | V68: =T67*3 -> 150 | W68: =W67*3 -> 180 | Y68: =W67*3 -> 180 | Z68: =Z67*3 -> 210 | AB68: =Z67*3 -> 210 | AC68: =AC67*3 -> 240 | AE68: =AC67*3 -> 240 | AF68: =AF67*3 -> 270 | AH68: =AF67*3 -> 270 | AI68: =AI67*3 -> 300 | AK68: =AI68 -> 300 | AL68: =AL67*3 -> 330 | AN68: =AL68 -> 330 | AO68: =AO67*3 -> 360 | AQ68: =AO68 -> 360 | AR68: =AR67*3 -> 390 | AT68: =AR68 -> 390 | AU68: =AU67*3 -> 420 | AW68: =AU68 -> 420 | AX68: =AX67*3 -> 450 | AZ68: =AX68 -> 450 | BA68: =BA67*3 -> 480 | BC68: =BA68 -> 480 | BD68: =BD67*3 -> 510 | BF68: =BD68 -> 510 | BG68: =BG67*3 -> 540 | BI68: =BG68 -> 540 | BJ68: =BJ67*3 -> 570 | BL68: =BJ68 -> 570 | BM68: =BM67*3 -> 600 | BO68: =BM68 -> 600 | BP68: =BP67*3 -> 630 | BR68: =BP68 -> 630 | BS68: =BS67*3 -> 660 | BU68: =BS68 -> 660 | BV68: =BV67*3 -> 690 | BX68: =BV68 -> 690 | BY68: =BY67*3 -> 720 | CA68: =BY68 -> 720 | CB68: =CB67*3 -> 750 | CD68: =CB68 -> 750 | CE68: =CE67*3 -> 780 | CG68: =CE68 -> 780 | CH68: =CH67*3 -> 810 | CJ68: =CH68 -> 810 | CK68: =CK67*3 -> 840 | CM68: =CK68 -> 840 | CN68: =CN67*3 -> 870 | CP68: =CN68 -> 870 | CQ68: =CQ67*3 -> 900 | CS68: =CQ68 -> 900
B69: 踏面 | C69: 280 | D69: =C69*2 -> 560 | E69: =E31+C69 -> 550.2 | F69: =F31+C69 -> 560 | G69: =F69+75*2-79.9*2 -> 550.2 | H69: =(($E69^2+H$68^2)^0.5) -> 551.0172774 | I69: ～ | J69: =(($G69^2+J$68^2)^0.5) -> 551.0172774 | K69: =(($E69^2+K$68^2)^0.5) -> 553.4618686 | L69: ～ | M69: =(($G69^2+M$68^2)^0.5) -> 553.4618686 | N69: =(($E69^2+N$68^2)^0.5) -> 557.5123676 | O69: ～ | P69: =(($G69^2+P$68^2)^0.5) -> 557.5123676 | Q69: =(($E69^2+Q$68^2)^0.5) -> 563.1341226 | R69: ～ | S69: =(($G69^2+S$68^2)^0.5) -> 563.1341226 | T69: =(($E69^2+T$68^2)^0.5) -> 570.2806677 | U69: ～ | V69: =(($G69^2+V$68^2)^0.5) -> 570.2806677 | W69: =(($E69^2+W$68^2)^0.5) -> 578.8955346 | X69: ～ | Y69: =(($G69^2+Y$68^2)^0.5) -> 578.8955346 | Z69: =(($E69^2+Z$68^2)^0.5) -> 588.9142892 | AA69: ～ | AB69: =(($G69^2+AB$68^2)^0.5) -> 588.9142892 | AC69: =(($E69^2+AC$68^2)^0.5) -> 600.2666408 | AD69: ～ | AE69: =(($G69^2+AE$68^2)^0.5) -> 600.2666408 | AF69: =(($E69^2+AF$68^2)^0.5) -> 612.8784871 | AG69: ～ | AH69: =(($G69^2+AH$68^2)^0.5) -> 612.8784871 | AI69: =(($E69^2+AI$68^2)^0.5) -> 626.6737907 | AJ69: ～ | AK69: =(($G69^2+AK$68^2)^0.5) -> 626.6737907 | AL69: =(($E69^2+AL$68^2)^0.5) -> 641.5762153 | AM69: ～ | AN69: =(($G69^2+AN$68^2)^0.5) -> 641.5762153 | AO69: =(($E69^2+AO$68^2)^0.5) -> 657.5104866 | AP69: ～ | AQ69: =(($G69^2+AQ$68^2)^0.5) -> 657.5104866 | AR69: =(($E69^2+AR$68^2)^0.5) -> 674.4034697 | AS69: ～ | AT69: =(($G69^2+AT$68^2)^0.5) -> 674.4034697 | AU69: =(($E69^2+AU$68^2)^0.5) -> 692.1849753 | AV69: ～ | AW69: =(($G69^2+AW$68^2)^0.5) -> 692.1849753 | AX69: =(($E69^2+AX$68^2)^0.5) -> 710.7883229 | AY69: ～ | AZ69: =(($G69^2+AZ$68^2)^0.5) -> 710.7883229 | BA69: =(($E69^2+BA$68^2)^0.5) -> 730.1506968 | BB69: ～ | BC69: =(($G69^2+BC$68^2)^0.5) -> 730.1506968 | BD69: =(($E69^2+BD$68^2)^0.5) -> 750.2133297 | BE69: ～ | BF69: =(($G69^2+BF$68^2)^0.5) -> 750.2133297 | BG69: =(($E69^2+BG$68^2)^0.5) -> 770.9215524 | BH69: ～ | BI69: =(($G69^2+BI$68^2)^0.5) -> 770.9215524 | BJ69: =(($E69^2+BJ$68^2)^0.5) -> 792.2247408 | BK69: ～ | BL69: =(($G69^2+BL$68^2)^0.5) -> 792.2247408 | BM69: =(($E69^2+BM$68^2)^0.5) -> 814.0761881 | BN69: ～ | BO69: =(($G69^2+BO$68^2)^0.5) -> 814.0761881 | BP69: =(($E69^2+BP$68^2)^0.5) -> 836.4329262 | BQ69: ～ | BR69: =(($G69^2+BR$68^2)^0.5) -> 836.4329262 | BS69: =(($E69^2+BS$68^2)^0.5) -> 859.255515 | BT69: ～ | BU69: =(($G69^2+BU$68^2)^0.5) -> 859.255515 | BV69: =(($E69^2+BV$68^2)^0.5) -> 882.507813 | BW69: ～ | BX69: =(($G69^2+BX$68^2)^0.5) -> 882.507813 | BY69: =(($E69^2+BY$68^2)^0.5) -> 906.1567414 | BZ69: ～ | CA69: =(($G69^2+CA$68^2)^0.5) -> 906.1567414 | CB69: =(($E69^2+CB$68^2)^0.5) -> 930.1720486 | CC69: ～ | CD69: =(($G69^2+CD$68^2)^0.5) -> 930.1720486 | CE69: =(($E69^2+CE$68^2)^0.5) -> 954.5260814 | CF69: ～ | CG69: =(($G69^2+CG$68^2)^0.5) -> 954.5260814 | CH69: =(($E69^2+CH$68^2)^0.5) -> 979.1935662 | CI69: ～ | CJ69: =(($G69^2+CJ$68^2)^0.5) -> 979.1935662 | CK69: =(($E69^2+CK$68^2)^0.5) -> 1004.151403 | CL69: ～ | CM69: =(($G69^2+CM$68^2)^0.5) -> 1004.151403 | CN69: =(($E69^2+CN$68^2)^0.5) -> 1029.378473 | CO69: ～ | CP69: =(($G69^2+CP$68^2)^0.5) -> 1029.378473 | CQ69: =(($E69^2+CQ$68^2)^0.5) -> 1054.855459 | CR69: ～ | CS69: =(($G69^2+CS$68^2)^0.5) -> 1054.855459
C70: 290 | D70: =C70*2 -> 580 | E70: 570.2 | F70: 600 | G70: =F70+75*2-79.9*2 -> 590.2 | H70: =(($E70^2+H$68^2)^0.5) -> 570.9886514 | I70: ～ | J70: =(($G70^2+J$68^2)^0.5) -> 590.9619616 | K70: =(($E70^2+K$68^2)^0.5) -> 573.3480967 | L70: ～ | M70: =(($G70^2+M$68^2)^0.5) -> 593.2419742 | N70: =(($E70^2+N$68^2)^0.5) -> 577.2590753 | O70: ～ | P70: =(($G70^2+P$68^2)^0.5) -> 597.0226461 | Q70: =(($E70^2+Q$68^2)^0.5) -> 582.6903466 | R70: ～ | S70: =(($G70^2+S$68^2)^0.5) -> 602.2757176 | T70: =(($E70^2+T$68^2)^0.5) -> 589.5998982 | U70: ～ | V70: =(($G70^2+V$68^2)^0.5) -> 608.9630859 | W70: =(($E70^2+W$68^2)^0.5) -> 597.9364849 | X70: ～ | Y70: =(($G70^2+Y$68^2)^0.5) -> 617.0381188 | Z70: =(($E70^2+Z$68^2)^0.5) -> 607.6413745 | AA70: ～ | AB70: =(($G70^2+AB$68^2)^0.5) -> 626.4471566 | AC70: =(($E70^2+AC$68^2)^0.5) -> 618.6501758 | AD70: ～ | AE70: =(($G70^2+AE$68^2)^0.5) -> 637.1311011 | AF70: =(($E70^2+AF$68^2)^0.5) -> 630.8946346 | AG70: ～ | AH70: =(($G70^2+AH$68^2)^0.5) -> 649.0269948 | AI70: =(($E70^2+AI$68^2)^0.5) -> 644.304307 | AJ70: ～ | AK70: =(($G70^2+AK$68^2)^0.5) -> 662.069513 | AL70: =(($E70^2+AL$68^2)^0.5) -> 658.8080449 | AM70: ～ | AN70: =(($G70^2+AN$68^2)^0.5) -> 676.1923099 | AO70: =(($E70^2+AO$68^2)^0.5) -> 674.3352579 | AP70: ～ | AQ70: =(($G70^2+AQ$68^2)^0.5) -> 691.3291835 | AR70: =(($E70^2+AR$68^2)^0.5) -> 690.8169367 | AS70: ～ | AT70: =(($G70^2+AT$68^2)^0.5) -> 707.4150408 | AU70: =(($E70^2+AU$68^2)^0.5) -> 708.1864444 | AV70: ～ | AW70: =(($G70^2+AW$68^2)^0.5) -> 724.3866647 | AX70: =(($E70^2+AX$68^2)^0.5) -> 726.3800933 | AY70: ～ | AZ70: =(($G70^2+AZ$68^2)^0.5) -> 742.1832927 | BA70: =(($E70^2+BA$68^2)^0.5) -> 745.3375343 | BB70: ～ | BC70: =(($G70^2+BC$68^2)^0.5) -> 760.7470276 | BD70: =(($E70^2+BD$68^2)^0.5) -> 765.0019869 | BE70: ～ | BF70: =(($G70^2+BF$68^2)^0.5) -> 780.0231022 | BG70: =(($E70^2+BG$68^2)^0.5) -> 785.3203423 | BH70: ～ | BI70: =(($G70^2+BI$68^2)^0.5) -> 799.960024 | BJ70: =(($E70^2+BJ$68^2)^0.5) -> 806.2431643 | BK70: ～ | BL70: =(($G70^2+BL$68^2)^0.5) -> 820.5096221 | BM70: =(($E70^2+BM$68^2)^0.5) -> 827.724616 | BN70: ～ | BO70: =(($G70^2+BO$68^2)^0.5) -> 841.6270195 | BP70: =(($E70^2+BP$68^2)^0.5) -> 849.7223311 | BQ70: ～ | BR70: =(($G70^2+BR$68^2)^0.5) -> 863.2705486 | BS70: =(($E70^2+BS$68^2)^0.5) -> 872.1972483 | BT70: ～ | BU70: =(($G70^2+BU$68^2)^0.5) -> 885.4016264 | BV70: =(($E70^2+BV$68^2)^0.5) -> 895.113423 | BW70: ～ | BX70: =(($G70^2+BX$68^2)^0.5) -> 907.9846034 | BY70: =(($E70^2+BY$68^2)^0.5) -> 918.4378259 | BZ70: ～ | CA70: =(($G70^2+CA$68^2)^0.5) -> 930.986595 | CB70: =(($E70^2+CB$68^2)^0.5) -> 942.1401382 | CC70: ～ | CD70: =(($G70^2+CD$68^2)^0.5) -> 954.3773048 | CE70: =(($E70^2+CE$68^2)^0.5) -> 966.1925481 | CF70: ～ | CG70: =(($G70^2+CG$68^2)^0.5) -> 978.1288463 | CH70: =(($E70^2+CH$68^2)^0.5) -> 990.5695533 | CI70: ～ | CJ70: =(($G70^2+CJ$68^2)^0.5) -> 1002.215566 | CK70: =(($E70^2+CK$68^2)^0.5) -> 1015.247773 | CL70: ～ | CM70: =(($G70^2+CM$68^2)^0.5) -> 1026.613871 | CN70: =(($E70^2+CN$68^2)^0.5) -> 1040.205768 | CO70: ～ | CP70: =(($G70^2+CP$68^2)^0.5) -> 1051.302069 | CQ70: =(($E70^2+CQ$68^2)^0.5) -> 1065.423878 | CR70: ～ | CS70: =(($G70^2+CS$68^2)^0.5) -> 1076.26021
C71: 300 | D71: 600 | E71: 590.2 | F71: 640 | G71: =F71+75*2-79.9*2 -> 630.2 | H71: 590.9619616 | I71: ～ | J71: 630.9136549 | K71: 593.2419742 | L71: ～ | M71: 633.0497927 | N71: 597.0226461 | O71: ～ | P71: 636.5940936 | Q71: 602.2757176 | R71: ～ | S71: 641.5232186 | T71: 608.9630859 | U71: ～ | V71: 647.8055572 | W71: 617.0381188 | X71: ～ | Y71: 655.4021971 | Z71: 626.4471566 | AA71: ～ | AB71: 664.2680483 | AC71: 637.1311011 | AD71: ～ | AE71: 674.3530529 | AF71: 649.0269948 | AG71: ～ | AH71: 685.6034131 | AI71: =(($E71^2+AI$68^2)^0.5) -> 662.069513 | AJ71: ～ | AK71: =(($G71^2+AK$68^2)^0.5) -> 697.9627784 | AL71: 676.1923099 | AM71: ～ | AN71: 711.3733478 | AO71: 691.3291835 | AP71: ～ | AQ71: 725.7768528 | AR71: 707.4150408 | AS71: ～ | AT71: 741.1154026 | AU71: 724.3866647 | AV71: ～ | AW71: 757.332186 | AX71: 742.1832927 | AY71: ～ | AZ71: 774.3720295 | BA71: 760.7470276 | BB71: ～ | BC71: 792.1818226 | BD71: 780.0231022 | BE71: ～ | BF71: 810.7108239 | BG71: 799.960024 | BH71: ～ | BI71: 829.9108627 | BJ71: 820.5096221 | BK71: ～ | BL71: 849.7364533 | BM71: 841.6270195 | BN71: ～ | BO71: 870.1448385 | BP71: 863.2705486 | BQ71: ～ | BR71: 891.0959769 | BS71: 885.4016264 | BT71: ～ | BU71: 912.5524862 | BV71: 907.9846034 | BW71: ～ | BX71: 934.4795557 | BY71: 930.986595 | BZ71: ～ | CA71: 956.8448359 | CB71: 954.3773048 | CC71: ～ | CD71: 979.6183134 | CE71: 978.1288463 | CF71: ～ | CG71: 1002.772178 | CH71: 1002.215566 | CI71: ～ | CJ71: 1026.280683 | CK71: 1026.613871 | CL71: ～ | CM71: 1050.120012 | CN71: 1051.302069 | CO71: ～ | CP71: 1074.268142 | CQ71: 1076.26021 | CR71: ～ | CS71: 1098.70471
C72: 310 | D72: 620 | E72: 610.2 | F72: 680 | G72: =F72+75*2-79.9*2 -> 670.2 | H72: 610.937018 | I72: ～ | J72: 670.8711054 | K72: 613.1427566 | L72: ～ | M72: 672.8804054 | N72: 616.8014591 | O72: ～ | P72: 676.2159714 | Q72: 621.8874818 | R72: ～ | S72: 680.8583113 | T72: 628.3661671 | U72: ～ | V72: 686.7809258 | W72: 636.1949701 | X72: ～ | Y72: 693.9510357 | Z72: 645.3247555 | AA72: ～ | AB72: 702.3304351 | AC72: 655.7011819 | AD72: ～ | AE72: 711.8764219 | AF72: 667.2660938 | AG72: ～ | AH72: 722.54276 | AI72: =(($E72^2+AI$68^2)^0.5) -> 679.9588517 | AJ72: ～ | AK72: =(($G72^2+AK$68^2)^0.5) -> 734.2806276 | AL72: 693.7175506 | AM72: ～ | AN72: 747.039517 | AO72: 708.4800915 | AP72: ～ | AQ72: 760.7680593 | AR72: 724.1850868 | AS72: ～ | AT72: 775.4147535 | AU72: 740.7725967 | AV72: ～ | AW72: 790.9285935 | AX72: 758.1847005 | AY72: ～ | AZ72: 807.2595865 | BA72: 776.3659189 | BB72: ～ | BC72: 824.3591693 | BD72: 795.2635035 | BE72: ～ | BF72: 842.180527 | BG72: 814.8276137 | BH72: ～ | BI72: 860.6788251 | BJ72: 835.0114011 | BK72: ～ | BL72: 879.8113661 | BM72: 855.7710208 | BN72: ～ | BO72: 899.5376813 | BP72: 877.0655848 | BQ72: ～ | BR72: 919.8195693 | BS72: 898.8570743 | BT72: ～ | BU72: 940.6210927 | BV72: 921.1102214 | BW72: ～ | BX72: 961.9085404 | BY72: 943.7923712 | BZ72: ～ | CA72: 983.6503647 | CB72: 966.8733319 | CC72: ～ | CD72: 1005.817101 | CE72: 990.3252193 | CF72: ～ | CG72: 1028.381272 | CH72: 1014.1223 | CI72: ～ | CJ72: 1051.317288 | CK72: 1038.240839 | CL72: ～ | CM72: 1074.60134 | CN72: 1062.658948 | CO72: ～ | CP72: 1098.211291 | CQ72: 1087.356446 | CR72: ～ | CS72: 1122.12657
C73: 320 | D73: 640 | E73: 630.2 | F73: 720 | G73: 710.2 | H73: 630.9136549 | I73: ～ | J73: 710.8333419 | K73: 633.0497927 | L73: ～ | M73: 712.729991 | N73: 636.5940936 | O73: ～ | P73: 715.8799061 | Q73: 641.5232186 | R73: ～ | S73: 720.2666451 | T73: 647.8055572 | U73: ～ | V73: 725.8677841 | W73: 655.4021971 | X73: ～ | Y73: 732.6554716 | Z73: 664.2680483 | AA73: ～ | AB73: 740.5970834 | AC73: 674.3530529 | AD73: ～ | AE73: 749.6559478 | AF73: 685.6034131 | AG73: ～ | AH73: 759.7921031 | AI73: =(($E73^2+AI$68^2)^0.5) -> 697.9627784 | AJ73: ～ | AK73: =(($G73^2+AK$68^2)^0.5) -> 770.9630601 | AL73: 711.3733478 | AM73: ～ | AN73: 783.1245367 | AO73: 725.7768528 | AP73: ～ | AQ73: 796.2311473 | AR73: 741.1154026 | AS73: ～ | AT73: 810.237027 | AU73: 757.332186 | AV73: ～ | AW73: 825.0963822 | AX73: 774.3720295 | AY73: ～ | AZ73: 840.7639621 | BA73: 792.1818226 | BB73: ～ | BC73: 857.1954503 | BD73: 810.7108239 | BE73: ～ | BF73: 874.3477798 | BG73: 829.9108627 | BH73: ～ | BI73: 892.1793766 | BJ73: 849.7364533 | BK73: ～ | BL73: 910.650339 | BM73: 870.1448385 | BN73: ～ | BO73: 929.7225608 | BP73: 891.0959769 | BQ73: ～ | BR73: 949.3598053 | BS73: 912.5524862 | BT73: ～ | BU73: 969.5277407 | BV73: 934.4795557 | BW73: ～ | BX73: 990.1939406 | BY73: 956.8448359 | BZ73: ～ | CA73: 1011.32786 | CB73: 979.6183134 | CC73: ～ | CD73: 1032.900789 | CE73: 1002.772178 | CF73: ～ | CG73: 1054.885795 | CH73: 1026.280683 | CI73: ～ | CJ73: 1077.257648 | CK73: 1050.120012 | CL73: ～ | CM73: 1099.992745 | CN73: 1074.268142 | CO73: ～ | CP73: 1123.069027 | CQ73: 1098.70471 | CR73: ～ | CS73: 1146.465891
C74: 330 | D74: 660 | E74: 650.2 | F74: 760 | G74: 750.2 | H74: 650.8917268 | I74: ～ | J74: 750.7996004 | K74: 652.9625104 | L74: ～ | M74: 752.5955355 | N74: 656.3992992 | O74: ～ | P74: 755.5792745 | Q74: 661.1807922 | R74: ～ | S74: 759.7368229 | T74: 667.278083 | U74: ～ | V74: 765.0490442 | W74: 674.6554973 | X74: ～ | Y74: 771.4920868 | Z74: 683.2715712 | AA74: ～ | AB74: 779.0378938 | AC74: 693.0801108 | AD74: ～ | AE74: 787.6547721 | AF74: 704.0312777 | AG74: ～ | AH74: 797.3079957 | AI74: =(($E74^2+AI$68^2)^0.5) -> 716.0726499 | AJ74: ～ | AK74: =(($G74^2+AK$68^2)^0.5) -> 807.9604198 | AL74: 729.1502177 | AM74: ～ | AN74: 819.573084 | AO74: 743.2092841 | AP74: ～ | AQ74: 832.1057865 | AR74: 758.1952519 | AS74: ～ | AT74: 845.5176166 | AU74: 774.0542875 | AV74: ～ | AW74: 859.7674337 | AX74: 790.7338617 | AY74: ～ | AZ74: 874.8142889 | BA74: 808.1831723 | BB74: ～ | BC74: 890.6177856 | BD74: 826.3534595 | BE74: ～ | BF74: 907.1383797 | BG74: 845.1982253 | BH74: ～ | BI74: 924.3376223 | BJ74: 864.6733719 | BK74: ～ | BL74: 942.1783483 | BM74: 884.7372717 | BN74: ～ | BO74: 960.6248175 | BP74: 905.3507828 | BQ74: ～ | BR74: 979.6428125 | BS74: 926.4772204 | BT74: ～ | BU74: 999.1996998 | BV74: 948.082296 | BW74: ～ | BX74: 1019.26446 | BY74: 970.134032 | BZ74: ～ | CA74: 1039.807694 | CB74: 992.6026597 | CC74: ～ | CD74: 1060.801603 | CE74: 1015.460506 | CF74: ～ | CG74: 1082.219959 | CH74: 1038.681876 | CI74: ～ | CJ74: 1104.038061 | CK74: 1062.242929 | CL74: ～ | CM74: 1126.232676 | CN74: 1086.121559 | CO74: ～ | CP74: 1148.781981 | CQ74: 1110.297276 | CR74: ～ | CS74: 1171.665498
C75: 340 | D75: 680 | E75: 670.2 | F75: 800 | G75: 790.2 | H75: 670.8711054 | I75: ～ | J75: 790.769271 | K75: 672.8804054 | L75: ～ | M75: 792.4746305 | N75: 676.2159714 | O75: ～ | P75: 795.3087702 | Q75: 680.8583113 | R75: ～ | S75: 799.2596825 | T75: 686.7809258 | U75: ～ | V75: 804.31091 | W75: 693.9510357 | X75: ～ | Y75: 810.4418795 | Z75: 702.3304351 | AA75: ～ | AB75: 817.6283019 | AC75: 711.8764219 | AD75: ～ | AE75: 825.8426242 | AF75: 722.54276 | AG75: ～ | AH75: 835.0545132 | AI75: 734.2806276 | AJ75: ～ | AK75: 845.2313529 | AL75: 747.039517 | AM75: ～ | AN75: 856.3387414 | AO75: 760.7680593 | AP75: ～ | AQ75: 868.3409699 | AR75: 775.4147535 | AS75: ～ | AT75: 881.2014753 | AU75: 790.9285935 | AV75: ～ | AW75: 894.883255 | AX75: 807.2595865 | AY75: ～ | AZ75: 909.3492398 | BA75: 824.3591693 | BB75: ～ | BC75: 924.5626209 | BD75: 842.180527 | BE75: ～ | BF75: 940.4871291 | BG75: 860.6788251 | BH75: ～ | BI75: 957.0872687 | BJ75: 879.8113661 | BK75: ～ | BL75: 974.3285072 | BM75: 899.5376813 | BN75: ～ | BO75: 992.1774236 | BP75: 919.8195693 | BQ75: ～ | BR75: 1010.601821 | BS75: 940.6210927 | BT75: ～ | BU75: 1029.570804 | BV75: 961.9085404 | BW75: ～ | BX75: 1049.054832 | BY75: 983.6503647 | BZ75: ～ | CA75: 1069.025743 | CB75: 1005.817101 | CC75: ～ | CD75: 1089.456764 | CE75: 1028.381272 | CF75: ～ | CG75: 1110.322494 | CH75: 1051.317288 | CI75: ～ | CJ75: 1131.598887 | CK75: 1074.60134 | CL75: ～ | CM75: 1153.263214 | CN75: 1098.211291 | CO75: ～ | CP75: 1175.294023 | CQ75: 1122.12657 | CR75: ～ | CS75: 1197.67109
C76: 350 | D76: 700 | E76: 690.2 | F76: 840 | G76: 830.2 | H76: 690.8516773 | I76: ～ | J76: 830.7418612 | K76: 692.8030312 | L76: ～ | M76: 832.3653284 | N76: 696.0431308 | O76: ～ | P76: 835.0640933 | Q76: 700.554095 | R76: ～ | S76: 838.8277773 | T76: 706.3115743 | U76: ～ | V76: 843.6421279 | W76: 713.2853847 | X76: ～ | Y76: 849.4892819 | Z76: 721.4402539 | AA76: ～ | AB76: 856.3480834 | AC76: 730.736642 | AD76: ～ | AE76: 864.1944457 | AF76: 741.1315943 | AG76: ～ | AH76: 873.0017411 | AI76: 752.5795905 | AJ76: ～ | AK76: 882.7412078 | AL76: 765.0333587 | AM76: ～ | AN76: 893.3823594 | AO76: 778.4446287 | AP76: ～ | AQ76: 904.893386 | AR76: 792.7648075 | AS76: ～ | AT76: 917.2415385 | AU76: 807.9455675 | AV76: ～ | AW76: 930.3934866 | AX76: 823.9393424 | AY76: ～ | AZ76: 944.3156464 | BA76: 840.6997324 | BB76: ～ | BC76: 958.9744731 | BD76: 858.1818222 | BE76: ～ | BF76: 974.336718 | BG76: 876.3424217 | BH76: ～ | BI76: 990.3696482 | BJ76: 895.1402348 | BK76: ～ | BL76: 1007.041231 | BM76: 914.5359698 | BN76: ～ | BO76: 1024.320282 | BP76: 934.492397 | BQ76: ～ | BR76: 1042.176588 | BS76: 954.9743661 | BT76: ～ | BU76: 1060.580992 | BV76: 975.9487896 | BW76: ～ | BX76: 1079.505461 | BY76: 997.3845998 | BZ76: ～ | CA76: 1098.923127 | CB76: 1019.252687 | CC76: ～ | CD76: 1118.808312 | CE76: 1041.525823 | CF76: ～ | CG76: 1139.136533 | CH76: 1064.178575 | CI76: ～ | CJ76: 1159.884494 | CK76: 1087.187215 | CL76: ～ | CM76: 1181.030076 | CN76: 1110.529621 | CO76: ～ | CP76: 1202.552302 | CQ76: 1134.185188 | CR76: ～ | CS76: 1224.431313
C77: 360 | D77: 720 | E77: 710.2 | F77: 880 | G77: 870.2 | H77: 710.8333419 | I77: ～ | J77: 870.7169689 | K77: 712.729991 | L77: ～ | M77: 872.2660374 | N77: 715.8799061 | O77: ～ | P77: 874.8417228 | Q77: 720.2666451 | R77: ～ | S77: 878.4349947 | T77: 725.8677841 | U77: ～ | V77: 883.0334309 | W77: 732.6554716 | X77: ～ | Y77: 888.6214267 | Z77: 740.5970834 | AA77: ～ | AB77: 895.1804511 | AC77: 749.6559478 | AD77: ～ | AE77: 902.6893375 | AF77: 759.7921031 | AG77: ～ | AH77: 911.1246018 | AI77: 770.9630601 | AJ77: ～ | AK77: 920.4607759 | AL77: 783.1245367 | AM77: ～ | AN77: 930.6707474 | AO77: 796.2311473 | AP77: ～ | AQ77: 941.7260961 | AR77: 810.237027 | AS77: ～ | AT77: 953.5974203 | AU77: 825.0963822 | AV77: ～ | AW77: 966.2546455 | AX77: 840.7639621 | AY77: ～ | AZ77: 979.6673109 | BA77: 857.1954503 | BB77: ～ | BC77: 993.8048299 | BD77: 874.3477798 | BE77: ～ | BF77: 1008.636724 | BG77: 892.1793766 | BH77: ～ | BI77: 1024.132823 | BJ77: 910.650339 | BK77: ～ | BL77: 1040.263447 | BM77: 929.7225608 | BN77: ～ | BO77: 1056.999546 | BP77: 949.3598053 | BQ77: ～ | BR77: 1074.312822 | BS77: 969.5277407 | BT77: ～ | BU77: 1092.175828 | BV77: 990.1939406 | BW77: ～ | BX77: 1110.562038 | BY77: 1011.32786 | BZ77: ～ | CA77: 1129.4459 | CB77: 1032.900789 | CC77: ～ | CD77: 1148.802873 | CE77: 1054.885795 | CF77: ～ | CG77: 1168.609447 | CH77: 1077.257648 | CI77: ～ | CJ77: 1188.843152 | CK77: 1099.992745 | CL77: ～ | CM77: 1209.482551 | CN77: 1123.069027 | CO77: ～ | CP77: 1230.507229 | CQ77: 1146.465891 | CR77: ～ | CS77: 1251.897775
C78: 370 | D78: 740 | E78: 730.2 | F78: 920 | G78: 910.2 | H78: 730.8160097 | I78: ～ | J78: 910.6942626 | K78: 732.6609311 | L78: ～ | M78: 912.1754437 | N78: 735.7255195 | O78: ～ | P78: 914.6387484 | Q78: 739.9946216 | R78: ～ | S78: 918.0762713 | T78: 745.4475434 | U78: ～ | V78: 922.4771217 | W78: 752.058535 | X78: ～ | Y78: 927.8275917 | Z78: 759.7973677 | AA78: ～ | AB78: 934.1113638 | AC78: 768.629976 | AD78: ～ | AE78: 941.3097471 | AF78: 778.5191327 | AG78: ～ | AH78: 949.4019381 | AI78: 789.4251326 | AJ78: ～ | AK78: 958.3652957 | AL78: 801.3064582 | AM78: ～ | AN78: 968.1756246 | AO78: 814.1204088 | AP78: ～ | AQ78: 978.8074581 | AR78: 827.8236769 | AS78: ～ | AT78: 990.2343359 | AU78: 842.3728628 | AV78: ～ | AW78: 1002.42907 | AX78: 857.7249209 | AY78: ～ | AZ78: 1015.363994 | BA78: 873.8375364 | BB78: ～ | BC78: 1029.011195 | BD78: 890.6694336 | BE78: ～ | BF78: 1043.342724 | BG78: 908.1806208 | BH78: ～ | BI78: 1058.33078 | BJ78: 926.3325753 | BK78: ～ | BL78: 1073.947876 | BM78: 945.0883768 | BN78: ～ | BO78: 1090.166978 | BP78: 964.4127954 | BQ78: ～ | BR78: 1106.961625 | BS78: 984.2723404 | BT78: ～ | BU78: 1124.306026 | BV78: 1004.635277 | BW78: ～ | BX78: 1142.175135 | BY78: 1025.471618 | BZ78: ～ | CA78: 1160.544717 | CB78: 1046.753094 | CC78: ～ | CD78: 1179.391385 | CE78: 1068.453106 | CF78: ～ | CG78: 1198.692638 | CH78: 1090.54667 | CI78: ～ | CJ78: 1218.426871 | CK78: 1113.01035 | CL78: ～ | CM78: 1238.573389 | CN78: 1135.822187 | CO78: ～ | CP78: 1259.112402 | CQ78: 1158.961621 | CR78: ～ | CS78: 1280.025015
C79: 380 | D79: 760 | E79: 750.2 | F79: 960 | G79: 950.2 | H79: 750.7996004 | I79: ～ | J79: 950.6734665 | K79: 752.5955355 | L79: ～ | M79: 952.0924535 | N79: 755.5792745 | O79: ～ | P79: 954.4527437 | Q79: 759.7368229 | R79: ～ | S79: 957.747378 | T79: 765.0490442 | U79: ～ | V79: 961.9667562 | W79: 771.4920868 | X79: ～ | Y79: 967.0987747 | Z79: 779.0378938 | AA79: ～ | AB79: 973.1289945 | AC79: 787.6547721 | AD79: ～ | AE79: 980.0408359 | AF79: 797.3079957 | AG79: ～ | AH79: 987.8157925 | AI79: 807.9604198 | AJ79: ～ | AK79: 996.4336606 | AL79: 819.573084 | AM79: ～ | AN79: 1005.872775 | AO79: 832.1057865 | AP79: ～ | AQ79: 1016.11025 | AR79: 845.5176166 | AS79: ～ | AT79: 1027.122213 | AU79: 859.7674337 | AV79: ～ | AW79: 1038.884036 | AX79: 874.8142889 | AY79: ～ | AZ79: 1051.370553 | BA79: 890.6177856 | BB79: ～ | BC79: 1064.556264 | BD79: 907.1383797 | BE79: ～ | BF79: 1078.415523 | BG79: 924.3376223 | BH79: ～ | BI79: 1092.922705 | BJ79: 942.1783483 | BK79: ～ | BL79: 1108.052363 | BM79: 960.6248175 | BN79: ～ | BO79: 1123.779356 | BP79: 979.6428125 | BQ79: ～ | BR79: 1140.078962 | BS79: 999.1996998 | BT79: ～ | BU79: 1156.926981 | BV79: 1019.26446 | BW79: ～ | BX79: 1174.299808 | BY79: 1039.807694 | BZ79: ～ | CA79: 1192.174501 | CB79: 1060.801603 | CC79: ～ | CD79: 1210.528827 | CE79: 1082.219959 | CF79: ～ | CG79: 1229.341303 | CH79: 1104.038061 | CI79: ～ | CJ79: 1248.591222 | CK79: 1126.232676 | CL79: ～ | CM79: 1268.258664 | CN79: 1148.781981 | CO79: ～ | CP79: 1288.324509 | CQ79: 1171.665498 | CR79: ～ | CS79: 1308.770431
C80: 390 | D80: 780 | E80: 770.2 | F80: 1000 | G80: 990.2 | H80: 770.7840424 | I80: ～ | J80: 990.6543494 | K80: 772.5335203 | L80: ～ | M80: 992.0161491 | N80: 775.4405458 | O80: ～ | P80: 994.2816704 | Q80: 779.492168 | R80: ～ | S80: 997.4447554 | T80: 784.670657 | U80: ～ | V80: 1001.4969 | W80: 790.9538798 | X80: ～ | Y80: 1006.427364 | Z80: 798.3157521 | AA80: ～ | AB80: 1012.223315 | AC80: 806.7267443 | AD80: ～ | AE80: 1018.869982 | AF80: 816.1544217 | AG80: ～ | AH80: 1026.350837 | AI80: 826.5639963 | AJ80: ～ | AK80: 1034.647785 | AL80: 837.9188744 | AM80: ～ | AN80: 1043.741366 | AO80: 850.1811807 | AP80: ～ | AQ80: 1053.610953 | AR80: 863.3122494 | AS80: ～ | AT80: 1064.234955 | AU80: 877.2730704 | AV80: ～ | AW80: 1075.591019 | AX80: 892.0246858 | AY80: ～ | AZ80: 1087.656214 | BA80: 907.528534 | BB80: ～ | BC80: 1100.407216 | BD80: 923.7467402 | BE80: ～ | BF80: 1113.82047 | BG80: 940.642355 | BH80: ～ | BI80: 1127.872351 | BJ80: 958.1795448 | BK80: ～ | BL80: 1142.539295 | BM80: 976.3237373 | BN80: ～ | BO80: 1157.797927 | BP80: 995.0417278 | BQ80: ～ | BR80: 1173.62517 | BS80: 1014.30175 | BT80: ～ | BU80: 1189.998336 | BV80: 1034.073518 | BW80: ～ | BX80: 1206.895207 | BY80: 1054.328241 | BZ80: ～ | CA80: 1224.294099 | CB80: 1075.038623 | CC80: ～ | CD80: 1242.173917 | CE80: 1096.178836 | CF80: ～ | CG80: 1260.514197 | CH80: 1117.724492 | CI80: ～ | CJ80: 1279.295134 | CK80: 1139.652596 | CL80: ～ | CM80: 1298.497609 | CN80: 1161.941496 | CO80: ～ | CP80: 1318.103198 | CQ80: 1184.570825 | CR80: ～ | CS80: 1338.094182
C81: 400 | D81: 800 | E81: 790.2 | F81: 1040 | G81: 1030.2 | H81: 790.769271 | I81: ～ | J81: 1030.636716 | K81: 792.4746305 | L81: ～ | M81: 1031.945754 | N81: 795.3087702 | O81: ～ | P81: 1034.123803 | Q81: 799.2596825 | R81: ～ | S81: 1037.165387 | T81: 804.31091 | U81: ～ | V81: 1041.062938 | W81: 810.4418795 | X81: ～ | Y81: 1045.806885 | Z81: 817.6283019 | AA81: ～ | AB81: 1051.385771 | AC81: 825.8426242 | AD81: ～ | AE81: 1057.786387 | AF81: 835.0545132 | AG81: ～ | AH81: 1064.993915 | AI81: 845.2313529 | AJ81: ～ | AK81: 1072.992097 | AL81: 856.3387414 | AM81: ～ | AN81: 1081.763394 | AO81: 868.3409699 | AP81: ～ | AQ81: 1091.289164 | AR81: 881.2014753 | AS81: ～ | AT81: 1101.549835 | AU81: 894.883255 | AV81: ～ | AW81: 1112.525074 | AX81: 909.3492398 | AY81: ～ | AZ81: 1124.193951 | BA81: 924.5626209 | BB81: ～ | BC81: 1136.535103 | BD81: 940.4871291 | BE81: ～ | BF81: 1149.526877 | BG81: 957.0872687 | BH81: ～ | BI81: 1163.147471 | BJ81: 974.3285072 | BK81: ～ | BL81: 1177.375063 | BM81: 992.1774236 | BN81: ～ | BO81: 1192.187921 | BP81: 1010.601821 | BQ81: ～ | BR81: 1207.564508 | BS81: 1029.570804 | BT81: ～ | BU81: 1223.483568 | BV81: 1049.054832 | BW81: ～ | BX81: 1239.924207 | BY81: 1069.025743 | BZ81: ～ | CA81: 1256.865959 | CB81: 1089.456764 | CC81: ～ | CD81: 1274.288837 | CE81: 1110.322494 | CF81: ～ | CG81: 1292.173378 | CH81: 1131.598887 | CI81: ～ | CJ81: 1310.500683 | CK81: 1153.263214 | CL81: ～ | CM81: 1329.252437 | CN81: 1175.294023 | CO81: ～ | CP81: 1348.410931 | CQ81: 1197.67109 | CR81: ～ | CS81: 1367.959078
C82: 410 | D82: =C82*2 -> 820 | E82: 810.2 | F82: 1080 | G82: =F82+75*2-79.9*2 -> 1070.2 | H82: 810.7552282 | I82: ～ | J82: 1070.6204 | K82: 812.4186359 | L82: ～ | M82: 1071.880609 | N82: 815.1834395 | O82: ～ | P82: 1073.977672 | Q82: 819.0384851 | R82: ～ | S82: 1076.9067 | T82: 823.9684703 | U82: ～ | V82: 1080.660927 | W82: 829.9542397 | X82: ～ | Y82: 1085.231791 | Z82: 836.9731417 | AA82: ～ | AB82: 1090.609023 | AC82: 844.999432 | AD82: ～ | AE82: 1096.780762 | AF82: 854.0047072 | AG82: ～ | AH82: 1103.733682 | AI82: =(($E82^2+AI$68^2)^0.5) -> 863.9583555 | AJ82: ～ | AK82: =(($G82^2+AK$68^2)^0.5) -> 1111.453121 | AL82: 874.828006 | AM82: ～ | AN82: 1119.92323 | AO82: 886.5799682 | AP82: ～ | AQ82: 1129.127114 | AR82: 899.1796483 | AS82: ～ | AT82: 1139.046988 | AU82: 912.5919351 | AV82: ～ | AW82: 1149.664316 | AX82: 926.7815492 | AY82: ～ | AZ82: 1160.959965 | BA82: 941.7133534 | BB82: ～ | BC82: 1172.914336 | BD82: 957.3526205 | BE82: ～ | BF82: 1185.507503 | BG82: 973.6652608 | BH82: ～ | BI82: 1198.719333 | BJ82: 990.6180091 | BK82: ～ | BL82: 1212.529604 | BM82: 1008.178575 | BN82: ～ | BO82: 1226.918106 | BP82: 1026.31576 | BQ82: ～ | BR82: 1241.864743 | BS82: 1044.999541 | BT82: ～ | BU82: 1257.349609 | BV82: 1064.201128 | BW82: ～ | BX82: 1273.35307 | BY82: 1083.893002 | BZ82: ～ | CA82: 1289.855821 | CB82: 1104.04893 | CC82: ～ | CD82: 1306.83895 | CE82: 1124.643961 | CF82: ～ | CG82: 1324.283973 | CH82: 1145.654416 | CI82: ～ | CJ82: 1342.17288 | CK82: 1167.057856 | CL82: ～ | CM82: 1360.488162 | CN82: 1188.833058 | CO82: ～ | CP82: 1379.212833 | CQ82: 1210.959966 | CR82: ～ | CS82: 1398.330447
C83: 420 | D83: 840 | E83: 830.2 | F83: 1120 | G83: 1110.2 | H83: 830.7418612 | I83: ～ | J83: 1110.605258 | K83: 832.3653284 | L83: ～ | M83: 1111.820147 | N83: 835.0640933 | O83: ～ | P83: 1113.842018 | Q83: 838.8277773 | R83: ～ | S83: 1116.666486 | T83: 843.6421279 | U83: ～ | V83: 1120.287481 | W83: 849.4892819 | X83: ～ | Y83: 1124.69731 | Z83: 856.3480834 | AA83: ～ | AB83: 1129.886738 | AC83: 864.1944457 | AD83: ～ | AE83: 1135.845077 | AF83: 873.0017411 | AG83: ～ | AH83: 1142.5603 | AI83: =(($E83^2+AI$68^2)^0.5) -> 882.7412078 | AJ83: ～ | AK83: =(($G83^2+AK$68^2)^0.5) -> 1150.019148 | AL83: 893.3823594 | AM83: ～ | AN83: 1158.207253 | AO83: 904.893386 | AP83: ～ | AQ83: 1167.109267 | AR83: 917.2415385 | AS83: ～ | AT83: 1176.708987 | AU83: 930.3934866 | AV83: ～ | AW83: 1186.989486 | AX83: 944.3156464 | AY83: ～ | AZ83: 1197.933237 | BA83: 958.9744731 | BB83: ～ | BC83: 1209.522236 | BD83: 974.336718 | BE83: ～ | BF83: 1221.738123 | BG83: 990.3696482 | BH83: ～ | BI83: 1234.562287 | BJ83: 1007.041231 | BK83: ～ | BL83: 1247.975977 | BM83: 1024.320282 | BN83: ～ | BO83: 1261.960396 | BP83: 1042.176588 | BQ83: ～ | BR83: 1276.496784 | BS83: 1060.580992 | BT83: ～ | BU83: 1291.566506 | BV83: 1079.505461 | BW83: ～ | BX83: 1307.151116 | BY83: 1098.923127 | BZ83: ～ | CA83: 1323.232421 | CB83: 1118.808312 | CC83: ～ | CD83: 1339.792536 | CE83: 1139.136533 | CF83: ～ | CG83: 1356.81393 | CH83: 1159.884494 | CI83: ～ | CJ83: 1374.279462 | CK83: 1181.030076 | CL83: ～ | CM83: 1392.172417 | CN83: 1202.552302 | CO83: ～ | CP83: 1410.476529 | CQ83: 1224.431313 | CR83: ～ | CS83: 1429.176
C84: 430 | D84: 860 | E84: 850.2 | F84: 1160 | G84: 1150.2 | H84: 850.7291226 | I84: ～ | J84: 1150.59117 | K84: 852.3145194 | L84: ～ | M84: 1151.763882 | N84: 854.9503143 | O84: ～ | P84: 1153.715754 | Q84: 858.626834 | R84: ～ | S84: 1156.442839 | T84: 863.3307825 | U84: ～ | V84: 1159.939671 | W84: 869.0454764 | X84: ～ | Y84: 1164.199313 | Z84: 875.751129 | AA84: ～ | AB84: 1169.213428 | AC84: 883.4251751 | AD84: ～ | AE84: 1174.972357 | AF84: 892.0426223 | AG84: ～ | AH84: 1181.465209 | AI84: =(($E84^2+AI$68^2)^0.5) -> 901.5764194 | AJ84: ～ | AK84: =(($G84^2+AK$68^2)^0.5) -> 1188.679957 | AL84: 911.9978289 | AM84: ～ | AN84: 1196.603543 | AO84: 923.2767949 | AP84: ～ | AQ84: 1205.221988 | AR84: 935.3822962 | AS84: ～ | AT84: 1214.520498 | AU84: 948.2826794 | AV84: ～ | AW84: 1224.483581 | AX84: 961.9459652 | AY84: ～ | AZ84: 1235.095154 | BA84: 976.3401252 | BB84: ～ | BC84: 1246.338654 | BD84: 991.433326 | BE84: ～ | BF84: 1258.197139 | BG84: 1007.194142 | BH84: ～ | BI84: 1270.653391 | BJ84: 1023.591735 | BK84: ～ | BL84: 1283.690009 | BM84: 1040.596002 | BN84: ～ | BO84: 1297.289497 | BP84: 1058.177698 | BQ84: ～ | BR84: 1311.434345 | BS84: 1076.308525 | BT84: ～ | BU84: 1326.1071 | BV84: 1094.961205 | BW84: ～ | BX84: 1341.290438 | BY84: 1114.109528 | BZ84: ～ | CA84: 1356.967221 | CB84: 1133.72838 | CC84: ～ | CD84: 1373.120548 | CE84: 1153.79376 | CF84: ～ | CG84: 1389.733802 | CH84: 1174.282777 | CI84: ～ | CJ84: 1406.790688 | CK84: 1195.173644 | CL84: ～ | CM84: 1424.275268 | CN84: 1216.445658 | CO84: ～ | CP84: 1442.171987 | CQ84: 1238.079174 | CR84: ～ | CS84: 1460.465693
C85: 440 | D85: 880 | E85: 870.2 | F85: 1200 | G85: 1190.2 | H85: 870.7169689 | I85: ～ | J85: 1190.578028 | K85: 872.2660374 | L85: ～ | M85: 1191.711391 | N85: 874.8417228 | O85: ～ | P85: 1193.597939 | Q85: 878.4349947 | R85: ～ | S85: 1196.234108 | T85: 883.0334309 | U85: ～ | V85: 1199.614955 | W85: 888.6214267 | X85: ～ | Y85: 1203.734207 | Z85: 895.1804511 | AA85: ～ | AB85: 1208.584312 | AC85: 902.6893375 | AD85: ～ | AE85: 1214.156514 | AF85: 911.1246018 | AG85: ～ | AH85: 1220.44092 | AI85: 920.4607759 | AJ85: ～ | AK85: 1227.426593 | AL85: 930.6707474 | AM85: ～ | AN85: 1235.101631 | AO85: 941.7260961 | AP85: ～ | AQ85: 1243.453272 | AR85: 953.5974203 | AS85: ～ | AT85: 1252.46798 | AU85: 966.2546455 | AV85: ～ | AW85: 1262.131546 | AX85: 979.6673109 | AY85: ～ | AZ85: 1272.429189 | BA85: 993.8048299 | BB85: ～ | BC85: 1283.345643 | BD85: 1008.636724 | BE85: ～ | BF85: 1294.865259 | BG85: 1024.132823 | BH85: ～ | BI85: 1306.972088 | BJ85: 1040.263447 | BK85: ～ | BL85: 1319.649969 | BM85: 1056.999546 | BN85: ～ | BO85: 1332.882605 | BP85: 1074.312822 | BQ85: ～ | BR85: 1346.653645 | BS85: 1092.175828 | BT85: ～ | BU85: 1360.946744 | BV85: 1110.562038 | BW85: ～ | BX85: 1375.745631 | BY85: 1129.4459 | BZ85: ～ | CA85: 1391.034162 | CB85: 1148.802873 | CC85: ～ | CD85: 1406.796375 | CE85: 1168.609447 | CF85: ～ | CG85: 1423.016528 | CH85: 1188.843152 | CI85: ～ | CJ85: 1439.679145 | CK85: 1209.482551 | CL85: ～ | CM85: 1456.769041 | CN85: 1230.507229 | CO85: ～ | CP85: 1474.271359 | CQ85: 1251.897775 | CR85: ～ | CS85: 1492.171585
C86: 450 | D86: 900 | E86: 890.2 | F86: 1240 | G86: 1230.2 | H86: 890.7053609 | I86: ～ | J86: 1230.56574 | K86: 892.2197263 | L86: ～ | M86: 1231.662308 | N86: 894.7379728 | O86: ～ | P86: 1233.487754 | Q86: 898.2516574 | R86: ～ | S86: 1236.038851 | T86: 902.7491567 | U86: ～ | V86: 1239.311115 | W86: 908.2158554 | X86: ～ | Y86: 1243.298854 | Z86: 914.634375 | AA86: ～ | AB86: 1247.995208 | AC86: 921.9848372 | AD86: ～ | AE86: 1253.392213 | AF86: 930.2451505 | AG86: ～ | AH86: 1259.480861 | AI86: 939.3913136 | AJ86: ～ | AK86: 1266.251176 | AL86: 949.3977249 | AM86: ～ | AN86: 1273.692286 | AO86: 960.2374915 | AP86: ～ | AQ86: 1281.792511 | AR86: 971.8827296 | AS86: ～ | AT86: 1290.539438 | AU86: 984.3048512 | AV86: ～ | AW86: 1299.920013 | AX86: 997.4748318 | AY86: ～ | AZ86: 1309.920624 | BA86: 1011.363456 | BB86: ～ | BC86: 1320.527183 | BD86: 1025.941538 | BE86: ～ | BF86: 1331.725212 | BG86: 1041.180119 | BH86: ～ | BI86: 1343.499922 | BJ86: 1057.050633 | BK86: ～ | BL86: 1355.836288 | BM86: 1073.525053 | BN86: ～ | BO86: 1368.719124 | BP86: 1090.576013 | BQ86: ～ | BR86: 1382.133148 | BS86: 1108.176899 | BT86: ～ | BU86: 1396.06305 | BV86: 1126.301931 | BW86: ～ | BX86: 1410.493545 | BY86: 1144.926216 | BZ86: ～ | CA86: 1425.409429 | CB86: 1164.02579 | CC86: ～ | CD86: 1440.795627 | CE86: 1183.577644 | CF86: ～ | CG86: 1456.637237 | CH86: 1203.559737 | CI86: ～ | CJ86: 1472.919563 | CK86: 1223.950996 | CL86: ～ | CM86: 1489.628155 | CN86: 1244.731312 | CO86: ～ | CP86: 1506.748831 | CQ86: 1265.881527 | CR86: ～ | CS86: 1524.267706
C87: 460 | D87: 920 | E87: 910.2 | F87: 1280 | G87: 1270.2 | H87: 910.6942626 | I87: ～ | J87: 1270.554226 | K87: 912.1754437 | L87: ～ | M87: 1271.61631 | N87: 914.6387484 | O87: ～ | P87: 1273.384482 | Q87: 918.0762713 | R87: ～ | S87: 1275.855807 | T87: 922.4771217 | U87: ～ | V87: 1279.026208 | W87: 927.8275917 | X87: ～ | Y87: 1282.890502 | Z87: 934.1113638 | AA87: ～ | AB87: 1287.442441 | AC87: 941.3097471 | AD87: ～ | AE87: 1292.674762 | AF87: 949.4019381 | AG87: ～ | AH87: 1298.579239 | AI87: 958.3652957 | AJ87: ～ | AK87: 1305.14675 | AL87: 968.1756246 | AM87: ～ | AN87: 1312.367342 | AO87: 978.8074581 | AP87: ～ | AQ87: 1320.230298 | AR87: 990.2343359 | AS87: ～ | AT87: 1328.724215 | AU87: 1002.42907 | AV87: ～ | AW87: 1337.837075 | AX87: 1015.363994 | AY87: ～ | AZ87: 1347.556322 | BA87: 1029.011195 | BB87: ～ | BC87: 1357.868933 | BD87: 1043.342724 | BE87: ～ | BF87: 1368.761499 | BG87: 1058.33078 | BH87: ～ | BI87: 1380.220287 | BJ87: 1073.947876 | BK87: ～ | BL87: 1392.231317 | BM87: 1090.166978 | BN87: ～ | BO87: 1404.780424 | BP87: 1106.961625 | BQ87: ～ | BR87: 1417.853321 | BS87: 1124.306026 | BT87: ～ | BU87: 1431.435657 | BV87: 1142.175135 | BW87: ～ | BX87: 1445.513072 | BY87: 1160.544717 | BZ87: ～ | CA87: 1460.071245 | CB87: 1179.391385 | CC87: ～ | CD87: 1475.095943 | CE87: 1198.692638 | CF87: ～ | CG87: 1490.573058 | CH87: 1218.426871 | CI87: ～ | CJ87: 1506.488646 | CK87: 1238.573389 | CL87: ～ | CM87: 1522.82896 | CN87: 1259.112402 | CO87: ～ | CP87: 1539.580475 | CQ87: 1280.025015 | CR87: ～ | CS87: 1556.729919
C88: 470 | D88: 940 | E88: 930.2 | F88: 1320 | G88: 1310.2 | H88: 930.6836412 | I88: ～ | J88: 1310.543414 | K88: 932.1330592 | L88: ～ | M88: 1311.573117 | N88: 934.5437603 | O88: ～ | P88: 1313.287493 | Q88: 937.9083324 | R88: ～ | S88: 1315.683868 | T88: 942.2165568 | U88: ～ | V88: 1318.758522 | W88: 947.455561 | X88: ～ | Y88: 1322.506726 | Z88: 953.6100041 | AA88: ～ | AB88: 1326.922771 | AC88: 960.6622924 | AD88: ～ | AE88: 1332.000015 | AF88: 968.5928143 | AG88: ～ | AH88: 1337.73093 | AI88: 977.3801921 | AJ88: ～ | AK88: 1344.107153 | AL88: 987.00154 | AM88: ～ | AN88: 1351.119551 | AO88: 997.4327245 | AP88: ～ | AQ88: 1358.758271 | AR88: 1008.648621 | AS88: ～ | AT88: 1367.012816 | AU88: 1020.623359 | AV88: ～ | AW88: 1375.872102 | AX88: 1033.330557 | AY88: ～ | AZ88: 1385.324525 | BA88: 1046.743541 | BB88: ～ | BC88: 1395.358033 | BD88: 1060.835539 | BE88: ～ | BF88: 1405.960184 | BG88: 1075.579862 | BH88: ～ | BI88: 1417.118217 | BJ88: 1090.950063 | BK88: ～ | BL88: 1428.819107 | BM88: 1106.920069 | BN88: ～ | BO88: 1441.049631 | BP88: 1123.464303 | BQ88: ～ | BR88: 1453.796423 | BS88: 1140.557776 | BT88: ～ | BU88: 1467.046025 | BV88: 1158.17617 | BW88: ～ | BX88: 1480.78494 | BY88: 1176.295898 | BZ88: ～ | CA88: 1494.999679 | CB88: 1194.894154 | CC88: ～ | CD88: 1509.6768 | CE88: 1213.948945 | CF88: ～ | CG88: 1524.802951 | CH88: 1233.439111 | CI88: ～ | CJ88: 1540.364905 | CK88: 1253.344342 | CL88: ～ | CM88: 1556.349588 | CN88: 1273.645178 | CO88: ～ | CP88: 1572.744111 | CQ88: 1294.323005 | CR88: ～ | CS88: 1589.535794
C89: 480 | D89: 960 | E89: 950.2 | F89: 1360 | G89: 1350.2 | H89: 950.6734665 | I89: ～ | J89: 1350.533243 | K89: 952.0924535 | L89: ～ | M89: 1351.532478 | N89: 954.4527437 | O89: ～ | P89: 1353.196231 | Q89: 957.747378 | R89: ～ | S89: 1355.522054 | T89: 961.9667562 | U89: ～ | V89: 1358.506548 | W89: 967.0987747 | X89: ～ | Y89: 1362.145381 | Z89: 973.1289945 | AA89: ～ | AB89: 1366.433328 | AC89: 980.0408359 | AD89: ～ | AE89: 1371.364299 | AF89: 987.8157925 | AG89: ～ | AH89: 1376.931385 | AI89: 996.4336606 | AJ89: ～ | AK89: 1383.126907 | AL89: 1005.872775 | AM89: ～ | AN89: 1389.942459 | AO89: 1016.11025 | AP89: ～ | AQ89: 1397.368971 | AR89: 1027.122213 | AS89: ～ | AT89: 1405.396755 | AU89: 1038.884036 | AV89: ～ | AW89: 1414.015573 | AX89: 1051.370553 | AY89: ～ | AZ89: 1423.214685 | BA89: 1064.556264 | BB89: ～ | BC89: 1432.982917 | BD89: 1078.415523 | BE89: ～ | BF89: 1443.308713 | BG89: 1092.922705 | BH89: ～ | BI89: 1454.180195 | BJ89: 1108.052363 | BK89: ～ | BL89: 1465.585221 | BM89: 1123.779356 | BN89: ～ | BO89: 1477.511435 | BP89: 1140.078962 | BQ89: ～ | BR89: 1489.946321 | BS89: 1156.926981 | BT89: ～ | BU89: 1502.877254 | BV89: 1174.299808 | BW89: ～ | BX89: 1516.291542 | BY89: 1192.174501 | BZ89: ～ | CA89: 1530.176473 | CB89: 1210.528827 | CC89: ～ | CD89: 1544.519356 | CE89: 1229.341303 | CF89: ～ | CG89: 1559.307551 | CH89: 1248.591222 | CI89: ～ | CJ89: 1574.528514 | CK89: 1268.258664 | CL89: ～ | CM89: 1590.169815 | CN89: 1288.324509 | CO89: ～ | CP89: 1606.219176 | CQ89: 1308.770431 | CR89: ～ | CS89: 1622.664488
C90: 490 | D90: 980 | E90: 970.2 | F90: 1400 | G90: 1390.2 | H90: 970.6637111 | I90: ～ | J90: 1390.523657 | K90: 972.053517 | L90: ～ | M90: 1391.494175 | N90: 974.3654551 | O90: ～ | P90: 1393.110204 | Q90: 977.5929828 | R90: ～ | S90: 1395.369499 | T90: 981.72707 | U90: ～ | V90: 1398.268944 | W90: 986.7563225 | X90: ～ | Y90: 1401.804566 | Z90: 992.6671345 | AA90: ～ | AB90: 1405.971564 | AC90: 999.4438654 | AD90: ～ | AE90: 1410.764346 | AF90: 1007.069034 | AG90: ～ | AH90: 1416.176557 | AI90: 1015.52353 | AJ90: ～ | AK90: 1422.201125 | AL90: 1024.786827 | AM90: ～ | AN90: 1428.830305 | AO90: 1034.837205 | AP90: ～ | AQ90: 1436.055723 | AR90: 1045.651969 | AS90: ～ | AT90: 1443.868429 | AU90: 1057.207662 | AV90: ～ | AW90: 1452.258944 | AX90: 1069.480266 | AY90: ～ | AZ90: 1461.217314 | BA90: 1082.445398 | BB90: ～ | BC90: 1470.733164 | BD90: 1096.078483 | BE90: ～ | BF90: 1480.795746 | BG90: 1110.354916 | BH90: ～ | BI90: 1491.393992 | BJ90: 1125.250212 | BK90: ～ | BL90: 1502.516569 | BM90: 1140.740128 | BN90: ～ | BO90: 1514.151921 | BP90: 1156.800778 | BQ90: ～ | BR90: 1526.288321 | BS90: 1173.408727 | BT90: ～ | BU90: 1538.913916 | BV90: 1190.54107 | BW90: ～ | BX90: 1552.016765 | BY90: 1208.1755 | BZ90: ～ | CA90: 1565.584888 | CB90: 1226.290357 | CC90: ～ | CD90: 1579.606293 | CE90: 1244.864667 | CF90: ～ | CG90: 1594.06902 | CH90: 1263.878175 | CI90: ～ | CJ90: 1608.961168 | CK90: 1283.311357 | CL90: ～ | CM90: 1624.270926 | CN90: 1303.145441 | CO90: ～ | CP90: 1639.986598 | CQ90: 1323.362399 | CR90: ～ | CS90: 1656.096628
C91: 500 | D91: =C91*2 -> 1000 | E91: 990.2 | F91: 1440 | G91: 1430.2 | H91: 990.6543494 | I91: ～ | J91: 1430.514607 | K91: 992.0161491 | L91: ～ | M91: 1431.458012 | N91: 994.2816704 | O91: ～ | P91: 1433.028974 | Q91: 997.4447554 | R91: ～ | S91: 1435.225432 | T91: 1001.4969 | U91: ～ | V91: 1438.044519 | W91: 1006.427364 | X91: ～ | Y91: 1441.482584 | Z91: 1012.223315 | AA91: ～ | AB91: 1445.535209 | AC91: 1018.869982 | AD91: ～ | AE91: 1450.197242 | AF91: 1026.350837 | AG91: ～ | AH91: 1455.462827 | AI91: 1034.647785 | AJ91: ～ | AK91: 1461.325439 | AL91: 1043.741366 | AM91: ～ | AN91: 1467.777926 | AO91: 1053.610953 | AP91: ～ | AQ91: 1474.812544 | AR91: 1064.234955 | AS91: ～ | AT91: 1482.421006 | AU91: 1075.591019 | AV91: ～ | AW91: 1490.594526 | AX91: ～ | AY91: ～ | AZ91: ～ | BA91: 1100.407216 | BB91: ～ | BC91: 1508.599364 | BD91: 1113.82047 | BE91: ～ | BF91: 1518.411025 | BG91: 1127.872351 | BH91: ～ | BI91: 1528.748521 | BJ91: 1142.539295 | BK91: ～ | BL91: 1539.60126 | BM91: 1157.797927 | BN91: ～ | BO91: 1550.958426 | BP91: 1173.62517 | BQ91: ～ | BR91: 1562.809022 | BS91: 1189.998336 | BT91: ～ | BU91: 1575.141911 | BV91: 1206.895207 | BW91: ～ | BX91: 1587.945856 | BY91: 1224.294099 | BZ91: ～ | CA91: 1601.209555 | CB91: 1242.173917 | CC91: ～ | CD91: 1614.921682 | CE91: 1260.514197 | CF91: ～ | CG91: 1629.070913 | CH91: 1279.295134 | CI91: ～ | CJ91: 1643.645959 | CK91: 1298.497609 | CL91: ～ | CM91: 1658.635596 | CN91: 1318.103198 | CO91: ～ | CP91: 1674.028686 | CQ91: 1338.094182 | CR91: ～ | CS91: 1689.814203
B93: 【３段飛ばして連結】
AI104: 蹴上
D105: 最小 | F105: 最大 | H105: 10 | K105: 20 | N105: 30 | Q105: 40 | T105: 50 | W105: 60 | Z105: 70 | AC105: 80 | AF105: 90 | AI105: 100 | AL105: 110 | AO105: 120 | AR105: 130 | AU105: 140 | AX105: 150 | BA105: 160 | BD105: 170 | BG105: 180 | BJ105: 190 | BM105: 200 | BP105: 210 | BS105: 220 | BV105: 230 | BY105: 240 | CB105: 250 | CE105: 260 | CH105: 270 | CK105: 280 | CN105: 290 | CQ105: 300
D106: ⑥ | E106: ③ | F106: ⑥ | G106: ③ | H106: =H105*4 -> 40 | J106: =H105*4 -> 40 | K106: =K105*4 -> 80 | M106: =K105*4 -> 80 | N106: =N105*4 -> 120 | P106: =N105*4 -> 120 | Q106: =Q105*4 -> 160 | S106: =Q105*4 -> 160 | T106: =T105*4 -> 200 | V106: =T105*4 -> 200 | W106: =W105*4 -> 240 | Y106: =W105*4 -> 240 | Z106: =Z105*4 -> 280 | AB106: =Z105*4 -> 280 | AC106: =AC105*4 -> 320 | AE106: =AC105*4 -> 320 | AF106: =AF105*4 -> 360 | AH106: =AF105*4 -> 360 | AI106: =AI105*4 -> 400 | AK106: =AI106 -> 400 | AL106: =AL105*4 -> 440 | AN106: =AL106 -> 440 | AO106: =AO105*4 -> 480 | AQ106: =AO106 -> 480 | AR106: =AR105*4 -> 520 | AT106: =AR106 -> 520 | AU106: =AU105*4 -> 560 | AW106: =AU106 -> 560 | AX106: =AX105*4 -> 600 | AZ106: =AX106 -> 600 | BA106: =BA105*4 -> 640 | BC106: =BA106 -> 640 | BD106: =BD105*4 -> 680 | BF106: =BD106 -> 680 | BG106: =BG105*4 -> 720 | BI106: =BG106 -> 720 | BJ106: =BJ105*4 -> 760 | BL106: =BJ106 -> 760 | BM106: =BM105*4 -> 800 | BO106: =BM106 -> 800 | BP106: =BP105*4 -> 840 | BR106: =BP106 -> 840 | BS106: =BS105*4 -> 880 | BU106: =BS106 -> 880 | BV106: =BV105*4 -> 920 | BX106: =BV106 -> 920 | BY106: =BY105*4 -> 960 | CA106: =BY106 -> 960 | CB106: =CB105*4 -> 1000 | CD106: =CB106 -> 1000 | CE106: =CE105*4 -> 1040 | CG106: =CE106 -> 1040 | CH106: =CH105*4 -> 1080 | CJ106: =CH106 -> 1080 | CK106: =CK105*4 -> 1120 | CM106: =CK106 -> 1120 | CN106: =CN105*4 -> 1160 | CP106: =CN106 -> 1160 | CQ106: =CQ105*4 -> 1200 | CS106: =CQ106 -> 1200
B107: 踏面 | C107: 280 | D107: =C107*3 -> 840 | E107: =E69+C107 -> 830.2 | F107: =F69+C107 -> 840 | G107: =F107+75*2-79.9*2 -> 830.2 | H107: =(($E107^2+H$106^2)^0.5) -> 831.1630646 | I107: ～ | J107: =(($G107^2+J$106^2)^0.5) -> 831.1630646 | K107: =(($E107^2+K$106^2)^0.5) -> 834.0455863 | L107: ～ | M107: =(($G107^2+M$106^2)^0.5) -> 834.0455863 | N107: =(($E107^2+N$106^2)^0.5) -> 838.8277773 | O107: ～ | P107: =(($G107^2+P$106^2)^0.5) -> 838.8277773 | Q107: =(($E107^2+Q$106^2)^0.5) -> 845.4774036 | R107: ～ | S107: =(($G107^2+S$106^2)^0.5) -> 845.4774036 | T107: =(($E107^2+T$106^2)^0.5) -> 853.9508417 | U107: ～ | V107: =(($G107^2+V$106^2)^0.5) -> 853.9508417 | W107: =(($E107^2+W$106^2)^0.5) -> 864.1944457 | X107: ～ | Y107: =(($G107^2+Y$106^2)^0.5) -> 864.1944457 | Z107: =(($E107^2+Z$106^2)^0.5) -> 876.1461294 | AA107: ～ | AB107: =(($G107^2+AB$106^2)^0.5) -> 876.1461294 | AC107: =(($E107^2+AC$106^2)^0.5) -> 889.7370623 | AD107: ～ | AE107: =(($G107^2+AE$106^2)^0.5) -> 889.7370623 | AF107: =(($E107^2+AF$106^2)^0.5) -> 904.893386 | AG107: ～ | AH107: =(($G107^2+AH$106^2)^0.5) -> 904.893386 | AI107: =(($E107^2+AI$106^2)^0.5) -> 921.5378668 | AJ107: ～ | AK107: =(($G107^2+AK$106^2)^0.5) -> 921.5378668 | AL107: =(($E107^2+AL$106^2)^0.5) -> 939.5914218 | AM107: ～ | AN107: =(($G107^2+AN$106^2)^0.5) -> 939.5914218 | AO107: =(($E107^2+AO$106^2)^0.5) -> 958.9744731 | AP107: ～ | AQ107: =(($G107^2+AQ$106^2)^0.5) -> 958.9744731 | AR107: =(($E107^2+AR$106^2)^0.5) -> 979.6081053 | AS107: ～ | AT107: =(($G107^2+AT$106^2)^0.5) -> 979.6081053 | AU107: =(($E107^2+AU$106^2)^0.5) -> 1001.415019 | AV107: ～ | AW107: =(($G107^2+AW$106^2)^0.5) -> 1001.415019 | AX107: =(($E107^2+AX$106^2)^0.5) -> 1024.320282 | AY107: ～ | AZ107: =(($G107^2+AZ$106^2)^0.5) -> 1024.320282 | BA107: =(($E107^2+BA$106^2)^0.5) -> 1048.251897 | BB107: ～ | BC107: =(($G107^2+BC$106^2)^0.5) -> 1048.251897 | BD107: =(($E107^2+BD$106^2)^0.5) -> 1073.141202 | BE107: ～ | BF107: =(($G107^2+BF$106^2)^0.5) -> 1073.141202 | BG107: =(($E107^2+BG$106^2)^0.5) -> 1098.923127 | BH107: ～ | BI107: =(($G107^2+BI$106^2)^0.5) -> 1098.923127 | BJ107: =(($E107^2+BJ$106^2)^0.5) -> 1125.536334 | BK107: ～ | BL107: =(($G107^2+BL$106^2)^0.5) -> 1125.536334 | BM107: =(($E107^2+BM$106^2)^0.5) -> 1152.923259 | BN107: ～ | BO107: =(($G107^2+BO$106^2)^0.5) -> 1152.923259 | BP107: =(($E107^2+BP$106^2)^0.5) -> 1181.030076 | BQ107: ～ | BR107: =(($G107^2+BR$106^2)^0.5) -> 1181.030076 | BS107: =(($E107^2+BS$106^2)^0.5) -> 1209.806613 | BT107: ～ | BU107: =(($G107^2+BU$106^2)^0.5) -> 1209.806613 | BV107: =(($E107^2+BV$106^2)^0.5) -> 1239.206214 | BW107: ～ | BX107: =(($G107^2+BX$106^2)^0.5) -> 1239.206214 | BY107: =(($E107^2+BY$106^2)^0.5) -> 1269.185581 | BZ107: ～ | CA107: =(($G107^2+CA$106^2)^0.5) -> 1269.185581 | CB107: =(($E107^2+CB$106^2)^0.5) -> 1299.704597 | CC107: ～ | CD107: =(($G107^2+CD$106^2)^0.5) -> 1299.704597 | CE107: =(($E107^2+CE$106^2)^0.5) -> 1330.726133 | CF107: ～ | CG107: =(($G107^2+CG$106^2)^0.5) -> 1330.726133 | CH107: =(($E107^2+CH$106^2)^0.5) -> 1362.215857 | CI107: ～ | CJ107: =(($G107^2+CJ$106^2)^0.5) -> 1362.215857 | CK107: =(($E107^2+CK$106^2)^0.5) -> 1394.142044 | CL107: ～ | CM107: =(($G107^2+CM$106^2)^0.5) -> 1394.142044 | CN107: =(($E107^2+CN$106^2)^0.5) -> 1426.475391 | CO107: ～ | CP107: =(($G107^2+CP$106^2)^0.5) -> 1426.475391 | CQ107: =(($E107^2+CQ$106^2)^0.5) -> 1459.188829 | CR107: ～ | CS107: =(($G107^2+CS$106^2)^0.5) -> 1459.188829
C108: 290 | D108: =C108*3 -> 870 | E108: 860.2 | F108: 890 | G108: =F108+75*2-79.9*2 -> 880.2 | H108: =(($E108^2+H$106^2)^0.5) -> 861.1295141 | I108: ～ | J108: =(($G108^2+J$106^2)^0.5) -> 881.1084156 | K108: =(($E108^2+K$106^2)^0.5) -> 863.9120557 | L108: ～ | M108: =(($G108^2+M$106^2)^0.5) -> 883.8280602 | N108: =(($E108^2+N$106^2)^0.5) -> 868.5298153 | O108: ～ | P108: =(($G108^2+P$106^2)^0.5) -> 888.3422989 | Q108: =(($E108^2+Q$106^2)^0.5) -> 874.9537359 | R108: ～ | S108: =(($G108^2+S$106^2)^0.5) -> 894.6239657 | T108: 883.144405 | U108: ～ | V108: 902.6361615 | W108: 893.0532123 | X108: ～ | Y108: 912.3332944 | Z108: 904.6237008 | AA108: ～ | AB108: 923.6622976 | AC108: 917.7930268 | AD108: ～ | AE108: 936.563954 | AF108: 932.4934531 | AG108: ～ | AH108: 950.9742583 | AI108: =(($E108^2+AI$106^2)^0.5) -> 948.6538041 | AJ108: ～ | AK108: =(($G108^2+AK$106^2)^0.5) -> 966.8257547 | AL108: =(($E108^2+AL$106^2)^0.5) -> 966.200828 | AM108: ～ | AN108: =(($G108^2+AN$106^2)^0.5) -> 984.0487996 | AO108: =(($E108^2+AO$106^2)^0.5) -> 985.0604245 | AP108: ～ | AQ108: =(($G108^2+AQ$106^2)^0.5) -> 1002.572711 | AR108: =(($E108^2+AR$106^2)^0.5) -> 1005.158714 | AS108: ～ | AT108: =(($G108^2+AT$106^2)^0.5) -> 1022.326778 | AU108: =(($E108^2+AU$106^2)^0.5) -> 1026.422934 | AV108: ～ | AW108: =(($G108^2+AW$106^2)^0.5) -> 1043.241123 | AX108: 1048.78217 | AY108: ～ | AZ108: 1065.247408 | BA108: 1072.167916 | BB108: ～ | BC108: 1088.279394 | BD108: 1096.514496 | BE108: ～ | BF108: 1112.273366 | BG108: 1121.75935 | BH108: ～ | BI108: 1137.168431 | BJ108: 1147.843212 | BK108: ～ | BL108: 1162.90672 | BM108: 1174.710194 | BN108: ～ | BO108: 1189.433495 | BP108: 1202.307798 | BQ108: ～ | BR108: 1216.697185 | BS108: 1230.586868 | BT108: ～ | BU108: 1244.649364 | BV108: 1259.501505 | BW108: ～ | BX108: 1273.24469 | BY108: 1289.008937 | BZ108: ～ | CA108: 1302.440801 | CB108: 1319.069384 | CC108: ～ | CD108: 1332.198198 | CE108: 1349.645894 | CF108: ～ | CG108: 1362.480106 | CH108: 1380.704183 | CI108: ～ | CJ108: 1393.252325 | CK108: 1412.212463 | CL108: ～ | CM108: 1424.483078 | CN108: 1444.141281 | CO108: ～ | CP108: 1456.142864 | CQ108: 1476.463355 | CR108: ～ | CS108: 1488.2043
C109: 300 | D109: 900 | E109: 890.2 | F109: 940 | G109: =F109+75*2-79.9*2 -> 930.2 | H109: =(($E109^2+H$106^2)^0.5) -> 891.0982213 | I109: ～ | J109: =(($G109^2+J$106^2)^0.5) -> 931.0596329 | K109: =(($E109^2+K$106^2)^0.5) -> 893.7874691 | L109: ～ | M109: =(($G109^2+M$106^2)^0.5) -> 933.6337826 | N109: =(($E109^2+N$106^2)^0.5) -> 898.2516574 | O109: ～ | P109: =(($G109^2+P$106^2)^0.5) -> 937.9083324 | Q109: =(($E109^2+Q$106^2)^0.5) -> 904.4645046 | R109: ～ | S109: =(($G109^2+S$106^2)^0.5) -> 943.8601803 | T109: 912.3902893 | U109: ～ | V109: 951.4578498 | W109: 921.9848372 | X109: ～ | Y109: 960.6622924 | Z109: 933.1966781 | AA109: ～ | AB109: 971.4278357 | AC109: 945.9683081 | AD109: ～ | AE109: 983.7032276 | AF109: 960.2374915 | AG109: ～ | AH109: 997.4327245 | AI109: =(($E109^2+AI$106^2)^0.5) -> 975.9385431 | AJ109: ～ | AK109: =(($G109^2+AK$106^2)^0.5) -> 1012.557179 | AL109: =(($E109^2+AL$106^2)^0.5) -> 993.0035448 | AM109: ～ | AN109: =(($G109^2+AN$106^2)^0.5) -> 1029.015082 | AO109: =(($E109^2+AO$106^2)^0.5) -> 1011.363456 | AP109: ～ | AQ109: =(($G109^2+AQ$106^2)^0.5) -> 1046.743541 | AR109: =(($E109^2+AR$106^2)^0.5) -> 1030.949097 | AS109: ～ | AT109: =(($G109^2+AT$106^2)^0.5) -> 1065.679145 | AU109: =(($E109^2+AU$106^2)^0.5) -> 1051.691989 | AV109: ～ | AW109: =(($G109^2+AW$106^2)^0.5) -> 1085.758739 | AX109: 1073.525053 | AY109: ～ | AZ109: 1106.920069 | BA109: 1096.383163 | BB109: ～ | BC109: 1129.102316 | BD109: 1120.203571 | BE109: ～ | BF109: 1152.246519 | BG109: 1144.926216 | BH109: ～ | BI109: 1176.295898 | BJ109: 1170.49393 | BK109: ～ | BL109: 1201.196087 | BM109: 1196.852556 | BN109: ～ | BO109: 1226.895285 | BP109: 1223.950996 | BQ109: ～ | BR109: 1253.344342 | BS109: 1251.741203 | BT109: ～ | BU109: 1280.496794 | BV109: 1280.178128 | BW109: ～ | BX109: 1308.308847 | BY109: 1309.21963 | BZ109: ～ | CA109: 1336.739331 | CB109: 1338.826367 | CC109: ～ | CD109: 1365.749626 | CE109: 1368.961665 | CF109: ～ | CG109: 1395.303566 | CH109: 1399.591383 | CI109: ～ | CJ109: 1425.367335 | CK109: 1430.683767 | CL109: ～ | CM109: 1455.909352 | CN109: 1462.209301 | CO109: ～ | CP109: 1486.900145 | CQ109: 1494.140569 | CR109: ～ | CS109: 1518.312234
C110: 310 | D110: 930 | E110: 920.2 | F110: 990 | G110: =F110+75*2-79.9*2 -> 980.2 | H110: =(($E110^2+H$106^2)^0.5) -> 921.0689659 | I110: ～ | J110: =(($G110^2+J$106^2)^0.5) -> 981.0158205 | K110: =(($E110^2+K$106^2)^0.5) -> 923.6709587 | L110: ～ | M110: =(($G110^2+M$106^2)^0.5) -> 983.4592213 | N110: =(($E110^2+N$106^2)^0.5) -> 927.9914008 | O110: ～ | P110: =(($G110^2+P$106^2)^0.5) -> 987.5181214 | Q110: =(($E110^2+Q$106^2)^0.5) -> 934.0064454 | R110: ～ | S110: =(($G110^2+S$106^2)^0.5) -> 993.1727141 | T110: 941.6836199 | U110: ～ | V110: 1000.395942 | W110: 950.9826707 | X110: ～ | Y110: 1009.154121 | Z110: 961.856559 | AA110: ～ | AB110: 1019.407691 | AC110: 974.2525545 | AD110: ～ | AE110: 1031.11204 | AF110: 988.1133741 | AG110: ～ | AH110: 1044.218387 | AI110: =(($E110^2+AI$106^2)^0.5) -> 1003.378313 | AJ110: ～ | AK110: =(($G110^2+AK$106^2)^0.5) -> 1058.674662 | AL110: =(($E110^2+AL$106^2)^0.5) -> 1019.984333 | AM110: ～ | AN110: =(($G110^2+AN$106^2)^0.5) -> 1074.426377 | AO110: =(($E110^2+AO$106^2)^0.5) -> 1037.867063 | AP110: ～ | AQ110: =(($G110^2+AQ$106^2)^0.5) -> 1091.417445 | AR110: =(($E110^2+AR$106^2)^0.5) -> 1056.961702 | AS110: ～ | AT110: =(($G110^2+AT$106^2)^0.5) -> 1109.590934 | AU110: =(($E110^2+AU$106^2)^0.5) -> 1077.203806 | AV110: ～ | AW110: =(($G110^2+AW$106^2)^0.5) -> 1128.889738 | AX110: 1098.529945 | AY110: ～ | AZ110: 1149.257169 | BA110: 1120.878245 | BB110: ～ | BC110: 1170.63745 | BD110: 1144.188813 | BE110: ～ | BF110: 1192.976127 | BG110: 1168.404057 | BH110: ～ | BI110: 1216.220391 | BJ110: 1193.46891 | BK110: ～ | BL110: 1240.31933 | BM110: 1219.33098 | BN110: ～ | BO110: 1265.224107 | BP110: 1245.940625 | BQ110: ～ | BR110: 1290.888082 | BS110: 1273.250973 | BT110: ～ | BU110: 1317.266883 | BV110: 1301.217906 | BW110: ～ | BX110: 1344.31843 | BY110: 1329.8 | BZ110: ～ | CA110: 1372.00293 | CB110: 1358.958439 | CC110: ～ | CD110: 1400.282843 | CE110: 1388.656919 | CF110: ～ | CG110: 1429.122822 | CH110: 1418.86153 | CI110: ～ | CJ110: 1458.489643 | CK110: 1449.540631 | CL110: ～ | CM110: 1488.352122 | CN110: 1480.664729 | CO110: ～ | CP110: 1518.68102 | CQ110: 1512.206348 | CR110: ～ | CS110: 1549.448947
C111: 320 | D111: 960 | E111: 950.2 | F111: 1040 | G111: 1030.2 | H111: =(($E111^2+H$106^2)^0.5) -> 951.0415553 | I111: ～ | J111: =(($G111^2+J$106^2)^0.5) -> 1030.976256 | K111: =(($E111^2+K$106^2)^0.5) -> 953.5617652 | L111: ～ | M111: =(($G111^2+M$106^2)^0.5) -> 1033.301524 | N111: =(($E111^2+N$106^2)^0.5) -> 957.747378 | O111: ～ | P111: =(($G111^2+P$106^2)^0.5) -> 1037.165387 | Q111: =(($E111^2+Q$106^2)^0.5) -> 963.5766913 | R111: ～ | S111: =(($G111^2+S$106^2)^0.5) -> 1042.550737 | T111: 971.0201028 | U111: ～ | V111: 1049.434152 | W111: 980.0408359 | X111: ～ | Y111: 1057.786387 | Z111: 990.5958005 | AA111: ～ | AB111: 1067.572967 | AC111: 1002.636544 | AD111: ～ | AE111: 1078.754856 | AF111: 1016.11025 | AG111: ～ | AH111: 1091.289164 | AI111: =(($E111^2+AI$106^2)^0.5) -> 1030.960736 | AJ111: ～ | AK111: =(($G111^2+AK$106^2)^0.5) -> 1105.129875 | AL111: =(($E111^2+AL$106^2)^0.5) -> 1047.129428 | AM111: ～ | AN111: =(($G111^2+AN$106^2)^0.5) -> 1120.228566 | AO111: =(($E111^2+AO$106^2)^0.5) -> 1064.556264 | AP111: ～ | AQ111: =(($G111^2+AQ$106^2)^0.5) -> 1136.535103 | AR111: =(($E111^2+AR$106^2)^0.5) -> 1083.180521 | AS111: ～ | AT111: =(($G111^2+AT$106^2)^0.5) -> 1153.998284 | AU111: =(($E111^2+AU$106^2)^0.5) -> 1102.94154 | AV111: ～ | AW111: =(($G111^2+AW$106^2)^0.5) -> 1172.566433 | AX111: 1123.779356 | AY111: ～ | AZ111: 1192.187921 | BA111: 1145.635212 | BB111: ～ | BC111: 1212.811626 | BD111: 1168.451984 | BE111: ～ | BF111: 1234.387314 | BG111: 1192.174501 | BH111: ～ | BI111: 1256.865959 | BJ111: 1216.749785 | BK111: ～ | BL111: 1280.2 | BM111: 1242.127224 | BN111: ～ | BO111: 1304.343528 | BP111: 1268.258664 | BQ111: ～ | BR111: 1329.252437 | BS111: 1295.098467 | BT111: ～ | BU111: 1354.884512 | BV111: 1322.603508 | BW111: ～ | BX111: 1381.199493 | BY111: 1350.733149 | BZ111: ～ | CA111: 1408.159096 | CB111: 1379.44918 | CC111: ～ | CD111: 1435.727007 | CE111: 1408.715741 | CF111: ～ | CG111: 1463.86886 | CH111: 1438.499232 | CI111: ～ | CJ111: 1492.55219 | CK111: 1468.768205 | CL111: ～ | CM111: 1521.746378 | CN111: 1499.493261 | CO111: ～ | CP111: 1551.422586 | CQ111: 1530.646935 | CR111: ～ | CS111: 1581.553679
C112: 330 | D112: 990 | E112: 980.2 | F112: 1090 | G112: 1080.2 | H112: 981.0158205 | I112: ～ | J112: 1080.94035 | K112: 983.4592213 | L112: ～ | M112: 1083.158363 | N112: 987.5181214 | O112: ～ | P112: 1086.844994 | Q112: 993.1727141 | R112: ～ | S112: 1091.985366 | T112: 1000.395942 | U112: ～ | V112: 1098.559074 | W112: 1009.154121 | X112: ～ | Y112: 1106.540573 | Z112: 1019.407691 | AA112: ～ | AB112: 1115.899655 | AC112: 1031.11204 | AD112: ～ | AE112: 1126.601988 | AF112: 1044.218387 | AG112: ～ | AH112: 1138.609696 | AI112: 1058.674662 | AJ112: ～ | AK112: 1151.881956 | AL112: 1074.426377 | AM112: ～ | AN112: 1166.3756 | AO112: 1091.417445 | AP112: ～ | AQ112: 1182.045701 | AR112: 1109.590934 | AS112: ～ | AT112: 1198.846129 | AU112: 1128.889738 | AV112: ～ | AW112: 1216.73006 | AX112: 1149.257169 | AY112: ～ | AZ112: 1235.650452 | BA112: 1170.63745 | BB112: ～ | BC112: 1255.560449 | BD112: 1192.976127 | BE112: ～ | BF112: 1276.413742 | BG112: 1216.220391 | BH112: ～ | BI112: 1298.164874 | BJ112: 1240.31933 | BK112: ～ | BL112: 1320.769488 | BM112: 1265.224107 | BN112: ～ | BO112: 1344.184526 | BP112: 1290.888082 | BQ112: ～ | BR112: 1368.368386 | BS112: 1317.266883 | BT112: ～ | BU112: 1393.281034 | BV112: 1344.31843 | BW112: ～ | BX112: 1418.884083 | BY112: 1372.00293 | BZ112: ～ | CA112: 1445.140837 | CB112: 1400.282843 | CC112: ～ | CD112: 1472.016318 | CE112: 1429.122822 | CF112: ～ | CG112: 1499.477256 | CH112: 1458.489643 | CI112: ～ | CJ112: 1527.492075 | CK112: 1488.352122 | CL112: ～ | CM112: 1556.030861 | CN112: 1518.68102 | CO112: ～ | CP112: 1585.065311 | CQ112: 1549.448947 | CR112: ～ | CS112: 1614.568685
C113: 340 | D113: 1020 | E113: 1010.2 | F113: 1140 | G113: 1130.2 | H113: 1010.991612 | I113: ～ | J113: 1130.907618 | K113: 1013.362739 | L113: ～ | M113: 1133.02782 | N113: 1017.302335 | O113: ～ | P113: 1136.5527 | Q113: 1022.792276 | R113: ～ | S113: 1141.469246 | T113: 1029.807768 | U113: ～ | V113: 1147.759574 | W113: 1038.31789 | X113: ～ | Y113: 1155.401246 | Z113: 1048.28624 | AA113: ～ | AB113: 1164.367657 | AC113: 1059.671666 | AD113: ～ | AE113: 1174.628469 | AF113: 1072.429037 | AG113: ～ | AH113: 1186.150092 | AI113: 1086.510028 | AJ113: ～ | AK113: 1198.896176 | AL113: 1101.863894 | AM113: ～ | AN113: 1212.828116 | AO113: 1118.438215 | AP113: ～ | AQ113: 1227.90555 | AR113: 1136.179581 | AS113: ～ | AT113: 1244.08683 | AU113: 1155.034216 | AV113: ～ | AW113: 1261.329473 | AX113: 1174.948527 | AY113: ～ | AZ113: 1279.590575 | BA113: 1195.869575 | BB113: ～ | BC113: 1298.827179 | BD113: 1217.745474 | BE113: ～ | BF113: 1318.996603 | BG113: 1240.525711 | BH113: ～ | BI113: 1340.05673 | BJ113: 1264.161398 | BK113: ～ | BL113: 1361.96624 | BM113: 1288.605463 | BN113: ～ | BO113: 1384.684816 | BP113: 1313.812787 | BQ113: ～ | BR113: 1408.173299 | BS113: 1339.740288 | BT113: ～ | BU113: 1432.393815 | BV113: 1366.346969 | BW113: ～ | BX113: 1457.309864 | BY113: 1393.593929 | BZ113: ～ | CA113: 1482.886388 | CB113: 1421.44435 | CC113: ～ | CD113: 1509.089805 | CE113: 1449.863456 | CF113: ～ | CG113: 1535.88803 | CH113: 1478.818461 | CI113: ～ | CJ113: 1563.250473 | CK113: 1508.278502 | CL113: ～ | CM113: 1591.148026 | CN113: 1538.214562 | CO113: ～ | CP113: 1619.553037 | CQ113: 1568.599388 | CR113: ～ | CS113: 1648.439274
C114: 350 | D114: 1050 | E114: 1040.2 | F114: 1190 | G114: 1180.2 | H114: 1040.968799 | I114: ～ | J114: 1180.877657 | K114: 1043.271796 | L114: ～ | M114: 1182.908297 | N114: 1047.098868 | O114: ～ | P114: 1186.284974 | Q114: 1052.43339 | R114: ～ | S114: 1190.996238 | T114: 1059.252586 | U114: ～ | V114: 1197.026332 | W114: 1067.528004 | X114: ～ | Y114: 1204.355446 | Z114: 1077.226086 | AA114: ～ | AB114: 1212.960032 | AC114: 1088.308798 | AD114: ～ | AE114: 1222.813166 | AF114: 1100.734319 | AG114: ～ | AH114: 1233.884938 | AI114: 1114.457734 | AJ114: ～ | AK114: 1246.142865 | AL114: 1129.431733 | AM114: ～ | AN114: 1259.552317 | AO114: 1145.60728 | AP114: ～ | AQ114: 1274.076936 | AR114: 1162.934237 | AS114: ～ | AT114: 1289.679045 | AU114: 1181.361943 | AV114: ～ | AW114: 1306.320037 | AX114: 1200.839723 | AY114: ～ | AZ114: 1323.96074 | BA114: 1221.317338 | BB114: ～ | BC114: 1342.561745 | BD114: 1242.745364 | BE114: ～ | BF114: 1362.083713 | BG114: 1265.075508 | BH114: ～ | BI114: 1382.487627 | BJ114: 1288.260859 | BK114: ～ | BL114: 1403.735032 | BM114: 1312.256088 | BN114: ～ | BO114: 1425.788217 | BP114: 1337.017592 | BQ114: ～ | BR114: 1448.610382 | BS114: 1362.503593 | BT114: ～ | BU114: 1472.165765 | BV114: 1388.674202 | BW114: ～ | BX114: 1496.419741 | BY114: 1415.491448 | BZ114: ～ | CA114: 1521.338897 | CB114: 1442.919277 | CC114: ～ | CD114: 1546.891089 | CE114: 1470.923533 | CF114: ～ | CG114: 1573.045467 | CH114: 1499.47192 | CI114: ～ | CJ114: 1599.772496 | CK114: 1528.533951 | CL114: ～ | CM114: 1627.043958 | CN114: 1558.080884 | CO114: ～ | CP114: 1654.832934 | CQ114: 1588.085653 | CR114: ～ | CS114: 1683.113793
C115: 360 | D115: 1080 | E115: 1070.2 | F115: 1240 | G115: 1230.2 | H115: 1070.947263 | I115: ～ | J115: 1230.850129 | K115: 1073.18593 | L115: ～ | M115: 1232.798459 | N115: 1076.9067 | O115: ～ | P115: 1236.038851 | Q115: 1082.094284 | R115: ～ | S115: 1240.561179 | T115: 1088.727716 | U115: ～ | V115: 1246.351491 | W115: 1096.780762 | X115: ～ | Y115: 1253.392213 | Z115: 1106.222419 | AA115: ～ | AB115: 1261.662411 | AC115: 1117.017475 | AD115: ～ | AE115: 1271.138088 | AF115: 1129.127114 | AG115: ～ | AH115: 1281.792511 | AI115: 1142.509536 | AJ115: ～ | AK115: 1293.596552 | AL115: 1157.120581 | AM115: ～ | AN115: 1306.519055 | AO115: 1172.914336 | AP115: ～ | AQ115: 1320.527183 | AR115: 1189.843704 | AS115: ～ | AT115: 1335.586777 | AU115: 1207.860936 | AV115: ～ | AW115: 1351.662695 | AX115: 1226.918106 | AY115: ～ | AZ115: 1368.719124 | BA115: 1246.967538 | BB115: ～ | BC115: 1386.719885 | BD115: 1267.96216 | BE115: ～ | BF115: 1405.628699 | BG115: 1289.855821 | BH115: ～ | BI115: 1425.409429 | BJ115: 1312.603535 | BK115: ～ | BL115: 1446.026293 | BM115: 1336.161682 | BN115: ～ | BO115: 1467.44405 | BP115: 1360.488162 | BQ115: ～ | BR115: 1489.628155 | BS115: 1385.542507 | BT115: ～ | BU115: 1512.544889 | BV115: 1411.285953 | BW115: ～ | BX115: 1536.161463 | BY115: 1437.681481 | BZ115: ～ | CA115: 1560.446103 | CB115: 1464.693838 | CC115: ～ | CD115: 1585.368109 | CE115: 1492.28953 | CF115: ～ | CG115: 1610.897899 | CH115: 1520.436793 | CI115: ～ | CJ115: 1637.007037 | CK115: 1549.105561 | CL115: ～ | CM115: 1663.668248 | CN115: 1578.267417 | CO115: ～ | CP115: 1690.855417 | CQ115: 1607.895531 | CR115: ～ | CS115: 1718.543581
C116: 370 | D116: 1110 | E116: 1100.2 | F116: 1290 | G116: 1280.2 | H116: 1100.9269 | I116: ～ | J116: 1280.82475 | K116: 1103.104728 | L116: ～ | M116: 1282.697174 | N116: 1106.724916 | O116: ～ | P116: 1285.811821 | Q116: 1111.773376 | R116: ～ | S116: 1290.159696 | T116: 1118.230763 | U116: ～ | V116: 1295.728382 | W116: 1126.07284 | X116: ～ | Y116: 1302.502223 | Z116: 1135.27091 | AA116: ～ | AB116: 1310.462529 | AC116: 1145.79232 | AD116: ～ | AE116: 1319.58783 | AF116: 1157.600985 | AG116: ～ | AH116: 1329.854142 | AI116: 1170.657952 | AJ116: ～ | AK116: 1341.235266 | AL116: 1184.921955 | AM116: ～ | AN116: 1353.703084 | AO116: 1200.349966 | AP116: ～ | AQ116: 1367.227867 | AR116: 1216.897711 | AS116: ～ | AT116: 1381.778578 | AU116: 1234.520166 | AV116: ～ | AW116: 1397.323169 | AX116: 1253.171991 | AY116: ～ | AZ116: 1413.828858 | BA116: 1272.807935 | BB116: ～ | BC116: 1431.262394 | BD116: 1293.383176 | BE116: ～ | BF116: 1449.590301 | BG116: 1314.853619 | BH116: ～ | BI116: 1468.779098 | BJ116: 1337.176144 | BK116: ～ | BL116: 1488.7955 | BM116: 1360.308803 | BN116: ～ | BO116: 1509.606585 | BP116: 1384.210981 | BQ116: ～ | BR116: 1531.17995 | BS116: 1408.843512 | BT116: ～ | BU116: 1553.48384 | BV116: 1434.168763 | BW116: ～ | BX116: 1576.487247 | BY116: 1460.150691 | BZ116: ～ | CA116: 1600.160004 | CB116: 1486.754869 | CC116: ～ | CD116: 1624.47285 | CE116: 1513.948493 | CF116: ～ | CG116: 1649.397478 | CH116: 1541.700373 | CI116: ～ | CJ116: 1674.906576 | CK116: 1569.980904 | CL116: ～ | CM116: 1700.97385 | CN116: 1598.762034 | CO116: ～ | CP116: 1727.574033 | CQ116: 1628.017211 | CR116: ～ | CS116: 1754.682889
C117: 380 | D117: =C117*3 -> 1140 | E117: 1130.2 | F117: 1340 | G117: 1330.2 | H117: 1130.907618 | I117: ～ | J117: 1330.801277 | K117: 1133.02782 | L117: ～ | M117: 1332.603482 | N117: 1136.5527 | O117: ～ | P117: 1335.601752 | Q117: 1141.469246 | R117: ～ | S117: 1339.788058 | T117: 1147.759574 | U117: ～ | V117: 1345.151307 | W117: 1155.401246 | X117: ～ | Y117: 1351.677491 | Z117: 1164.367657 | AA117: ～ | AB117: 1359.349859 | AC117: 1174.628469 | AD117: ～ | AE117: 1368.149129 | AF117: 1186.150092 | AG117: ～ | AH117: 1378.053714 | AI117: 1198.896176 | AJ117: ～ | AK117: 1389.039971 | AL117: 1212.828116 | AM117: ～ | AN117: 1401.082453 | AO117: 1227.90555 | AP117: ～ | AQ117: 1414.154178 | AR117: 1244.08683 | AS117: ～ | AT117: 1428.226887 | AU117: 1261.329473 | AV117: ～ | AW117: 1443.271298 | AX117: 1279.590575 | AY117: ～ | AZ117: 1459.257359 | BA117: 1298.827179 | BB117: ～ | BC117: 1476.154477 | BD117: 1318.996603 | BE117: ～ | BF117: 1493.931739 | BG117: 1340.05673 | BH117: ～ | BI117: 1512.558111 | BJ117: 1361.96624 | BK117: ～ | BL117: 1532.002624 | BM117: 1384.684816 | BN117: ～ | BO117: 1552.234531 | BP117: 1408.173299 | BQ117: ～ | BR117: 1573.223455 | BS117: 1432.393815 | BT117: ～ | BU117: 1594.93951 | BV117: 1457.309864 | BW117: ～ | BX117: 1617.353406 | BY117: 1482.886388 | BZ117: ～ | CA117: 1640.436539 | CB117: 1509.089805 | CC117: ～ | CD117: 1664.161062 | CE117: 1535.88803 | CF117: ～ | CG117: 1688.499938 | CH117: 1563.250473 | CI117: ～ | CJ117: 1713.426987 | CK117: 1591.148026 | CL117: ～ | CM117: 1738.916916 | CN117: 1619.553037 | CO117: ～ | CP117: 1764.945336 | CQ117: 1648.439274 | CR117: ～ | CS117: 1791.488778
C118: 390 | D118: 1170 | E118: 1160.2 | F118: 1390 | G118: 1380.2 | H118: 1160.889332 | I118: ～ | J118: 1380.779504 | K118: 1162.954874 | L118: ～ | M118: 1382.51656 | N118: 1166.389318 | O118: ～ | P118: 1385.406814 | Q118: 1171.180618 | R118: ～ | S118: 1389.443068 | T118: 1177.31221 | U118: ～ | V118: 1394.615373 | W118: 1184.763284 | X118: ～ | Y118: 1400.911146 | Z118: 1193.509129 | AA118: ～ | AB118: 1408.31532 | AC118: 1203.521516 | AD118: ～ | AE118: 1416.810517 | AF118: 1214.76913 | AG118: ～ | AH118: 1426.377243 | AI118: 1227.218008 | AJ118: ～ | AK118: 1436.994099 | AL118: 1240.831995 | AM118: ～ | AN118: 1448.637995 | AO118: 1255.573192 | AP118: ～ | AQ118: 1461.28438 | AR118: 1271.402391 | AS118: ～ | AT118: 1474.907468 | AU118: 1288.279488 | AV118: ～ | AW118: 1489.48046 | AX118: 1306.163864 | AY118: ～ | AZ118: 1504.975761 | BA118: 1325.014732 | BB118: ～ | BC118: 1521.36519 | BD118: 1344.791449 | BE118: ～ | BF118: 1538.620174 | BG118: 1365.453785 | BH118: ～ | BI118: 1556.711932 | BJ118: 1386.962162 | BK118: ～ | BL118: 1575.61164 | BM118: 1409.277843 | BN118: ～ | BO118: 1595.290582 | BP118: 1432.363096 | BQ118: ～ | BR118: 1615.720285 | BS118: 1456.181321 | BT118: ～ | BU118: 1636.87264 | BV118: 1480.697147 | BW118: ～ | BX118: 1658.72 | BY118: 1505.876502 | BZ118: ～ | CA118: 1681.235272 | CB118: 1531.686665 | CC118: ～ | CD118: 1704.391985 | CE118: 1558.096287 | CF118: ～ | CG118: 1728.164356 | CH118: 1585.075405 | CI118: ～ | CJ118: 1752.527329 | CK118: 1612.595436 | CL118: ～ | CM118: 1777.456621 | CN118: 1640.62916 | CO118: ～ | CP118: 1802.92874 | CQ118: 1669.150694 | CR118: ～ | CS118: 1828.921004
C119: 400 | D119: =C119*3 -> 1200 | E119: 1190.2 | F119: 1440 | G119: 1430.2 | H119: 1190.871966 | I119: ～ | J119: 1430.759253 | K119: 1192.885594 | L119: ～ | M119: 1432.435702 | N119: 1196.234108 | O119: ～ | P119: 1435.225432 | Q119: 1200.906341 | R119: ～ | S119: 1439.121968 | T119: 1206.886921 | U119: ～ | V119: 1444.116353 | W119: 1214.156514 | X119: ～ | Y119: 1450.197242 | Z119: 1222.692128 | AA119: ～ | AB119: 1457.351035 | AC119: 1232.46746 | AD119: ～ | AE119: 1465.562022 | AF119: 1243.453272 | AG119: ～ | AH119: 1474.812544 | AI119: 1255.617792 | AJ119: ～ | AK119: 1485.083176 | AL119: 1268.927122 | AM119: ～ | AN119: 1496.352913 | AO119: 1283.345643 | AP119: ～ | AQ119: 1508.599364 | AR119: 1298.836418 | AS119: ～ | AT119: 1521.798949 | AU119: 1315.361562 | AV119: ～ | AW119: 1535.927095 | AX119: 1332.882605 | AY119: ～ | AZ119: 1550.958426 | BA119: 1351.36081 | BB119: ～ | BC119: 1566.86695 | BD119: 1370.757469 | BE119: ～ | BF119: 1583.626231 | BG119: 1391.034162 | BH119: ～ | BI119: 1601.209555 | BJ119: 1412.15298 | BK119: ～ | BL119: 1619.590084 | BM119: 1434.07672 | BN119: ～ | BO119: 1638.740992 | BP119: 1456.769041 | BQ119: ～ | BR119: 1658.635596 | BS119: 1480.194595 | BT119: ～ | BU119: 1679.247462 | BV119: 1504.319128 | BW119: ～ | BX119: 1700.550511 | BY119: 1529.109558 | BZ119: ～ | CA119: 1722.519097 | CB119: 1554.534027 | CC119: ～ | CD119: 1745.128087 | CE119: 1580.561938 | CF119: ～ | CG119: 1768.352917 | CH119: 1607.163974 | CI119: ～ | CJ119: 1792.169646 | CK119: 1634.3121 | CL119: ～ | CM119: 1816.554992 | CN119: 1661.979555 | CO119: ～ | CP119: 1841.486367 | CQ119: 1690.140834 | CR119: ～ | CS119: 1866.941895
C120: 410 | D120: =C120*3 -> 1230 | E120: 1220.2 | F120: 1490 | G120: =F120+75*2-79.9*2 -> 1480.2 | H120: =(($E120^2+H$106^2)^0.5) -> 1220.855454 | I120: ～ | J120: =(($G120^2+J$106^2)^0.5) -> 1480.740369 | K120: =(($E120^2+K$106^2)^0.5) -> 1222.819709 | L120: ～ | M120: =(($G120^2+M$106^2)^0.5) -> 1482.360294 | N120: =(($E120^2+N$106^2)^0.5) -> 1226.086473 | O120: ～ | P120: =(($G120^2+P$106^2)^0.5) -> 1485.056241 | Q120: =(($E120^2+Q$106^2)^0.5) -> 1230.645375 | R120: ～ | S120: =(($G120^2+S$106^2)^0.5) -> 1488.822367 | T120: 1236.482123 | U120: ～ | V120: 1493.650575 | W120: 1243.578723 | X120: ～ | Y120: 1499.530607 | Z120: 1251.913751 | AA120: ～ | AB120: 1506.450145 | AC120: 1261.462659 | AD120: ～ | AE120: 1514.394942 | AF120: 1272.198114 | AG120: ～ | AH120: 1523.348955 | AI120: =(($E120^2+AI$106^2)^0.5) -> 1284.090355 | AJ120: ～ | AK120: =(($G120^2+AK$106^2)^0.5) -> 1533.294505 | AL120: =(($E120^2+AL$106^2)^0.5) -> 1297.107567 | AM120: ～ | AN120: =(($G120^2+AN$106^2)^0.5) -> 1544.212434 | AO120: =(($E120^2+AO$106^2)^0.5) -> 1311.216245 | AP120: ～ | AQ120: =(($G120^2+AQ$106^2)^0.5) -> 1556.082273 | AR120: =(($E120^2+AR$106^2)^0.5) -> 1326.381559 | AS120: ～ | AT120: =(($G120^2+AT$106^2)^0.5) -> 1568.882418 | AU120: =(($E120^2+AU$106^2)^0.5) -> 1342.567704 | AV120: ～ | AW120: =(($G120^2+AW$106^2)^0.5) -> 1582.590294 | AX120: 1359.738225 | AY120: ～ | AZ120: 1597.182532 | BA120: 1377.856321 | BB120: ～ | BC120: 1612.635123 | BD120: 1396.885121 | BE120: ～ | BF120: 1628.923583 | BG120: 1416.78793 | BH120: ～ | BI120: 1646.023098 | BJ120: 1437.528448 | BK120: ～ | BL120: 1663.908663 | BM120: 1459.070951 | BN120: ～ | BO120: 1682.555212 | BP120: 1481.380451 | BQ120: ～ | BR120: 1701.937731 | BS120: 1504.422826 | BT120: ～ | BU120: 1722.03137 | BV120: 1528.164926 | BW120: ～ | BX120: 1742.811533 | BY120: 1552.574649 | BZ120: ～ | CA120: 1764.253961 | CB120: 1577.621006 | CC120: ～ | CD120: 1786.334806 | CE120: 1603.274162 | CF120: ～ | CG120: 1809.030691 | CH120: 1629.505459 | CI120: ～ | CJ120: 1832.31876 | CK120: 1656.287427 | CL120: ～ | CM120: 1856.176726 | CN120: 1683.593787 | CO120: ～ | CP120: 1880.582899 | CQ120: 1711.399439 | CR120: ～ | CS120: 1905.516214
C121: 420 | D121: 1260 | E121: 1250.2 | F121: 1540 | G121: 1530.2 | H121: 1250.839734 | I121: ～ | J121: 1530.722718 | K121: 1252.756976 | L121: ～ | M121: 1532.289803 | N121: 1255.945875 | O121: ～ | P121: 1534.898055 | Q121: 1260.396779 | R121: ～ | S121: 1538.54218 | T121: 1266.096379 | U121: ～ | V121: 1543.214839 | W121: 1273.027902 | X121: ～ | Y121: 1548.906724 | Z121: 1281.171355 | AA121: ～ | AB121: 1555.606647 | AC121: 1290.503793 | AD121: ～ | AE121: 1563.301647 | AF121: 1300.999631 | AG121: ～ | AH121: 1571.977112 | AI121: 1312.630961 | AJ121: ～ | AK121: 1581.616907 | AL121: 1325.367889 | AM121: ～ | AN121: 1592.203517 | AO121: 1339.178868 | AP121: ～ | AQ121: 1603.718192 | AR121: 1354.031034 | AS121: ～ | AT121: 1616.141095 | AU121: 1369.890521 | AV121: ～ | AW121: 1629.451454 | AX121: 1386.72277 | AY121: ～ | AZ121: 1643.627707 | BA121: 1404.492805 | BB121: ～ | BC121: 1658.647654 | BD121: 1423.1655 | BE121: ～ | BF121: 1674.488591 | BG121: 1442.705805 | BH121: ～ | BI121: 1691.127446 | BJ121: 1463.078959 | BK121: ～ | BL121: 1708.54091 | BM121: 1484.250666 | BN121: ～ | BO121: 1726.705545 | BP121: 1506.187253 | BQ121: ～ | BR121: 1745.597903 | BS121: 1528.855794 | BT121: ～ | BU121: 1765.194618 | BV121: 1552.224223 | BW121: ～ | BX121: 1785.472498 | BY121: 1576.261412 | BZ121: ～ | CA121: 1806.408603 | CB121: 1600.937238 | CC121: ～ | CD121: 1827.980317 | CE121: 1626.222629 | CF121: ～ | CG121: 1850.165409 | CH121: 1652.089598 | CI121: ～ | CJ121: 1872.942081 | CK121: 1678.511257 | CL121: ～ | CM121: 1896.289018 | CN121: 1705.461826 | CO121: ～ | CP121: 1920.185418 | CQ121: 1732.916628 | CR121: ～ | CS121: 1944.611025
C122: 430 | D122: 1290 | E122: 1280.2 | F122: 1590 | G122: 1580.2 | H122: 1280.82475 | I122: ～ | J122: 1580.706184 | K122: 1282.697174 | L122: ～ | M122: 1582.223764 | N122: 1285.811821 | O122: ～ | P122: 1584.749835 | Q122: 1290.159696 | R122: ～ | S122: 1588.279585 | T122: 1295.728382 | U122: ～ | V122: 1592.806341 | W122: 1302.502223 | X122: ～ | Y122: 1598.321632 | Z122: 1310.462529 | AA122: ～ | AB122: 1604.815267 | AC122: 1319.58783 | AD122: ～ | AE122: 1612.275423 | AF122: 1329.854142 | AG122: ～ | AH122: 1620.688755 | AI122: 1341.235266 | AJ122: ～ | AK122: 1630.040503 | AL122: 1353.703084 | AM122: ～ | AN122: 1640.314616 | AO122: 1367.227867 | AP122: ～ | AQ122: 1651.493881 | AR122: 1381.778578 | AS122: ～ | AT122: 1663.56005 | AU122: 1397.323169 | AV122: ～ | AW122: 1676.493973 | AX122: 1413.828858 | AY122: ～ | AZ122: 1690.275729 | BA122: 1431.262394 | BB122: ～ | BC122: 1704.884759 | BD122: 1449.590301 | BE122: ～ | BF122: 1720.299985 | BG122: 1468.779098 | BH122: ～ | BI122: 1736.49994 | BJ122: 1488.7955 | BK122: ～ | BL122: 1753.462871 | BM122: 1509.606585 | BN122: ～ | BO122: 1771.166858 | BP122: 1531.17995 | BQ122: ～ | BR122: 1789.589908 | BS122: 1553.48384 | BT122: ～ | BU122: 1808.710049 | BV122: 1576.487247 | BW122: ～ | BX122: 1828.505412 | BY122: 1600.160004 | BZ122: ～ | CA122: 1848.95431 | CB122: 1624.47285 | CC122: ～ | CD122: 1870.035304 | CE122: 1649.397478 | CF122: ～ | CG122: 1891.727264 | CH122: 1674.906576 | CI122: ～ | CJ122: 1914.009415 | CK122: 1700.97385 | CL122: ～ | CM122: 1936.861389 | CN122: 1727.574033 | CO122: ～ | CP122: 1960.263258 | CQ122: 1754.682889 | CR122: ～ | CS122: 1984.195565
C123: 440 | D123: 1320 | E123: 1310.2 | F123: 1640 | G123: 1630.2 | H123: 1310.810452 | I123: ～ | J123: 1630.690663 | K123: 1312.640103 | L123: ～ | M123: 1632.161769 | N123: 1315.683868 | O123: ～ | P123: 1634.610669 | Q123: 1319.933347 | R123: ～ | S123: 1638.032979 | T123: =(($E123^2+T$106^2)^0.5) -> 1325.376943 | U123: ～ | V123: =(($G123^2+V$106^2)^0.5) -> 1642.422613 | W123: 1332.000015 | X123: ～ | Y123: 1647.771841 | Z123: 1339.785072 | AA123: ～ | AB123: 1654.071353 | AC123: 1348.711993 | AD123: ～ | AE123: 1661.310338 | AF123: 1358.758271 | AG123: ～ | AH123: 1669.476577 | AI123: 1369.899281 | AJ123: ～ | AK123: 1678.556535 | AL123: 1382.108549 | AM123: ～ | AN123: 1688.535472 | AO123: 1395.358033 | AP123: ～ | AQ123: 1699.397552 | AR123: 1409.618402 | AS123: ～ | AT123: 1711.125957 | AU123: 1424.859305 | AV123: ～ | AW123: 1723.703002 | AX123: =(($E123^2+AX$106^2)^0.5) -> 1441.049631 | AY123: ～ | AZ123: =(($G123^2+AZ$106^2)^0.5) -> 1737.110256 | BA123: 1458.157756 | BB123: ～ | BC123: 1751.32865 | BD123: 1476.151767 | BE123: ～ | BF123: 1766.338597 | BG123: 1494.999679 | BH123: ～ | BI123: 1782.120097 | BJ123: 1514.669614 | BK123: ～ | BL123: 1798.65284 | BM123: 1535.129975 | BN123: ～ | BO123: 1815.916309 | BP123: 1556.349588 | BQ123: ～ | BR123: 1833.889866 | BS123: 1578.29783 | BT123: ～ | BU123: 1852.552844 | BV123: 1600.944734 | BW123: ～ | BX123: 1871.884623 | BY123: 1624.261075 | BZ123: ～ | CA123: 1891.864699 | CB123: 1648.218444 | CC123: ～ | CD123: 1912.472755 | CE123: 1672.789299 | CF123: ～ | CG123: 1933.688713 | CH123: 1697.947007 | CI123: ～ | CJ123: 1955.492787 | CK123: 1723.665872 | CL123: ～ | CM123: 1977.865526 | CN123: 1749.921153 | CO123: ～ | CP123: 2000.787855 | CQ123: 1776.689067 | CR123: ～ | CS123: 2024.241102
C124: 450 | D124: 1350 | E124: 1340.2 | F124: 1690 | G124: 1680.2 | H124: 1340.796793 | I124: ～ | J124: 1680.676066 | K124: 1342.58558 | L124: ～ | M124: 1682.103457 | N124: 1345.561608 | O124: ～ | P124: 1684.479754 | Q124: 1349.717022 | R124: ～ | S124: 1687.800948 | T124: 1355.040974 | U124: ～ | V124: 1692.061476 | W124: 1361.519754 | X124: ～ | Y124: 1697.254265 | Z124: 1369.136969 | AA124: ～ | AB124: 1703.370788 | AC124: 1377.873739 | AD124: ～ | AE124: 1710.401134 | AF124: 1387.708918 | AG124: ～ | AH124: 1718.334089 | AI124: 1398.619333 | AJ124: ～ | AK124: 1727.157213 | AL124: 1410.580037 | AM124: ～ | AN124: 1736.856943 | AO124: 1423.564554 | AP124: ～ | AQ124: 1747.418679 | AR124: 1437.545144 | AS124: ～ | AT124: 1758.826893 | AU124: 1452.493043 | AV124: ～ | AW124: 1771.065227 | AX124: 1468.378711 | AY124: ～ | AZ124: 1784.116599 | BA124: 1485.172057 | BB124: ～ | BC124: 1797.963303 | BD124: 1502.842653 | BE124: ～ | BF124: 1812.587112 | BG124: 1521.359931 | BH124: ～ | BI124: 1827.969376 | BJ124: 1540.693363 | BK124: ～ | BL124: 1844.091115 | BM124: 1560.812622 | BN124: ～ | BO124: 1860.93311 | BP124: 1581.687719 | BQ124: ～ | BR124: 1878.475989 | BS124: 1603.289132 | BT124: ～ | BU124: 1896.700303 | BV124: 1625.587906 | BW124: ～ | BX124: 1915.586605 | BY124: 1648.555744 | BZ124: ～ | CA124: 1935.115511 | CB124: 1672.165076 | CC124: ～ | CD124: 1955.267767 | CE124: 1696.389118 | CF124: ～ | CG124: 1976.024301 | CH124: 1721.201917 | CI124: ～ | CJ124: 1997.366276 | CK124: 1746.578381 | CL124: ～ | CM124: 2019.275127 | CN124: 1772.494299 | CO124: ～ | CP124: 2041.732607 | CQ124: 1798.926358 | CR124: ～ | CS124: 2064.720814
C125: 460 | D125: 1380 | E125: 1370.2 | F125: 1740 | G125: 1730.2 | H125: 1370.783732 | I125: ～ | J125: 1730.662313 | K125: 1372.533439 | L125: ～ | M125: 1732.04851 | N125: 1375.44467 | O125: ～ | P125: 1734.356376 | Q125: 1379.510072 | R125: ～ | S125: 1737.58224 | T125: 1384.719481 | U125: ～ | V125: 1741.720999 | W125: 1391.060042 | X125: ～ | Y125: 1746.766166 | Z125: 1398.516371 | AA125: ～ | AB125: 1752.709913 | AC125: 1407.07073 | AD125: ～ | AE125: 1759.543134 | AF125: 1416.703229 | AG125: ～ | AH125: 1767.255511 | AI125: 1427.392041 | AJ125: ～ | AK125: 1775.835589 | AL125: 1439.11363 | AM125: ～ | AN125: 1785.270859 | AO125: 1451.84298 | AP125: ～ | AQ125: 1795.547838 | AR125: 1465.553834 | AS125: ～ | AT125: 1806.652164 | AU125: 1480.218916 | AV125: ～ | AW125: 1818.568679 | AX125: 1495.810162 | AY125: ～ | AZ125: 1831.281529 | BA125: 1512.298925 | BB125: ～ | BC125: 1844.774252 | BD125: 1529.656184 | BE125: ～ | BF125: 1859.029865 | BG125: 1547.852719 | BH125: ～ | BI125: 1874.03096 | BJ125: 1566.859292 | BK125: ～ | BL125: 1889.759784 | BM125: 1586.646791 | BN125: ～ | BO125: 1906.198321 | BP125: 1607.186374 | BQ125: ～ | BR125: 1923.328375 | BS125: 1628.449582 | BT125: ～ | BU125: 1941.131639 | BV125: 1650.408446 | BW125: ～ | BX125: 1959.589763 | BY125: 1673.035576 | BZ125: ～ | CA125: 1978.684422 | CB125: 1696.30423 | CC125: ～ | CD125: 1998.397368 | CE125: 1720.188373 | CF125: ～ | CG125: 2018.710489 | CH125: 1744.66273 | CI125: ～ | CJ125: 2039.605854 | CK125: 1769.702811 | CL125: ～ | CM125: 2061.065753 | CN125: 1795.284947 | CO125: ～ | CP125: 2083.07274 | CQ125: 1821.386296 | CR125: ～ | CS125: 2105.60966
C126: 470 | D126: 1410 | E126: 1400.2 | F126: 1790 | G126: 1780.2 | H126: 1400.77123 | I126: ～ | J126: 1780.649331 | K126: 1402.483526 | L126: ～ | M126: 1781.996644 | N126: 1405.332715 | O126: ～ | P126: 1784.239905 | Q126: 1409.311903 | R126: ～ | S126: 1787.375741 | T126: 1414.411553 | U126: ～ | V126: 1791.399464 | W126: 1420.619597 | X126: ～ | Y126: 1796.305108 | Z126: 1427.92158 | AA126: ～ | AB126: 1802.08547 | AC126: 1436.300818 | AD126: ～ | AE126: 1808.732164 | AF126: 1445.738579 | AG126: ～ | AH126: 1816.235679 | AI126: 1456.214284 | AJ126: ～ | AK126: 1824.585443 | AL126: 1467.705706 | AM126: ～ | AN126: 1833.769898 | AO126: 1480.189191 | AP126: ～ | AQ126: 1843.77657 | AR126: 1493.639863 | AS126: ～ | AT126: 1854.592149 | AU126: 1508.031843 | AV126: ～ | AW126: 1866.202572 | AX126: 1523.338452 | AY126: ～ | AZ126: 1878.593101 | BA126: 1539.53241 | BB126: ～ | BC126: 1891.748408 | BD126: 1556.586021 | BE126: ～ | BF126: 1905.652655 | BG126: 1574.471353 | BH126: ～ | BI126: 1920.289572 | BJ126: 1593.160394 | BK126: ～ | BL126: 1935.642539 | BM126: 1612.625201 | BN126: ～ | BO126: 1951.694658 | BP126: 1632.838032 | BQ126: ～ | BR126: 1968.428825 | BS126: 1653.771459 | BT126: ～ | BU126: 1985.827797 | BV126: 1675.398472 | BW126: ～ | BX126: 2003.874258 | BY126: 1697.692563 | BZ126: ～ | CA126: 2022.550875 | CB126: 1720.627804 | CC126: ～ | CD126: 2041.840356 | CE126: 1744.178901 | CF126: ～ | CG126: 2061.725501 | CH126: 1768.321249 | CI126: ～ | CJ126: 2082.189242 | CK126: 1793.030965 | CL126: ～ | CM126: 2103.214692 | CN126: 1818.284917 | CO126: ～ | CP126: 2124.785175 | CQ126: 1844.060747 | CR126: ～ | CS126: 2146.884263
C127: 480 | D127: =C127*3 -> 1440 | E127: 1430.2 | F127: 1840 | G127: 1830.2 | H127: 1430.759253 | I127: ～ | J127: 1830.637059 | K127: 1432.435702 | L127: ～ | M127: 1831.947608 | N127: 1435.225432 | O127: ～ | P127: 1834.129777 | Q127: 1439.121968 | R127: ～ | S127: 1837.180459 | T127: 1444.116353 | U127: ～ | V127: 1841.095337 | W127: 1450.197242 | X127: ～ | Y127: 1845.868912 | Z127: 1457.351035 | AA127: ～ | AB127: 1851.494542 | AC127: 1465.562022 | AD127: ～ | AE127: 1857.964488 | AF127: 1474.812544 | AG127: ～ | AH127: 1865.269964 | AI127: 1485.083176 | AJ127: ～ | AK127: 1873.401196 | AL127: 1496.352913 | AM127: ～ | AN127: 1882.347481 | AO127: 1508.599364 | AP127: ～ | AQ127: 1892.09726 | AR127: 1521.798949 | AS127: ～ | AT127: 1902.638179 | AU127: 1535.927095 | AV127: ～ | AW127: 1913.957168 | AX127: 1550.958426 | AY127: ～ | AZ127: 1926.040508 | BA127: 1566.86695 | BB127: ～ | BC127: 1938.87391 | BD127: 1583.626231 | BE127: ～ | BF127: 1952.442583 | BG127: 1601.209555 | BH127: ～ | BI127: 1966.731309 | BJ127: 1619.590084 | BK127: ～ | BL127: 1981.724512 | BM127: 1638.740992 | BN127: ～ | BO127: 1997.406328 | BP127: 1658.635596 | BQ127: ～ | BR127: 2013.760671 | BS127: 1679.247462 | BT127: ～ | BU127: 2030.771292 | BV127: 1700.550511 | BW127: ～ | BX127: 2048.421841 | BY127: 1722.519097 | BZ127: ～ | CA127: 2066.695923 | CB127: 1745.128087 | CC127: ～ | CD127: 2085.577148 | CE127: 1768.352917 | CF127: ～ | CG127: 2105.049178 | CH127: 1792.169646 | CI127: ～ | CJ127: 2125.095772 | CK127: 1816.554992 | CL127: ～ | CM127: 2145.700827 | CN127: 1841.486367 | CO127: ～ | CP127: 2166.848412 | CQ127: 1866.941895 | CR127: ～ | CS127: 2188.522799
C128: 490 | D128: =C128*3 -> 1470 | E128: 1460.2 | F128: 1890 | G128: 1880.2 | H128: 1460.747767 | I128: ～ | J128: 1880.625439 | K128: 1462.389839 | L128: ～ | M128: 1881.901177 | N128: 1465.122534 | O128: ～ | P128: 1884.025488 | Q128: 1468.939767 | R128: ～ | S128: 1886.995506 | T128: 1473.833111 | U128: ～ | V128: 1890.807246 | W128: 1479.791891 | X128: ～ | Y128: 1895.455629 | Z128: 1486.803296 | AA128: ～ | AB128: 1900.934518 | AC128: 1494.852514 | AD128: ～ | AE128: 1907.236755 | AF128: 1503.922884 | AG128: ～ | AH128: 1914.35421 | AI128: 1513.99605 | AJ128: ～ | AK128: 1922.277826 | AL128: 1525.052143 | AM128: ～ | AN128: 1930.99768 | AO128: 1537.069953 | AP128: ～ | AQ128: 1940.503038 | AR128: 1550.027109 | AS128: ～ | AT128: 1950.782417 | AU128: 1563.900265 | AV128: ～ | AW128: 1961.823652 | AX128: 1578.665272 | AY128: ～ | AZ128: 1973.613954 | BA128: 1594.29735 | BB128: ～ | BC128: 1986.139985 | BD128: 1610.771256 | BE128: ～ | BF128: 1999.387916 | BG128: 1628.061436 | BH128: ～ | BI128: 2013.343498 | BJ128: 1646.142169 | BK128: ～ | BL128: 2027.99212 | BM128: 1664.9877 | BN128: ～ | BO128: 2043.318879 | BP128: 1684.572361 | BQ128: ～ | BR128: 2059.308632 | BS128: 1704.870681 | BT128: ～ | BU128: 2075.946059 | BV128: 1725.85748 | BW128: ～ | BX128: 2093.215718 | BY128: 1747.507951 | BZ128: ～ | CA128: 2111.102091 | CB128: 1769.79774 | CC128: ～ | CD128: 2129.589641 | CE128: 1792.702998 | CF128: ～ | CG128: 2148.662849 | CH128: 1816.20044 | CI128: ～ | CJ128: 2168.306261 | CK128: 1840.267383 | CL128: ～ | CM128: 2188.504521 | CN128: 1864.881776 | CO128: ～ | CP128: 2209.242413 | CQ128: 1890.022233 | CR128: ～ | CS128: 2230.504885
C129: 500 | D129: =C129*3 -> 1500 | E129: 1490.2 | F129: 1940 | G129: =F129+75*2-79.9*2 -> 1930.2 | H129: 1490.736744 | I129: ～ | J129: 1930.61442 | K129: 1492.345818 | L129: ～ | M129: 1931.857148 | N129: 1495.023759 | O129: ～ | P129: 1933.926586 | Q129: 1498.764838 | R129: ～ | S129: 1936.820085 | T129: 1503.561119 | U129: ～ | V129: 1940.533957 | W129: 1509.402544 | X129: ～ | Y129: 1945.063505 | Z129: 1516.277033 | AA129: ～ | AB129: 1950.403046 | AC129: 1524.170607 | AD129: ～ | AE129: 1956.545946 | AF129: 1533.067526 | AG129: ～ | AH129: 1963.484668 | AI129: 1542.950433 | AJ129: ～ | AK129: 1971.210806 | AL129: 1553.800515 | AM129: ～ | AN129: 1979.715141 | AO129: 1565.597662 | AP129: ～ | AQ129: 1988.987692 | AR129: 1578.320639 | AS129: ～ | AT129: 1999.017769 | AU129: 1591.947248 | AV129: ～ | AW129: 2009.794029 | AX129: 1606.454494 | AY129: ～ | AZ129: 2021.304539 | BA129: 1621.818744 | BB129: ～ | BC129: 2033.53683 | BD129: 1638.015885 | BE129: ～ | BF129: 2046.47796 | BG129: 1655.021462 | BH129: ～ | BI129: 2060.11457 | BJ129: 1672.81082 | BK129: ～ | BL129: 2074.432944 | BM129: 1691.359229 | BN129: ～ | BO129: 2089.419068 | BP129: 1710.641996 | BQ129: ～ | BR129: 2105.058679 | BS129: 1730.634577 | BT129: ～ | BU129: 2121.337323 | BV129: 1751.312662 | BW129: ～ | BX129: 2138.240407 | BY129: 1772.652261 | BZ129: ～ | CA129: 2155.753242 | CB129: 1794.629778 | CC129: ～ | CD129: 2173.86109 | CE129: 1817.222067 | CF129: ～ | CG129: 2192.54921 | CH129: 1840.406488 | CI129: ～ | CJ129: 2211.802894 | CK129: 1864.160948 | CL129: ～ | CM129: 2231.607501 | CN129: 1888.463937 | CO129: ～ | CP129: 2251.948499 | CQ129: 1913.294551 | CR129: ～ | CS129: 2272.811484
B131: 【４段飛ばして連結】 | E131: 不可 踏面最小280×4＝1120の為

Sheet 固定数値 (hidden)
A2: 上段 | B2: 下段 | C2: 連結バー | D2: ① | E2: 楽起 | F2: ⑤ | G2: 楽起 | H2: ベースサイズ
A3: シングル | B3: シングル | C3: ウェーブ | D3: 123.084 | E3: シングル | F3: 10 | G3: シングル | H3: 49.5
A4: ダブル | B4: ダブル | C4: 1200 | D4: 108.5 | E4: ダブル | F4: 10 | G4: ダブル | H4: 49.5
A5: ロング | B5: ロング | C5: ウェーブS | D5: 95.904 | E5: ロング | F5: 10.25 | G5: ロング | H5: 79.5
A6: ショート | B6: ショート | C6: 900 | D6: 78.5 | E6: ショート | F6: 7.5 | G6: ショート | H6: 28
A7: ショートダブル | B7: ショートダブル | C7: 600 | D7: 48.5 | E7: ショートダブル | F7: 7.5 | G7: ショートダブル | H7: 28
A8: 横型 | B8: スリム | E8: スリム | F8: 15.25 | G8: スリム | H8: 30.5
A9: 縦型 | B9: 横型 | E9: 横型 | F9: 10.25 | G9: 横型 | H9: 50
A10: 波型 | B10: 縦型 | E10: 縦型 | F10: 10.25 | G10: 縦型 | H10: 50
A11: ワイド縦型 | B11: 介助バー型 | E11: 介助バー型 | F11: 10.25 | G11: 介助バー型 | H11: 50
B12: 波型 | E12: 波型 | F12: 10.25 | G12: 波型 | H12: 50
B13: ワイド縦型 | E13: ワイド縦型 | F13: 10.5 | G13: ワイド縦型 | H13: 80
B14: ワイド介助バー型 | E14: ワイド介助バー型 | F14: 10.5 | G14: ワイド介助バー型 | H14: 80
B15: 狭所用波型 | E15: 狭所用波型 | F15: 10.25 | G15: 狭所用波型 | H15: 50
